Workbook

Sheet DIRECTIONS
A1: Always put the largest motor into Motor #1 Data.
A2: Enter Motor data, Additional KW, Diversity ONLY
A3: Additional amps will be entered as 10 if motor #1 is filled. Manually change if this is not large enough.
A4: If no motors, additional amps must be inserted manually

Sheet LOADS
A1: PANEL | B1: PANEL | C1: VENDOR | D1: MOTOR #1 | G1: MOTOR #2 | J1: MOTOR #3 | M1: MOTOR #4 | P1: MOTOR #5 | S1: TOTAL | T1: ADD'L LOAD | V1: CONNECT | W1: DIV | X1: DEMAND | Y1: REQ'D | AA1: PROCESS CONTROL PANEL | AC1: PLANT UTILITY ELEC DROPS | AJ1: ORDER | AO1: HEAT LOSS
A2: # | B2: DESCRIPTION | C2: # | D2: HP | E2: FLA | F2: QTY | G2: HP | H2: FLA | I2: QTY | J2: HP | K2: FLA | L2: QTY | M2: HP | N2: FLA | O2: QTY | P2: HP | Q2: FLA | R2: QTY | S2: HP LOAD | T2: Amps | U2: KW | V2: AMPS | X2: AMPS | Y2: FUSES | Z2: DISC SIZE | AA2: LOCATION | AB2: FLOOR | AC2: FEED | AD2: NAME | AE2: DISC | AF2: FUSE | AG2: FEEDER | AH2: BREAKER | AI2: LOCATION | AJ2: NUMBER | AK2: HUB | AL2: BIDPACK | AM2: COMMENTS | AO2: WATTS
A3: 100 | E3: =IF(D3,LOOKUP(D3,'NEC Rules'!$A$2:$B$28),"") ->  | H3: =IF(G3,LOOKUP(G3,'NEC Rules'!$A$2:$B$28),"") ->  | K3: =IF(J3,LOOKUP(J3,'NEC Rules'!$A$2:$B$28),"") ->  | N3: =IF(M3,LOOKUP(M3,'NEC Rules'!$A$2:$B$28),"") ->  | Q3: =IF(P3,LOOKUP(P3,'NEC Rules'!$A$2:$B$28),"") ->  | S3: =CalcHP(D3,F3,G3,I3,J3,L3,M3,O3,P3,R3) ->  | T3: =IF(D3,10,"") ->  | V3: =CalcCA(E3,F3,H3,I3,K3,L3,N3,O3,Q3,R3,T3,U3) ->  | Y3: =CalcMPF(V3,D3,E3,F3,H3,I3,K3,L3,N3,O3,Q3,R3,T3,U3) ->  | Z3: =CalcPD(Y3) ->  | AC3: =IF(AE3>600,"SUB",IF(AE3>0,"BUS","")) -> SUB | AE3: =CalcPD(AF3) ->  | AF3: =CalcOCP(Z3) ->  | AO3: =X3*480*0.03 -> 0
A4: =A3+1 -> 101 | B4: Panel 1000 | D4: 20 | E4: =IF(D4,LOOKUP(D4,'NEC Rules'!$A$2:$B$28),"") -> 27 | F4: 2 | G4: 7.5 | H4: =IF(G4,LOOKUP(G4,'NEC Rules'!$A$2:$B$28),"") -> 11 | I4: 1 | J4: 3 | K4: =IF(J4,LOOKUP(J4,'NEC Rules'!$A$2:$B$28),"") -> 5.2 | L4: 1 | N4: =IF(M4,LOOKUP(M4,'NEC Rules'!$A$2:$B$28),"") ->  | Q4: =IF(P4,LOOKUP(P4,'NEC Rules'!$A$2:$B$28),"") ->  | S4: =CalcHP(D4,F4,G4,I4,J4,L4,M4,O4,P4,R4) -> 50.5 | V4: =CalcCA(E4,F4,H4,I4,K4,L4,N4,O4,Q4,R4,T4,U4) -> 70.2 | W4: 0.8 | X4: =IF((V4*W4),(V4*W4),"") -> 56.16 | Y4: 90 | Z4: =CalcPD(Y4) -> 100 | AB4: Main | AC4: =IF(AE4>600,"SUB",IF(AE4>0,"BUS","")) -> BUS | AD4: 0-A,20-26 | AE4: =CalcPD(AF4) -> 100 | AF4: =CalcOCP(Z4) -> 100 | AG4: =CalcWS(AF4) -> 3#3,1#8G,1in C
A5: =A4+1 -> 102 | B5: Panel 2000 | D5: 20 | E5: =IF(D5,LOOKUP(D5,'NEC Rules'!$A$2:$B$28),"") -> 27 | F5: 8 | G5: 15 | H5: =IF(G5,LOOKUP(G5,'NEC Rules'!$A$2:$B$28),"") -> 21 | I5: 2 | J5: 7.5 | K5: =IF(J5,LOOKUP(J5,'NEC Rules'!$A$2:$B$28),"") -> 11 | L5: 4 | M5: 2 | N5: =IF(M5,LOOKUP(M5,'NEC Rules'!$A$2:$B$28),"") -> 3.4 | O5: 1 | Q5: =IF(P5,LOOKUP(P5,'NEC Rules'!$A$2:$B$28),"") ->  | S5: =CalcHP(D5,F5,G5,I5,J5,L5,M5,O5,P5,R5) -> 222 | V5: =CalcCA(E5,F5,H5,I5,K5,L5,N5,O5,Q5,R5,T5,U5) -> 305.4 | W5: 0.8 | X5: =IF((V5*W5),(V5*W5),"") -> 244.32 | Y5: 350 | Z5: 400 | AB5: Main
A6: =A5+1 -> 103 | B6: Air Supply #1 VFD | D6: 40 | E6: =IF(D6,LOOKUP(D6,'NEC Rules'!$A$2:$B$28),"") -> 52 | F6: 1 | H6: =IF(G6,LOOKUP(G6,'NEC Rules'!$A$2:$B$28),"") ->  | K6: =IF(J6,LOOKUP(J6,'NEC Rules'!$A$2:$B$28),"") ->  | N6: =IF(M6,LOOKUP(M6,'NEC Rules'!$A$2:$B$28),"") ->  | Q6: =IF(P6,LOOKUP(P6,'NEC Rules'!$A$2:$B$28),"") ->  | S6: =CalcHP(D6,F6,G6,I6,J6,L6,M6,O6,P6,R6) -> 40 | V6: =CalcCA(E6,F6,H6,I6,K6,L6,N6,O6,Q6,R6,T6,U6) -> 52 | W6: 0.8 | X6: =IF((V6*W6),(V6*W6),"") -> 41.6 | Y6: 80 | Z6: =CalcPD(Y6) -> 100 | AB6: Main
A7: =A6+1 -> 104 | B7: Air Supply #1 VFD | D7: 40 | E7: =IF(D7,LOOKUP(D7,'NEC Rules'!$A$2:$B$28),"") -> 52 | F7: 1 | H7: =IF(G7,LOOKUP(G7,'NEC Rules'!$A$2:$B$28),"") ->  | K7: =IF(J7,LOOKUP(J7,'NEC Rules'!$A$2:$B$28),"") ->  | N7: =IF(M7,LOOKUP(M7,'NEC Rules'!$A$2:$B$28),"") ->  | Q7: =IF(P7,LOOKUP(P7,'NEC Rules'!$A$2:$B$28),"") ->  | S7: 40 | V7: 52 | W7: 0.8 | X7: 41.6 | Y7: 80 | Z7: 100 | AB7: Main
A8: 105 | B8: Tack-off exhaust VFD | D8: 15 | E8: =IF(D8,LOOKUP(D8,'NEC Rules'!$A$2:$B$28),"") -> 21 | F8: 1 | H8: =IF(G8,LOOKUP(G8,'NEC Rules'!$A$2:$B$28),"") ->  | K8: =IF(J8,LOOKUP(J8,'NEC Rules'!$A$2:$B$28),"") ->  | N8: =IF(M8,LOOKUP(M8,'NEC Rules'!$A$2:$B$28),"") ->  | Q8: =IF(P8,LOOKUP(P8,'NEC Rules'!$A$2:$B$28),"") ->  | S8: 15 | V8: 21 | W8: 0.8 | X8: 16.8 | Y8: 35 | Z8: 60 | AB8: Main
A9: 106 | B9: Tack-off exhaust VFD | D9: 15 | E9: =IF(D9,LOOKUP(D9,'NEC Rules'!$A$2:$B$28),"") -> 21 | F9: 1 | H9: =IF(G9,LOOKUP(G9,'NEC Rules'!$A$2:$B$28),"") ->  | K9: =IF(J9,LOOKUP(J9,'NEC Rules'!$A$2:$B$28),"") ->  | N9: =IF(M9,LOOKUP(M9,'NEC Rules'!$A$2:$B$28),"") ->  | Q9: =IF(P9,LOOKUP(P9,'NEC Rules'!$A$2:$B$28),"") ->  | S9: 15 | V9: 21 | W9: 0.8 | X9: 16.8 | Y9: 35 | Z9: 60 | AB9: Main
A10: 107 | B10: B.C. Spray booth exhaust VFD | D10: 30 | E10: =IF(D10,LOOKUP(D10,'NEC Rules'!$A$2:$B$28),"") -> 40 | F10: 1 | H10: =IF(G10,LOOKUP(G10,'NEC Rules'!$A$2:$B$28),"") ->  | K10: =IF(J10,LOOKUP(J10,'NEC Rules'!$A$2:$B$28),"") ->  | N10: =IF(M10,LOOKUP(M10,'NEC Rules'!$A$2:$B$28),"") ->  | Q10: =IF(P10,LOOKUP(P10,'NEC Rules'!$A$2:$B$28),"") ->  | S10: 30 | V10: 40 | W10: 0.8 | X10: 32 | Y10: 70 | Z10: 100 | AB10: Main
A11: 108 | B11: B.C. Spray booth exhaust VFD | D11: 30 | E11: =IF(D11,LOOKUP(D11,'NEC Rules'!$A$2:$B$28),"") -> 40 | F11: 1 | H11: =IF(G11,LOOKUP(G11,'NEC Rules'!$A$2:$B$28),"") ->  | K11: =IF(J11,LOOKUP(J11,'NEC Rules'!$A$2:$B$28),"") ->  | N11: =IF(M11,LOOKUP(M11,'NEC Rules'!$A$2:$B$28),"") ->  | Q11: =IF(P11,LOOKUP(P11,'NEC Rules'!$A$2:$B$28),"") ->  | S11: 30 | V11: 40 | W11: 0.8 | X11: 32 | Y11: 70 | Z11: 100 | AB11: Main
A12: 109 | B12: B.C. Spray booth exhaust VFD | D12: 40 | E12: =IF(D12,LOOKUP(D12,'NEC Rules'!$A$2:$B$28),"") -> 52 | F12: 1 | H12: =IF(G12,LOOKUP(G12,'NEC Rules'!$A$2:$B$28),"") ->  | K12: =IF(J12,LOOKUP(J12,'NEC Rules'!$A$2:$B$28),"") ->  | N12: =IF(M12,LOOKUP(M12,'NEC Rules'!$A$2:$B$28),"") ->  | Q12: =IF(P12,LOOKUP(P12,'NEC Rules'!$A$2:$B$28),"") ->  | S12: 40 | V12: 52 | W12: 0.8 | X12: 41.6 | Y12: 80 | Z12: 100 | AB12: Main
A13: 110 | B13: B.C. Spray booth exhaust VFD | D13: 40 | E13: =IF(D13,LOOKUP(D13,'NEC Rules'!$A$2:$B$28),"") -> 52 | F13: 1 | H13: =IF(G13,LOOKUP(G13,'NEC Rules'!$A$2:$B$28),"") ->  | K13: =IF(J13,LOOKUP(J13,'NEC Rules'!$A$2:$B$28),"") ->  | N13: =IF(M13,LOOKUP(M13,'NEC Rules'!$A$2:$B$28),"") ->  | Q13: =IF(P13,LOOKUP(P13,'NEC Rules'!$A$2:$B$28),"") ->  | S13: 40 | V13: 52 | W13: 0.8 | X13: 41.6 | Y13: 80 | Z13: 100 | AB13: Main
A14: 111 | B14: C.C. Spray booth exhaust VFD | D14: 30 | E14: =IF(D14,LOOKUP(D14,'NEC Rules'!$A$2:$B$28),"") -> 40 | F14: 1 | H14: =IF(G14,LOOKUP(G14,'NEC Rules'!$A$2:$B$28),"") ->  | K14: =IF(J14,LOOKUP(J14,'NEC Rules'!$A$2:$B$28),"") ->  | N14: =IF(M14,LOOKUP(M14,'NEC Rules'!$A$2:$B$28),"") ->  | Q14: =IF(P14,LOOKUP(P14,'NEC Rules'!$A$2:$B$28),"") ->  | S14: 30 | V14: 40 | W14: 0.8 | X14: 32 | Y14: 70 | Z14: 100 | AB14: Main | AO14: =X14*480*0.03 -> 460.8
A15: 112 | B15: C,C. Spray Booth exhaust VFD | D15: 30 | E15: =IF(D15,LOOKUP(D15,'NEC Rules'!$A$2:$B$28),"") -> 40 | F15: 1 | H15: =IF(G15,LOOKUP(G15,'NEC Rules'!$A$2:$B$28),"") ->  | K15: =IF(J15,LOOKUP(J15,'NEC Rules'!$A$2:$B$28),"") ->  | N15: =IF(M15,LOOKUP(M15,'NEC Rules'!$A$2:$B$28),"") ->  | Q15: =IF(P15,LOOKUP(P15,'NEC Rules'!$A$2:$B$28),"") ->  | S15: 30 | V15: 40 | W15: 0.8 | X15: 32 | Y15: 70 | Z15: 100 | AB15: Main | AO15: 460.8
A16: 113 | B16: C.C. Spray booth exhaust VFD | D16: 40 | E16: =IF(D16,LOOKUP(D16,'NEC Rules'!$A$2:$B$28),"") -> 52 | F16: 1 | H16: =IF(G16,LOOKUP(G16,'NEC Rules'!$A$2:$B$28),"") ->  | K16: =IF(J16,LOOKUP(J16,'NEC Rules'!$A$2:$B$28),"") ->  | N16: =IF(M16,LOOKUP(M16,'NEC Rules'!$A$2:$B$28),"") ->  | Q16: =IF(P16,LOOKUP(P16,'NEC Rules'!$A$2:$B$28),"") ->  | S16: 40 | V16: 52 | W16: 0.8 | X16: 41.6 | Y16: 80 | Z16: 100 | AB16: Main | AO16: 599.04
A17: 114 | B17: C.C. Spray booth exhaust VFD | D17: 40 | E17: =IF(D17,LOOKUP(D17,'NEC Rules'!$A$2:$B$28),"") -> 52 | F17: 1 | H17: =IF(G17,LOOKUP(G17,'NEC Rules'!$A$2:$B$28),"") ->  | K17: =IF(J17,LOOKUP(J17,'NEC Rules'!$A$2:$B$28),"") ->  | N17: =IF(M17,LOOKUP(M17,'NEC Rules'!$A$2:$B$28),"") ->  | Q17: =IF(P17,LOOKUP(P17,'NEC Rules'!$A$2:$B$28),"") ->  | S17: 40 | V17: 52 | W17: 0.8 | X17: 41.6 | Y17: 80 | Z17: 100 | AB17: Main | AO17: 599.04
A18: 115 | B18: Air Supply #2 VFD | D18: 50 | E18: =IF(D18,LOOKUP(D18,'NEC Rules'!$A$2:$B$28),"") -> 65 | F18: 1 | H18: =IF(G18,LOOKUP(G18,'NEC Rules'!$A$2:$B$28),"") ->  | K18: =IF(J18,LOOKUP(J18,'NEC Rules'!$A$2:$B$28),"") ->  | N18: =IF(M18,LOOKUP(M18,'NEC Rules'!$A$2:$B$28),"") ->  | Q18: =IF(P18,LOOKUP(P18,'NEC Rules'!$A$2:$B$28),"") ->  | S18: 50 | V18: 65 | W18: 0.8 | X18: 52 | Y18: 100 | Z18: 100 | AB18: Main | AO18: 748.8
A19: 116 | B19: Air Supply #2 VFD | D19: 50 | E19: =IF(D19,LOOKUP(D19,'NEC Rules'!$A$2:$B$28),"") -> 65 | F19: 1 | H19: =IF(G19,LOOKUP(G19,'NEC Rules'!$A$2:$B$28),"") ->  | K19: =IF(J19,LOOKUP(J19,'NEC Rules'!$A$2:$B$28),"") ->  | N19: =IF(M19,LOOKUP(M19,'NEC Rules'!$A$2:$B$28),"") ->  | Q19: =IF(P19,LOOKUP(P19,'NEC Rules'!$A$2:$B$28),"") ->  | S19: 50 | V19: =CalcCA(E19,F19,H19,I19,K19,L19,N19,O19,Q19,R19,T19,U19) -> 65 | W19: 0.8 | X19: =IF((V19*W19),(V19*W19),"") -> 52 | Y19: 100 | Z19: 100 | AB19: Main | AO19: 748.8
A20: =#REF!+1 ->  | E20: =IF(D20,LOOKUP(D20,'NEC Rules'!$A$2:$B$28),"") ->  | H20: =IF(G20,LOOKUP(G20,'NEC Rules'!$A$2:$B$28),"") ->  | K20: =IF(J20,LOOKUP(J20,'NEC Rules'!$A$2:$B$28),"") ->  | N20: =IF(M20,LOOKUP(M20,'NEC Rules'!$A$2:$B$28),"") ->  | Q20: =IF(P20,LOOKUP(P20,'NEC Rules'!$A$2:$B$28),"") ->  | S20: =CalcHP(D20,F20,G20,I20,J20,L20,M20,O20,P20,R20) ->  | T20: =IF(D20,10,"") -> 
E21: =IF(D21,LOOKUP(D21,'NEC Rules'!$A$2:$B$28),"") ->  | H21: =IF(G21,LOOKUP(G21,'NEC Rules'!$A$2:$B$28),"") ->  | K21: =IF(J21,LOOKUP(J21,'NEC Rules'!$A$2:$B$28),"") ->  | N21: =IF(M21,LOOKUP(M21,'NEC Rules'!$A$2:$B$28),"") ->  | Q21: =IF(P21,LOOKUP(P21,'NEC Rules'!$A$2:$B$28),"") -> 
E22: =IF(D22,LOOKUP(D22,'NEC Rules'!$A$2:$B$28),"") ->  | H22: =IF(G22,LOOKUP(G22,'NEC Rules'!$A$2:$B$28),"") ->  | K22: =IF(J22,LOOKUP(J22,'NEC Rules'!$A$2:$B$28),"") ->  | N22: =IF(M22,LOOKUP(M22,'NEC Rules'!$A$2:$B$28),"") ->  | Q22: =IF(P22,LOOKUP(P22,'NEC Rules'!$A$2:$B$28),"") ->  | X22: =IF((V22*W22),(V22*W22),"") -> 
E23: =IF(D23,LOOKUP(D23,'NEC Rules'!$A$2:$B$28),"") ->  | H23: =IF(G23,LOOKUP(G23,'NEC Rules'!$A$2:$B$28),"") ->  | K23: =IF(J23,LOOKUP(J23,'NEC Rules'!$A$2:$B$28),"") ->  | N23: =IF(M23,LOOKUP(M23,'NEC Rules'!$A$2:$B$28),"") ->  | Q23: =IF(P23,LOOKUP(P23,'NEC Rules'!$A$2:$B$28),"") -> 
E24: =IF(D24,LOOKUP(D24,'NEC Rules'!$A$2:$B$28),"") ->  | H24: =IF(G24,LOOKUP(G24,'NEC Rules'!$A$2:$B$28),"") ->  | K24: =IF(J24,LOOKUP(J24,'NEC Rules'!$A$2:$B$28),"") ->  | N24: =IF(M24,LOOKUP(M24,'NEC Rules'!$A$2:$B$28),"") ->  | Q24: =IF(P24,LOOKUP(P24,'NEC Rules'!$A$2:$B$28),"") -> 
E25: =IF(D25,LOOKUP(D25,'NEC Rules'!$A$2:$B$28),"") ->  | H25: =IF(G25,LOOKUP(G25,'NEC Rules'!$A$2:$B$28),"") ->  | K25: =IF(J25,LOOKUP(J25,'NEC Rules'!$A$2:$B$28),"") ->  | N25: =IF(M25,LOOKUP(M25,'NEC Rules'!$A$2:$B$28),"") ->  | Q25: =IF(P25,LOOKUP(P25,'NEC Rules'!$A$2:$B$28),"") -> 
E26: =IF(D26,LOOKUP(D26,'NEC Rules'!$A$2:$B$28),"") ->  | H26: =IF(G26,LOOKUP(G26,'NEC Rules'!$A$2:$B$28),"") ->  | K26: =IF(J26,LOOKUP(J26,'NEC Rules'!$A$2:$B$28),"") ->  | N26: =IF(M26,LOOKUP(M26,'NEC Rules'!$A$2:$B$28),"") ->  | Q26: =IF(P26,LOOKUP(P26,'NEC Rules'!$A$2:$B$28),"") -> 
E27: =IF(D27,LOOKUP(D27,'NEC Rules'!$A$2:$B$28),"") ->  | H27: =IF(G27,LOOKUP(G27,'NEC Rules'!$A$2:$B$28),"") ->  | K27: =IF(J27,LOOKUP(J27,'NEC Rules'!$A$2:$B$28),"") ->  | N27: =IF(M27,LOOKUP(M27,'NEC Rules'!$A$2:$B$28),"") ->  | Q27: =IF(P27,LOOKUP(P27,'NEC Rules'!$A$2:$B$28),"") -> 
E28: =IF(D28,LOOKUP(D28,'NEC Rules'!$A$2:$B$28),"") ->  | H28: =IF(G28,LOOKUP(G28,'NEC Rules'!$A$2:$B$28),"") ->  | K28: =IF(J28,LOOKUP(J28,'NEC Rules'!$A$2:$B$28),"") ->  | N28: =IF(M28,LOOKUP(M28,'NEC Rules'!$A$2:$B$28),"") ->  | Q28: =IF(P28,LOOKUP(P28,'NEC Rules'!$A$2:$B$28),"") -> 
E29: =IF(D29,LOOKUP(D29,'NEC Rules'!$A$2:$B$28),"") ->  | H29: =IF(G29,LOOKUP(G29,'NEC Rules'!$A$2:$B$28),"") ->  | K29: =IF(J29,LOOKUP(J29,'NEC Rules'!$A$2:$B$28),"") ->  | N29: =IF(M29,LOOKUP(M29,'NEC Rules'!$A$2:$B$28),"") ->  | Q29: =IF(P29,LOOKUP(P29,'NEC Rules'!$A$2:$B$28),"") -> 
E30: =IF(D30,LOOKUP(D30,'NEC Rules'!$A$2:$B$28),"") ->  | H30: =IF(G30,LOOKUP(G30,'NEC Rules'!$A$2:$B$28),"") ->  | K30: =IF(J30,LOOKUP(J30,'NEC Rules'!$A$2:$B$28),"") ->  | N30: =IF(M30,LOOKUP(M30,'NEC Rules'!$A$2:$B$28),"") ->  | Q30: =IF(P30,LOOKUP(P30,'NEC Rules'!$A$2:$B$28),"") -> 
E31: =IF(D31,LOOKUP(D31,'NEC Rules'!$A$2:$B$28),"") ->  | H31: =IF(G31,LOOKUP(G31,'NEC Rules'!$A$2:$B$28),"") ->  | K31: =IF(J31,LOOKUP(J31,'NEC Rules'!$A$2:$B$28),"") ->  | N31: =IF(M31,LOOKUP(M31,'NEC Rules'!$A$2:$B$28),"") ->  | Q31: =IF(P31,LOOKUP(P31,'NEC Rules'!$A$2:$B$28),"") -> 
E32: =IF(D32,LOOKUP(D32,'NEC Rules'!$A$2:$B$28),"") ->  | H32: =IF(G32,LOOKUP(G32,'NEC Rules'!$A$2:$B$28),"") ->  | K32: =IF(J32,LOOKUP(J32,'NEC Rules'!$A$2:$B$28),"") ->  | N32: =IF(M32,LOOKUP(M32,'NEC Rules'!$A$2:$B$28),"") ->  | Q32: =IF(P32,LOOKUP(P32,'NEC Rules'!$A$2:$B$28),"") -> 
E33: =IF(D33,LOOKUP(D33,'NEC Rules'!$A$2:$B$28),"") ->  | H33: =IF(G33,LOOKUP(G33,'NEC Rules'!$A$2:$B$28),"") ->  | K33: =IF(J33,LOOKUP(J33,'NEC Rules'!$A$2:$B$28),"") ->  | N33: =IF(M33,LOOKUP(M33,'NEC Rules'!$A$2:$B$28),"") ->  | Q33: =IF(P33,LOOKUP(P33,'NEC Rules'!$A$2:$B$28),"") -> 
E34: =IF(D34,LOOKUP(D34,'NEC Rules'!$A$2:$B$28),"") ->  | H34: =IF(G34,LOOKUP(G34,'NEC Rules'!$A$2:$B$28),"") ->  | K34: =IF(J34,LOOKUP(J34,'NEC Rules'!$A$2:$B$28),"") ->  | N34: =IF(M34,LOOKUP(M34,'NEC Rules'!$A$2:$B$28),"") ->  | Q34: =IF(P34,LOOKUP(P34,'NEC Rules'!$A$2:$B$28),"") -> 
E35: =IF(D35,LOOKUP(D35,'NEC Rules'!$A$2:$B$28),"") ->  | H35: =IF(G35,LOOKUP(G35,'NEC Rules'!$A$2:$B$28),"") ->  | K35: =IF(J35,LOOKUP(J35,'NEC Rules'!$A$2:$B$28),"") ->  | N35: =IF(M35,LOOKUP(M35,'NEC Rules'!$A$2:$B$28),"") ->  | Q35: =IF(P35,LOOKUP(P35,'NEC Rules'!$A$2:$B$28),"") -> 
E36: =IF(D36,LOOKUP(D36,'NEC Rules'!$A$2:$B$28),"") ->  | H36: =IF(G36,LOOKUP(G36,'NEC Rules'!$A$2:$B$28),"") ->  | K36: =IF(J36,LOOKUP(J36,'NEC Rules'!$A$2:$B$28),"") ->  | N36: =IF(M36,LOOKUP(M36,'NEC Rules'!$A$2:$B$28),"") ->  | Q36: =IF(P36,LOOKUP(P36,'NEC Rules'!$A$2:$B$28),"") -> 
E37: =IF(D37,LOOKUP(D37,'NEC Rules'!$A$2:$B$28),"") ->  | H37: =IF(G37,LOOKUP(G37,'NEC Rules'!$A$2:$B$28),"") ->  | K37: =IF(J37,LOOKUP(J37,'NEC Rules'!$A$2:$B$28),"") ->  | N37: =IF(M37,LOOKUP(M37,'NEC Rules'!$A$2:$B$28),"") ->  | Q37: =IF(P37,LOOKUP(P37,'NEC Rules'!$A$2:$B$28),"") -> 
E38: =IF(D38,LOOKUP(D38,'NEC Rules'!$A$2:$B$28),"") ->  | H38: =IF(G38,LOOKUP(G38,'NEC Rules'!$A$2:$B$28),"") ->  | K38: =IF(J38,LOOKUP(J38,'NEC Rules'!$A$2:$B$28),"") ->  | N38: =IF(M38,LOOKUP(M38,'NEC Rules'!$A$2:$B$28),"") ->  | Q38: =IF(P38,LOOKUP(P38,'NEC Rules'!$A$2:$B$28),"") -> 
E39: =IF(D39,LOOKUP(D39,'NEC Rules'!$A$2:$B$28),"") ->  | H39: =IF(G39,LOOKUP(G39,'NEC Rules'!$A$2:$B$28),"") ->  | K39: =IF(J39,LOOKUP(J39,'NEC Rules'!$A$2:$B$28),"") ->  | N39: =IF(M39,LOOKUP(M39,'NEC Rules'!$A$2:$B$28),"") ->  | Q39: =IF(P39,LOOKUP(P39,'NEC Rules'!$A$2:$B$28),"") -> 
E40: =IF(D40,LOOKUP(D40,'NEC Rules'!$A$2:$B$28),"") ->  | H40: =IF(G40,LOOKUP(G40,'NEC Rules'!$A$2:$B$28),"") ->  | K40: =IF(J40,LOOKUP(J40,'NEC Rules'!$A$2:$B$28),"") ->  | N40: =IF(M40,LOOKUP(M40,'NEC Rules'!$A$2:$B$28),"") ->  | Q40: =IF(P40,LOOKUP(P40,'NEC Rules'!$A$2:$B$28),"") -> 
E41: =IF(D41,LOOKUP(D41,'NEC Rules'!$A$2:$B$28),"") ->  | H41: =IF(G41,LOOKUP(G41,'NEC Rules'!$A$2:$B$28),"") ->  | K41: =IF(J41,LOOKUP(J41,'NEC Rules'!$A$2:$B$28),"") ->  | N41: =IF(M41,LOOKUP(M41,'NEC Rules'!$A$2:$B$28),"") ->  | Q41: =IF(P41,LOOKUP(P41,'NEC Rules'!$A$2:$B$28),"") -> 
E42: =IF(D42,LOOKUP(D42,'NEC Rules'!$A$2:$B$28),"") ->  | H42: =IF(G42,LOOKUP(G42,'NEC Rules'!$A$2:$B$28),"") ->  | K42: =IF(J42,LOOKUP(J42,'NEC Rules'!$A$2:$B$28),"") ->  | N42: =IF(M42,LOOKUP(M42,'NEC Rules'!$A$2:$B$28),"") ->  | Q42: =IF(P42,LOOKUP(P42,'NEC Rules'!$A$2:$B$28),"") -> 
E43: =IF(D43,LOOKUP(D43,'NEC Rules'!$A$2:$B$28),"") ->  | H43: =IF(G43,LOOKUP(G43,'NEC Rules'!$A$2:$B$28),"") ->  | K43: =IF(J43,LOOKUP(J43,'NEC Rules'!$A$2:$B$28),"") ->  | N43: =IF(M43,LOOKUP(M43,'NEC Rules'!$A$2:$B$28),"") ->  | Q43: =IF(P43,LOOKUP(P43,'NEC Rules'!$A$2:$B$28),"") -> 
E44: =IF(D44,LOOKUP(D44,'NEC Rules'!$A$2:$B$28),"") ->  | H44: =IF(G44,LOOKUP(G44,'NEC Rules'!$A$2:$B$28),"") ->  | K44: =IF(J44,LOOKUP(J44,'NEC Rules'!$A$2:$B$28),"") ->  | N44: =IF(M44,LOOKUP(M44,'NEC Rules'!$A$2:$B$28),"") ->  | Q44: =IF(P44,LOOKUP(P44,'NEC Rules'!$A$2:$B$28),"") -> 
E45: =IF(D45,LOOKUP(D45,'NEC Rules'!$A$2:$B$28),"") ->  | H45: =IF(G45,LOOKUP(G45,'NEC Rules'!$A$2:$B$28),"") ->  | K45: =IF(J45,LOOKUP(J45,'NEC Rules'!$A$2:$B$28),"") ->  | N45: =IF(M45,LOOKUP(M45,'NEC Rules'!$A$2:$B$28),"") ->  | Q45: =IF(P45,LOOKUP(P45,'NEC Rules'!$A$2:$B$28),"") -> 
E46: =IF(D46,LOOKUP(D46,'NEC Rules'!$A$2:$B$28),"") ->  | H46: =IF(G46,LOOKUP(G46,'NEC Rules'!$A$2:$B$28),"") ->  | K46: =IF(J46,LOOKUP(J46,'NEC Rules'!$A$2:$B$28),"") ->  | N46: =IF(M46,LOOKUP(M46,'NEC Rules'!$A$2:$B$28),"") ->  | Q46: =IF(P46,LOOKUP(P46,'NEC Rules'!$A$2:$B$28),"") -> 
E47: =IF(D47,LOOKUP(D47,'NEC Rules'!$A$2:$B$28),"") ->  | H47: =IF(G47,LOOKUP(G47,'NEC Rules'!$A$2:$B$28),"") ->  | K47: =IF(J47,LOOKUP(J47,'NEC Rules'!$A$2:$B$28),"") ->  | N47: =IF(M47,LOOKUP(M47,'NEC Rules'!$A$2:$B$28),"") ->  | Q47: =IF(P47,LOOKUP(P47,'NEC Rules'!$A$2:$B$28),"") -> 
E48: =IF(D48,LOOKUP(D48,'NEC Rules'!$A$2:$B$28),"") ->  | H48: =IF(G48,LOOKUP(G48,'NEC Rules'!$A$2:$B$28),"") ->  | K48: =IF(J48,LOOKUP(J48,'NEC Rules'!$A$2:$B$28),"") ->  | N48: =IF(M48,LOOKUP(M48,'NEC Rules'!$A$2:$B$28),"") ->  | Q48: =IF(P48,LOOKUP(P48,'NEC Rules'!$A$2:$B$28),"") -> 
E49: =IF(D49,LOOKUP(D49,'NEC Rules'!$A$2:$B$28),"") ->  | H49: =IF(G49,LOOKUP(G49,'NEC Rules'!$A$2:$B$28),"") ->  | K49: =IF(J49,LOOKUP(J49,'NEC Rules'!$A$2:$B$28),"") ->  | N49: =IF(M49,LOOKUP(M49,'NEC Rules'!$A$2:$B$28),"") ->  | Q49: =IF(P49,LOOKUP(P49,'NEC Rules'!$A$2:$B$28),"") -> 
E50: =IF(D50,LOOKUP(D50,'NEC Rules'!$A$2:$B$28),"") ->  | H50: =IF(G50,LOOKUP(G50,'NEC Rules'!$A$2:$B$28),"") ->  | K50: =IF(J50,LOOKUP(J50,'NEC Rules'!$A$2:$B$28),"") ->  | N50: =IF(M50,LOOKUP(M50,'NEC Rules'!$A$2:$B$28),"") ->  | Q50: =IF(P50,LOOKUP(P50,'NEC Rules'!$A$2:$B$28),"") -> 
E51: =IF(D51,LOOKUP(D51,'NEC Rules'!$A$2:$B$28),"") ->  | H51: =IF(G51,LOOKUP(G51,'NEC Rules'!$A$2:$B$28),"") ->  | K51: =IF(J51,LOOKUP(J51,'NEC Rules'!$A$2:$B$28),"") ->  | N51: =IF(M51,LOOKUP(M51,'NEC Rules'!$A$2:$B$28),"") ->  | Q51: =IF(P51,LOOKUP(P51,'NEC Rules'!$A$2:$B$28),"") -> 
E52: =IF(D52,LOOKUP(D52,'NEC Rules'!$A$2:$B$28),"") ->  | H52: =IF(G52,LOOKUP(G52,'NEC Rules'!$A$2:$B$28),"") ->  | K52: =IF(J52,LOOKUP(J52,'NEC Rules'!$A$2:$B$28),"") ->  | N52: =IF(M52,LOOKUP(M52,'NEC Rules'!$A$2:$B$28),"") ->  | Q52: =IF(P52,LOOKUP(P52,'NEC Rules'!$A$2:$B$28),"") -> 
E53: =IF(D53,LOOKUP(D53,'NEC Rules'!$A$2:$B$28),"") ->  | H53: =IF(G53,LOOKUP(G53,'NEC Rules'!$A$2:$B$28),"") ->  | K53: =IF(J53,LOOKUP(J53,'NEC Rules'!$A$2:$B$28),"") ->  | N53: =IF(M53,LOOKUP(M53,'NEC Rules'!$A$2:$B$28),"") ->  | Q53: =IF(P53,LOOKUP(P53,'NEC Rules'!$A$2:$B$28),"") -> 
E54: =IF(D54,LOOKUP(D54,'NEC Rules'!$A$2:$B$28),"") ->  | H54: =IF(G54,LOOKUP(G54,'NEC Rules'!$A$2:$B$28),"") ->  | K54: =IF(J54,LOOKUP(J54,'NEC Rules'!$A$2:$B$28),"") ->  | N54: =IF(M54,LOOKUP(M54,'NEC Rules'!$A$2:$B$28),"") ->  | Q54: =IF(P54,LOOKUP(P54,'NEC Rules'!$A$2:$B$28),"") -> 
E55: =IF(D55,LOOKUP(D55,'NEC Rules'!$A$2:$B$28),"") ->  | H55: =IF(G55,LOOKUP(G55,'NEC Rules'!$A$2:$B$28),"") ->  | K55: =IF(J55,LOOKUP(J55,'NEC Rules'!$A$2:$B$28),"") ->  | N55: =IF(M55,LOOKUP(M55,'NEC Rules'!$A$2:$B$28),"") ->  | Q55: =IF(P55,LOOKUP(P55,'NEC Rules'!$A$2:$B$28),"") -> 
E56: =IF(D56,LOOKUP(D56,'NEC Rules'!$A$2:$B$28),"") ->  | H56: =IF(G56,LOOKUP(G56,'NEC Rules'!$A$2:$B$28),"") ->  | K56: =IF(J56,LOOKUP(J56,'NEC Rules'!$A$2:$B$28),"") ->  | N56: =IF(M56,LOOKUP(M56,'NEC Rules'!$A$2:$B$28),"") ->  | Q56: =IF(P56,LOOKUP(P56,'NEC Rules'!$A$2:$B$28),"") -> 
E57: =IF(D57,LOOKUP(D57,'NEC Rules'!$A$2:$B$28),"") ->  | H57: =IF(G57,LOOKUP(G57,'NEC Rules'!$A$2:$B$28),"") ->  | K57: =IF(J57,LOOKUP(J57,'NEC Rules'!$A$2:$B$28),"") ->  | N57: =IF(M57,LOOKUP(M57,'NEC Rules'!$A$2:$B$28),"") ->  | Q57: =IF(P57,LOOKUP(P57,'NEC Rules'!$A$2:$B$28),"") -> 
E58: =IF(D58,LOOKUP(D58,'NEC Rules'!$A$2:$B$28),"") ->  | H58: =IF(G58,LOOKUP(G58,'NEC Rules'!$A$2:$B$28),"") ->  | K58: =IF(J58,LOOKUP(J58,'NEC Rules'!$A$2:$B$28),"") ->  | N58: =IF(M58,LOOKUP(M58,'NEC Rules'!$A$2:$B$28),"") ->  | Q58: =IF(P58,LOOKUP(P58,'NEC Rules'!$A$2:$B$28),"") -> 
E59: =IF(D59,LOOKUP(D59,'NEC Rules'!$A$2:$B$28),"") ->  | H59: =IF(G59,LOOKUP(G59,'NEC Rules'!$A$2:$B$28),"") ->  | K59: =IF(J59,LOOKUP(J59,'NEC Rules'!$A$2:$B$28),"") ->  | N59: =IF(M59,LOOKUP(M59,'NEC Rules'!$A$2:$B$28),"") ->  | Q59: =IF(P59,LOOKUP(P59,'NEC Rules'!$A$2:$B$28),"") -> 
E60: =IF(D60,LOOKUP(D60,'NEC Rules'!$A$2:$B$28),"") ->  | H60: =IF(G60,LOOKUP(G60,'NEC Rules'!$A$2:$B$28),"") ->  | K60: =IF(J60,LOOKUP(J60,'NEC Rules'!$A$2:$B$28),"") ->  | N60: =IF(M60,LOOKUP(M60,'NEC Rules'!$A$2:$B$28),"") ->  | Q60: =IF(P60,LOOKUP(P60,'NEC Rules'!$A$2:$B$28),"") -> 
E61: =IF(D61,LOOKUP(D61,'NEC Rules'!$A$2:$B$28),"") ->  | H61: =IF(G61,LOOKUP(G61,'NEC Rules'!$A$2:$B$28),"") ->  | K61: =IF(J61,LOOKUP(J61,'NEC Rules'!$A$2:$B$28),"") ->  | N61: =IF(M61,LOOKUP(M61,'NEC Rules'!$A$2:$B$28),"") ->  | Q61: =IF(P61,LOOKUP(P61,'NEC Rules'!$A$2:$B$28),"") -> 
E62: =IF(D62,LOOKUP(D62,'NEC Rules'!$A$2:$B$28),"") ->  | H62: =IF(G62,LOOKUP(G62,'NEC Rules'!$A$2:$B$28),"") ->  | K62: =IF(J62,LOOKUP(J62,'NEC Rules'!$A$2:$B$28),"") ->  | N62: =IF(M62,LOOKUP(M62,'NEC Rules'!$A$2:$B$28),"") ->  | Q62: =IF(P62,LOOKUP(P62,'NEC Rules'!$A$2:$B$28),"") -> 
E63: =IF(D63,LOOKUP(D63,'NEC Rules'!$A$2:$B$28),"") ->  | H63: =IF(G63,LOOKUP(G63,'NEC Rules'!$A$2:$B$28),"") ->  | K63: =IF(J63,LOOKUP(J63,'NEC Rules'!$A$2:$B$28),"") ->  | N63: =IF(M63,LOOKUP(M63,'NEC Rules'!$A$2:$B$28),"") ->  | Q63: =IF(P63,LOOKUP(P63,'NEC Rules'!$A$2:$B$28),"") -> 
E64: =IF(D64,LOOKUP(D64,'NEC Rules'!$A$2:$B$28),"") ->  | H64: =IF(G64,LOOKUP(G64,'NEC Rules'!$A$2:$B$28),"") ->  | K64: =IF(J64,LOOKUP(J64,'NEC Rules'!$A$2:$B$28),"") ->  | N64: =IF(M64,LOOKUP(M64,'NEC Rules'!$A$2:$B$28),"") ->  | Q64: =IF(P64,LOOKUP(P64,'NEC Rules'!$A$2:$B$28),"") ->  | Y64: =CalcMPF(V64,D64,E64,F64,H64,I64,K64,L64,N64,O64,Q64,R64,T64,U64) -> 
E65: =IF(D65,LOOKUP(D65,'NEC Rules'!$A$2:$B$28),"") ->  | H65: =IF(G65,LOOKUP(G65,'NEC Rules'!$A$2:$B$28),"") ->  | K65: =IF(J65,LOOKUP(J65,'NEC Rules'!$A$2:$B$28),"") ->  | N65: =IF(M65,LOOKUP(M65,'NEC Rules'!$A$2:$B$28),"") ->  | Q65: =IF(P65,LOOKUP(P65,'NEC Rules'!$A$2:$B$28),"") -> 
E66: =IF(D66,LOOKUP(D66,'NEC Rules'!$A$2:$B$28),"") ->  | H66: =IF(G66,LOOKUP(G66,'NEC Rules'!$A$2:$B$28),"") ->  | K66: =IF(J66,LOOKUP(J66,'NEC Rules'!$A$2:$B$28),"") ->  | N66: =IF(M66,LOOKUP(M66,'NEC Rules'!$A$2:$B$28),"") ->  | Q66: =IF(P66,LOOKUP(P66,'NEC Rules'!$A$2:$B$28),"") ->  | S66: =CalcHP(D66,F66,G66,I66,J66,L66,M66,O66,P66,R66) -> 
E67: =IF(D67,LOOKUP(D67,'NEC Rules'!$A$2:$B$28),"") ->  | H67: =IF(G67,LOOKUP(G67,'NEC Rules'!$A$2:$B$28),"") ->  | K67: =IF(J67,LOOKUP(J67,'NEC Rules'!$A$2:$B$28),"") ->  | N67: =IF(M67,LOOKUP(M67,'NEC Rules'!$A$2:$B$28),"") ->  | Q67: =IF(P67,LOOKUP(P67,'NEC Rules'!$A$2:$B$28),"") -> 
E68: =IF(D68,LOOKUP(D68,'NEC Rules'!$A$2:$B$28),"") ->  | H68: =IF(G68,LOOKUP(G68,'NEC Rules'!$A$2:$B$28),"") ->  | K68: =IF(J68,LOOKUP(J68,'NEC Rules'!$A$2:$B$28),"") ->  | N68: =IF(M68,LOOKUP(M68,'NEC Rules'!$A$2:$B$28),"") ->  | Q68: =IF(P68,LOOKUP(P68,'NEC Rules'!$A$2:$B$28),"") ->  | T68: =IF(D68,10,"") ->  | X68: =IF((V68*W68),(V68*W68),"") ->  | Z68: =CalcPD(Y68) ->  | AO68: =X68*480*0.03 -> 
A69: =A68+1 ->  | E69: =IF(D69,LOOKUP(D69,'NEC Rules'!$A$2:$B$28),"") ->  | H69: =IF(G69,LOOKUP(G69,'NEC Rules'!$A$2:$B$28),"") ->  | K69: =IF(J69,LOOKUP(J69,'NEC Rules'!$A$2:$B$28),"") ->  | N69: =IF(M69,LOOKUP(M69,'NEC Rules'!$A$2:$B$28),"") ->  | Q69: =IF(P69,LOOKUP(P69,'NEC Rules'!$A$2:$B$28),"") -> 
E70: =IF(D70,LOOKUP(D70,'NEC Rules'!$A$2:$B$28),"") ->  | H70: =IF(G70,LOOKUP(G70,'NEC Rules'!$A$2:$B$28),"") ->  | K70: =IF(J70,LOOKUP(J70,'NEC Rules'!$A$2:$B$28),"") ->  | N70: =IF(M70,LOOKUP(M70,'NEC Rules'!$A$2:$B$28),"") ->  | Q70: =IF(P70,LOOKUP(P70,'NEC Rules'!$A$2:$B$28),"") -> 
E71: =IF(D71,LOOKUP(D71,'NEC Rules'!$A$2:$B$28),"") ->  | H71: =IF(G71,LOOKUP(G71,'NEC Rules'!$A$2:$B$28),"") ->  | K71: =IF(J71,LOOKUP(J71,'NEC Rules'!$A$2:$B$28),"") ->  | N71: =IF(M71,LOOKUP(M71,'NEC Rules'!$A$2:$B$28),"") ->  | Q71: =IF(P71,LOOKUP(P71,'NEC Rules'!$A$2:$B$28),"") -> 
E72: =IF(D72,LOOKUP(D72,'NEC Rules'!$A$2:$B$28),"") ->  | H72: =IF(G72,LOOKUP(G72,'NEC Rules'!$A$2:$B$28),"") ->  | K72: =IF(J72,LOOKUP(J72,'NEC Rules'!$A$2:$B$28),"") ->  | N72: =IF(M72,LOOKUP(M72,'NEC Rules'!$A$2:$B$28),"") ->  | Q72: =IF(P72,LOOKUP(P72,'NEC Rules'!$A$2:$B$28),"") -> 
E73: =IF(D73,LOOKUP(D73,'NEC Rules'!$A$2:$B$28),"") ->  | H73: =IF(G73,LOOKUP(G73,'NEC Rules'!$A$2:$B$28),"") ->  | K73: =IF(J73,LOOKUP(J73,'NEC Rules'!$A$2:$B$28),"") ->  | N73: =IF(M73,LOOKUP(M73,'NEC Rules'!$A$2:$B$28),"") ->  | Q73: =IF(P73,LOOKUP(P73,'NEC Rules'!$A$2:$B$28),"") -> 
E74: =IF(D74,LOOKUP(D74,'NEC Rules'!$A$2:$B$28),"") ->  | H74: =IF(G74,LOOKUP(G74,'NEC Rules'!$A$2:$B$28),"") ->  | K74: =IF(J74,LOOKUP(J74,'NEC Rules'!$A$2:$B$28),"") ->  | N74: =IF(M74,LOOKUP(M74,'NEC Rules'!$A$2:$B$28),"") ->  | Q74: =IF(P74,LOOKUP(P74,'NEC Rules'!$A$2:$B$28),"") -> 
E75: =IF(D75,LOOKUP(D75,'NEC Rules'!$A$2:$B$28),"") ->  | H75: =IF(G75,LOOKUP(G75,'NEC Rules'!$A$2:$B$28),"") ->  | K75: =IF(J75,LOOKUP(J75,'NEC Rules'!$A$2:$B$28),"") ->  | N75: =IF(M75,LOOKUP(M75,'NEC Rules'!$A$2:$B$28),"") ->  | Q75: =IF(P75,LOOKUP(P75,'NEC Rules'!$A$2:$B$28),"") -> 
E76: =IF(D76,LOOKUP(D76,'NEC Rules'!$A$2:$B$28),"") ->  | H76: =IF(G76,LOOKUP(G76,'NEC Rules'!$A$2:$B$28),"") ->  | K76: =IF(J76,LOOKUP(J76,'NEC Rules'!$A$2:$B$28),"") ->  | N76: =IF(M76,LOOKUP(M76,'NEC Rules'!$A$2:$B$28),"") ->  | Q76: =IF(P76,LOOKUP(P76,'NEC Rules'!$A$2:$B$28),"") -> 
E77: =IF(D77,LOOKUP(D77,'NEC Rules'!$A$2:$B$28),"") ->  | H77: =IF(G77,LOOKUP(G77,'NEC Rules'!$A$2:$B$28),"") ->  | K77: =IF(J77,LOOKUP(J77,'NEC Rules'!$A$2:$B$28),"") ->  | N77: =IF(M77,LOOKUP(M77,'NEC Rules'!$A$2:$B$28),"") ->  | Q77: =IF(P77,LOOKUP(P77,'NEC Rules'!$A$2:$B$28),"") -> 
E78: =IF(D78,LOOKUP(D78,'NEC Rules'!$A$2:$B$28),"") ->  | H78: =IF(G78,LOOKUP(G78,'NEC Rules'!$A$2:$B$28),"") ->  | K78: =IF(J78,LOOKUP(J78,'NEC Rules'!$A$2:$B$28),"") ->  | N78: =IF(M78,LOOKUP(M78,'NEC Rules'!$A$2:$B$28),"") ->  | Q78: =IF(P78,LOOKUP(P78,'NEC Rules'!$A$2:$B$28),"") -> 
E79: =IF(D79,LOOKUP(D79,'NEC Rules'!$A$2:$B$28),"") ->  | H79: =IF(G79,LOOKUP(G79,'NEC Rules'!$A$2:$B$28),"") ->  | K79: =IF(J79,LOOKUP(J79,'NEC Rules'!$A$2:$B$28),"") ->  | N79: =IF(M79,LOOKUP(M79,'NEC Rules'!$A$2:$B$28),"") ->  | Q79: =IF(P79,LOOKUP(P79,'NEC Rules'!$A$2:$B$28),"") -> 
E80: =IF(D80,LOOKUP(D80,'NEC Rules'!$A$2:$B$28),"") ->  | H80: =IF(G80,LOOKUP(G80,'NEC Rules'!$A$2:$B$28),"") ->  | K80: =IF(J80,LOOKUP(J80,'NEC Rules'!$A$2:$B$28),"") ->  | N80: =IF(M80,LOOKUP(M80,'NEC Rules'!$A$2:$B$28),"") ->  | Q80: =IF(P80,LOOKUP(P80,'NEC Rules'!$A$2:$B$28),"") -> 
E81: =IF(D81,LOOKUP(D81,'NEC Rules'!$A$2:$B$28),"") ->  | H81: =IF(G81,LOOKUP(G81,'NEC Rules'!$A$2:$B$28),"") ->  | K81: =IF(J81,LOOKUP(J81,'NEC Rules'!$A$2:$B$28),"") ->  | N81: =IF(M81,LOOKUP(M81,'NEC Rules'!$A$2:$B$28),"") ->  | Q81: =IF(P81,LOOKUP(P81,'NEC Rules'!$A$2:$B$28),"") ->  | S81: =CalcHP(D81,F81,G81,I81,J81,L81,M81,O81,P81,R81) -> 
E82: =IF(D82,LOOKUP(D82,'NEC Rules'!$A$2:$B$28),"") ->  | H82: =IF(G82,LOOKUP(G82,'NEC Rules'!$A$2:$B$28),"") ->  | K82: =IF(J82,LOOKUP(J82,'NEC Rules'!$A$2:$B$28),"") ->  | N82: =IF(M82,LOOKUP(M82,'NEC Rules'!$A$2:$B$28),"") ->  | Q82: =IF(P82,LOOKUP(P82,'NEC Rules'!$A$2:$B$28),"") -> 
E83: =IF(D83,LOOKUP(D83,'NEC Rules'!$A$2:$B$28),"") ->  | H83: =IF(G83,LOOKUP(G83,'NEC Rules'!$A$2:$B$28),"") ->  | K83: =IF(J83,LOOKUP(J83,'NEC Rules'!$A$2:$B$28),"") ->  | N83: =IF(M83,LOOKUP(M83,'NEC Rules'!$A$2:$B$28),"") ->  | Q83: =IF(P83,LOOKUP(P83,'NEC Rules'!$A$2:$B$28),"") -> 
E84: =IF(D84,LOOKUP(D84,'NEC Rules'!$A$2:$B$28),"") ->  | H84: =IF(G84,LOOKUP(G84,'NEC Rules'!$A$2:$B$28),"") ->  | K84: =IF(J84,LOOKUP(J84,'NEC Rules'!$A$2:$B$28),"") ->  | N84: =IF(M84,LOOKUP(M84,'NEC Rules'!$A$2:$B$28),"") ->  | Q84: =IF(P84,LOOKUP(P84,'NEC Rules'!$A$2:$B$28),"") -> 
E85: =IF(D85,LOOKUP(D85,'NEC Rules'!$A$2:$B$28),"") ->  | H85: =IF(G85,LOOKUP(G85,'NEC Rules'!$A$2:$B$28),"") ->  | K85: =IF(J85,LOOKUP(J85,'NEC Rules'!$A$2:$B$28),"") ->  | N85: =IF(M85,LOOKUP(M85,'NEC Rules'!$A$2:$B$28),"") ->  | Q85: =IF(P85,LOOKUP(P85,'NEC Rules'!$A$2:$B$28),"") -> 
E86: =IF(D86,LOOKUP(D86,'NEC Rules'!$A$2:$B$28),"") ->  | H86: =IF(G86,LOOKUP(G86,'NEC Rules'!$A$2:$B$28),"") ->  | K86: =IF(J86,LOOKUP(J86,'NEC Rules'!$A$2:$B$28),"") ->  | N86: =IF(M86,LOOKUP(M86,'NEC Rules'!$A$2:$B$28),"") ->  | Q86: =IF(P86,LOOKUP(P86,'NEC Rules'!$A$2:$B$28),"") -> 
E87: =IF(D87,LOOKUP(D87,'NEC Rules'!$A$2:$B$28),"") ->  | H87: =IF(G87,LOOKUP(G87,'NEC Rules'!$A$2:$B$28),"") ->  | K87: =IF(J87,LOOKUP(J87,'NEC Rules'!$A$2:$B$28),"") ->  | N87: =IF(M87,LOOKUP(M87,'NEC Rules'!$A$2:$B$28),"") ->  | Q87: =IF(P87,LOOKUP(P87,'NEC Rules'!$A$2:$B$28),"") -> 
E88: =IF(D88,LOOKUP(D88,'NEC Rules'!$A$2:$B$28),"") ->  | H88: =IF(G88,LOOKUP(G88,'NEC Rules'!$A$2:$B$28),"") ->  | K88: =IF(J88,LOOKUP(J88,'NEC Rules'!$A$2:$B$28),"") ->  | N88: =IF(M88,LOOKUP(M88,'NEC Rules'!$A$2:$B$28),"") ->  | Q88: =IF(P88,LOOKUP(P88,'NEC Rules'!$A$2:$B$28),"") -> 
E89: =IF(D89,LOOKUP(D89,'NEC Rules'!$A$2:$B$28),"") ->  | H89: =IF(G89,LOOKUP(G89,'NEC Rules'!$A$2:$B$28),"") ->  | K89: =IF(J89,LOOKUP(J89,'NEC Rules'!$A$2:$B$28),"") ->  | N89: =IF(M89,LOOKUP(M89,'NEC Rules'!$A$2:$B$28),"") ->  | Q89: =IF(P89,LOOKUP(P89,'NEC Rules'!$A$2:$B$28),"") -> 
E90: =IF(D90,LOOKUP(D90,'NEC Rules'!$A$2:$B$28),"") ->  | H90: =IF(G90,LOOKUP(G90,'NEC Rules'!$A$2:$B$28),"") ->  | K90: =IF(J90,LOOKUP(J90,'NEC Rules'!$A$2:$B$28),"") ->  | N90: =IF(M90,LOOKUP(M90,'NEC Rules'!$A$2:$B$28),"") ->  | Q90: =IF(P90,LOOKUP(P90,'NEC Rules'!$A$2:$B$28),"") -> 
E91: =IF(D91,LOOKUP(D91,'NEC Rules'!$A$2:$B$28),"") ->  | H91: =IF(G91,LOOKUP(G91,'NEC Rules'!$A$2:$B$28),"") ->  | K91: =IF(J91,LOOKUP(J91,'NEC Rules'!$A$2:$B$28),"") ->  | N91: =IF(M91,LOOKUP(M91,'NEC Rules'!$A$2:$B$28),"") ->  | Q91: =IF(P91,LOOKUP(P91,'NEC Rules'!$A$2:$B$28),"") -> 
E92: =IF(D92,LOOKUP(D92,'NEC Rules'!$A$2:$B$28),"") ->  | H92: =IF(G92,LOOKUP(G92,'NEC Rules'!$A$2:$B$28),"") ->  | K92: =IF(J92,LOOKUP(J92,'NEC Rules'!$A$2:$B$28),"") ->  | N92: =IF(M92,LOOKUP(M92,'NEC Rules'!$A$2:$B$28),"") ->  | Q92: =IF(P92,LOOKUP(P92,'NEC Rules'!$A$2:$B$28),"") -> 
E93: =IF(D93,LOOKUP(D93,'NEC Rules'!$A$2:$B$28),"") ->  | H93: =IF(G93,LOOKUP(G93,'NEC Rules'!$A$2:$B$28),"") ->  | K93: =IF(J93,LOOKUP(J93,'NEC Rules'!$A$2:$B$28),"") ->  | N93: =IF(M93,LOOKUP(M93,'NEC Rules'!$A$2:$B$28),"") ->  | Q93: =IF(P93,LOOKUP(P93,'NEC Rules'!$A$2:$B$28),"") -> 
E94: =IF(D94,LOOKUP(D94,'NEC Rules'!$A$2:$B$28),"") ->  | H94: =IF(G94,LOOKUP(G94,'NEC Rules'!$A$2:$B$28),"") ->  | K94: =IF(J94,LOOKUP(J94,'NEC Rules'!$A$2:$B$28),"") ->  | N94: =IF(M94,LOOKUP(M94,'NEC Rules'!$A$2:$B$28),"") ->  | Q94: =IF(P94,LOOKUP(P94,'NEC Rules'!$A$2:$B$28),"") -> 
E95: =IF(D95,LOOKUP(D95,'NEC Rules'!$A$2:$B$28),"") ->  | H95: =IF(G95,LOOKUP(G95,'NEC Rules'!$A$2:$B$28),"") ->  | K95: =IF(J95,LOOKUP(J95,'NEC Rules'!$A$2:$B$28),"") ->  | N95: =IF(M95,LOOKUP(M95,'NEC Rules'!$A$2:$B$28),"") ->  | Q95: =IF(P95,LOOKUP(P95,'NEC Rules'!$A$2:$B$28),"") -> 
E96: =IF(D96,LOOKUP(D96,'NEC Rules'!$A$2:$B$28),"") ->  | H96: =IF(G96,LOOKUP(G96,'NEC Rules'!$A$2:$B$28),"") ->  | K96: =IF(J96,LOOKUP(J96,'NEC Rules'!$A$2:$B$28),"") ->  | N96: =IF(M96,LOOKUP(M96,'NEC Rules'!$A$2:$B$28),"") ->  | Q96: =IF(P96,LOOKUP(P96,'NEC Rules'!$A$2:$B$28),"") -> 
E97: =IF(D97,LOOKUP(D97,'NEC Rules'!$A$2:$B$28),"") ->  | H97: =IF(G97,LOOKUP(G97,'NEC Rules'!$A$2:$B$28),"") ->  | K97: =IF(J97,LOOKUP(J97,'NEC Rules'!$A$2:$B$28),"") ->  | N97: =IF(M97,LOOKUP(M97,'NEC Rules'!$A$2:$B$28),"") ->  | Q97: =IF(P97,LOOKUP(P97,'NEC Rules'!$A$2:$B$28),"") -> 
E98: =IF(D98,LOOKUP(D98,'NEC Rules'!$A$2:$B$28),"") ->  | H98: =IF(G98,LOOKUP(G98,'NEC Rules'!$A$2:$B$28),"") ->  | K98: =IF(J98,LOOKUP(J98,'NEC Rules'!$A$2:$B$28),"") ->  | N98: =IF(M98,LOOKUP(M98,'NEC Rules'!$A$2:$B$28),"") ->  | Q98: =IF(P98,LOOKUP(P98,'NEC Rules'!$A$2:$B$28),"") -> 
E99: =IF(D99,LOOKUP(D99,'NEC Rules'!$A$2:$B$28),"") ->  | H99: =IF(G99,LOOKUP(G99,'NEC Rules'!$A$2:$B$28),"") ->  | K99: =IF(J99,LOOKUP(J99,'NEC Rules'!$A$2:$B$28),"") ->  | N99: =IF(M99,LOOKUP(M99,'NEC Rules'!$A$2:$B$28),"") ->  | Q99: =IF(P99,LOOKUP(P99,'NEC Rules'!$A$2:$B$28),"") -> 
E100: =IF(D100,LOOKUP(D100,'NEC Rules'!$A$2:$B$28),"") ->  | H100: =IF(G100,LOOKUP(G100,'NEC Rules'!$A$2:$B$28),"") ->  | K100: =IF(J100,LOOKUP(J100,'NEC Rules'!$A$2:$B$28),"") ->  | N100: =IF(M100,LOOKUP(M100,'NEC Rules'!$A$2:$B$28),"") ->  | Q100: =IF(P100,LOOKUP(P100,'NEC Rules'!$A$2:$B$28),"") -> 
E101: =IF(D101,LOOKUP(D101,'NEC Rules'!$A$2:$B$28),"") ->  | H101: =IF(G101,LOOKUP(G101,'NEC Rules'!$A$2:$B$28),"") ->  | K101: =IF(J101,LOOKUP(J101,'NEC Rules'!$A$2:$B$28),"") ->  | N101: =IF(M101,LOOKUP(M101,'NEC Rules'!$A$2:$B$28),"") ->  | Q101: =IF(P101,LOOKUP(P101,'NEC Rules'!$A$2:$B$28),"") -> 
E102: =IF(D102,LOOKUP(D102,'NEC Rules'!$A$2:$B$28),"") ->  | H102: =IF(G102,LOOKUP(G102,'NEC Rules'!$A$2:$B$28),"") ->  | K102: =IF(J102,LOOKUP(J102,'NEC Rules'!$A$2:$B$28),"") ->  | N102: =IF(M102,LOOKUP(M102,'NEC Rules'!$A$2:$B$28),"") ->  | Q102: =IF(P102,LOOKUP(P102,'NEC Rules'!$A$2:$B$28),"") -> 
E103: =IF(D103,LOOKUP(D103,'NEC Rules'!$A$2:$B$28),"") ->  | H103: =IF(G103,LOOKUP(G103,'NEC Rules'!$A$2:$B$28),"") ->  | K103: =IF(J103,LOOKUP(J103,'NEC Rules'!$A$2:$B$28),"") ->  | N103: =IF(M103,LOOKUP(M103,'NEC Rules'!$A$2:$B$28),"") ->  | Q103: =IF(P103,LOOKUP(P103,'NEC Rules'!$A$2:$B$28),"") -> 
E104: =IF(D104,LOOKUP(D104,'NEC Rules'!$A$2:$B$28),"") ->  | H104: =IF(G104,LOOKUP(G104,'NEC Rules'!$A$2:$B$28),"") ->  | K104: =IF(J104,LOOKUP(J104,'NEC Rules'!$A$2:$B$28),"") ->  | N104: =IF(M104,LOOKUP(M104,'NEC Rules'!$A$2:$B$28),"") ->  | Q104: =IF(P104,LOOKUP(P104,'NEC Rules'!$A$2:$B$28),"") -> 
E105: =IF(D105,LOOKUP(D105,'NEC Rules'!$A$2:$B$28),"") ->  | H105: =IF(G105,LOOKUP(G105,'NEC Rules'!$A$2:$B$28),"") ->  | K105: =IF(J105,LOOKUP(J105,'NEC Rules'!$A$2:$B$28),"") ->  | N105: =IF(M105,LOOKUP(M105,'NEC Rules'!$A$2:$B$28),"") ->  | Q105: =IF(P105,LOOKUP(P105,'NEC Rules'!$A$2:$B$28),"") ->  | Y105: =CalcMPF(V105,D105,E105,F105,H105,I105,K105,L105,N105,O105,Q105,R105,T105,U105) -> 
E106: =IF(D106,LOOKUP(D106,'NEC Rules'!$A$2:$B$28),"") ->  | H106: =IF(G106,LOOKUP(G106,'NEC Rules'!$A$2:$B$28),"") ->  | K106: =IF(J106,LOOKUP(J106,'NEC Rules'!$A$2:$B$28),"") ->  | N106: =IF(M106,LOOKUP(M106,'NEC Rules'!$A$2:$B$28),"") ->  | Q106: =IF(P106,LOOKUP(P106,'NEC Rules'!$A$2:$B$28),"") ->  | Y106: =CalcMPF(V106,D106,E106,F106,H106,I106,K106,L106,N106,O106,Q106,R106,T106,U106) -> 
E107: =IF(D107,LOOKUP(D107,'NEC Rules'!$A$2:$B$28),"") ->  | H107: =IF(G107,LOOKUP(G107,'NEC Rules'!$A$2:$B$28),"") ->  | K107: =IF(J107,LOOKUP(J107,'NEC Rules'!$A$2:$B$28),"") ->  | N107: =IF(M107,LOOKUP(M107,'NEC Rules'!$A$2:$B$28),"") ->  | Q107: =IF(P107,LOOKUP(P107,'NEC Rules'!$A$2:$B$28),"") -> 
E108: =IF(D108,LOOKUP(D108,'NEC Rules'!$A$2:$B$28),"") ->  | H108: =IF(G108,LOOKUP(G108,'NEC Rules'!$A$2:$B$28),"") ->  | K108: =IF(J108,LOOKUP(J108,'NEC Rules'!$A$2:$B$28),"") ->  | N108: =IF(M108,LOOKUP(M108,'NEC Rules'!$A$2:$B$28),"") ->  | Q108: =IF(P108,LOOKUP(P108,'NEC Rules'!$A$2:$B$28),"") -> 
E109: =IF(D109,LOOKUP(D109,'NEC Rules'!$A$2:$B$28),"") ->  | H109: =IF(G109,LOOKUP(G109,'NEC Rules'!$A$2:$B$28),"") ->  | K109: =IF(J109,LOOKUP(J109,'NEC Rules'!$A$2:$B$28),"") ->  | N109: =IF(M109,LOOKUP(M109,'NEC Rules'!$A$2:$B$28),"") ->  | Q109: =IF(P109,LOOKUP(P109,'NEC Rules'!$A$2:$B$28),"") -> 
E110: =IF(D110,LOOKUP(D110,'NEC Rules'!$A$2:$B$28),"") ->  | H110: =IF(G110,LOOKUP(G110,'NEC Rules'!$A$2:$B$28),"") ->  | K110: =IF(J110,LOOKUP(J110,'NEC Rules'!$A$2:$B$28),"") ->  | N110: =IF(M110,LOOKUP(M110,'NEC Rules'!$A$2:$B$28),"") ->  | Q110: =IF(P110,LOOKUP(P110,'NEC Rules'!$A$2:$B$28),"") -> 
E111: =IF(D111,LOOKUP(D111,'NEC Rules'!$A$2:$B$28),"") ->  | H111: =IF(G111,LOOKUP(G111,'NEC Rules'!$A$2:$B$28),"") ->  | K111: =IF(J111,LOOKUP(J111,'NEC Rules'!$A$2:$B$28),"") ->  | N111: =IF(M111,LOOKUP(M111,'NEC Rules'!$A$2:$B$28),"") ->  | Q111: =IF(P111,LOOKUP(P111,'NEC Rules'!$A$2:$B$28),"") -> 
E112: =IF(D112,LOOKUP(D112,'NEC Rules'!$A$2:$B$28),"") ->  | H112: =IF(G112,LOOKUP(G112,'NEC Rules'!$A$2:$B$28),"") ->  | K112: =IF(J112,LOOKUP(J112,'NEC Rules'!$A$2:$B$28),"") ->  | N112: =IF(M112,LOOKUP(M112,'NEC Rules'!$A$2:$B$28),"") ->  | Q112: =IF(P112,LOOKUP(P112,'NEC Rules'!$A$2:$B$28),"") -> 
E113: =IF(D113,LOOKUP(D113,'NEC Rules'!$A$2:$B$28),"") ->  | H113: =IF(G113,LOOKUP(G113,'NEC Rules'!$A$2:$B$28),"") ->  | K113: =IF(J113,LOOKUP(J113,'NEC Rules'!$A$2:$B$28),"") ->  | N113: =IF(M113,LOOKUP(M113,'NEC Rules'!$A$2:$B$28),"") ->  | Q113: =IF(P113,LOOKUP(P113,'NEC Rules'!$A$2:$B$28),"") -> 
E114: =IF(D114,LOOKUP(D114,'NEC Rules'!$A$2:$B$28),"") ->  | H114: =IF(G114,LOOKUP(G114,'NEC Rules'!$A$2:$B$28),"") ->  | K114: =IF(J114,LOOKUP(J114,'NEC Rules'!$A$2:$B$28),"") ->  | N114: =IF(M114,LOOKUP(M114,'NEC Rules'!$A$2:$B$28),"") ->  | Q114: =IF(P114,LOOKUP(P114,'NEC Rules'!$A$2:$B$28),"") -> 
E115: =IF(D115,LOOKUP(D115,'NEC Rules'!$A$2:$B$28),"") ->  | H115: =IF(G115,LOOKUP(G115,'NEC Rules'!$A$2:$B$28),"") ->  | K115: =IF(J115,LOOKUP(J115,'NEC Rules'!$A$2:$B$28),"") ->  | N115: =IF(M115,LOOKUP(M115,'NEC Rules'!$A$2:$B$28),"") ->  | Q115: =IF(P115,LOOKUP(P115,'NEC Rules'!$A$2:$B$28),"") -> 
E116: =IF(D116,LOOKUP(D116,'NEC Rules'!$A$2:$B$28),"") ->  | H116: =IF(G116,LOOKUP(G116,'NEC Rules'!$A$2:$B$28),"") ->  | K116: =IF(J116,LOOKUP(J116,'NEC Rules'!$A$2:$B$28),"") ->  | N116: =IF(M116,LOOKUP(M116,'NEC Rules'!$A$2:$B$28),"") ->  | Q116: =IF(P116,LOOKUP(P116,'NEC Rules'!$A$2:$B$28),"") -> 
E117: =IF(D117,LOOKUP(D117,'NEC Rules'!$A$2:$B$28),"") ->  | H117: =IF(G117,LOOKUP(G117,'NEC Rules'!$A$2:$B$28),"") ->  | K117: =IF(J117,LOOKUP(J117,'NEC Rules'!$A$2:$B$28),"") ->  | N117: =IF(M117,LOOKUP(M117,'NEC Rules'!$A$2:$B$28),"") ->  | Q117: =IF(P117,LOOKUP(P117,'NEC Rules'!$A$2:$B$28),"") -> 
E118: =IF(D118,LOOKUP(D118,'NEC Rules'!$A$2:$B$28),"") ->  | H118: =IF(G118,LOOKUP(G118,'NEC Rules'!$A$2:$B$28),"") ->  | K118: =IF(J118,LOOKUP(J118,'NEC Rules'!$A$2:$B$28),"") ->  | N118: =IF(M118,LOOKUP(M118,'NEC Rules'!$A$2:$B$28),"") ->  | Q118: =IF(P118,LOOKUP(P118,'NEC Rules'!$A$2:$B$28),"") -> 
E119: =IF(D119,LOOKUP(D119,'NEC Rules'!$A$2:$B$28),"") ->  | H119: =IF(G119,LOOKUP(G119,'NEC Rules'!$A$2:$B$28),"") ->  | K119: =IF(J119,LOOKUP(J119,'NEC Rules'!$A$2:$B$28),"") ->  | N119: =IF(M119,LOOKUP(M119,'NEC Rules'!$A$2:$B$28),"") ->  | Q119: =IF(P119,LOOKUP(P119,'NEC Rules'!$A$2:$B$28),"") -> 
E120: =IF(D120,LOOKUP(D120,'NEC Rules'!$A$2:$B$28),"") ->  | H120: =IF(G120,LOOKUP(G120,'NEC Rules'!$A$2:$B$28),"") ->  | K120: =IF(J120,LOOKUP(J120,'NEC Rules'!$A$2:$B$28),"") ->  | N120: =IF(M120,LOOKUP(M120,'NEC Rules'!$A$2:$B$28),"") ->  | Q120: =IF(P120,LOOKUP(P120,'NEC Rules'!$A$2:$B$28),"") -> 
E121: =IF(D121,LOOKUP(D121,'NEC Rules'!$A$2:$B$28),"") ->  | H121: =IF(G121,LOOKUP(G121,'NEC Rules'!$A$2:$B$28),"") ->  | K121: =IF(J121,LOOKUP(J121,'NEC Rules'!$A$2:$B$28),"") ->  | N121: =IF(M121,LOOKUP(M121,'NEC Rules'!$A$2:$B$28),"") ->  | Q121: =IF(P121,LOOKUP(P121,'NEC Rules'!$A$2:$B$28),"") -> 
E122: =IF(D122,LOOKUP(D122,'NEC Rules'!$A$2:$B$28),"") ->  | H122: =IF(G122,LOOKUP(G122,'NEC Rules'!$A$2:$B$28),"") ->  | K122: =IF(J122,LOOKUP(J122,'NEC Rules'!$A$2:$B$28),"") ->  | N122: =IF(M122,LOOKUP(M122,'NEC Rules'!$A$2:$B$28),"") ->  | Q122: =IF(P122,LOOKUP(P122,'NEC Rules'!$A$2:$B$28),"") -> 
E123: =IF(D123,LOOKUP(D123,'NEC Rules'!$A$2:$B$28),"") ->  | H123: =IF(G123,LOOKUP(G123,'NEC Rules'!$A$2:$B$28),"") ->  | K123: =IF(J123,LOOKUP(J123,'NEC Rules'!$A$2:$B$28),"") ->  | N123: =IF(M123,LOOKUP(M123,'NEC Rules'!$A$2:$B$28),"") ->  | Q123: =IF(P123,LOOKUP(P123,'NEC Rules'!$A$2:$B$28),"") -> 
E124: =IF(D124,LOOKUP(D124,'NEC Rules'!$A$2:$B$28),"") ->  | H124: =IF(G124,LOOKUP(G124,'NEC Rules'!$A$2:$B$28),"") ->  | K124: =IF(J124,LOOKUP(J124,'NEC Rules'!$A$2:$B$28),"") ->  | N124: =IF(M124,LOOKUP(M124,'NEC Rules'!$A$2:$B$28),"") ->  | Q124: =IF(P124,LOOKUP(P124,'NEC Rules'!$A$2:$B$28),"") -> 
E125: =IF(D125,LOOKUP(D125,'NEC Rules'!$A$2:$B$28),"") ->  | H125: =IF(G125,LOOKUP(G125,'NEC Rules'!$A$2:$B$28),"") ->  | K125: =IF(J125,LOOKUP(J125,'NEC Rules'!$A$2:$B$28),"") ->  | N125: =IF(M125,LOOKUP(M125,'NEC Rules'!$A$2:$B$28),"") ->  | Q125: =IF(P125,LOOKUP(P125,'NEC Rules'!$A$2:$B$28),"") -> 
E126: =IF(D126,LOOKUP(D126,'NEC Rules'!$A$2:$B$28),"") ->  | H126: =IF(G126,LOOKUP(G126,'NEC Rules'!$A$2:$B$28),"") ->  | K126: =IF(J126,LOOKUP(J126,'NEC Rules'!$A$2:$B$28),"") ->  | N126: =IF(M126,LOOKUP(M126,'NEC Rules'!$A$2:$B$28),"") ->  | Q126: =IF(P126,LOOKUP(P126,'NEC Rules'!$A$2:$B$28),"") -> 
E127: =IF(D127,LOOKUP(D127,'NEC Rules'!$A$2:$B$28),"") ->  | H127: =IF(G127,LOOKUP(G127,'NEC Rules'!$A$2:$B$28),"") ->  | K127: =IF(J127,LOOKUP(J127,'NEC Rules'!$A$2:$B$28),"") ->  | N127: =IF(M127,LOOKUP(M127,'NEC Rules'!$A$2:$B$28),"") ->  | Q127: =IF(P127,LOOKUP(P127,'NEC Rules'!$A$2:$B$28),"") -> 
E128: =IF(D128,LOOKUP(D128,'NEC Rules'!$A$2:$B$28),"") ->  | H128: =IF(G128,LOOKUP(G128,'NEC Rules'!$A$2:$B$28),"") ->  | K128: =IF(J128,LOOKUP(J128,'NEC Rules'!$A$2:$B$28),"") ->  | N128: =IF(M128,LOOKUP(M128,'NEC Rules'!$A$2:$B$28),"") ->  | Q128: =IF(P128,LOOKUP(P128,'NEC Rules'!$A$2:$B$28),"") ->  | Y128: =CalcMPF(V128,D128,E128,F128,H128,I128,K128,L128,N128,O128,Q128,R128,T128,U128) -> 
E129: =IF(D129,LOOKUP(D129,'NEC Rules'!$A$2:$B$28),"") ->  | H129: =IF(G129,LOOKUP(G129,'NEC Rules'!$A$2:$B$28),"") ->  | K129: =IF(J129,LOOKUP(J129,'NEC Rules'!$A$2:$B$28),"") ->  | N129: =IF(M129,LOOKUP(M129,'NEC Rules'!$A$2:$B$28),"") ->  | Q129: =IF(P129,LOOKUP(P129,'NEC Rules'!$A$2:$B$28),"") -> 
E130: =IF(D130,LOOKUP(D130,'NEC Rules'!$A$2:$B$28),"") ->  | H130: =IF(G130,LOOKUP(G130,'NEC Rules'!$A$2:$B$28),"") ->  | K130: =IF(J130,LOOKUP(J130,'NEC Rules'!$A$2:$B$28),"") ->  | N130: =IF(M130,LOOKUP(M130,'NEC Rules'!$A$2:$B$28),"") ->  | Q130: =IF(P130,LOOKUP(P130,'NEC Rules'!$A$2:$B$28),"") ->  | S130: =CalcHP(D130,F130,G130,I130,J130,L130,M130,O130,P130,R130) -> 
E131: =IF(D131,LOOKUP(D131,'NEC Rules'!$A$2:$B$28),"") ->  | H131: =IF(G131,LOOKUP(G131,'NEC Rules'!$A$2:$B$28),"") ->  | K131: =IF(J131,LOOKUP(J131,'NEC Rules'!$A$2:$B$28),"") ->  | N131: =IF(M131,LOOKUP(M131,'NEC Rules'!$A$2:$B$28),"") ->  | Q131: =IF(P131,LOOKUP(P131,'NEC Rules'!$A$2:$B$28),"") -> 
E132: =IF(D132,LOOKUP(D132,'NEC Rules'!$A$2:$B$28),"") ->  | H132: =IF(G132,LOOKUP(G132,'NEC Rules'!$A$2:$B$28),"") ->  | K132: =IF(J132,LOOKUP(J132,'NEC Rules'!$A$2:$B$28),"") ->  | N132: =IF(M132,LOOKUP(M132,'NEC Rules'!$A$2:$B$28),"") ->  | Q132: =IF(P132,LOOKUP(P132,'NEC Rules'!$A$2:$B$28),"") ->  | T132: =IF(D132,10,"") ->  | X132: =IF((V132*W132),(V132*W132),"") ->  | Z132: =CalcPD(Y132) ->  | AO132: =X132*480*0.03 -> 
A133: =A132+1 ->  | E133: =IF(D133,LOOKUP(D133,'NEC Rules'!$A$2:$B$28),"") ->  | H133: =IF(G133,LOOKUP(G133,'NEC Rules'!$A$2:$B$28),"") ->  | K133: =IF(J133,LOOKUP(J133,'NEC Rules'!$A$2:$B$28),"") ->  | N133: =IF(M133,LOOKUP(M133,'NEC Rules'!$A$2:$B$28),"") ->  | Q133: =IF(P133,LOOKUP(P133,'NEC Rules'!$A$2:$B$28),"") -> 
E134: =IF(D134,LOOKUP(D134,'NEC Rules'!$A$2:$B$28),"") ->  | H134: =IF(G134,LOOKUP(G134,'NEC Rules'!$A$2:$B$28),"") ->  | K134: =IF(J134,LOOKUP(J134,'NEC Rules'!$A$2:$B$28),"") ->  | N134: =IF(M134,LOOKUP(M134,'NEC Rules'!$A$2:$B$28),"") ->  | Q134: =IF(P134,LOOKUP(P134,'NEC Rules'!$A$2:$B$28),"") -> 
E135: =IF(D135,LOOKUP(D135,'NEC Rules'!$A$2:$B$28),"") ->  | H135: =IF(G135,LOOKUP(G135,'NEC Rules'!$A$2:$B$28),"") ->  | K135: =IF(J135,LOOKUP(J135,'NEC Rules'!$A$2:$B$28),"") ->  | N135: =IF(M135,LOOKUP(M135,'NEC Rules'!$A$2:$B$28),"") ->  | Q135: =IF(P135,LOOKUP(P135,'NEC Rules'!$A$2:$B$28),"") -> 
E136: =IF(D136,LOOKUP(D136,'NEC Rules'!$A$2:$B$28),"") ->  | H136: =IF(G136,LOOKUP(G136,'NEC Rules'!$A$2:$B$28),"") ->  | K136: =IF(J136,LOOKUP(J136,'NEC Rules'!$A$2:$B$28),"") ->  | N136: =IF(M136,LOOKUP(M136,'NEC Rules'!$A$2:$B$28),"") ->  | Q136: =IF(P136,LOOKUP(P136,'NEC Rules'!$A$2:$B$28),"") -> 
E137: =IF(D137,LOOKUP(D137,'NEC Rules'!$A$2:$B$28),"") ->  | H137: =IF(G137,LOOKUP(G137,'NEC Rules'!$A$2:$B$28),"") ->  | K137: =IF(J137,LOOKUP(J137,'NEC Rules'!$A$2:$B$28),"") ->  | N137: =IF(M137,LOOKUP(M137,'NEC Rules'!$A$2:$B$28),"") ->  | Q137: =IF(P137,LOOKUP(P137,'NEC Rules'!$A$2:$B$28),"") -> 
E138: =IF(D138,LOOKUP(D138,'NEC Rules'!$A$2:$B$28),"") ->  | H138: =IF(G138,LOOKUP(G138,'NEC Rules'!$A$2:$B$28),"") ->  | K138: =IF(J138,LOOKUP(J138,'NEC Rules'!$A$2:$B$28),"") ->  | N138: =IF(M138,LOOKUP(M138,'NEC Rules'!$A$2:$B$28),"") ->  | Q138: =IF(P138,LOOKUP(P138,'NEC Rules'!$A$2:$B$28),"") -> 
E139: =IF(D139,LOOKUP(D139,'NEC Rules'!$A$2:$B$28),"") ->  | H139: =IF(G139,LOOKUP(G139,'NEC Rules'!$A$2:$B$28),"") ->  | K139: =IF(J139,LOOKUP(J139,'NEC Rules'!$A$2:$B$28),"") ->  | N139: =IF(M139,LOOKUP(M139,'NEC Rules'!$A$2:$B$28),"") ->  | Q139: =IF(P139,LOOKUP(P139,'NEC Rules'!$A$2:$B$28),"") -> 
E140: =IF(D140,LOOKUP(D140,'NEC Rules'!$A$2:$B$28),"") ->  | H140: =IF(G140,LOOKUP(G140,'NEC Rules'!$A$2:$B$28),"") ->  | K140: =IF(J140,LOOKUP(J140,'NEC Rules'!$A$2:$B$28),"") ->  | N140: =IF(M140,LOOKUP(M140,'NEC Rules'!$A$2:$B$28),"") ->  | Q140: =IF(P140,LOOKUP(P140,'NEC Rules'!$A$2:$B$28),"") -> 
E141: =IF(D141,LOOKUP(D141,'NEC Rules'!$A$2:$B$28),"") ->  | H141: =IF(G141,LOOKUP(G141,'NEC Rules'!$A$2:$B$28),"") ->  | K141: =IF(J141,LOOKUP(J141,'NEC Rules'!$A$2:$B$28),"") ->  | N141: =IF(M141,LOOKUP(M141,'NEC Rules'!$A$2:$B$28),"") ->  | Q141: =IF(P141,LOOKUP(P141,'NEC Rules'!$A$2:$B$28),"") -> 
E142: =IF(D142,LOOKUP(D142,'NEC Rules'!$A$2:$B$28),"") ->  | H142: =IF(G142,LOOKUP(G142,'NEC Rules'!$A$2:$B$28),"") ->  | K142: =IF(J142,LOOKUP(J142,'NEC Rules'!$A$2:$B$28),"") ->  | N142: =IF(M142,LOOKUP(M142,'NEC Rules'!$A$2:$B$28),"") ->  | Q142: =IF(P142,LOOKUP(P142,'NEC Rules'!$A$2:$B$28),"") -> 
E143: =IF(D143,LOOKUP(D143,'NEC Rules'!$A$2:$B$28),"") ->  | H143: =IF(G143,LOOKUP(G143,'NEC Rules'!$A$2:$B$28),"") ->  | K143: =IF(J143,LOOKUP(J143,'NEC Rules'!$A$2:$B$28),"") ->  | N143: =IF(M143,LOOKUP(M143,'NEC Rules'!$A$2:$B$28),"") ->  | Q143: =IF(P143,LOOKUP(P143,'NEC Rules'!$A$2:$B$28),"") -> 
E144: =IF(D144,LOOKUP(D144,'NEC Rules'!$A$2:$B$28),"") ->  | H144: =IF(G144,LOOKUP(G144,'NEC Rules'!$A$2:$B$28),"") ->  | K144: =IF(J144,LOOKUP(J144,'NEC Rules'!$A$2:$B$28),"") ->  | N144: =IF(M144,LOOKUP(M144,'NEC Rules'!$A$2:$B$28),"") ->  | Q144: =IF(P144,LOOKUP(P144,'NEC Rules'!$A$2:$B$28),"") -> 
E145: =IF(D145,LOOKUP(D145,'NEC Rules'!$A$2:$B$28),"") ->  | H145: =IF(G145,LOOKUP(G145,'NEC Rules'!$A$2:$B$28),"") ->  | K145: =IF(J145,LOOKUP(J145,'NEC Rules'!$A$2:$B$28),"") ->  | N145: =IF(M145,LOOKUP(M145,'NEC Rules'!$A$2:$B$28),"") ->  | Q145: =IF(P145,LOOKUP(P145,'NEC Rules'!$A$2:$B$28),"") -> 
E146: =IF(D146,LOOKUP(D146,'NEC Rules'!$A$2:$B$28),"") ->  | H146: =IF(G146,LOOKUP(G146,'NEC Rules'!$A$2:$B$28),"") ->  | K146: =IF(J146,LOOKUP(J146,'NEC Rules'!$A$2:$B$28),"") ->  | N146: =IF(M146,LOOKUP(M146,'NEC Rules'!$A$2:$B$28),"") ->  | Q146: =IF(P146,LOOKUP(P146,'NEC Rules'!$A$2:$B$28),"") -> 
E147: =IF(D147,LOOKUP(D147,'NEC Rules'!$A$2:$B$28),"") ->  | H147: =IF(G147,LOOKUP(G147,'NEC Rules'!$A$2:$B$28),"") ->  | K147: =IF(J147,LOOKUP(J147,'NEC Rules'!$A$2:$B$28),"") ->  | N147: =IF(M147,LOOKUP(M147,'NEC Rules'!$A$2:$B$28),"") ->  | Q147: =IF(P147,LOOKUP(P147,'NEC Rules'!$A$2:$B$28),"") -> 
E148: =IF(D148,LOOKUP(D148,'NEC Rules'!$A$2:$B$28),"") ->  | H148: =IF(G148,LOOKUP(G148,'NEC Rules'!$A$2:$B$28),"") ->  | K148: =IF(J148,LOOKUP(J148,'NEC Rules'!$A$2:$B$28),"") ->  | N148: =IF(M148,LOOKUP(M148,'NEC Rules'!$A$2:$B$28),"") ->  | Q148: =IF(P148,LOOKUP(P148,'NEC Rules'!$A$2:$B$28),"") -> 
E149: =IF(D149,LOOKUP(D149,'NEC Rules'!$A$2:$B$28),"") ->  | H149: =IF(G149,LOOKUP(G149,'NEC Rules'!$A$2:$B$28),"") ->  | K149: =IF(J149,LOOKUP(J149,'NEC Rules'!$A$2:$B$28),"") ->  | N149: =IF(M149,LOOKUP(M149,'NEC Rules'!$A$2:$B$28),"") ->  | Q149: =IF(P149,LOOKUP(P149,'NEC Rules'!$A$2:$B$28),"") -> 
E150: =IF(D150,LOOKUP(D150,'NEC Rules'!$A$2:$B$28),"") ->  | H150: =IF(G150,LOOKUP(G150,'NEC Rules'!$A$2:$B$28),"") ->  | K150: =IF(J150,LOOKUP(J150,'NEC Rules'!$A$2:$B$28),"") ->  | N150: =IF(M150,LOOKUP(M150,'NEC Rules'!$A$2:$B$28),"") ->  | Q150: =IF(P150,LOOKUP(P150,'NEC Rules'!$A$2:$B$28),"") -> 
E151: =IF(D151,LOOKUP(D151,'NEC Rules'!$A$2:$B$28),"") ->  | H151: =IF(G151,LOOKUP(G151,'NEC Rules'!$A$2:$B$28),"") ->  | K151: =IF(J151,LOOKUP(J151,'NEC Rules'!$A$2:$B$28),"") ->  | N151: =IF(M151,LOOKUP(M151,'NEC Rules'!$A$2:$B$28),"") ->  | Q151: =IF(P151,LOOKUP(P151,'NEC Rules'!$A$2:$B$28),"") -> 
E152: =IF(D152,LOOKUP(D152,'NEC Rules'!$A$2:$B$28),"") ->  | H152: =IF(G152,LOOKUP(G152,'NEC Rules'!$A$2:$B$28),"") ->  | K152: =IF(J152,LOOKUP(J152,'NEC Rules'!$A$2:$B$28),"") ->  | N152: =IF(M152,LOOKUP(M152,'NEC Rules'!$A$2:$B$28),"") ->  | Q152: =IF(P152,LOOKUP(P152,'NEC Rules'!$A$2:$B$28),"") -> 
E153: =IF(D153,LOOKUP(D153,'NEC Rules'!$A$2:$B$28),"") ->  | H153: =IF(G153,LOOKUP(G153,'NEC Rules'!$A$2:$B$28),"") ->  | K153: =IF(J153,LOOKUP(J153,'NEC Rules'!$A$2:$B$28),"") ->  | N153: =IF(M153,LOOKUP(M153,'NEC Rules'!$A$2:$B$28),"") ->  | Q153: =IF(P153,LOOKUP(P153,'NEC Rules'!$A$2:$B$28),"") -> 
E154: =IF(D154,LOOKUP(D154,'NEC Rules'!$A$2:$B$28),"") ->  | H154: =IF(G154,LOOKUP(G154,'NEC Rules'!$A$2:$B$28),"") ->  | K154: =IF(J154,LOOKUP(J154,'NEC Rules'!$A$2:$B$28),"") ->  | N154: =IF(M154,LOOKUP(M154,'NEC Rules'!$A$2:$B$28),"") ->  | Q154: =IF(P154,LOOKUP(P154,'NEC Rules'!$A$2:$B$28),"") -> 
E155: =IF(D155,LOOKUP(D155,'NEC Rules'!$A$2:$B$28),"") ->  | H155: =IF(G155,LOOKUP(G155,'NEC Rules'!$A$2:$B$28),"") ->  | K155: =IF(J155,LOOKUP(J155,'NEC Rules'!$A$2:$B$28),"") ->  | N155: =IF(M155,LOOKUP(M155,'NEC Rules'!$A$2:$B$28),"") ->  | Q155: =IF(P155,LOOKUP(P155,'NEC Rules'!$A$2:$B$28),"") -> 
E156: =IF(D156,LOOKUP(D156,'NEC Rules'!$A$2:$B$28),"") ->  | H156: =IF(G156,LOOKUP(G156,'NEC Rules'!$A$2:$B$28),"") ->  | K156: =IF(J156,LOOKUP(J156,'NEC Rules'!$A$2:$B$28),"") ->  | N156: =IF(M156,LOOKUP(M156,'NEC Rules'!$A$2:$B$28),"") ->  | Q156: =IF(P156,LOOKUP(P156,'NEC Rules'!$A$2:$B$28),"") -> 
E157: =IF(D157,LOOKUP(D157,'NEC Rules'!$A$2:$B$28),"") ->  | H157: =IF(G157,LOOKUP(G157,'NEC Rules'!$A$2:$B$28),"") ->  | K157: =IF(J157,LOOKUP(J157,'NEC Rules'!$A$2:$B$28),"") ->  | N157: =IF(M157,LOOKUP(M157,'NEC Rules'!$A$2:$B$28),"") ->  | Q157: =IF(P157,LOOKUP(P157,'NEC Rules'!$A$2:$B$28),"") -> 
E158: =IF(D158,LOOKUP(D158,'NEC Rules'!$A$2:$B$28),"") ->  | H158: =IF(G158,LOOKUP(G158,'NEC Rules'!$A$2:$B$28),"") ->  | K158: =IF(J158,LOOKUP(J158,'NEC Rules'!$A$2:$B$28),"") ->  | N158: =IF(M158,LOOKUP(M158,'NEC Rules'!$A$2:$B$28),"") ->  | Q158: =IF(P158,LOOKUP(P158,'NEC Rules'!$A$2:$B$28),"") -> 
E159: =IF(D159,LOOKUP(D159,'NEC Rules'!$A$2:$B$28),"") ->  | H159: =IF(G159,LOOKUP(G159,'NEC Rules'!$A$2:$B$28),"") ->  | K159: =IF(J159,LOOKUP(J159,'NEC Rules'!$A$2:$B$28),"") ->  | N159: =IF(M159,LOOKUP(M159,'NEC Rules'!$A$2:$B$28),"") ->  | Q159: =IF(P159,LOOKUP(P159,'NEC Rules'!$A$2:$B$28),"") -> 
E160: =IF(D160,LOOKUP(D160,'NEC Rules'!$A$2:$B$28),"") ->  | H160: =IF(G160,LOOKUP(G160,'NEC Rules'!$A$2:$B$28),"") ->  | K160: =IF(J160,LOOKUP(J160,'NEC Rules'!$A$2:$B$28),"") ->  | N160: =IF(M160,LOOKUP(M160,'NEC Rules'!$A$2:$B$28),"") ->  | Q160: =IF(P160,LOOKUP(P160,'NEC Rules'!$A$2:$B$28),"") -> 
E161: =IF(D161,LOOKUP(D161,'NEC Rules'!$A$2:$B$28),"") ->  | H161: =IF(G161,LOOKUP(G161,'NEC Rules'!$A$2:$B$28),"") ->  | K161: =IF(J161,LOOKUP(J161,'NEC Rules'!$A$2:$B$28),"") ->  | N161: =IF(M161,LOOKUP(M161,'NEC Rules'!$A$2:$B$28),"") ->  | Q161: =IF(P161,LOOKUP(P161,'NEC Rules'!$A$2:$B$28),"") -> 
E162: =IF(D162,LOOKUP(D162,'NEC Rules'!$A$2:$B$28),"") ->  | H162: =IF(G162,LOOKUP(G162,'NEC Rules'!$A$2:$B$28),"") ->  | K162: =IF(J162,LOOKUP(J162,'NEC Rules'!$A$2:$B$28),"") ->  | N162: =IF(M162,LOOKUP(M162,'NEC Rules'!$A$2:$B$28),"") ->  | Q162: =IF(P162,LOOKUP(P162,'NEC Rules'!$A$2:$B$28),"") -> 
E163: =IF(D163,LOOKUP(D163,'NEC Rules'!$A$2:$B$28),"") ->  | H163: =IF(G163,LOOKUP(G163,'NEC Rules'!$A$2:$B$28),"") ->  | K163: =IF(J163,LOOKUP(J163,'NEC Rules'!$A$2:$B$28),"") ->  | N163: =IF(M163,LOOKUP(M163,'NEC Rules'!$A$2:$B$28),"") ->  | Q163: =IF(P163,LOOKUP(P163,'NEC Rules'!$A$2:$B$28),"") -> 
E164: =IF(D164,LOOKUP(D164,'NEC Rules'!$A$2:$B$28),"") ->  | H164: =IF(G164,LOOKUP(G164,'NEC Rules'!$A$2:$B$28),"") ->  | K164: =IF(J164,LOOKUP(J164,'NEC Rules'!$A$2:$B$28),"") ->  | N164: =IF(M164,LOOKUP(M164,'NEC Rules'!$A$2:$B$28),"") ->  | Q164: =IF(P164,LOOKUP(P164,'NEC Rules'!$A$2:$B$28),"") -> 
E165: =IF(D165,LOOKUP(D165,'NEC Rules'!$A$2:$B$28),"") ->  | H165: =IF(G165,LOOKUP(G165,'NEC Rules'!$A$2:$B$28),"") ->  | K165: =IF(J165,LOOKUP(J165,'NEC Rules'!$A$2:$B$28),"") ->  | N165: =IF(M165,LOOKUP(M165,'NEC Rules'!$A$2:$B$28),"") ->  | Q165: =IF(P165,LOOKUP(P165,'NEC Rules'!$A$2:$B$28),"") -> 
E166: =IF(D166,LOOKUP(D166,'NEC Rules'!$A$2:$B$28),"") ->  | H166: =IF(G166,LOOKUP(G166,'NEC Rules'!$A$2:$B$28),"") ->  | K166: =IF(J166,LOOKUP(J166,'NEC Rules'!$A$2:$B$28),"") ->  | N166: =IF(M166,LOOKUP(M166,'NEC Rules'!$A$2:$B$28),"") ->  | Q166: =IF(P166,LOOKUP(P166,'NEC Rules'!$A$2:$B$28),"") -> 
E167: =IF(D167,LOOKUP(D167,'NEC Rules'!$A$2:$B$28),"") ->  | H167: =IF(G167,LOOKUP(G167,'NEC Rules'!$A$2:$B$28),"") ->  | K167: =IF(J167,LOOKUP(J167,'NEC Rules'!$A$2:$B$28),"") ->  | N167: =IF(M167,LOOKUP(M167,'NEC Rules'!$A$2:$B$28),"") ->  | Q167: =IF(P167,LOOKUP(P167,'NEC Rules'!$A$2:$B$28),"") -> 
E168: =IF(D168,LOOKUP(D168,'NEC Rules'!$A$2:$B$28),"") ->  | H168: =IF(G168,LOOKUP(G168,'NEC Rules'!$A$2:$B$28),"") ->  | K168: =IF(J168,LOOKUP(J168,'NEC Rules'!$A$2:$B$28),"") ->  | N168: =IF(M168,LOOKUP(M168,'NEC Rules'!$A$2:$B$28),"") ->  | Q168: =IF(P168,LOOKUP(P168,'NEC Rules'!$A$2:$B$28),"") -> 
E169: =IF(D169,LOOKUP(D169,'NEC Rules'!$A$2:$B$28),"") ->  | H169: =IF(G169,LOOKUP(G169,'NEC Rules'!$A$2:$B$28),"") ->  | K169: =IF(J169,LOOKUP(J169,'NEC Rules'!$A$2:$B$28),"") ->  | N169: =IF(M169,LOOKUP(M169,'NEC Rules'!$A$2:$B$28),"") ->  | Q169: =IF(P169,LOOKUP(P169,'NEC Rules'!$A$2:$B$28),"") -> 
E170: =IF(D170,LOOKUP(D170,'NEC Rules'!$A$2:$B$28),"") ->  | H170: =IF(G170,LOOKUP(G170,'NEC Rules'!$A$2:$B$28),"") ->  | K170: =IF(J170,LOOKUP(J170,'NEC Rules'!$A$2:$B$28),"") ->  | N170: =IF(M170,LOOKUP(M170,'NEC Rules'!$A$2:$B$28),"") ->  | Q170: =IF(P170,LOOKUP(P170,'NEC Rules'!$A$2:$B$28),"") -> 
E171: =IF(D171,LOOKUP(D171,'NEC Rules'!$A$2:$B$28),"") ->  | H171: =IF(G171,LOOKUP(G171,'NEC Rules'!$A$2:$B$28),"") ->  | K171: =IF(J171,LOOKUP(J171,'NEC Rules'!$A$2:$B$28),"") ->  | N171: =IF(M171,LOOKUP(M171,'NEC Rules'!$A$2:$B$28),"") ->  | Q171: =IF(P171,LOOKUP(P171,'NEC Rules'!$A$2:$B$28),"") -> 
E172: =IF(D172,LOOKUP(D172,'NEC Rules'!$A$2:$B$28),"") ->  | H172: =IF(G172,LOOKUP(G172,'NEC Rules'!$A$2:$B$28),"") ->  | K172: =IF(J172,LOOKUP(J172,'NEC Rules'!$A$2:$B$28),"") ->  | N172: =IF(M172,LOOKUP(M172,'NEC Rules'!$A$2:$B$28),"") ->  | Q172: =IF(P172,LOOKUP(P172,'NEC Rules'!$A$2:$B$28),"") -> 
E173: =IF(D173,LOOKUP(D173,'NEC Rules'!$A$2:$B$28),"") ->  | H173: =IF(G173,LOOKUP(G173,'NEC Rules'!$A$2:$B$28),"") ->  | K173: =IF(J173,LOOKUP(J173,'NEC Rules'!$A$2:$B$28),"") ->  | N173: =IF(M173,LOOKUP(M173,'NEC Rules'!$A$2:$B$28),"") ->  | Q173: =IF(P173,LOOKUP(P173,'NEC Rules'!$A$2:$B$28),"") -> 
E174: =IF(D174,LOOKUP(D174,'NEC Rules'!$A$2:$B$28),"") ->  | H174: =IF(G174,LOOKUP(G174,'NEC Rules'!$A$2:$B$28),"") ->  | K174: =IF(J174,LOOKUP(J174,'NEC Rules'!$A$2:$B$28),"") ->  | N174: =IF(M174,LOOKUP(M174,'NEC Rules'!$A$2:$B$28),"") ->  | Q174: =IF(P174,LOOKUP(P174,'NEC Rules'!$A$2:$B$28),"") -> 
E175: =IF(D175,LOOKUP(D175,'NEC Rules'!$A$2:$B$28),"") ->  | H175: =IF(G175,LOOKUP(G175,'NEC Rules'!$A$2:$B$28),"") ->  | K175: =IF(J175,LOOKUP(J175,'NEC Rules'!$A$2:$B$28),"") ->  | N175: =IF(M175,LOOKUP(M175,'NEC Rules'!$A$2:$B$28),"") ->  | Q175: =IF(P175,LOOKUP(P175,'NEC Rules'!$A$2:$B$28),"") -> 
E176: =IF(D176,LOOKUP(D176,'NEC Rules'!$A$2:$B$28),"") ->  | H176: =IF(G176,LOOKUP(G176,'NEC Rules'!$A$2:$B$28),"") ->  | K176: =IF(J176,LOOKUP(J176,'NEC Rules'!$A$2:$B$28),"") ->  | N176: =IF(M176,LOOKUP(M176,'NEC Rules'!$A$2:$B$28),"") ->  | Q176: =IF(P176,LOOKUP(P176,'NEC Rules'!$A$2:$B$28),"") -> 
E177: =IF(D177,LOOKUP(D177,'NEC Rules'!$A$2:$B$28),"") ->  | H177: =IF(G177,LOOKUP(G177,'NEC Rules'!$A$2:$B$28),"") ->  | K177: =IF(J177,LOOKUP(J177,'NEC Rules'!$A$2:$B$28),"") ->  | N177: =IF(M177,LOOKUP(M177,'NEC Rules'!$A$2:$B$28),"") ->  | Q177: =IF(P177,LOOKUP(P177,'NEC Rules'!$A$2:$B$28),"") -> 
E178: =IF(D178,LOOKUP(D178,'NEC Rules'!$A$2:$B$28),"") ->  | H178: =IF(G178,LOOKUP(G178,'NEC Rules'!$A$2:$B$28),"") ->  | K178: =IF(J178,LOOKUP(J178,'NEC Rules'!$A$2:$B$28),"") ->  | N178: =IF(M178,LOOKUP(M178,'NEC Rules'!$A$2:$B$28),"") ->  | Q178: =IF(P178,LOOKUP(P178,'NEC Rules'!$A$2:$B$28),"") -> 
E179: =IF(D179,LOOKUP(D179,'NEC Rules'!$A$2:$B$28),"") ->  | H179: =IF(G179,LOOKUP(G179,'NEC Rules'!$A$2:$B$28),"") ->  | K179: =IF(J179,LOOKUP(J179,'NEC Rules'!$A$2:$B$28),"") ->  | N179: =IF(M179,LOOKUP(M179,'NEC Rules'!$A$2:$B$28),"") ->  | Q179: =IF(P179,LOOKUP(P179,'NEC Rules'!$A$2:$B$28),"") -> 
E180: =IF(D180,LOOKUP(D180,'NEC Rules'!$A$2:$B$28),"") ->  | H180: =IF(G180,LOOKUP(G180,'NEC Rules'!$A$2:$B$28),"") ->  | K180: =IF(J180,LOOKUP(J180,'NEC Rules'!$A$2:$B$28),"") ->  | N180: =IF(M180,LOOKUP(M180,'NEC Rules'!$A$2:$B$28),"") ->  | Q180: =IF(P180,LOOKUP(P180,'NEC Rules'!$A$2:$B$28),"") -> 
E181: =IF(D181,LOOKUP(D181,'NEC Rules'!$A$2:$B$28),"") ->  | H181: =IF(G181,LOOKUP(G181,'NEC Rules'!$A$2:$B$28),"") ->  | K181: =IF(J181,LOOKUP(J181,'NEC Rules'!$A$2:$B$28),"") ->  | N181: =IF(M181,LOOKUP(M181,'NEC Rules'!$A$2:$B$28),"") ->  | Q181: =IF(P181,LOOKUP(P181,'NEC Rules'!$A$2:$B$28),"") -> 
E182: =IF(D182,LOOKUP(D182,'NEC Rules'!$A$2:$B$28),"") ->  | H182: =IF(G182,LOOKUP(G182,'NEC Rules'!$A$2:$B$28),"") ->  | K182: =IF(J182,LOOKUP(J182,'NEC Rules'!$A$2:$B$28),"") ->  | N182: =IF(M182,LOOKUP(M182,'NEC Rules'!$A$2:$B$28),"") ->  | Q182: =IF(P182,LOOKUP(P182,'NEC Rules'!$A$2:$B$28),"") -> 
E183: =IF(D183,LOOKUP(D183,'NEC Rules'!$A$2:$B$28),"") ->  | H183: =IF(G183,LOOKUP(G183,'NEC Rules'!$A$2:$B$28),"") ->  | K183: =IF(J183,LOOKUP(J183,'NEC Rules'!$A$2:$B$28),"") ->  | N183: =IF(M183,LOOKUP(M183,'NEC Rules'!$A$2:$B$28),"") ->  | Q183: =IF(P183,LOOKUP(P183,'NEC Rules'!$A$2:$B$28),"") -> 
E184: =IF(D184,LOOKUP(D184,'NEC Rules'!$A$2:$B$28),"") ->  | H184: =IF(G184,LOOKUP(G184,'NEC Rules'!$A$2:$B$28),"") ->  | K184: =IF(J184,LOOKUP(J184,'NEC Rules'!$A$2:$B$28),"") ->  | N184: =IF(M184,LOOKUP(M184,'NEC Rules'!$A$2:$B$28),"") ->  | Q184: =IF(P184,LOOKUP(P184,'NEC Rules'!$A$2:$B$28),"") -> 
E185: =IF(D185,LOOKUP(D185,'NEC Rules'!$A$2:$B$28),"") ->  | H185: =IF(G185,LOOKUP(G185,'NEC Rules'!$A$2:$B$28),"") ->  | K185: =IF(J185,LOOKUP(J185,'NEC Rules'!$A$2:$B$28),"") ->  | N185: =IF(M185,LOOKUP(M185,'NEC Rules'!$A$2:$B$28),"") ->  | Q185: =IF(P185,LOOKUP(P185,'NEC Rules'!$A$2:$B$28),"") -> 
E186: =IF(D186,LOOKUP(D186,'NEC Rules'!$A$2:$B$28),"") ->  | H186: =IF(G186,LOOKUP(G186,'NEC Rules'!$A$2:$B$28),"") ->  | K186: =IF(J186,LOOKUP(J186,'NEC Rules'!$A$2:$B$28),"") ->  | N186: =IF(M186,LOOKUP(M186,'NEC Rules'!$A$2:$B$28),"") ->  | Q186: =IF(P186,LOOKUP(P186,'NEC Rules'!$A$2:$B$28),"") -> 
E187: =IF(D187,LOOKUP(D187,'NEC Rules'!$A$2:$B$28),"") ->  | H187: =IF(G187,LOOKUP(G187,'NEC Rules'!$A$2:$B$28),"") ->  | K187: =IF(J187,LOOKUP(J187,'NEC Rules'!$A$2:$B$28),"") ->  | N187: =IF(M187,LOOKUP(M187,'NEC Rules'!$A$2:$B$28),"") ->  | Q187: =IF(P187,LOOKUP(P187,'NEC Rules'!$A$2:$B$28),"") -> 
E188: =IF(D188,LOOKUP(D188,'NEC Rules'!$A$2:$B$28),"") ->  | H188: =IF(G188,LOOKUP(G188,'NEC Rules'!$A$2:$B$28),"") ->  | K188: =IF(J188,LOOKUP(J188,'NEC Rules'!$A$2:$B$28),"") ->  | N188: =IF(M188,LOOKUP(M188,'NEC Rules'!$A$2:$B$28),"") ->  | Q188: =IF(P188,LOOKUP(P188,'NEC Rules'!$A$2:$B$28),"") -> 
E189: =IF(D189,LOOKUP(D189,'NEC Rules'!$A$2:$B$28),"") ->  | H189: =IF(G189,LOOKUP(G189,'NEC Rules'!$A$2:$B$28),"") ->  | K189: =IF(J189,LOOKUP(J189,'NEC Rules'!$A$2:$B$28),"") ->  | N189: =IF(M189,LOOKUP(M189,'NEC Rules'!$A$2:$B$28),"") ->  | Q189: =IF(P189,LOOKUP(P189,'NEC Rules'!$A$2:$B$28),"") -> 
E190: =IF(D190,LOOKUP(D190,'NEC Rules'!$A$2:$B$28),"") ->  | H190: =IF(G190,LOOKUP(G190,'NEC Rules'!$A$2:$B$28),"") ->  | K190: =IF(J190,LOOKUP(J190,'NEC Rules'!$A$2:$B$28),"") ->  | N190: =IF(M190,LOOKUP(M190,'NEC Rules'!$A$2:$B$28),"") ->  | Q190: =IF(P190,LOOKUP(P190,'NEC Rules'!$A$2:$B$28),"") -> 
E191: =IF(D191,LOOKUP(D191,'NEC Rules'!$A$2:$B$28),"") ->  | H191: =IF(G191,LOOKUP(G191,'NEC Rules'!$A$2:$B$28),"") ->  | K191: =IF(J191,LOOKUP(J191,'NEC Rules'!$A$2:$B$28),"") ->  | N191: =IF(M191,LOOKUP(M191,'NEC Rules'!$A$2:$B$28),"") ->  | Q191: =IF(P191,LOOKUP(P191,'NEC Rules'!$A$2:$B$28),"") -> 
E192: =IF(D192,LOOKUP(D192,'NEC Rules'!$A$2:$B$28),"") ->  | H192: =IF(G192,LOOKUP(G192,'NEC Rules'!$A$2:$B$28),"") ->  | K192: =IF(J192,LOOKUP(J192,'NEC Rules'!$A$2:$B$28),"") ->  | N192: =IF(M192,LOOKUP(M192,'NEC Rules'!$A$2:$B$28),"") ->  | Q192: =IF(P192,LOOKUP(P192,'NEC Rules'!$A$2:$B$28),"") ->  | Y192: =CalcMPF(V192,D192,E192,F192,H192,I192,K192,L192,N192,O192,Q192,R192,T192,U192) -> 
E193: =IF(D193,LOOKUP(D193,'NEC Rules'!$A$2:$B$28),"") ->  | H193: =IF(G193,LOOKUP(G193,'NEC Rules'!$A$2:$B$28),"") ->  | K193: =IF(J193,LOOKUP(J193,'NEC Rules'!$A$2:$B$28),"") ->  | N193: =IF(M193,LOOKUP(M193,'NEC Rules'!$A$2:$B$28),"") ->  | Q193: =IF(P193,LOOKUP(P193,'NEC Rules'!$A$2:$B$28),"") ->  | Y193: =CalcMPF(V193,D193,E193,F193,H193,I193,K193,L193,N193,O193,Q193,R193,T193,U193) -> 
E194: =IF(D194,LOOKUP(D194,'NEC Rules'!$A$2:$B$28),"") ->  | H194: =IF(G194,LOOKUP(G194,'NEC Rules'!$A$2:$B$28),"") ->  | K194: =IF(J194,LOOKUP(J194,'NEC Rules'!$A$2:$B$28),"") ->  | N194: =IF(M194,LOOKUP(M194,'NEC Rules'!$A$2:$B$28),"") ->  | Q194: =IF(P194,LOOKUP(P194,'NEC Rules'!$A$2:$B$28),"") ->  | S194: =CalcHP(D194,F194,G194,I194,J194,L194,M194,O194,P194,R194) ->  | Y194: =CalcMPF(V194,D194,E194,F194,H194,I194,K194,L194,N194,O194,Q194,R194,T194,U194) -> 
E195: =IF(D195,LOOKUP(D195,'NEC Rules'!$A$2:$B$28),"") ->  | H195: =IF(G195,LOOKUP(G195,'NEC Rules'!$A$2:$B$28),"") ->  | K195: =IF(J195,LOOKUP(J195,'NEC Rules'!$A$2:$B$28),"") ->  | N195: =IF(M195,LOOKUP(M195,'NEC Rules'!$A$2:$B$28),"") ->  | Q195: =IF(P195,LOOKUP(P195,'NEC Rules'!$A$2:$B$28),"") ->  | Y195: =CalcMPF(V195,D195,E195,F195,H195,I195,K195,L195,N195,O195,Q195,R195,T195,U195) -> 
E196: =IF(D196,LOOKUP(D196,'NEC Rules'!$A$2:$B$28),"") ->  | H196: =IF(G196,LOOKUP(G196,'NEC Rules'!$A$2:$B$28),"") ->  | K196: =IF(J196,LOOKUP(J196,'NEC Rules'!$A$2:$B$28),"") ->  | N196: =IF(M196,LOOKUP(M196,'NEC Rules'!$A$2:$B$28),"") ->  | Q196: =IF(P196,LOOKUP(P196,'NEC Rules'!$A$2:$B$28),"") ->  | T196: =IF(D196,10,"") ->  | X196: =IF((V196*W196),(V196*W196),"") ->  | Z196: =CalcPD(Y196) ->  | AO196: =X196*480*0.03 -> 
A197: =A196+1 ->  | E197: =IF(D197,LOOKUP(D197,'NEC Rules'!$A$2:$B$28),"") ->  | H197: =IF(G197,LOOKUP(G197,'NEC Rules'!$A$2:$B$28),"") ->  | K197: =IF(J197,LOOKUP(J197,'NEC Rules'!$A$2:$B$28),"") ->  | N197: =IF(M197,LOOKUP(M197,'NEC Rules'!$A$2:$B$28),"") ->  | Q197: =IF(P197,LOOKUP(P197,'NEC Rules'!$A$2:$B$28),"") -> 
E198: =IF(D198,LOOKUP(D198,'NEC Rules'!$A$2:$B$28),"") ->  | H198: =IF(G198,LOOKUP(G198,'NEC Rules'!$A$2:$B$28),"") ->  | K198: =IF(J198,LOOKUP(J198,'NEC Rules'!$A$2:$B$28),"") ->  | N198: =IF(M198,LOOKUP(M198,'NEC Rules'!$A$2:$B$28),"") ->  | Q198: =IF(P198,LOOKUP(P198,'NEC Rules'!$A$2:$B$28),"") -> 
E199: =IF(D199,LOOKUP(D199,'NEC Rules'!$A$2:$B$28),"") ->  | H199: =IF(G199,LOOKUP(G199,'NEC Rules'!$A$2:$B$28),"") ->  | K199: =IF(J199,LOOKUP(J199,'NEC Rules'!$A$2:$B$28),"") ->  | N199: =IF(M199,LOOKUP(M199,'NEC Rules'!$A$2:$B$28),"") ->  | Q199: =IF(P199,LOOKUP(P199,'NEC Rules'!$A$2:$B$28),"") -> 
E200: =IF(D200,LOOKUP(D200,'NEC Rules'!$A$2:$B$28),"") ->  | H200: =IF(G200,LOOKUP(G200,'NEC Rules'!$A$2:$B$28),"") ->  | K200: =IF(J200,LOOKUP(J200,'NEC Rules'!$A$2:$B$28),"") ->  | N200: =IF(M200,LOOKUP(M200,'NEC Rules'!$A$2:$B$28),"") ->  | Q200: =IF(P200,LOOKUP(P200,'NEC Rules'!$A$2:$B$28),"") -> 
... 702 more rows

Sheet NEC Rules
A1: Motor HP | B1: NEC 430-150 460V FLA | C1: Durr Fuse Sizes | D1: NEMA Starter Size | E1: 430-52(c)(1) Maximum NEC Fuse or Breaker Size | F1: 430-22(a) Wire Size | G1: Minimum Ground Conductor Size | H1: Maximum Circuit Length (ft.) | J1: Standard Fuse Size LookUp Table | M1: Current | N1: Wire Size | P1: Current | Q1: Ground Size | S1: RoundDown Fuse Size LookUp Table | V1: Standard Disconnect Size LookUp Table | Y1: Standard Transformer Size LookUp Table | AB1: Nearest Fuse Size LookUp Table
A2: 0.5 | B2: 1.1 | C2: =LOOKUP(B2*1.5,$J$2:$K$66) -> 1.8 | D2: 1 | E2: =LOOKUP(B2*1.75,$J$2:$K$66) -> 2 | F2: =LOOKUP(B2*1.25,$M$2:$N$28) -> 12 | G2: =LOOKUP(B2*1.25,$P$2:$Q$28) -> 14 | H2: 4157 | K2: 1 | M2: 0 | N2: 12 | P2: 0 | Q2: 14 | S2: 1 | T2: 1 | V2: 0 | W2: 30 | Y2: 0 | Z2: 1000 | AC2: 1
A3: 0.75 | B3: 1.6 | C3: 2.5 | D3: 1 | E3: 3 | F3: 12 | G3: 14 | H3: 2969 | J3: 1 | K3: 1.25 | M3: 25 | N3: 10 | P3: 15 | Q3: 12 | S3: 3 | T3: 3 | V3: 30 | W3: 60 | Y3: 1000 | Z3: 1500 | AB3: 1.125 | AC3: 1.25
A4: 1 | B4: 2.1 | C4: 3.2 | D4: 1 | E4: 4 | F4: 12 | G4: 14 | H4: 2309 | J4: 1.25 | K4: 1.6 | M4: 35 | N4: 8 | P4: 20 | Q4: 10 | S4: 6 | T4: 6 | V4: 60 | W4: 100 | Y4: 1500 | Z4: 2000 | AB4: 1.425 | AC4: 1.6
A5: 1.5 | B5: 3 | C5: 5 | D5: 1 | E5: 5.6 | F5: 12 | G5: 14 | H5: 1599 | J5: 1.6 | K5: 1.8 | M5: 50 | N5: 6 | P5: 30 | Q5: 10 | S5: 10 | T5: 10 | V5: 100 | W5: 200 | Y5: 2000 | Z5: 3000 | AB5: 1.7 | AC5: 1.8
A6: 2 | B6: 3.4 | C6: 5.6 | D6: 1 | E6: 6 | F6: 12 | G6: 14 | H6: 1223 | J6: 1.8 | K6: 2 | M6: 65 | N6: 4 | P6: 40 | Q6: 10 | S6: 15 | T6: 15 | V6: 200 | W6: 400 | Y6: 3000 | Z6: 5000 | AB6: 1.9 | AC6: 2
A7: 3 | B7: 5.2 | C7: 8 | D7: 1 | E7: 10 | F7: 12 | G7: 14 | H7: 866 | J7: 2 | K7: 2.25 | M7: 85 | N7: 3 | P7: 60 | Q7: 8 | S7: 20 | T7: 20 | V7: 400 | W7: 600 | Y7: 5000 | Z7: 7500 | AB7: 2.125 | AC7: 2.25
A8: 5 | B8: 7.6 | C8: 12 | D8: 1 | E8: 15 | F8: 12 | G8: 14 | H8: 547 | J8: 2.25 | K8: 2.5 | M8: 100 | N8: 2 | P8: 100 | Q8: 6 | S8: 25 | T8: 25 | V8: 600 | W8: SUB | Y8: 7500 | AB8: 2.375 | AC8: 2.5
A9: 7.5 | B9: 11 | C9: 17.5 | D9: 1 | E9: 20 | F9: 12 | G9: 14 | H9: 378 | J9: 2.5 | K9: 2.8 | M9: 115 | N9: 1 | P9: 200 | Q9: 4 | S9: 30 | T9: 30 | V9: 1200 | W9: SUB | AB9: 2.65 | AC9: 2.8
A10: 10 | B10: 14 | C10: 25 | D10: 1 | E10: 25 | F10: 12 | G10: 12 | H10: 297 | J10: 2.8 | K10: 3 | M10: 130 | N10: 1/0 | P10: 300 | Q10: 3 | S10: 35 | T10: 35 | V10: 3000 | AB10: 2.9 | AC10: 3
A11: 15 | B11: 21 | C11: 35 | D11: 2 | E11: 40 | F11: 10 | G11: 10 | H11: 314 | J11: 3 | K11: 3.2 | M11: 150 | N11: 2/0 | P11: 400 | Q11: 2 | S11: 40 | T11: 40 | AB11: 3.1 | AC11: 3.2
A12: 20 | B12: 27 | C12: 45 | D12: 2 | E12: 50 | F12: 10 | G12: 10 | H12: 378 | J12: 3.2 | K12: 3.5 | M12: 175 | N12: 3/0 | P12: 500 | Q12: 1 | S12: 45 | T12: 45 | AB12: 3.35 | AC12: 3.5
A13: 25 | B13: 34 | C13: 60 | D13: 2 | E13: 60 | F13: 8 | G13: 10 | H13: 300 | J13: 3.5 | K13: 4 | M13: 200 | N13: 4/0 | P13: 600 | Q13: 1/0 | S13: 50 | T13: 50 | AB13: 3.75 | AC13: 4
A14: 30 | B14: 40 | C14: 70 | D14: 3 | E14: 75 | F14: 6 | G14: 10 | H14: 404 | J14: 4 | K14: 4.5 | M14: 230 | N14: 250 | P14: 800 | Q14: 2/0 | S14: 60 | T14: 60 | AB14: 4.25 | AC14: 4.5
A15: 40 | B15: 52 | C15: 80 | D15: 3 | E15: 100 | F15: 4 | G15: 8 | H15: 310 | J15: 4.5 | K15: 5 | M15: 255 | N15: 300 | P15: 1000 | Q15: 3/0 | S15: 70 | T15: 70 | AB15: 4.75 | AC15: 5
A16: 50 | B16: 65 | C16: 100 | D16: 3 | E16: 125 | F16: 4 | G16: 8 | H16: 391 | J16: 5 | K16: 5.6 | M16: 285 | N16: 350 | P16: 1200 | Q16: 4/0 | S16: 80 | T16: 80 | AB16: 5.3 | AC16: 5.6
A17: 60 | B17: 77 | C17: 125 | D17: 4 | E17: 150 | F17: 3 | G17: 8 | H17: 514 | J17: 5.6 | K17: 6 | M17: 310 | N17: 400 | P17: 1600 | Q17: 250 | S17: 90 | T17: 90 | AB17: 5.8 | AC17: 6
A18: 75 | B18: 96 | C18: 150 | D18: 4 | E18: 175 | F18: 1 | G18: 6 | H18: 509 | J18: 6 | K18: 6.25 | M18: 335 | N18: 500 | P18: 2000 | Q18: 350 | S18: 100 | T18: 100 | AB18: 6.125 | AC18: 6.25
A19: 100 | B19: 124 | C19: 200 | D19: 4 | E19: 225 | F19: 2/0 | G19: 6 | H19: 583 | J19: 6.25 | K19: 7 | M19: 380 | N19: 600 | P19: 2500 | Q19: 400 | S19: 110 | T19: 110 | AB19: 6.625 | AC19: 7
A20: 125 | B20: 156 | C20: 250 | D20: 5 | E20: 275 | F20: 3/0 | G20: 6 | H20: 556 | J20: 7 | K20: 7.5 | M20: 420 | N20: 700 | S20: 125 | T20: 125 | AB20: 7.25 | AC20: 7.5
A21: 150 | B21: 180 | C21: 275 | D21: 5 | E21: 325 | F21: 4/0 | G21: 4 | H21: 570 | J21: 7.5 | K21: 8 | M21: 460 | N21: 750 | S21: 150 | T21: 150 | AB21: 7.75 | AC21: 8
A22: 200 | B22: 240 | C22: 400 | D22: 5 | E22: 450 | F22: 350 | G22: 3 | H22: 561 | J22: 8 | K22: 9 | M22: 475 | N22: 800 | S22: 175 | T22: 175 | AB22: 8.5 | AC22: 9
A23: 250 | B23: 302 | C23: 500 | D23: 6 | E23: 600 | F23: 500 | G23: 3 | J23: 9 | K23: 10 | M23: 490 | N23: 900 | S23: 200 | T23: 200 | AB23: 9.5 | AC23: 10
A24: 300 | B24: 361 | C24: 600 | D24: 6 | E24: 700 | F24: 700 | G24: 2 | J24: 10 | K24: 12 | M24: 520 | N24: 1000 | S24: 225 | T24: 225 | AB24: 11 | AC24: 12
A25: 350 | B25: 414 | C25: 700 | D25: 6 | E25: 800 | F25: 900 | G25: 1 | J25: 12 | K25: 15 | M25: 545 | N25: 1250 | S25: 250 | T25: 250 | AB25: 13.5 | AC25: 15
A26: 400 | B26: 477 | C26: 800 | D26: 6 | E26: 1000 | F26: 1500 | G26: 1 | J26: 15 | K26: 17.5 | M26: 590 | N26: 1500 | S26: 300 | T26: 300 | AB26: 16.25 | AC26: 17.5
A27: 450 | B27: 515 | C27: 800 | D27: 7 | E27: 1000 | F27: 1750 | G27: 1/0 | J27: 17.5 | K27: 20 | M27: 625 | N27: 1750 | S27: 350 | T27: 350 | AB27: 18.75 | AC27: 20
A28: 500 | B28: 590 | C28: 1000 | D28: 7 | E28: 1200 | F28: 2000 | G28: 1/0 | J28: 20 | K28: 25 | M28: 650 | N28: 2000 | S28: 400 | T28: 400 | AB28: 22.5 | AC28: 25
J29: 25 | K29: 30 | M29: 665 | S29: 450 | T29: 450 | AB29: 27.5 | AC29: 30
A30: Use this table for 460 volt motors in a 480 volt system, with NEMA starters and Class R fuses. | J30: 30 | K30: 35 | S30: 500 | T30: 500 | AB30: 32.5 | AC30: 35
J31: 35 | K31: 40 | S31: 600 | T31: 600 | AB31: 37.5 | AC31: 40
J32: 40 | K32: 45 | S32: 700 | T32: 700 | AB32: 42.5 | AC32: 45
A33: SIZING GUIDELINES (NEC Article Reference) | J33: 45 | K33: 50 | S33: 800 | T33: 800 | AB33: 47.5 | AC33: 50
J34: 50 | K34: 60 | S34: 1000 | T34: 1000 | AB34: 55 | AC34: 60
A35: Ampacity and Motor Rating Determination 430-6(a)(1) | J35: 60 | K35: 70 | S35: 1200 | T35: 1200 | AB35: 65 | AC35: 70
A36: This section states that cable ampacities shall be from NEC 310-15(b) Table or (c) calculated & Motor Amps shall be per NEC Tables 430-147 to 150 | J36: 70 | K36: 75 | S36: 1600 | T36: 1600 | AB36: 72.5 | AC36: 75
J37: 75 | K37: 80 | S37: 2000 | T37: 2000 | AB37: 77.5 | AC37: 80
A38: Individual Motor Feeds (430-22): | J38: 80 | K38: 85 | S38: 2500 | T38: 2500 | AB38: 82.5 | AC38: 85
A39: Branch circuit conductors shall have an ampacity of not less than 125% of the motors full load current rating as determined by Section 430-6(a)(1): | J39: 85 | K39: 90 | S39: 3000 | T39: 3000 | AB39: 87.5 | AC39: 90
J40: 90 | K40: 100 | S40: 4000 | T40: 4000 | AB40: 95 | AC40: 100
A41: Motor Overload Sizing (430-32): | J41: 100 | K41: 110 | AB41: 105 | AC41: 110
A42: Motors with a marked service factor not less than 1.15 | F42: 1.25 | G42: Name Plate FLA | J42: 110 | K42: 125 | S42: 5000 | T42: 5000 | AB42: 117.5 | AC42: 125
A43: Motors with a marked temperature rise not over 40 °C | F43: 1.25 | G43: Name Plate FLA | J43: 125 | K43: 150 | S43: 6000 | T43: 6000 | AB43: 137.5 | AC43: 150
A44: All other motors | F44: 1.15 | G44: Name Plate FLA | J44: 150 | K44: 175 | AB44: 162.5 | AC44: 175
J45: 175 | K45: 200 | AB45: 187.5 | AC45: 200
A46: Individual Motor Fuses (430-52(c)(1) & Table 430-152): | J46: 200 | K46: 225 | AB46: 212.5 | AC46: 225
A47: A protective device that has a rating or setting not exceeding the value calculated according to the values given in Table 430-152 shall be used. | J47: 225 | K47: 250 | AB47: 237.5 | AC47: 250
A48: The NEC Maximum is 175% of NEC FLA, rounded up to nearest manufacturer's fuse size. Durr standard is 150% of NEC FLA of motor, rounded up to nearest manufacturer's fuse size. | J48: 250 | K48: 275 | AB48: 272.5 | AC48: 275
J49: 275 | K49: 300 | AB49: 287.5 | AC49: 300
A50: Main Disconnect Fuses (430-62): | J50: 300 | K50: 325 | AB50: 312.5 | AC50: 325
A51: The nearest fuse to the Largest motor fuse (175% of NEC FLA) + Sum of NEC FLAs of other loads, but not less then 125% of Largest motor NEC FLA + 125% of Heating load + the Sum of the other NEC FLA. Also not less then 115% of the Sum of all NEC FLA. All fu | J51: 325 | K51: 350 | AB51: 337.5 | AC51: 350
J52: 350 | K52: 400 | AB52: 372.5 | AC52: 400
A53: Main Disconnect (430-110(2)): | J53: 400 | K53: 450 | AB53: 425 | AC53: 450
A54: At least 115% of the Sum of FLA of all loads. | J54: 450 | K54: 500 | AB54: 475 | AC54: 500
J55: 500 | K55: 600 | AB55: 550 | AC55: 600
A56: Main Panel Feeds (430-24): | J56: 600 | K56: 700 | AB56: 650 | AC56: 700
A57: 125% of Main Disconnect Fuse, but not larger than Main Disconnect switch. | J57: 700 | K57: 800 | AB57: 750 | AC57: 800
A58: Note: Client specifications may require sizing the panel feed to the capacity of the bus plug. | J58: 800 | K58: 1000 | AB58: 900 | AC58: 1000
J59: 1000 | K59: 1200 | AB59: 1100 | AC59: 1200
J60: 1200 | K60: 1600 | AB60: 1400 | AC60: 1600
J61: 1600 | K61: 2000 | AB61: 1800 | AC61: 2000
J62: 2000 | K62: 2500 | AB62: 2250 | AC62: 2500
J63: 2500 | K63: 3000 | AB63: 2750 | AC63: 3000
J64: 3000 | K64: 4000 | AB64: 3500 | AC64: 4000
J65: 4000 | K65: 5000 | AB65: 4500 | AC65: 5000
J66: 5000

Sheet SORTED LOADS
A1: # | B1: DESCRIPTION | C1: AMPS | E1: Breaker Number | I1: Breaker Number | M1: Breaker Number | Q1: Breaker Number | U1: Breaker Number | Y1: Breaker Number | AC1: Breaker Number
A2: PANEL | B2: PANEL | C2: DEMAND | D2: BUS # | E2: 1A1 | F2: 1A2 | G2: 1A3 | H2: 1A4 | I2: 1B1 | J2: 1B2 | K2: 1B3 | L2: 1B4 | M2: 1C1 | N2: 1C2 | O2: 1C3 | P2: 1C4 | Q2: 2A1 | R2: 2A2 | S2: 2A3 | T2: 2A4 | U2: 2B1 | V2: 2B2 | W2: 2B3 | X2: 2B4 | Y2: 2C1 | Z2: 2C2 | AA2: 2C3 | AB2: 2C4 | AC2: 2D1 | AD2: 2D2 | AE2: 2D3 | AF2: 2D4
A3: =LOADS!A3 -> 100 | B3: =LOADS!B3 -> 0 | C3: =LOADS!X3 -> 0 | D3: =LOADS!AH3 -> 0 | E3: =IF(E$2=$D3,$C3,0) -> 0 | F3: 0 | G3: 0 | H3: 0 | I3: =IF(I$2=$D3,$C3,0) -> 0 | J3: 0 | K3: 0 | L3: 0 | M3: 0 | N3: 0 | O3: 0 | P3: 0 | Q3: =IF(Q$2=$D3,$C3,0) -> 0 | R3: 0 | S3: 0 | T3: 0 | U3: 0 | V3: 0 | W3: =IF(W$2=$D3,$C3,0) -> 0 | X3: 0 | Y3: 0 | Z3: 0 | AA3: =IF(AA$2=$D3,$C3,0) -> 0 | AB3: 0 | AC3: 0 | AD3: 0 | AE3: 0 | AF3: 0
A4: =LOADS!A4 -> 101 | B4: =LOADS!B4 -> Panel 1000 | C4: =LOADS!X4 -> 56.16 | D4: =LOADS!AH4 -> 0 | E4: 0 | F4: 0 | G4: 0 | H4: 0 | I4: 0 | J4: 0 | K4: 0 | L4: 0 | M4: 0 | N4: 0 | O4: 0 | P4: 0 | Q4: 0 | R4: 0 | S4: 0 | T4: 0 | U4: 0 | V4: 0 | W4: 0 | X4: 0 | Y4: 0 | Z4: 0 | AA4: 0 | AB4: 0 | AC4: 0 | AD4: 0 | AE4: 0 | AF4: 0
A5: =LOADS!#REF! ->  | B5: =LOADS!#REF! ->  | C5: =LOADS!#REF! ->  | D5: =LOADS!#REF! -> 
A6: =LOADS!A5 -> 102 | B6: =LOADS!B5 -> Panel 2000 | C6: =LOADS!X5 -> 244.32 | D6: =LOADS!AH5 -> 0 | E6: 0 | F6: 0 | G6: 0 | H6: 0 | I6: 0 | J6: 0 | K6: 0 | L6: 0 | M6: 0 | N6: 0 | O6: 0 | P6: 0 | Q6: 0 | R6: 0 | S6: 0 | T6: 0 | U6: 0 | V6: 0 | W6: 0 | X6: 0 | Y6: 0 | Z6: 0 | AA6: 0 | AB6: 0 | AC6: 0 | AD6: 0 | AE6: 0 | AF6: 0
A7: =LOADS!A6 -> 103 | B7: =LOADS!B6 -> Air Supply #1 VFD | C7: =LOADS!X6 -> 41.6 | D7: =LOADS!AH6 -> 0 | E7: 0 | F7: 0 | G7: 0 | H7: 0 | I7: 0 | J7: 0 | K7: 0 | L7: 0 | M7: 0 | N7: 0 | O7: 0 | P7: 0 | Q7: 0 | R7: 0 | S7: 0 | T7: 0 | U7: 0 | V7: 0 | W7: 0 | X7: 0 | Y7: 0 | Z7: 0 | AA7: 0 | AB7: 0 | AC7: 0 | AD7: 0 | AE7: 0 | AF7: 0
A8: =LOADS!A7 -> 104 | B8: =LOADS!B7 -> Air Supply #1 VFD | C8: =LOADS!X7 -> 41.6 | D8: =LOADS!AH7 -> 0 | E8: 0 | F8: 0 | G8: 0 | H8: 0 | I8: 0 | J8: 0 | K8: 0 | L8: 0 | M8: 0 | N8: 0 | O8: 0 | P8: 0 | Q8: 0 | R8: 0 | S8: 0 | T8: 0 | U8: 0 | V8: 0 | W8: 0 | X8: 0 | Y8: 0 | Z8: 0 | AA8: 0 | AB8: 0 | AC8: 0 | AD8: 0 | AE8: 0 | AF8: 0
A9: =LOADS!A8 -> 105 | B9: =LOADS!B8 -> Tack-off exhaust VFD | C9: =LOADS!X8 -> 16.8 | D9: =LOADS!AH8 -> 0 | E9: 0 | F9: 0 | G9: 0 | H9: 0 | I9: 0 | J9: 0 | K9: 0 | L9: 0 | M9: 0 | N9: 0 | O9: 0 | P9: 0 | Q9: 0 | R9: 0 | S9: 0 | T9: 0 | U9: 0 | V9: 0 | W9: 0 | X9: 0 | Y9: 0 | Z9: 0 | AA9: 0 | AB9: 0 | AC9: 0 | AD9: 0 | AE9: 0 | AF9: 0
A10: =LOADS!A9 -> 106 | B10: =LOADS!B9 -> Tack-off exhaust VFD | C10: =LOADS!X9 -> 16.8 | D10: =LOADS!AH9 -> 0 | E10: 0 | F10: 0 | G10: 0 | H10: 0 | I10: 0 | J10: 0 | K10: 0 | L10: 0 | M10: 0 | N10: 0 | O10: 0 | P10: 0 | Q10: 0 | R10: 0 | S10: 0 | T10: 0 | U10: 0 | V10: 0 | W10: 0 | X10: 0 | Y10: 0 | Z10: 0 | AA10: 0 | AB10: 0 | AC10: 0 | AD10: 0 | AE10: 0 | AF10: 0
A11: =LOADS!A10 -> 107 | B11: =LOADS!B11 -> B.C. Spray booth exhaust VFD | C11: =LOADS!X10 -> 32 | D11: =LOADS!AH10 -> 0 | E11: 0 | F11: 0 | G11: 0 | H11: 0 | I11: 0 | J11: 0 | K11: 0 | L11: 0 | M11: 0 | N11: 0 | O11: 0 | P11: 0 | Q11: 0 | R11: 0 | S11: 0 | T11: 0 | U11: 0 | V11: 0 | W11: 0 | X11: 0 | Y11: 0 | Z11: 0 | AA11: 0 | AB11: 0 | AC11: 0 | AD11: 0 | AE11: 0 | AF11: 0
A12: =LOADS!A11 -> 108 | B12: =LOADS!#REF! ->  | C12: =LOADS!X11 -> 32 | D12: =LOADS!AH11 -> 0 | E12: 0 | F12: 0 | G12: 0 | H12: 0 | I12: 0 | J12: 0 | K12: 0 | L12: 0 | M12: 0 | N12: 0 | O12: 0 | P12: 0 | Q12: 0 | R12: 0 | S12: 0 | T12: 0 | U12: 0 | V12: 0 | W12: =IF(W$2=$D12,$C12,0) -> 0 | X12: 0 | Y12: 0 | Z12: 0 | AA12: 0 | AB12: 0 | AC12: 0 | AD12: 0 | AE12: 0 | AF12: 0
A13: =LOADS!A12 -> 109 | B13: =LOADS!B12 -> B.C. Spray booth exhaust VFD | C13: =LOADS!X12 -> 41.6 | D13: =LOADS!AH12 -> 0 | E13: 0 | F13: 0 | G13: 0 | H13: 0 | I13: 0 | J13: 0 | K13: 0 | L13: 0 | M13: 0 | N13: 0 | O13: 0 | P13: 0 | Q13: 0 | R13: 0 | S13: 0 | T13: 0 | U13: 0 | V13: 0 | W13: 0 | X13: 0 | Y13: 0 | Z13: 0 | AA13: 0 | AB13: 0 | AC13: 0 | AD13: 0 | AE13: 0 | AF13: 0
A14: =LOADS!A13 -> 110 | B14: =LOADS!B13 -> B.C. Spray booth exhaust VFD | C14: =LOADS!X13 -> 41.6 | D14: =LOADS!AH13 -> 0 | E14: 0 | F14: 0 | G14: 0 | H14: 0 | I14: 0 | J14: 0 | K14: 0 | L14: 0 | M14: 0 | N14: 0 | O14: 0 | P14: 0 | Q14: 0 | R14: 0 | S14: 0 | T14: 0 | U14: 0 | V14: 0 | W14: 0 | X14: 0 | Y14: 0 | Z14: 0 | AA14: 0 | AB14: 0 | AC14: 0 | AD14: 0 | AE14: 0 | AF14: 0
A15: =LOADS!A14 -> 111 | B15: =LOADS!B14 -> C.C. Spray booth exhaust VFD | C15: =LOADS!X14 -> 32 | D15: =LOADS!AH14 -> 0 | E15: 0 | F15: 0 | G15: 0 | H15: 0 | I15: 0 | J15: 0 | K15: 0 | L15: 0 | M15: 0 | N15: 0 | O15: 0 | P15: 0 | Q15: 0 | R15: 0 | S15: 0 | T15: 0 | U15: 0 | V15: 0 | W15: 0 | X15: 0 | Y15: 0 | Z15: 0 | AA15: 0 | AB15: 0 | AC15: 0 | AD15: 0 | AE15: 0 | AF15: 0
A16: =LOADS!A15 -> 112 | B16: =LOADS!B15 -> C,C. Spray Booth exhaust VFD | C16: =LOADS!X15 -> 32 | D16: =LOADS!AH15 -> 0 | E16: 0 | F16: 0 | G16: 0 | H16: 0 | I16: 0 | J16: 0 | K16: 0 | L16: 0 | M16: 0 | N16: 0 | O16: 0 | P16: 0 | Q16: 0 | R16: 0 | S16: 0 | T16: 0 | U16: 0 | V16: 0 | W16: 0 | X16: 0 | Y16: 0 | Z16: 0 | AA16: 0 | AB16: 0 | AC16: 0 | AD16: 0 | AE16: 0 | AF16: 0
A17: =LOADS!A16 -> 113 | B17: =LOADS!B16 -> C.C. Spray booth exhaust VFD | C17: =LOADS!X16 -> 41.6 | D17: =LOADS!AH16 -> 0 | E17: 0 | F17: 0 | G17: 0 | H17: 0 | I17: 0 | J17: 0 | K17: 0 | L17: 0 | M17: =IF(M$2=$D17,$C17,0) -> 0 | N17: 0 | O17: 0 | P17: 0 | Q17: 0 | R17: 0 | S17: 0 | T17: =IF(T$2=$D17,$C17,0) -> 0 | U17: 0 | V17: 0 | W17: 0 | X17: 0 | Y17: 0 | Z17: 0 | AA17: =IF(AA$2=$D17,$C17,0) -> 0 | AB17: 0 | AC17: 0 | AD17: 0 | AE17: 0 | AF17: 0
A18: =LOADS!A17 -> 114 | B18: =LOADS!B17 -> C.C. Spray booth exhaust VFD | C18: =LOADS!X17 -> 41.6 | D18: =LOADS!AH17 -> 0 | E18: =IF(E$2=$D18,$C18,0) -> 0 | F18: 0 | G18: 0 | H18: 0 | I18: =IF(I$2=$D18,$C18,0) -> 0 | J18: 0 | K18: 0 | L18: 0 | M18: 0 | N18: 0 | O18: 0 | P18: 0 | Q18: =IF(Q$2=$D18,$C18,0) -> 0 | R18: 0 | S18: 0 | T18: 0 | U18: 0 | V18: 0 | W18: 0 | X18: 0 | Y18: 0 | Z18: 0 | AA18: 0 | AB18: 0 | AC18: 0 | AD18: 0 | AE18: 0 | AF18: 0
A19: =LOADS!A18 -> 115 | B19: =LOADS!B18 -> Air Supply #2 VFD | C19: =LOADS!X18 -> 52 | D19: =LOADS!AH18 -> 0 | E19: 0 | F19: 0 | G19: 0 | H19: 0 | I19: 0 | J19: 0 | K19: 0 | L19: 0 | M19: 0 | N19: 0 | O19: 0 | P19: 0 | Q19: 0 | R19: 0 | S19: 0 | T19: 0 | U19: 0 | V19: 0 | W19: 0 | X19: 0 | Y19: 0 | Z19: 0 | AA19: 0 | AB19: 0 | AC19: 0 | AD19: 0 | AE19: 0 | AF19: 0
A20: =LOADS!A19 -> 116 | B20: =LOADS!B19 -> Air Supply #2 VFD | C20: =LOADS!X19 -> 52 | D20: =LOADS!AH19 -> 0 | E20: 0 | F20: 0 | G20: 0 | H20: 0 | I20: 0 | J20: 0 | K20: 0 | L20: 0 | M20: 0 | N20: 0 | O20: 0 | P20: 0 | Q20: 0 | R20: 0 | S20: 0 | T20: 0 | U20: 0 | V20: 0 | W20: 0 | X20: 0 | Y20: 0 | Z20: 0 | AA20: 0 | AB20: 0 | AC20: 0 | AD20: 0 | AE20: 0 | AF20: 0
A21: =LOADS!#REF! ->  | B21: =LOADS!#REF! ->  | C21: =LOADS!#REF! ->  | D21: =LOADS!#REF! -> 
A22: =LOADS!#REF! ->  | B22: =LOADS!#REF! ->  | C22: =LOADS!#REF! ->  | D22: =LOADS!#REF! ->  | W22: =IF(W$2=$D22,$C22,0) -> 
A23: =LOADS!A20 ->  | B23: =LOADS!B20 -> 0 | C23: =LOADS!X20 ->  | D23: =LOADS!AH20 -> 0 | E23: 0 | F23: 0 | G23: 0 | H23: 0 | I23: 0 | J23: 0 | K23: 0 | L23: 0 | M23: 0 | N23: 0 | O23: 0 | P23: 0 | Q23: 0 | R23: 0 | S23: 0 | T23: 0 | U23: 0 | V23: 0 | W23: 0 | X23: 0 | Y23: 0 | Z23: 0 | AA23: 0 | AB23: 0 | AC23: 0 | AD23: 0 | AE23: 0 | AF23: 0
A24: =LOADS!A21 ->  | B24: =LOADS!B21 -> 0 | C24: =LOADS!X21 ->  | D24: =LOADS!AH21 -> 0 | E24: 0 | F24: 0 | G24: 0 | H24: 0 | I24: 0 | J24: 0 | K24: 0 | L24: 0 | M24: 0 | N24: 0 | O24: 0 | P24: 0 | Q24: 0 | R24: 0 | S24: 0 | T24: 0 | U24: 0 | V24: 0 | W24: 0 | X24: 0 | Y24: 0 | Z24: 0 | AA24: 0 | AB24: 0 | AC24: 0 | AD24: 0 | AE24: 0 | AF24: 0
A25: =LOADS!A22 ->  | B25: =LOADS!B22 -> 0 | C25: =LOADS!X22 ->  | D25: =LOADS!AH22 -> 0 | E25: 0 | F25: 0 | G25: 0 | H25: 0 | I25: 0 | J25: 0 | K25: 0 | L25: 0 | M25: 0 | N25: 0 | O25: 0 | P25: 0 | Q25: 0 | R25: 0 | S25: 0 | T25: 0 | U25: 0 | V25: 0 | W25: 0 | X25: 0 | Y25: 0 | Z25: 0 | AA25: 0 | AB25: 0 | AC25: 0 | AD25: 0 | AE25: 0 | AF25: 0
A26: =LOADS!A23 ->  | B26: =LOADS!B23 -> 0 | C26: =LOADS!X23 ->  | D26: =LOADS!AH23 -> 0 | E26: 0 | F26: 0 | G26: 0 | H26: 0 | I26: 0 | J26: 0 | K26: 0 | L26: 0 | M26: 0 | N26: 0 | O26: 0 | P26: 0 | Q26: 0 | R26: 0 | S26: 0 | T26: 0 | U26: 0 | V26: 0 | W26: 0 | X26: 0 | Y26: 0 | Z26: 0 | AA26: 0 | AB26: 0 | AC26: 0 | AD26: 0 | AE26: 0 | AF26: 0
A27: =LOADS!A24 ->  | B27: =LOADS!B24 -> 0 | C27: =LOADS!X24 ->  | D27: =LOADS!AH24 -> 0 | E27: 0 | F27: 0 | G27: 0 | H27: 0 | I27: 0 | J27: 0 | K27: 0 | L27: 0 | M27: =IF(M$2=$D27,$C27,0) -> 0 | N27: 0 | O27: 0 | P27: 0 | Q27: 0 | R27: 0 | S27: 0 | T27: =IF(T$2=$D27,$C27,0) -> 0 | U27: 0 | V27: 0 | W27: 0 | X27: 0 | Y27: 0 | Z27: 0 | AA27: =IF(AA$2=$D27,$C27,0) -> 0 | AB27: 0 | AC27: 0 | AD27: 0 | AE27: 0 | AF27: 0
A28: =LOADS!A25 ->  | B28: =LOADS!B25 -> 0 | C28: =LOADS!X25 ->  | D28: =LOADS!AH25 -> 0 | E28: 0 | F28: 0 | G28: 0 | H28: 0 | I28: =IF(I$2=$D28,$C28,0) -> 0 | J28: 0 | K28: 0 | L28: 0 | M28: 0 | N28: 0 | O28: 0 | P28: 0 | Q28: =IF(Q$2=$D28,$C28,0) -> 0 | R28: 0 | S28: 0 | T28: 0 | U28: 0 | V28: 0 | W28: 0 | X28: 0 | Y28: 0 | Z28: 0 | AA28: 0 | AB28: 0 | AC28: 0 | AD28: 0 | AE28: 0 | AF28: 0
A29: =LOADS!A26 ->  | B29: =LOADS!B26 -> 0 | C29: =LOADS!X26 ->  | D29: =LOADS!AH26 -> 0 | E29: 0 | F29: 0 | G29: 0 | H29: 0 | I29: 0 | J29: 0 | K29: 0 | L29: 0 | M29: 0 | N29: 0 | O29: 0 | P29: 0 | Q29: 0 | R29: 0 | S29: 0 | T29: 0 | U29: 0 | V29: 0 | W29: 0 | X29: 0 | Y29: 0 | Z29: 0 | AA29: 0 | AB29: 0 | AC29: 0 | AD29: 0 | AE29: 0 | AF29: 0
A30: =LOADS!A27 ->  | B30: =LOADS!B27 -> 0 | C30: =LOADS!X27 ->  | D30: =LOADS!AH27 -> 0 | E30: 0 | F30: 0 | G30: 0 | H30: 0 | I30: 0 | J30: 0 | K30: 0 | L30: 0 | M30: 0 | N30: 0 | O30: 0 | P30: 0 | Q30: 0 | R30: 0 | S30: 0 | T30: 0 | U30: 0 | V30: 0 | W30: 0 | X30: 0 | Y30: 0 | Z30: 0 | AA30: 0 | AB30: 0 | AC30: 0 | AD30: 0 | AE30: 0 | AF30: 0
A31: =LOADS!A28 ->  | B31: =LOADS!B28 -> 0 | C31: =LOADS!X28 ->  | D31: =LOADS!AH28 -> 0 | E31: 0 | F31: 0 | G31: 0 | H31: 0 | I31: 0 | J31: 0 | K31: 0 | L31: 0 | M31: 0 | N31: 0 | O31: 0 | P31: 0 | Q31: 0 | R31: 0 | S31: 0 | T31: 0 | U31: 0 | V31: 0 | W31: 0 | X31: 0 | Y31: 0 | Z31: 0 | AA31: 0 | AB31: 0 | AC31: 0 | AD31: 0 | AE31: 0 | AF31: 0
A32: =LOADS!A29 ->  | B32: =LOADS!B29 -> 0 | C32: =LOADS!X29 ->  | D32: =LOADS!AH29 -> 0 | E32: 0 | F32: 0 | G32: 0 | H32: 0 | I32: 0 | J32: 0 | K32: 0 | L32: 0 | M32: 0 | N32: 0 | O32: 0 | P32: 0 | Q32: 0 | R32: 0 | S32: 0 | T32: 0 | U32: 0 | V32: 0 | W32: 0 | X32: 0 | Y32: 0 | Z32: 0 | AA32: 0 | AB32: 0 | AC32: 0 | AD32: 0 | AE32: 0 | AF32: 0
A33: =LOADS!A30 ->  | B33: =LOADS!B30 -> 0 | C33: =LOADS!X30 ->  | D33: =LOADS!AH30 -> 0 | E33: 0 | F33: 0 | G33: 0 | H33: 0 | I33: 0 | J33: 0 | K33: 0 | L33: 0 | M33: 0 | N33: 0 | O33: 0 | P33: 0 | Q33: 0 | R33: 0 | S33: 0 | T33: 0 | U33: 0 | V33: 0 | W33: =IF(W$2=$D33,$C33,0) -> 0 | X33: 0 | Y33: 0 | Z33: 0 | AA33: 0 | AB33: 0 | AC33: 0 | AD33: 0 | AE33: 0 | AF33: 0
A34: =LOADS!A31 ->  | B34: =LOADS!B31 -> 0 | C34: =LOADS!X31 ->  | D34: =LOADS!AH31 -> 0 | E34: 0 | F34: 0 | G34: 0 | H34: 0 | I34: 0 | J34: 0 | K34: 0 | L34: 0 | M34: 0 | N34: 0 | O34: 0 | P34: 0 | Q34: 0 | R34: 0 | S34: 0 | T34: 0 | U34: 0 | V34: 0 | W34: 0 | X34: 0 | Y34: 0 | Z34: 0 | AA34: 0 | AB34: 0 | AC34: 0 | AD34: 0 | AE34: 0 | AF34: 0
A35: =LOADS!A32 ->  | B35: =LOADS!B32 -> 0 | C35: =LOADS!X32 ->  | D35: =LOADS!AH32 -> 0 | E35: 0 | F35: 0 | G35: 0 | H35: 0 | I35: 0 | J35: 0 | K35: 0 | L35: 0 | M35: 0 | N35: 0 | O35: 0 | P35: 0 | Q35: 0 | R35: 0 | S35: 0 | T35: 0 | U35: 0 | V35: 0 | W35: 0 | X35: 0 | Y35: 0 | Z35: 0 | AA35: 0 | AB35: 0 | AC35: 0 | AD35: 0 | AE35: 0 | AF35: 0
A36: =LOADS!A33 ->  | B36: =LOADS!B33 -> 0 | C36: =LOADS!X33 ->  | D36: =LOADS!AH33 -> 0 | E36: 0 | F36: 0 | G36: 0 | H36: 0 | I36: 0 | J36: 0 | K36: 0 | L36: 0 | M36: 0 | N36: 0 | O36: 0 | P36: 0 | Q36: 0 | R36: 0 | S36: 0 | T36: 0 | U36: 0 | V36: 0 | W36: 0 | X36: 0 | Y36: 0 | Z36: 0 | AA36: 0 | AB36: 0 | AC36: 0 | AD36: 0 | AE36: 0 | AF36: 0
A37: =LOADS!A34 ->  | B37: =LOADS!B34 -> 0 | C37: =LOADS!X34 ->  | D37: =LOADS!AH34 -> 0 | E37: 0 | F37: 0 | G37: 0 | H37: 0 | I37: 0 | J37: 0 | K37: 0 | L37: 0 | M37: =IF(M$2=$D37,$C37,0) -> 0 | N37: 0 | O37: 0 | P37: 0 | Q37: 0 | R37: 0 | S37: 0 | T37: =IF(T$2=$D37,$C37,0) -> 0 | U37: 0 | V37: 0 | W37: 0 | X37: 0 | Y37: 0 | Z37: 0 | AA37: =IF(AA$2=$D37,$C37,0) -> 0 | AB37: 0 | AC37: 0 | AD37: 0 | AE37: 0 | AF37: 0
A38: =LOADS!A35 ->  | B38: =LOADS!B35 -> 0 | C38: =LOADS!X35 ->  | D38: =LOADS!AH35 -> 0 | E38: 0 | F38: 0 | G38: 0 | H38: 0 | I38: =IF(I$2=$D38,$C38,0) -> 0 | J38: 0 | K38: 0 | L38: 0 | M38: 0 | N38: 0 | O38: 0 | P38: 0 | Q38: =IF(Q$2=$D38,$C38,0) -> 0 | R38: 0 | S38: 0 | T38: 0 | U38: 0 | V38: 0 | W38: 0 | X38: 0 | Y38: 0 | Z38: 0 | AA38: 0 | AB38: 0 | AC38: 0 | AD38: 0 | AE38: 0 | AF38: 0
A39: =LOADS!A36 ->  | B39: =LOADS!B36 -> 0 | C39: =LOADS!X36 ->  | D39: =LOADS!AH36 -> 0 | E39: 0 | F39: 0 | G39: 0 | H39: 0 | I39: 0 | J39: 0 | K39: 0 | L39: 0 | M39: 0 | N39: 0 | O39: 0 | P39: 0 | Q39: 0 | R39: 0 | S39: 0 | T39: 0 | U39: 0 | V39: 0 | W39: 0 | X39: 0 | Y39: 0 | Z39: 0 | AA39: 0 | AB39: 0 | AC39: 0 | AD39: 0 | AE39: 0 | AF39: 0
A40: =LOADS!A37 ->  | B40: =LOADS!B37 -> 0 | C40: =LOADS!X37 ->  | D40: =LOADS!AH37 -> 0 | E40: 0 | F40: 0 | G40: 0 | H40: 0 | I40: 0 | J40: 0 | K40: 0 | L40: 0 | M40: 0 | N40: 0 | O40: 0 | P40: 0 | Q40: 0 | R40: 0 | S40: 0 | T40: 0 | U40: 0 | V40: 0 | W40: 0 | X40: 0 | Y40: 0 | Z40: 0 | AA40: 0 | AB40: 0 | AC40: 0 | AD40: 0 | AE40: 0 | AF40: 0
A41: =LOADS!A38 ->  | B41: =LOADS!B38 -> 0 | C41: =LOADS!X38 ->  | D41: =LOADS!AH38 -> 0 | E41: 0 | F41: 0 | G41: 0 | H41: 0 | I41: 0 | J41: 0 | K41: 0 | L41: 0 | M41: 0 | N41: 0 | O41: 0 | P41: 0 | Q41: 0 | R41: 0 | S41: 0 | T41: 0 | U41: 0 | V41: 0 | W41: 0 | X41: 0 | Y41: 0 | Z41: 0 | AA41: 0 | AB41: 0 | AC41: 0 | AD41: 0 | AE41: 0 | AF41: 0
A42: =LOADS!A39 ->  | B42: =LOADS!B39 -> 0 | C42: =LOADS!X39 ->  | D42: =LOADS!AH39 -> 0 | E42: 0 | F42: 0 | G42: 0 | H42: 0 | I42: 0 | J42: 0 | K42: 0 | L42: 0 | M42: 0 | N42: 0 | O42: 0 | P42: 0 | Q42: 0 | R42: 0 | S42: 0 | T42: 0 | U42: 0 | V42: 0 | W42: 0 | X42: 0 | Y42: 0 | Z42: 0 | AA42: 0 | AB42: 0 | AC42: 0 | AD42: 0 | AE42: 0 | AF42: 0
A43: =LOADS!A40 ->  | B43: =LOADS!B40 -> 0 | C43: =LOADS!X40 ->  | D43: =LOADS!AH40 -> 0 | E43: 0 | F43: 0 | G43: 0 | H43: 0 | I43: 0 | J43: 0 | K43: 0 | L43: 0 | M43: 0 | N43: 0 | O43: 0 | P43: 0 | Q43: 0 | R43: 0 | S43: 0 | T43: 0 | U43: 0 | V43: 0 | W43: 0 | X43: 0 | Y43: 0 | Z43: 0 | AA43: 0 | AB43: 0 | AC43: 0 | AD43: 0 | AE43: 0 | AF43: 0
A44: =LOADS!A41 ->  | B44: =LOADS!B41 -> 0 | C44: =LOADS!X41 ->  | D44: =LOADS!AH41 -> 0 | E44: 0 | F44: 0 | G44: 0 | H44: 0 | I44: 0 | J44: 0 | K44: 0 | L44: 0 | M44: 0 | N44: 0 | O44: 0 | P44: 0 | Q44: 0 | R44: 0 | S44: 0 | T44: 0 | U44: 0 | V44: 0 | W44: 0 | X44: 0 | Y44: 0 | Z44: 0 | AA44: 0 | AB44: 0 | AC44: 0 | AD44: 0 | AE44: 0 | AF44: 0
A45: =LOADS!A42 ->  | B45: =LOADS!B42 -> 0 | C45: =LOADS!X42 ->  | D45: =LOADS!AH42 -> 0 | E45: 0 | F45: 0 | G45: 0 | H45: 0 | I45: 0 | J45: 0 | K45: 0 | L45: 0 | M45: 0 | N45: 0 | O45: 0 | P45: 0 | Q45: 0 | R45: 0 | S45: 0 | T45: 0 | U45: 0 | V45: 0 | W45: 0 | X45: 0 | Y45: 0 | Z45: 0 | AA45: 0 | AB45: 0 | AC45: 0 | AD45: 0 | AE45: 0 | AF45: 0
A46: =LOADS!A43 ->  | B46: =LOADS!B43 -> 0 | C46: =LOADS!X43 ->  | D46: =LOADS!AH43 -> 0 | E46: 0 | F46: 0 | G46: 0 | H46: 0 | I46: 0 | J46: 0 | K46: 0 | L46: 0 | M46: 0 | N46: 0 | O46: 0 | P46: 0 | Q46: 0 | R46: 0 | S46: 0 | T46: 0 | U46: 0 | V46: 0 | W46: 0 | X46: 0 | Y46: 0 | Z46: 0 | AA46: 0 | AB46: 0 | AC46: 0 | AD46: 0 | AE46: 0 | AF46: 0
A47: =LOADS!A44 ->  | B47: =LOADS!B44 -> 0 | C47: =LOADS!X44 ->  | D47: =LOADS!AH44 -> 0 | E47: 0 | F47: 0 | G47: 0 | H47: 0 | I47: 0 | J47: 0 | K47: 0 | L47: 0 | M47: =IF(M$2=$D47,$C47,0) -> 0 | N47: 0 | O47: 0 | P47: 0 | Q47: 0 | R47: 0 | S47: 0 | T47: =IF(T$2=$D47,$C47,0) -> 0 | U47: 0 | V47: 0 | W47: 0 | X47: 0 | Y47: 0 | Z47: 0 | AA47: =IF(AA$2=$D47,$C47,0) -> 0 | AB47: 0 | AC47: 0 | AD47: 0 | AE47: 0 | AF47: 0
A48: =LOADS!A45 ->  | B48: =LOADS!B45 -> 0 | C48: =LOADS!X45 ->  | D48: =LOADS!AH45 -> 0 | E48: 0 | F48: 0 | G48: 0 | H48: 0 | I48: =IF(I$2=$D48,$C48,0) -> 0 | J48: 0 | K48: 0 | L48: 0 | M48: 0 | N48: 0 | O48: 0 | P48: 0 | Q48: =IF(Q$2=$D48,$C48,0) -> 0 | R48: 0 | S48: 0 | T48: 0 | U48: 0 | V48: 0 | W48: 0 | X48: 0 | Y48: 0 | Z48: 0 | AA48: 0 | AB48: 0 | AC48: 0 | AD48: 0 | AE48: 0 | AF48: 0
A49: =LOADS!A46 ->  | B49: =LOADS!B46 -> 0 | C49: =LOADS!X46 ->  | D49: =LOADS!AH46 -> 0 | E49: 0 | F49: 0 | G49: 0 | H49: 0 | I49: 0 | J49: 0 | K49: 0 | L49: 0 | M49: 0 | N49: 0 | O49: 0 | P49: 0 | Q49: 0 | R49: 0 | S49: 0 | T49: 0 | U49: 0 | V49: 0 | W49: 0 | X49: 0 | Y49: 0 | Z49: 0 | AA49: 0 | AB49: 0 | AC49: 0 | AD49: 0 | AE49: 0 | AF49: 0
A50: =LOADS!A47 ->  | B50: =LOADS!B47 -> 0 | C50: =LOADS!X47 ->  | D50: =LOADS!AH47 -> 0 | E50: 0 | F50: 0 | G50: 0 | H50: 0 | I50: 0 | J50: 0 | K50: 0 | L50: 0 | M50: 0 | N50: 0 | O50: 0 | P50: 0 | Q50: 0 | R50: 0 | S50: 0 | T50: 0 | U50: 0 | V50: 0 | W50: 0 | X50: 0 | Y50: 0 | Z50: 0 | AA50: 0 | AB50: 0 | AC50: 0 | AD50: 0 | AE50: 0 | AF50: 0
A51: =LOADS!A48 ->  | B51: =LOADS!B48 -> 0 | C51: =LOADS!X48 ->  | D51: =LOADS!AH48 -> 0 | E51: 0 | F51: 0 | G51: 0 | H51: 0 | I51: 0 | J51: 0 | K51: 0 | L51: 0 | M51: 0 | N51: 0 | O51: 0 | P51: 0 | Q51: 0 | R51: 0 | S51: 0 | T51: 0 | U51: 0 | V51: 0 | W51: 0 | X51: 0 | Y51: 0 | Z51: 0 | AA51: 0 | AB51: 0 | AC51: 0 | AD51: 0 | AE51: 0 | AF51: 0
A52: =LOADS!A49 ->  | B52: =LOADS!B49 -> 0 | C52: =LOADS!X49 ->  | D52: =LOADS!AH49 -> 0 | E52: 0 | F52: 0 | G52: 0 | H52: 0 | I52: 0 | J52: 0 | K52: 0 | L52: 0 | M52: 0 | N52: 0 | O52: 0 | P52: 0 | Q52: 0 | R52: 0 | S52: 0 | T52: 0 | U52: 0 | V52: 0 | W52: 0 | X52: 0 | Y52: 0 | Z52: 0 | AA52: 0 | AB52: 0 | AC52: 0 | AD52: 0 | AE52: 0 | AF52: 0
A53: =LOADS!A50 ->  | B53: =LOADS!B50 -> 0 | C53: =LOADS!X50 ->  | D53: =LOADS!AH50 -> 0 | E53: 0 | F53: 0 | G53: 0 | H53: 0 | I53: 0 | J53: 0 | K53: 0 | L53: 0 | M53: 0 | N53: 0 | O53: 0 | P53: 0 | Q53: 0 | R53: 0 | S53: 0 | T53: 0 | U53: 0 | V53: 0 | W53: =IF(W$2=$D53,$C53,0) -> 0 | X53: 0 | Y53: 0 | Z53: 0 | AA53: 0 | AB53: 0 | AC53: 0 | AD53: 0 | AE53: 0 | AF53: 0
A54: =LOADS!A51 ->  | B54: =LOADS!B51 -> 0 | C54: =LOADS!X51 ->  | D54: =LOADS!AH51 -> 0 | E54: 0 | F54: 0 | G54: 0 | H54: 0 | I54: 0 | J54: 0 | K54: 0 | L54: 0 | M54: 0 | N54: 0 | O54: 0 | P54: 0 | Q54: 0 | R54: 0 | S54: 0 | T54: 0 | U54: 0 | V54: 0 | W54: 0 | X54: 0 | Y54: 0 | Z54: 0 | AA54: 0 | AB54: 0 | AC54: 0 | AD54: 0 | AE54: 0 | AF54: 0
A55: =LOADS!A52 ->  | B55: =LOADS!B52 -> 0 | C55: =LOADS!X52 ->  | D55: =LOADS!AH52 -> 0 | E55: 0 | F55: 0 | G55: 0 | H55: 0 | I55: 0 | J55: 0 | K55: 0 | L55: 0 | M55: 0 | N55: 0 | O55: 0 | P55: 0 | Q55: 0 | R55: 0 | S55: 0 | T55: 0 | U55: 0 | V55: 0 | W55: 0 | X55: 0 | Y55: 0 | Z55: 0 | AA55: 0 | AB55: 0 | AC55: 0 | AD55: 0 | AE55: 0 | AF55: 0
A56: =LOADS!A53 ->  | B56: =LOADS!B53 -> 0 | C56: =LOADS!X53 ->  | D56: =LOADS!AH53 -> 0 | E56: 0 | F56: 0 | G56: 0 | H56: 0 | I56: 0 | J56: 0 | K56: 0 | L56: 0 | M56: 0 | N56: 0 | O56: 0 | P56: 0 | Q56: 0 | R56: 0 | S56: 0 | T56: 0 | U56: 0 | V56: 0 | W56: 0 | X56: 0 | Y56: 0 | Z56: 0 | AA56: 0 | AB56: 0 | AC56: 0 | AD56: 0 | AE56: 0 | AF56: 0
A57: =LOADS!A54 ->  | B57: =LOADS!B54 -> 0 | C57: =LOADS!X54 ->  | D57: =LOADS!AH54 -> 0 | E57: 0 | F57: 0 | G57: 0 | H57: 0 | I57: 0 | J57: 0 | K57: 0 | L57: 0 | M57: =IF(M$2=$D57,$C57,0) -> 0 | N57: 0 | O57: 0 | P57: 0 | Q57: 0 | R57: 0 | S57: 0 | T57: =IF(T$2=$D57,$C57,0) -> 0 | U57: 0 | V57: 0 | W57: 0 | X57: 0 | Y57: 0 | Z57: 0 | AA57: =IF(AA$2=$D57,$C57,0) -> 0 | AB57: 0 | AC57: 0 | AD57: 0 | AE57: 0 | AF57: 0
A58: =LOADS!A55 ->  | B58: =LOADS!B55 -> 0 | C58: =LOADS!X55 ->  | D58: =LOADS!AH55 -> 0 | E58: 0 | F58: 0 | G58: 0 | H58: 0 | I58: =IF(I$2=$D58,$C58,0) -> 0 | J58: 0 | K58: 0 | L58: 0 | M58: 0 | N58: 0 | O58: 0 | P58: 0 | Q58: =IF(Q$2=$D58,$C58,0) -> 0 | R58: 0 | S58: 0 | T58: 0 | U58: 0 | V58: 0 | W58: 0 | X58: 0 | Y58: 0 | Z58: 0 | AA58: 0 | AB58: 0 | AC58: 0 | AD58: 0 | AE58: 0 | AF58: 0
A59: =LOADS!A56 ->  | B59: =LOADS!B56 -> 0 | C59: =LOADS!X56 ->  | D59: =LOADS!AH56 -> 0 | E59: 0 | F59: 0 | G59: 0 | H59: 0 | I59: 0 | J59: 0 | K59: 0 | L59: 0 | M59: 0 | N59: 0 | O59: 0 | P59: 0 | Q59: 0 | R59: 0 | S59: 0 | T59: 0 | U59: 0 | V59: 0 | W59: 0 | X59: 0 | Y59: 0 | Z59: 0 | AA59: 0 | AB59: 0 | AC59: 0 | AD59: 0 | AE59: 0 | AF59: 0
A60: =LOADS!A57 ->  | B60: =LOADS!B57 -> 0 | C60: =LOADS!X57 ->  | D60: =LOADS!AH57 -> 0 | E60: 0 | F60: 0 | G60: 0 | H60: 0 | I60: 0 | J60: 0 | K60: 0 | L60: 0 | M60: 0 | N60: 0 | O60: 0 | P60: 0 | Q60: 0 | R60: 0 | S60: 0 | T60: 0 | U60: 0 | V60: 0 | W60: 0 | X60: 0 | Y60: 0 | Z60: 0 | AA60: 0 | AB60: 0 | AC60: 0 | AD60: 0 | AE60: 0 | AF60: 0
A61: =LOADS!A58 ->  | B61: =LOADS!B58 -> 0 | C61: =LOADS!X58 ->  | D61: =LOADS!AH58 -> 0 | E61: 0 | F61: 0 | G61: 0 | H61: 0 | I61: 0 | J61: 0 | K61: 0 | L61: 0 | M61: 0 | N61: 0 | O61: 0 | P61: 0 | Q61: 0 | R61: 0 | S61: 0 | T61: 0 | U61: 0 | V61: 0 | W61: 0 | X61: 0 | Y61: 0 | Z61: 0 | AA61: 0 | AB61: 0 | AC61: 0 | AD61: 0 | AE61: 0 | AF61: 0
A62: =LOADS!A59 ->  | B62: =LOADS!B59 -> 0 | C62: =LOADS!X59 ->  | D62: =LOADS!AH59 -> 0 | E62: 0 | F62: 0 | G62: 0 | H62: 0 | I62: 0 | J62: 0 | K62: 0 | L62: 0 | M62: 0 | N62: 0 | O62: 0 | P62: 0 | Q62: 0 | R62: 0 | S62: 0 | T62: 0 | U62: 0 | V62: 0 | W62: 0 | X62: 0 | Y62: 0 | Z62: 0 | AA62: 0 | AB62: 0 | AC62: 0 | AD62: 0 | AE62: 0 | AF62: 0
A63: =LOADS!A60 ->  | B63: =LOADS!B60 -> 0 | C63: =LOADS!X60 ->  | D63: =LOADS!AH60 -> 0 | E63: 0 | F63: 0 | G63: 0 | H63: 0 | I63: 0 | J63: 0 | K63: 0 | L63: 0 | M63: 0 | N63: 0 | O63: 0 | P63: 0 | Q63: 0 | R63: 0 | S63: 0 | T63: 0 | U63: 0 | V63: 0 | W63: 0 | X63: 0 | Y63: 0 | Z63: 0 | AA63: 0 | AB63: 0 | AC63: 0 | AD63: 0 | AE63: 0 | AF63: 0
A64: =LOADS!A61 ->  | B64: =LOADS!B61 -> 0 | C64: =LOADS!X61 ->  | D64: =LOADS!AH61 -> 0 | E64: 0 | F64: 0 | G64: 0 | H64: 0 | I64: 0 | J64: 0 | K64: 0 | L64: 0 | M64: 0 | N64: 0 | O64: 0 | P64: 0 | Q64: 0 | R64: 0 | S64: 0 | T64: 0 | U64: 0 | V64: 0 | W64: 0 | X64: 0 | Y64: 0 | Z64: 0 | AA64: 0 | AB64: 0 | AC64: 0 | AD64: 0 | AE64: 0 | AF64: 0
A65: =LOADS!A62 ->  | B65: =LOADS!B62 -> 0 | C65: =LOADS!X62 ->  | D65: =LOADS!AH62 -> 0 | E65: 0 | F65: 0 | G65: 0 | H65: 0 | I65: 0 | J65: 0 | K65: 0 | L65: 0 | M65: 0 | N65: 0 | O65: 0 | P65: 0 | Q65: 0 | R65: 0 | S65: 0 | T65: 0 | U65: 0 | V65: 0 | W65: 0 | X65: 0 | Y65: 0 | Z65: 0 | AA65: 0 | AB65: 0 | AC65: 0 | AD65: 0 | AE65: 0 | AF65: 0
A66: =LOADS!A63 ->  | B66: =LOADS!B63 -> 0 | C66: =LOADS!X63 ->  | D66: =LOADS!AH63 -> 0 | E66: 0 | F66: 0 | G66: 0 | H66: 0 | I66: 0 | J66: 0 | K66: 0 | L66: 0 | M66: 0 | N66: 0 | O66: 0 | P66: 0 | Q66: 0 | R66: 0 | S66: 0 | T66: 0 | U66: 0 | V66: 0 | W66: 0 | X66: 0 | Y66: 0 | Z66: 0 | AA66: 0 | AB66: 0 | AC66: 0 | AD66: 0 | AE66: 0 | AF66: 0
A67: =LOADS!A64 ->  | B67: =LOADS!B64 -> 0 | C67: =LOADS!X64 ->  | D67: =LOADS!AH64 -> 0 | E67: 0 | F67: 0 | G67: 0 | H67: 0 | I67: 0 | J67: 0 | K67: 0 | L67: 0 | M67: =IF(M$2=$D67,$C67,0) -> 0 | N67: 0 | O67: 0 | P67: 0 | Q67: 0 | R67: 0 | S67: 0 | T67: =IF(T$2=$D67,$C67,0) -> 0 | U67: 0 | V67: 0 | W67: 0 | X67: 0 | Y67: 0 | Z67: 0 | AA67: =IF(AA$2=$D67,$C67,0) -> 0 | AB67: 0 | AC67: 0 | AD67: 0 | AE67: 0 | AF67: 0
A68: =LOADS!A65 ->  | B68: =LOADS!B65 -> 0 | C68: =LOADS!X65 ->  | D68: =LOADS!AH65 -> 0 | E68: 0 | F68: 0 | G68: 0 | H68: 0 | I68: =IF(I$2=$D68,$C68,0) -> 0 | J68: 0 | K68: 0 | L68: 0 | M68: 0 | N68: 0 | O68: 0 | P68: 0 | Q68: =IF(Q$2=$D68,$C68,0) -> 0 | R68: 0 | S68: 0 | T68: 0 | U68: 0 | V68: 0 | W68: 0 | X68: 0 | Y68: 0 | Z68: 0 | AA68: 0 | AB68: 0 | AC68: 0 | AD68: 0 | AE68: 0 | AF68: 0
A69: =LOADS!A66 ->  | B69: =LOADS!B66 -> 0 | C69: =LOADS!X66 ->  | D69: =LOADS!AH66 -> 0 | E69: =IF(E$2=$D69,$C69,0) -> 0 | F69: 0 | G69: 0 | H69: 0 | I69: 0 | J69: 0 | K69: 0 | L69: 0 | M69: 0 | N69: 0 | O69: 0 | P69: 0 | Q69: 0 | R69: 0 | S69: 0 | T69: 0 | U69: 0 | V69: 0 | W69: 0 | X69: 0 | Y69: 0 | Z69: 0 | AA69: 0 | AB69: 0 | AC69: 0 | AD69: 0 | AE69: 0 | AF69: 0
A70: =LOADS!A67 ->  | B70: =LOADS!B67 -> 0 | C70: =LOADS!X67 ->  | D70: =LOADS!AH67 -> 0 | E70: 0 | F70: 0 | G70: 0 | H70: 0 | I70: 0 | J70: 0 | K70: 0 | L70: 0 | M70: 0 | N70: 0 | O70: 0 | P70: 0 | Q70: 0 | R70: 0 | S70: 0 | T70: 0 | U70: 0 | V70: 0 | W70: 0 | X70: 0 | Y70: 0 | Z70: 0 | AA70: 0 | AB70: 0 | AC70: 0 | AD70: 0 | AE70: 0 | AF70: 0
A71: =LOADS!A68 ->  | B71: =LOADS!B68 -> 0 | C71: =LOADS!X68 ->  | D71: =LOADS!AH68 -> 0 | E71: 0 | F71: 0 | G71: 0 | H71: 0 | I71: 0 | J71: 0 | K71: 0 | L71: 0 | M71: 0 | N71: 0 | O71: 0 | P71: 0 | Q71: 0 | R71: 0 | S71: 0 | T71: 0 | U71: 0 | V71: 0 | W71: 0 | X71: 0 | Y71: 0 | Z71: 0 | AA71: 0 | AB71: 0 | AC71: 0 | AD71: 0 | AE71: 0 | AF71: 0
A72: =LOADS!A69 ->  | B72: =LOADS!B69 -> 0 | C72: =LOADS!X69 ->  | D72: =LOADS!AH69 -> 0 | E72: 0 | F72: 0 | G72: 0 | H72: 0 | I72: 0 | J72: 0 | K72: 0 | L72: 0 | M72: 0 | N72: 0 | O72: 0 | P72: 0 | Q72: 0 | R72: 0 | S72: 0 | T72: 0 | U72: 0 | V72: 0 | W72: 0 | X72: 0 | Y72: 0 | Z72: 0 | AA72: 0 | AB72: 0 | AC72: 0 | AD72: 0 | AE72: 0 | AF72: 0
A73: =LOADS!A70 ->  | B73: =LOADS!B70 -> 0 | C73: =LOADS!X70 ->  | D73: =LOADS!AH70 -> 0 | E73: 0 | F73: 0 | G73: 0 | H73: 0 | I73: 0 | J73: 0 | K73: 0 | L73: 0 | M73: 0 | N73: 0 | O73: 0 | P73: 0 | Q73: 0 | R73: 0 | S73: 0 | T73: 0 | U73: 0 | V73: 0 | W73: =IF(W$2=$D73,$C73,0) -> 0 | X73: 0 | Y73: 0 | Z73: 0 | AA73: 0 | AB73: 0 | AC73: 0 | AD73: 0 | AE73: 0 | AF73: 0
A74: =LOADS!A71 ->  | B74: =LOADS!B71 -> 0 | C74: =LOADS!X71 ->  | D74: =LOADS!AH71 -> 0 | E74: 0 | F74: 0 | G74: 0 | H74: 0 | I74: 0 | J74: 0 | K74: 0 | L74: 0 | M74: 0 | N74: 0 | O74: 0 | P74: 0 | Q74: 0 | R74: 0 | S74: 0 | T74: 0 | U74: 0 | V74: 0 | W74: 0 | X74: 0 | Y74: 0 | Z74: 0 | AA74: 0 | AB74: 0 | AC74: 0 | AD74: 0 | AE74: 0 | AF74: 0
A75: =LOADS!A72 ->  | B75: =LOADS!B72 -> 0 | C75: =LOADS!X72 ->  | D75: =LOADS!AH72 -> 0 | E75: 0 | F75: 0 | G75: 0 | H75: 0 | I75: 0 | J75: 0 | K75: 0 | L75: 0 | M75: 0 | N75: 0 | O75: 0 | P75: 0 | Q75: 0 | R75: 0 | S75: 0 | T75: 0 | U75: 0 | V75: 0 | W75: 0 | X75: 0 | Y75: 0 | Z75: 0 | AA75: 0 | AB75: 0 | AC75: 0 | AD75: 0 | AE75: 0 | AF75: 0
A76: =LOADS!A73 ->  | B76: =LOADS!B73 -> 0 | C76: =LOADS!X73 ->  | D76: =LOADS!AH73 -> 0 | E76: 0 | F76: 0 | G76: 0 | H76: 0 | I76: 0 | J76: 0 | K76: 0 | L76: 0 | M76: 0 | N76: 0 | O76: 0 | P76: 0 | Q76: 0 | R76: 0 | S76: 0 | T76: 0 | U76: 0 | V76: 0 | W76: 0 | X76: 0 | Y76: 0 | Z76: 0 | AA76: 0 | AB76: 0 | AC76: 0 | AD76: 0 | AE76: 0 | AF76: 0
A77: =LOADS!A74 ->  | B77: =LOADS!B74 -> 0 | C77: =LOADS!X74 ->  | D77: =LOADS!AH74 -> 0 | E77: 0 | F77: 0 | G77: 0 | H77: 0 | I77: 0 | J77: 0 | K77: 0 | L77: 0 | M77: =IF(M$2=$D77,$C77,0) -> 0 | N77: 0 | O77: 0 | P77: 0 | Q77: 0 | R77: 0 | S77: 0 | T77: =IF(T$2=$D77,$C77,0) -> 0 | U77: 0 | V77: 0 | W77: 0 | X77: 0 | Y77: 0 | Z77: 0 | AA77: =IF(AA$2=$D77,$C77,0) -> 0 | AB77: 0 | AC77: 0 | AD77: 0 | AE77: 0 | AF77: 0
A78: =LOADS!A75 ->  | B78: =LOADS!B75 -> 0 | C78: =LOADS!X75 ->  | D78: =LOADS!AH75 -> 0 | E78: 0 | F78: 0 | G78: 0 | H78: 0 | I78: =IF(I$2=$D78,$C78,0) -> 0 | J78: 0 | K78: 0 | L78: 0 | M78: 0 | N78: 0 | O78: 0 | P78: 0 | Q78: =IF(Q$2=$D78,$C78,0) -> 0 | R78: 0 | S78: 0 | T78: 0 | U78: 0 | V78: 0 | W78: 0 | X78: 0 | Y78: 0 | Z78: 0 | AA78: 0 | AB78: 0 | AC78: 0 | AD78: 0 | AE78: 0 | AF78: 0
A79: =LOADS!A76 ->  | B79: =LOADS!B76 -> 0 | C79: =LOADS!X76 ->  | D79: =LOADS!AH76 -> 0 | E79: 0 | F79: 0 | G79: 0 | H79: 0 | I79: 0 | J79: 0 | K79: 0 | L79: 0 | M79: 0 | N79: 0 | O79: 0 | P79: 0 | Q79: 0 | R79: 0 | S79: 0 | T79: 0 | U79: 0 | V79: 0 | W79: 0 | X79: 0 | Y79: 0 | Z79: 0 | AA79: 0 | AB79: 0 | AC79: 0 | AD79: 0 | AE79: 0 | AF79: 0
A80: =LOADS!A77 ->  | B80: =LOADS!B77 -> 0 | C80: =LOADS!X77 ->  | D80: =LOADS!AH77 -> 0 | E80: 0 | F80: 0 | G80: 0 | H80: 0 | I80: 0 | J80: 0 | K80: 0 | L80: 0 | M80: 0 | N80: 0 | O80: 0 | P80: 0 | Q80: 0 | R80: 0 | S80: 0 | T80: 0 | U80: 0 | V80: 0 | W80: 0 | X80: 0 | Y80: 0 | Z80: 0 | AA80: 0 | AB80: 0 | AC80: 0 | AD80: 0 | AE80: 0 | AF80: 0
A81: =LOADS!A78 ->  | B81: =LOADS!B78 -> 0 | C81: =LOADS!X78 ->  | D81: =LOADS!AH78 -> 0 | E81: 0 | F81: 0 | G81: 0 | H81: 0 | I81: 0 | J81: 0 | K81: 0 | L81: 0 | M81: 0 | N81: 0 | O81: 0 | P81: 0 | Q81: 0 | R81: 0 | S81: 0 | T81: 0 | U81: 0 | V81: 0 | W81: 0 | X81: 0 | Y81: 0 | Z81: 0 | AA81: 0 | AB81: 0 | AC81: 0 | AD81: 0 | AE81: 0 | AF81: 0
A82: =LOADS!A79 ->  | B82: =LOADS!B79 -> 0 | C82: =LOADS!X79 ->  | D82: =LOADS!AH79 -> 0 | E82: 0 | F82: 0 | G82: 0 | H82: 0 | I82: 0 | J82: 0 | K82: 0 | L82: 0 | M82: 0 | N82: 0 | O82: 0 | P82: 0 | Q82: 0 | R82: 0 | S82: 0 | T82: 0 | U82: 0 | V82: 0 | W82: 0 | X82: 0 | Y82: 0 | Z82: 0 | AA82: 0 | AB82: 0 | AC82: 0 | AD82: 0 | AE82: 0 | AF82: 0
A83: =LOADS!A80 ->  | B83: =LOADS!B80 -> 0 | C83: =LOADS!X80 ->  | D83: =LOADS!AH80 -> 0 | E83: 0 | F83: 0 | G83: 0 | H83: 0 | I83: 0 | J83: 0 | K83: 0 | L83: 0 | M83: 0 | N83: 0 | O83: 0 | P83: 0 | Q83: 0 | R83: 0 | S83: 0 | T83: 0 | U83: 0 | V83: 0 | W83: 0 | X83: 0 | Y83: 0 | Z83: 0 | AA83: 0 | AB83: 0 | AC83: 0 | AD83: 0 | AE83: 0 | AF83: 0
A84: =LOADS!A81 ->  | B84: =LOADS!B81 -> 0 | C84: =LOADS!X81 ->  | D84: =LOADS!AH81 -> 0 | E84: 0 | F84: 0 | G84: 0 | H84: 0 | I84: 0 | J84: 0 | K84: 0 | L84: 0 | M84: 0 | N84: 0 | O84: 0 | P84: 0 | Q84: 0 | R84: 0 | S84: 0 | T84: 0 | U84: 0 | V84: 0 | W84: 0 | X84: 0 | Y84: 0 | Z84: 0 | AA84: 0 | AB84: 0 | AC84: 0 | AD84: 0 | AE84: 0 | AF84: 0
A85: =LOADS!A82 ->  | B85: =LOADS!B82 -> 0 | C85: =LOADS!X82 ->  | D85: =LOADS!AH82 -> 0 | E85: 0 | F85: 0 | G85: 0 | H85: 0 | I85: 0 | J85: 0 | K85: 0 | L85: 0 | M85: 0 | N85: 0 | O85: 0 | P85: 0 | Q85: 0 | R85: 0 | S85: 0 | T85: 0 | U85: 0 | V85: 0 | W85: 0 | X85: 0 | Y85: 0 | Z85: 0 | AA85: 0 | AB85: 0 | AC85: 0 | AD85: 0 | AE85: 0 | AF85: 0
A86: =LOADS!A83 ->  | B86: =LOADS!B83 -> 0 | C86: =LOADS!X83 ->  | D86: =LOADS!AH83 -> 0 | E86: 0 | F86: 0 | G86: 0 | H86: 0 | I86: 0 | J86: 0 | K86: 0 | L86: 0 | M86: 0 | N86: 0 | O86: 0 | P86: 0 | Q86: 0 | R86: 0 | S86: 0 | T86: 0 | U86: 0 | V86: 0 | W86: 0 | X86: 0 | Y86: 0 | Z86: 0 | AA86: 0 | AB86: 0 | AC86: 0 | AD86: 0 | AE86: 0 | AF86: 0
A87: =LOADS!A84 ->  | B87: =LOADS!B84 -> 0 | C87: =LOADS!X84 ->  | D87: =LOADS!AH84 -> 0 | E87: 0 | F87: 0 | G87: 0 | H87: 0 | I87: 0 | J87: 0 | K87: 0 | L87: 0 | M87: =IF(M$2=$D87,$C87,0) -> 0 | N87: 0 | O87: 0 | P87: 0 | Q87: 0 | R87: 0 | S87: 0 | T87: =IF(T$2=$D87,$C87,0) -> 0 | U87: 0 | V87: 0 | W87: 0 | X87: 0 | Y87: 0 | Z87: 0 | AA87: =IF(AA$2=$D87,$C87,0) -> 0 | AB87: 0 | AC87: 0 | AD87: 0 | AE87: 0 | AF87: 0
A88: =LOADS!A85 ->  | B88: =LOADS!B85 -> 0 | C88: =LOADS!X85 ->  | D88: =LOADS!AH85 -> 0 | E88: 0 | F88: 0 | G88: 0 | H88: 0 | I88: =IF(I$2=$D88,$C88,0) -> 0 | J88: 0 | K88: 0 | L88: 0 | M88: 0 | N88: 0 | O88: 0 | P88: 0 | Q88: =IF(Q$2=$D88,$C88,0) -> 0 | R88: 0 | S88: 0 | T88: 0 | U88: 0 | V88: 0 | W88: 0 | X88: 0 | Y88: 0 | Z88: 0 | AA88: 0 | AB88: 0 | AC88: 0 | AD88: 0 | AE88: 0 | AF88: 0
A89: =LOADS!A86 ->  | B89: =LOADS!B86 -> 0 | C89: =LOADS!X86 ->  | D89: =LOADS!AH86 -> 0 | E89: 0 | F89: 0 | G89: 0 | H89: 0 | I89: 0 | J89: 0 | K89: 0 | L89: 0 | M89: 0 | N89: 0 | O89: 0 | P89: 0 | Q89: 0 | R89: 0 | S89: 0 | T89: 0 | U89: 0 | V89: 0 | W89: 0 | X89: 0 | Y89: 0 | Z89: 0 | AA89: 0 | AB89: 0 | AC89: 0 | AD89: 0 | AE89: 0 | AF89: 0
A90: =LOADS!A87 ->  | B90: =LOADS!B87 -> 0 | C90: =LOADS!X87 ->  | D90: =LOADS!AH87 -> 0 | E90: 0 | F90: 0 | G90: 0 | H90: 0 | I90: 0 | J90: 0 | K90: 0 | L90: 0 | M90: 0 | N90: 0 | O90: 0 | P90: 0 | Q90: 0 | R90: 0 | S90: 0 | T90: 0 | U90: 0 | V90: 0 | W90: 0 | X90: 0 | Y90: 0 | Z90: 0 | AA90: 0 | AB90: 0 | AC90: 0 | AD90: 0 | AE90: 0 | AF90: 0
A91: =LOADS!A88 ->  | B91: =LOADS!B88 -> 0 | C91: =LOADS!X88 ->  | D91: =LOADS!AH88 -> 0 | E91: 0 | F91: 0 | G91: 0 | H91: 0 | I91: 0 | J91: 0 | K91: 0 | L91: 0 | M91: 0 | N91: 0 | O91: 0 | P91: 0 | Q91: 0 | R91: 0 | S91: 0 | T91: 0 | U91: 0 | V91: 0 | W91: 0 | X91: 0 | Y91: 0 | Z91: 0 | AA91: 0 | AB91: 0 | AC91: 0 | AD91: 0 | AE91: 0 | AF91: 0
A92: =LOADS!A89 ->  | B92: =LOADS!B89 -> 0 | C92: =LOADS!X89 ->  | D92: =LOADS!AH89 -> 0 | E92: 0 | F92: 0 | G92: 0 | H92: 0 | I92: 0 | J92: 0 | K92: 0 | L92: 0 | M92: 0 | N92: 0 | O92: 0 | P92: 0 | Q92: 0 | R92: 0 | S92: 0 | T92: 0 | U92: 0 | V92: 0 | W92: 0 | X92: 0 | Y92: 0 | Z92: 0 | AA92: 0 | AB92: 0 | AC92: 0 | AD92: 0 | AE92: 0 | AF92: 0
A93: =LOADS!A90 ->  | B93: =LOADS!B90 -> 0 | C93: =LOADS!X90 ->  | D93: =LOADS!AH90 -> 0 | E93: 0 | F93: 0 | G93: 0 | H93: 0 | I93: 0 | J93: 0 | K93: 0 | L93: 0 | M93: 0 | N93: 0 | O93: 0 | P93: 0 | Q93: 0 | R93: 0 | S93: 0 | T93: 0 | U93: 0 | V93: 0 | W93: =IF(W$2=$D93,$C93,0) -> 0 | X93: 0 | Y93: 0 | Z93: 0 | AA93: 0 | AB93: 0 | AC93: 0 | AD93: 0 | AE93: 0 | AF93: 0
A94: =LOADS!A91 ->  | B94: =LOADS!B91 -> 0 | C94: =LOADS!X91 ->  | D94: =LOADS!AH91 -> 0 | E94: 0 | F94: 0 | G94: 0 | H94: 0 | I94: 0 | J94: 0 | K94: 0 | L94: 0 | M94: 0 | N94: 0 | O94: 0 | P94: 0 | Q94: 0 | R94: 0 | S94: 0 | T94: 0 | U94: 0 | V94: 0 | W94: 0 | X94: 0 | Y94: 0 | Z94: 0 | AA94: 0 | AB94: 0 | AC94: 0 | AD94: 0 | AE94: 0 | AF94: 0
A95: =LOADS!A92 ->  | B95: =LOADS!B92 -> 0 | C95: =LOADS!X92 ->  | D95: =LOADS!AH92 -> 0 | E95: 0 | F95: 0 | G95: 0 | H95: 0 | I95: 0 | J95: 0 | K95: 0 | L95: 0 | M95: 0 | N95: 0 | O95: 0 | P95: 0 | Q95: 0 | R95: 0 | S95: 0 | T95: 0 | U95: 0 | V95: 0 | W95: 0 | X95: 0 | Y95: 0 | Z95: 0 | AA95: 0 | AB95: 0 | AC95: 0 | AD95: 0 | AE95: 0 | AF95: 0
A96: =LOADS!A93 ->  | B96: =LOADS!B93 -> 0 | C96: =LOADS!X93 ->  | D96: =LOADS!AH93 -> 0 | E96: 0 | F96: 0 | G96: 0 | H96: 0 | I96: 0 | J96: 0 | K96: 0 | L96: 0 | M96: 0 | N96: 0 | O96: 0 | P96: 0 | Q96: 0 | R96: 0 | S96: 0 | T96: 0 | U96: 0 | V96: 0 | W96: 0 | X96: 0 | Y96: 0 | Z96: 0 | AA96: 0 | AB96: 0 | AC96: 0 | AD96: 0 | AE96: 0 | AF96: 0
A97: =LOADS!A94 ->  | B97: =LOADS!B94 -> 0 | C97: =LOADS!X94 ->  | D97: =LOADS!AH94 -> 0 | E97: 0 | F97: 0 | G97: 0 | H97: 0 | I97: 0 | J97: 0 | K97: 0 | L97: 0 | M97: =IF(M$2=$D97,$C97,0) -> 0 | N97: 0 | O97: 0 | P97: 0 | Q97: 0 | R97: 0 | S97: 0 | T97: =IF(T$2=$D97,$C97,0) -> 0 | U97: 0 | V97: 0 | W97: 0 | X97: 0 | Y97: 0 | Z97: 0 | AA97: =IF(AA$2=$D97,$C97,0) -> 0 | AB97: 0 | AC97: 0 | AD97: 0 | AE97: 0 | AF97: 0
A98: =LOADS!A95 ->  | B98: =LOADS!B95 -> 0 | C98: =LOADS!X95 ->  | D98: =LOADS!AH95 -> 0 | E98: 0 | F98: 0 | G98: 0 | H98: 0 | I98: =IF(I$2=$D98,$C98,0) -> 0 | J98: 0 | K98: 0 | L98: 0 | M98: 0 | N98: 0 | O98: 0 | P98: 0 | Q98: =IF(Q$2=$D98,$C98,0) -> 0 | R98: 0 | S98: 0 | T98: 0 | U98: 0 | V98: 0 | W98: 0 | X98: 0 | Y98: 0 | Z98: 0 | AA98: 0 | AB98: 0 | AC98: 0 | AD98: 0 | AE98: 0 | AF98: 0
A99: =LOADS!A96 ->  | B99: =LOADS!B96 -> 0 | C99: =LOADS!X96 ->  | D99: =LOADS!AH96 -> 0 | E99: 0 | F99: 0 | G99: 0 | H99: 0 | I99: 0 | J99: 0 | K99: 0 | L99: 0 | M99: 0 | N99: 0 | O99: 0 | P99: 0 | Q99: 0 | R99: 0 | S99: 0 | T99: 0 | U99: 0 | V99: 0 | W99: 0 | X99: 0 | Y99: 0 | Z99: 0 | AA99: 0 | AB99: 0 | AC99: 0 | AD99: 0 | AE99: 0 | AF99: 0
A100: =LOADS!A97 ->  | B100: =LOADS!B97 -> 0 | C100: =LOADS!X97 ->  | D100: =LOADS!AH97 -> 0 | E100: 0 | F100: 0 | G100: 0 | H100: 0 | I100: 0 | J100: 0 | K100: 0 | L100: 0 | M100: 0 | N100: 0 | O100: 0 | P100: 0 | Q100: 0 | R100: 0 | S100: 0 | T100: 0 | U100: 0 | V100: 0 | W100: 0 | X100: 0 | Y100: 0 | Z100: 0 | AA100: 0 | AB100: 0 | AC100: 0 | AD100: 0 | AE100: 0 | AF100: 0
A101: =LOADS!A98 ->  | B101: =LOADS!B98 -> 0 | C101: =LOADS!X98 ->  | D101: =LOADS!AH98 -> 0 | E101: 0 | F101: 0 | G101: 0 | H101: 0 | I101: 0 | J101: 0 | K101: 0 | L101: 0 | M101: 0 | N101: 0 | O101: 0 | P101: 0 | Q101: 0 | R101: 0 | S101: 0 | T101: 0 | U101: 0 | V101: 0 | W101: 0 | X101: 0 | Y101: 0 | Z101: 0 | AA101: 0 | AB101: 0 | AC101: 0 | AD101: 0 | AE101: 0 | AF101: 0
A102: =LOADS!A99 ->  | B102: =LOADS!B99 -> 0 | C102: =LOADS!X99 ->  | D102: =LOADS!AH99 -> 0 | E102: 0 | F102: 0 | G102: 0 | H102: 0 | I102: 0 | J102: 0 | K102: 0 | L102: 0 | M102: 0 | N102: 0 | O102: 0 | P102: 0 | Q102: 0 | R102: 0 | S102: 0 | T102: 0 | U102: 0 | V102: 0 | W102: 0 | X102: 0 | Y102: 0 | Z102: 0 | AA102: 0 | AB102: 0 | AC102: 0 | AD102: 0 | AE102: 0 | AF102: 0
A103: =LOADS!A100 ->  | B103: =LOADS!B100 -> 0 | C103: =LOADS!X100 ->  | D103: =LOADS!AH100 -> 0 | E103: 0 | F103: 0 | G103: 0 | H103: 0 | I103: 0 | J103: 0 | K103: 0 | L103: 0 | M103: 0 | N103: 0 | O103: 0 | P103: 0 | Q103: 0 | R103: 0 | S103: 0 | T103: 0 | U103: 0 | V103: 0 | W103: 0 | X103: 0 | Y103: 0 | Z103: 0 | AA103: 0 | AB103: 0 | AC103: 0 | AD103: 0 | AE103: 0 | AF103: 0
A104: =LOADS!A101 ->  | B104: =LOADS!B101 -> 0 | C104: =LOADS!X101 ->  | D104: =LOADS!AH101 -> 0 | E104: 0 | F104: 0 | G104: 0 | H104: 0 | I104: 0 | J104: 0 | K104: 0 | L104: 0 | M104: 0 | N104: 0 | O104: 0 | P104: 0 | Q104: 0 | R104: 0 | S104: 0 | T104: 0 | U104: 0 | V104: 0 | W104: 0 | X104: 0 | Y104: 0 | Z104: 0 | AA104: 0 | AB104: 0 | AC104: 0 | AD104: 0 | AE104: 0 | AF104: 0
A105: =LOADS!A102 ->  | B105: =LOADS!B102 -> 0 | C105: =LOADS!X102 ->  | D105: =LOADS!AH102 -> 0 | E105: 0 | F105: 0 | G105: 0 | H105: 0 | I105: 0 | J105: 0 | K105: 0 | L105: 0 | M105: 0 | N105: 0 | O105: 0 | P105: 0 | Q105: 0 | R105: 0 | S105: 0 | T105: 0 | U105: 0 | V105: 0 | W105: 0 | X105: 0 | Y105: 0 | Z105: 0 | AA105: 0 | AB105: 0 | AC105: 0 | AD105: 0 | AE105: 0 | AF105: 0
A106: =LOADS!A103 ->  | B106: =LOADS!B103 -> 0 | C106: =LOADS!X103 ->  | D106: =LOADS!AH103 -> 0 | E106: 0 | F106: 0 | G106: 0 | H106: 0 | I106: 0 | J106: 0 | K106: 0 | L106: 0 | M106: 0 | N106: 0 | O106: 0 | P106: 0 | Q106: 0 | R106: 0 | S106: 0 | T106: 0 | U106: 0 | V106: 0 | W106: 0 | X106: 0 | Y106: 0 | Z106: 0 | AA106: 0 | AB106: 0 | AC106: 0 | AD106: 0 | AE106: 0 | AF106: 0
A107: =LOADS!A104 ->  | B107: =LOADS!B104 -> 0 | C107: =LOADS!X104 ->  | D107: =LOADS!AH104 -> 0 | E107: 0 | F107: 0 | G107: 0 | H107: 0 | I107: 0 | J107: 0 | K107: 0 | L107: 0 | M107: =IF(M$2=$D107,$C107,0) -> 0 | N107: 0 | O107: 0 | P107: 0 | Q107: 0 | R107: 0 | S107: 0 | T107: =IF(T$2=$D107,$C107,0) -> 0 | U107: 0 | V107: 0 | W107: 0 | X107: 0 | Y107: 0 | Z107: 0 | AA107: =IF(AA$2=$D107,$C107,0) -> 0 | AB107: 0 | AC107: 0 | AD107: 0 | AE107: 0 | AF107: 0
A108: =LOADS!A105 ->  | B108: =LOADS!B105 -> 0 | C108: =LOADS!X105 ->  | D108: =LOADS!AH105 -> 0 | E108: 0 | F108: 0 | G108: 0 | H108: 0 | I108: =IF(I$2=$D108,$C108,0) -> 0 | J108: 0 | K108: 0 | L108: 0 | M108: 0 | N108: 0 | O108: 0 | P108: 0 | Q108: =IF(Q$2=$D108,$C108,0) -> 0 | R108: 0 | S108: 0 | T108: 0 | U108: 0 | V108: 0 | W108: 0 | X108: 0 | Y108: 0 | Z108: 0 | AA108: 0 | AB108: 0 | AC108: 0 | AD108: 0 | AE108: 0 | AF108: 0
A109: =LOADS!A106 ->  | B109: =LOADS!B106 -> 0 | C109: =LOADS!X106 ->  | D109: =LOADS!AH106 -> 0 | E109: 0 | F109: 0 | G109: 0 | H109: 0 | I109: 0 | J109: 0 | K109: 0 | L109: 0 | M109: 0 | N109: 0 | O109: 0 | P109: 0 | Q109: 0 | R109: 0 | S109: 0 | T109: 0 | U109: 0 | V109: 0 | W109: 0 | X109: 0 | Y109: 0 | Z109: 0 | AA109: 0 | AB109: 0 | AC109: 0 | AD109: 0 | AE109: 0 | AF109: 0
A110: =LOADS!A107 ->  | B110: =LOADS!B107 -> 0 | C110: =LOADS!X107 ->  | D110: =LOADS!AH107 -> 0 | E110: 0 | F110: 0 | G110: 0 | H110: 0 | I110: 0 | J110: 0 | K110: 0 | L110: 0 | M110: 0 | N110: 0 | O110: 0 | P110: 0 | Q110: 0 | R110: 0 | S110: 0 | T110: 0 | U110: 0 | V110: 0 | W110: 0 | X110: 0 | Y110: 0 | Z110: 0 | AA110: 0 | AB110: 0 | AC110: 0 | AD110: 0 | AE110: 0 | AF110: 0
A111: =LOADS!A108 ->  | B111: =LOADS!B108 -> 0 | C111: =LOADS!X108 ->  | D111: =LOADS!AH108 -> 0 | E111: 0 | F111: 0 | G111: 0 | H111: 0 | I111: 0 | J111: 0 | K111: 0 | L111: 0 | M111: 0 | N111: 0 | O111: 0 | P111: 0 | Q111: 0 | R111: 0 | S111: 0 | T111: 0 | U111: 0 | V111: 0 | W111: 0 | X111: 0 | Y111: 0 | Z111: 0 | AA111: 0 | AB111: 0 | AC111: 0 | AD111: 0 | AE111: 0 | AF111: 0
A112: =LOADS!A109 ->  | B112: =LOADS!B109 -> 0 | C112: =LOADS!X109 ->  | D112: =LOADS!AH109 -> 0 | E112: 0 | F112: 0 | G112: 0 | H112: 0 | I112: 0 | J112: 0 | K112: 0 | L112: 0 | M112: 0 | N112: 0 | O112: 0 | P112: 0 | Q112: 0 | R112: 0 | S112: 0 | T112: 0 | U112: 0 | V112: 0 | W112: 0 | X112: 0 | Y112: 0 | Z112: 0 | AA112: 0 | AB112: 0 | AC112: 0 | AD112: 0 | AE112: 0 | AF112: 0
A113: =LOADS!A110 ->  | B113: =LOADS!B110 -> 0 | C113: =LOADS!X110 ->  | D113: =LOADS!AH110 -> 0 | E113: 0 | F113: 0 | G113: 0 | H113: 0 | I113: 0 | J113: 0 | K113: 0 | L113: 0 | M113: 0 | N113: 0 | O113: 0 | P113: 0 | Q113: 0 | R113: 0 | S113: 0 | T113: 0 | U113: 0 | V113: 0 | W113: 0 | X113: 0 | Y113: 0 | Z113: 0 | AA113: 0 | AB113: 0 | AC113: 0 | AD113: 0 | AE113: 0 | AF113: 0
A114: =LOADS!A111 ->  | B114: =LOADS!B111 -> 0 | C114: =LOADS!X111 ->  | D114: =LOADS!AH111 -> 0 | E114: 0 | F114: 0 | G114: 0 | H114: 0 | I114: 0 | J114: 0 | K114: 0 | L114: 0 | M114: 0 | N114: 0 | O114: 0 | P114: 0 | Q114: 0 | R114: 0 | S114: 0 | T114: 0 | U114: 0 | V114: 0 | W114: 0 | X114: 0 | Y114: 0 | Z114: 0 | AA114: 0 | AB114: 0 | AC114: 0 | AD114: 0 | AE114: 0 | AF114: 0
A115: =LOADS!A112 ->  | B115: =LOADS!B112 -> 0 | C115: =LOADS!X112 ->  | D115: =LOADS!AH112 -> 0 | E115: 0 | F115: 0 | G115: 0 | H115: 0 | I115: 0 | J115: 0 | K115: 0 | L115: 0 | M115: 0 | N115: 0 | O115: 0 | P115: 0 | Q115: 0 | R115: 0 | S115: 0 | T115: 0 | U115: 0 | V115: 0 | W115: 0 | X115: 0 | Y115: 0 | Z115: 0 | AA115: 0 | AB115: 0 | AC115: 0 | AD115: 0 | AE115: 0 | AF115: 0
A116: =LOADS!A113 ->  | B116: =LOADS!B113 -> 0 | C116: =LOADS!X113 ->  | D116: =LOADS!AH113 -> 0 | E116: 0 | F116: 0 | G116: 0 | H116: 0 | I116: 0 | J116: 0 | K116: 0 | L116: 0 | M116: 0 | N116: 0 | O116: 0 | P116: 0 | Q116: 0 | R116: 0 | S116: 0 | T116: 0 | U116: 0 | V116: 0 | W116: 0 | X116: 0 | Y116: 0 | Z116: 0 | AA116: 0 | AB116: 0 | AC116: 0 | AD116: 0 | AE116: 0 | AF116: 0
A117: =LOADS!A114 ->  | B117: =LOADS!B114 -> 0 | C117: =LOADS!X114 ->  | D117: =LOADS!AH114 -> 0 | E117: 0 | F117: 0 | G117: 0 | H117: 0 | I117: 0 | J117: 0 | K117: 0 | L117: 0 | M117: =IF(M$2=$D117,$C117,0) -> 0 | N117: 0 | O117: 0 | P117: 0 | Q117: 0 | R117: 0 | S117: 0 | T117: =IF(T$2=$D117,$C117,0) -> 0 | U117: 0 | V117: 0 | W117: 0 | X117: 0 | Y117: 0 | Z117: 0 | AA117: =IF(AA$2=$D117,$C117,0) -> 0 | AB117: 0 | AC117: 0 | AD117: 0 | AE117: 0 | AF117: 0
A118: =LOADS!A115 ->  | B118: =LOADS!B115 -> 0 | C118: =LOADS!X115 ->  | D118: =LOADS!AH115 -> 0 | E118: 0 | F118: 0 | G118: 0 | H118: 0 | I118: =IF(I$2=$D118,$C118,0) -> 0 | J118: 0 | K118: 0 | L118: 0 | M118: 0 | N118: 0 | O118: 0 | P118: 0 | Q118: =IF(Q$2=$D118,$C118,0) -> 0 | R118: 0 | S118: 0 | T118: 0 | U118: 0 | V118: 0 | W118: =IF(W$2=$D118,$C118,0) -> 0 | X118: 0 | Y118: 0 | Z118: 0 | AA118: 0 | AB118: 0 | AC118: 0 | AD118: 0 | AE118: 0 | AF118: 0
A119: =LOADS!A116 ->  | B119: =LOADS!B116 -> 0 | C119: =LOADS!X116 ->  | D119: =LOADS!AH116 -> 0 | E119: 0 | F119: 0 | G119: 0 | H119: 0 | I119: 0 | J119: 0 | K119: 0 | L119: 0 | M119: 0 | N119: 0 | O119: 0 | P119: 0 | Q119: 0 | R119: 0 | S119: 0 | T119: 0 | U119: 0 | V119: 0 | W119: 0 | X119: 0 | Y119: 0 | Z119: 0 | AA119: 0 | AB119: 0 | AC119: 0 | AD119: 0 | AE119: 0 | AF119: 0
A120: =LOADS!A117 ->  | B120: =LOADS!B117 -> 0 | C120: =LOADS!X117 ->  | D120: =LOADS!AH117 -> 0 | E120: =IF(E$2=$D120,$C120,0) -> 0 | F120: 0 | G120: 0 | H120: 0 | I120: 0 | J120: 0 | K120: 0 | L120: 0 | M120: 0 | N120: 0 | O120: 0 | P120: 0 | Q120: 0 | R120: 0 | S120: 0 | T120: 0 | U120: 0 | V120: 0 | W120: 0 | X120: 0 | Y120: 0 | Z120: 0 | AA120: 0 | AB120: 0 | AC120: 0 | AD120: 0 | AE120: 0 | AF120: 0
A121: =LOADS!A118 ->  | B121: =LOADS!B118 -> 0 | C121: =LOADS!X118 ->  | D121: =LOADS!AH118 -> 0 | E121: 0 | F121: 0 | G121: 0 | H121: 0 | I121: 0 | J121: 0 | K121: 0 | L121: 0 | M121: 0 | N121: 0 | O121: 0 | P121: 0 | Q121: 0 | R121: 0 | S121: 0 | T121: 0 | U121: 0 | V121: 0 | W121: 0 | X121: 0 | Y121: 0 | Z121: 0 | AA121: 0 | AB121: 0 | AC121: 0 | AD121: 0 | AE121: 0 | AF121: 0
A122: =LOADS!A119 ->  | B122: =LOADS!B119 -> 0 | C122: =LOADS!X119 ->  | D122: =LOADS!AH119 -> 0 | E122: 0 | F122: 0 | G122: 0 | H122: 0 | I122: 0 | J122: 0 | K122: 0 | L122: 0 | M122: 0 | N122: 0 | O122: 0 | P122: 0 | Q122: 0 | R122: 0 | S122: 0 | T122: 0 | U122: 0 | V122: 0 | W122: 0 | X122: 0 | Y122: 0 | Z122: 0 | AA122: 0 | AB122: 0 | AC122: 0 | AD122: 0 | AE122: 0 | AF122: 0
A123: =LOADS!A120 ->  | B123: =LOADS!B120 -> 0 | C123: =LOADS!X120 ->  | D123: =LOADS!AH120 -> 0 | E123: 0 | F123: 0 | G123: 0 | H123: 0 | I123: 0 | J123: 0 | K123: 0 | L123: 0 | M123: 0 | N123: 0 | O123: 0 | P123: 0 | Q123: 0 | R123: 0 | S123: 0 | T123: 0 | U123: 0 | V123: 0 | W123: 0 | X123: 0 | Y123: 0 | Z123: 0 | AA123: 0 | AB123: 0 | AC123: 0 | AD123: 0 | AE123: 0 | AF123: 0
A124: =LOADS!A121 ->  | B124: =LOADS!B121 -> 0 | C124: =LOADS!X121 ->  | D124: =LOADS!AH121 -> 0 | E124: 0 | F124: 0 | G124: 0 | H124: 0 | I124: 0 | J124: 0 | K124: 0 | L124: 0 | M124: 0 | N124: 0 | O124: 0 | P124: 0 | Q124: 0 | R124: 0 | S124: 0 | T124: 0 | U124: 0 | V124: 0 | W124: 0 | X124: 0 | Y124: 0 | Z124: 0 | AA124: 0 | AB124: 0 | AC124: 0 | AD124: 0 | AE124: 0 | AF124: 0
A125: =LOADS!A122 ->  | B125: =LOADS!B122 -> 0 | C125: =LOADS!X122 ->  | D125: =LOADS!AH122 -> 0 | E125: 0 | F125: 0 | G125: 0 | H125: 0 | I125: 0 | J125: 0 | K125: 0 | L125: 0 | M125: 0 | N125: 0 | O125: 0 | P125: 0 | Q125: 0 | R125: 0 | S125: 0 | T125: 0 | U125: 0 | V125: 0 | W125: 0 | X125: 0 | Y125: 0 | Z125: 0 | AA125: 0 | AB125: 0 | AC125: 0 | AD125: 0 | AE125: 0 | AF125: 0
A126: =LOADS!A123 ->  | B126: =LOADS!B123 -> 0 | C126: =LOADS!X123 ->  | D126: =LOADS!AH123 -> 0 | E126: 0 | F126: 0 | G126: 0 | H126: 0 | I126: 0 | J126: 0 | K126: 0 | L126: 0 | M126: 0 | N126: 0 | O126: 0 | P126: 0 | Q126: 0 | R126: 0 | S126: 0 | T126: 0 | U126: 0 | V126: 0 | W126: 0 | X126: 0 | Y126: 0 | Z126: 0 | AA126: 0 | AB126: 0 | AC126: 0 | AD126: 0 | AE126: 0 | AF126: 0
A127: =LOADS!A124 ->  | B127: =LOADS!B124 -> 0 | C127: =LOADS!X124 ->  | D127: =LOADS!AH124 -> 0 | E127: 0 | F127: 0 | G127: 0 | H127: 0 | I127: 0 | J127: 0 | K127: 0 | L127: 0 | M127: =IF(M$2=$D127,$C127,0) -> 0 | N127: 0 | O127: 0 | P127: 0 | Q127: 0 | R127: 0 | S127: 0 | T127: =IF(T$2=$D127,$C127,0) -> 0 | U127: 0 | V127: 0 | W127: 0 | X127: 0 | Y127: 0 | Z127: 0 | AA127: =IF(AA$2=$D127,$C127,0) -> 0 | AB127: 0 | AC127: 0 | AD127: 0 | AE127: 0 | AF127: 0
A128: =LOADS!A125 ->  | B128: =LOADS!B125 -> 0 | C128: =LOADS!X125 ->  | D128: =LOADS!AH125 -> 0 | E128: 0 | F128: 0 | G128: 0 | H128: 0 | I128: =IF(I$2=$D128,$C128,0) -> 0 | J128: 0 | K128: 0 | L128: 0 | M128: 0 | N128: 0 | O128: 0 | P128: 0 | Q128: =IF(Q$2=$D128,$C128,0) -> 0 | R128: 0 | S128: 0 | T128: 0 | U128: 0 | V128: 0 | W128: 0 | X128: 0 | Y128: 0 | Z128: 0 | AA128: 0 | AB128: 0 | AC128: 0 | AD128: 0 | AE128: 0 | AF128: 0
A129: =LOADS!A126 ->  | B129: =LOADS!B126 -> 0 | C129: =LOADS!X126 ->  | D129: =LOADS!AH126 -> 0 | E129: 0 | F129: 0 | G129: 0 | H129: 0 | I129: 0 | J129: 0 | K129: 0 | L129: 0 | M129: 0 | N129: 0 | O129: 0 | P129: 0 | Q129: 0 | R129: 0 | S129: 0 | T129: 0 | U129: 0 | V129: 0 | W129: =IF(W$2=$D129,$C129,0) -> 0 | X129: 0 | Y129: 0 | Z129: 0 | AA129: 0 | AB129: 0 | AC129: 0 | AD129: 0 | AE129: 0 | AF129: 0
A130: =LOADS!A127 ->  | B130: =LOADS!B127 -> 0 | C130: =LOADS!X127 ->  | D130: =LOADS!AH127 -> 0 | E130: 0 | F130: 0 | G130: 0 | H130: 0 | I130: 0 | J130: 0 | K130: 0 | L130: 0 | M130: 0 | N130: 0 | O130: 0 | P130: 0 | Q130: 0 | R130: 0 | S130: 0 | T130: 0 | U130: 0 | V130: 0 | W130: 0 | X130: 0 | Y130: 0 | Z130: 0 | AA130: 0 | AB130: 0 | AC130: 0 | AD130: 0 | AE130: 0 | AF130: 0
A131: =LOADS!A128 ->  | B131: =LOADS!B128 -> 0 | C131: =LOADS!X128 ->  | D131: =LOADS!AH128 -> 0 | E131: 0 | F131: 0 | G131: 0 | H131: 0 | I131: 0 | J131: 0 | K131: 0 | L131: 0 | M131: 0 | N131: 0 | O131: 0 | P131: 0 | Q131: 0 | R131: 0 | S131: 0 | T131: 0 | U131: 0 | V131: 0 | W131: 0 | X131: 0 | Y131: 0 | Z131: 0 | AA131: 0 | AB131: 0 | AC131: 0 | AD131: 0 | AE131: 0 | AF131: 0
A132: =LOADS!A129 ->  | B132: =LOADS!B129 -> 0 | C132: =LOADS!X129 ->  | D132: =LOADS!AH129 -> 0 | E132: 0 | F132: 0 | G132: 0 | H132: 0 | I132: 0 | J132: 0 | K132: 0 | L132: 0 | M132: 0 | N132: 0 | O132: 0 | P132: 0 | Q132: 0 | R132: 0 | S132: 0 | T132: 0 | U132: 0 | V132: 0 | W132: 0 | X132: 0 | Y132: 0 | Z132: 0 | AA132: 0 | AB132: 0 | AC132: 0 | AD132: 0 | AE132: 0 | AF132: 0
A133: =LOADS!A130 ->  | B133: =LOADS!B130 -> 0 | C133: =LOADS!X130 ->  | D133: =LOADS!AH130 -> 0 | E133: 0 | F133: 0 | G133: 0 | H133: 0 | I133: 0 | J133: 0 | K133: 0 | L133: 0 | M133: 0 | N133: 0 | O133: 0 | P133: 0 | Q133: 0 | R133: 0 | S133: 0 | T133: 0 | U133: 0 | V133: 0 | W133: 0 | X133: 0 | Y133: 0 | Z133: 0 | AA133: 0 | AB133: 0 | AC133: 0 | AD133: 0 | AE133: 0 | AF133: 0
A134: =LOADS!A131 ->  | B134: =LOADS!B131 -> 0 | C134: =LOADS!X131 ->  | D134: =LOADS!AH131 -> 0 | E134: 0 | F134: 0 | G134: 0 | H134: 0 | I134: 0 | J134: 0 | K134: 0 | L134: 0 | M134: 0 | N134: 0 | O134: 0 | P134: 0 | Q134: 0 | R134: 0 | S134: 0 | T134: 0 | U134: 0 | V134: 0 | W134: 0 | X134: 0 | Y134: 0 | Z134: 0 | AA134: 0 | AB134: 0 | AC134: 0 | AD134: 0 | AE134: 0 | AF134: 0
A135: =LOADS!A132 ->  | B135: =LOADS!B132 -> 0 | C135: =LOADS!X132 ->  | D135: =LOADS!AH132 -> 0 | E135: 0 | F135: 0 | G135: 0 | H135: 0 | I135: 0 | J135: 0 | K135: 0 | L135: 0 | M135: 0 | N135: 0 | O135: 0 | P135: 0 | Q135: 0 | R135: 0 | S135: 0 | T135: 0 | U135: 0 | V135: 0 | W135: 0 | X135: 0 | Y135: 0 | Z135: 0 | AA135: 0 | AB135: 0 | AC135: 0 | AD135: 0 | AE135: 0 | AF135: 0
A136: =LOADS!A133 ->  | B136: =LOADS!B133 -> 0 | C136: =LOADS!X133 ->  | D136: =LOADS!AH133 -> 0 | E136: 0 | F136: 0 | G136: 0 | H136: 0 | I136: 0 | J136: 0 | K136: 0 | L136: 0 | M136: 0 | N136: 0 | O136: 0 | P136: 0 | Q136: 0 | R136: 0 | S136: 0 | T136: 0 | U136: 0 | V136: 0 | W136: 0 | X136: 0 | Y136: 0 | Z136: 0 | AA136: 0 | AB136: 0 | AC136: 0 | AD136: 0 | AE136: 0 | AF136: 0
A137: =LOADS!A134 ->  | B137: =LOADS!B134 -> 0 | C137: =LOADS!X134 ->  | D137: =LOADS!AH134 -> 0 | E137: =IF(E$2=$D137,$C137,0) -> 0 | F137: 0 | G137: 0 | H137: 0 | I137: 0 | J137: 0 | K137: 0 | L137: 0 | M137: 0 | N137: 0 | O137: 0 | P137: 0 | Q137: 0 | R137: 0 | S137: 0 | T137: 0 | U137: 0 | V137: 0 | W137: 0 | X137: 0 | Y137: 0 | Z137: 0 | AA137: 0 | AB137: 0 | AC137: 0 | AD137: 0 | AE137: 0 | AF137: 0
A138: =LOADS!A135 ->  | B138: =LOADS!B135 -> 0 | C138: =LOADS!X135 ->  | D138: =LOADS!AH135 -> 0 | E138: 0 | F138: 0 | G138: 0 | H138: 0 | I138: 0 | J138: 0 | K138: 0 | L138: 0 | M138: 0 | N138: 0 | O138: 0 | P138: 0 | Q138: =IF(Q$2=$D138,$C138,0) -> 0 | R138: 0 | S138: 0 | T138: 0 | U138: 0 | V138: 0 | W138: 0 | X138: 0 | Y138: 0 | Z138: 0 | AA138: 0 | AB138: 0 | AC138: 0 | AD138: 0 | AE138: 0 | AF138: 0
A139: =LOADS!A136 ->  | B139: =LOADS!B136 -> 0 | C139: =LOADS!X136 ->  | D139: =LOADS!AH136 -> 0 | E139: 0 | F139: 0 | G139: 0 | H139: 0 | I139: 0 | J139: 0 | K139: 0 | L139: 0 | M139: 0 | N139: 0 | O139: 0 | P139: 0 | Q139: 0 | R139: 0 | S139: 0 | T139: 0 | U139: 0 | V139: 0 | W139: 0 | X139: 0 | Y139: 0 | Z139: 0 | AA139: 0 | AB139: 0 | AC139: 0 | AD139: 0 | AE139: 0 | AF139: 0
A140: =LOADS!A137 ->  | B140: =LOADS!B137 -> 0 | C140: =LOADS!X137 ->  | D140: =LOADS!AH137 -> 0 | E140: 0 | F140: 0 | G140: 0 | H140: 0 | I140: 0 | J140: 0 | K140: 0 | L140: 0 | M140: 0 | N140: 0 | O140: 0 | P140: 0 | Q140: 0 | R140: 0 | S140: 0 | T140: 0 | U140: 0 | V140: 0 | W140: 0 | X140: 0 | Y140: 0 | Z140: 0 | AA140: 0 | AB140: 0 | AC140: 0 | AD140: 0 | AE140: 0 | AF140: 0
A141: =LOADS!A138 ->  | B141: =LOADS!B138 -> 0 | C141: =LOADS!X138 ->  | D141: =LOADS!AH138 -> 0 | E141: 0 | F141: 0 | G141: 0 | H141: 0 | I141: 0 | J141: 0 | K141: 0 | L141: 0 | M141: 0 | N141: 0 | O141: 0 | P141: 0 | Q141: 0 | R141: 0 | S141: 0 | T141: 0 | U141: 0 | V141: 0 | W141: 0 | X141: 0 | Y141: 0 | Z141: 0 | AA141: 0 | AB141: 0 | AC141: 0 | AD141: 0 | AE141: 0 | AF141: 0
A142: =LOADS!A139 ->  | B142: =LOADS!B139 -> 0 | C142: =LOADS!X139 ->  | D142: =LOADS!AH139 -> 0 | E142: 0 | F142: 0 | G142: 0 | H142: 0 | I142: 0 | J142: 0 | K142: 0 | L142: 0 | M142: 0 | N142: 0 | O142: 0 | P142: 0 | Q142: 0 | R142: 0 | S142: 0 | T142: 0 | U142: 0 | V142: 0 | W142: 0 | X142: 0 | Y142: 0 | Z142: 0 | AA142: 0 | AB142: 0 | AC142: 0 | AD142: 0 | AE142: 0 | AF142: 0
A143: =LOADS!A140 ->  | B143: =LOADS!B140 -> 0 | C143: =LOADS!X140 ->  | D143: =LOADS!AH140 -> 0 | E143: 0 | F143: 0 | G143: 0 | H143: 0 | I143: 0 | J143: 0 | K143: 0 | L143: 0 | M143: 0 | N143: 0 | O143: 0 | P143: 0 | Q143: 0 | R143: 0 | S143: 0 | T143: =IF(T$2=$D143,$C143,0) -> 0 | U143: 0 | V143: 0 | W143: 0 | X143: 0 | Y143: 0 | Z143: 0 | AA143: =IF(AA$2=$D143,$C143,0) -> 0 | AB143: 0 | AC143: 0 | AD143: 0 | AE143: 0 | AF143: 0
A144: =LOADS!A141 ->  | B144: =LOADS!B141 -> 0 | C144: =LOADS!X141 ->  | D144: =LOADS!AH141 -> 0 | E144: 0 | F144: 0 | G144: 0 | H144: 0 | I144: =IF(I$2=$D144,$C144,0) -> 0 | J144: 0 | K144: 0 | L144: 0 | M144: 0 | N144: 0 | O144: 0 | P144: 0 | Q144: 0 | R144: 0 | S144: =IF(S$2=$D144,$C144,0) -> 0 | T144: 0 | U144: 0 | V144: 0 | W144: 0 | X144: 0 | Y144: 0 | Z144: 0 | AA144: 0 | AB144: 0 | AC144: 0 | AD144: 0 | AE144: 0 | AF144: 0
A145: =LOADS!A142 ->  | B145: =LOADS!B142 -> 0 | C145: =LOADS!X142 ->  | D145: =LOADS!AH142 -> 0 | E145: 0 | F145: 0 | G145: 0 | H145: 0 | I145: 0 | J145: 0 | K145: 0 | L145: 0 | M145: 0 | N145: 0 | O145: 0 | P145: 0 | Q145: 0 | R145: 0 | S145: 0 | T145: 0 | U145: 0 | V145: 0 | W145: 0 | X145: 0 | Y145: 0 | Z145: 0 | AA145: 0 | AB145: 0 | AC145: 0 | AD145: 0 | AE145: 0 | AF145: 0
A146: =LOADS!A143 ->  | B146: =LOADS!B143 -> 0 | C146: =LOADS!X143 ->  | D146: =LOADS!AH143 -> 0 | E146: 0 | F146: 0 | G146: 0 | H146: 0 | I146: 0 | J146: 0 | K146: 0 | L146: 0 | M146: 0 | N146: 0 | O146: 0 | P146: 0 | Q146: 0 | R146: 0 | S146: 0 | T146: 0 | U146: 0 | V146: 0 | W146: 0 | X146: 0 | Y146: 0 | Z146: 0 | AA146: 0 | AB146: 0 | AC146: 0 | AD146: 0 | AE146: 0 | AF146: 0
A147: =LOADS!A144 ->  | B147: =LOADS!B144 -> 0 | C147: =LOADS!X144 ->  | D147: =LOADS!AH144 -> 0 | E147: 0 | F147: 0 | G147: 0 | H147: 0 | I147: 0 | J147: 0 | K147: 0 | L147: 0 | M147: 0 | N147: 0 | O147: 0 | P147: 0 | Q147: 0 | R147: 0 | S147: 0 | T147: 0 | U147: 0 | V147: 0 | W147: 0 | X147: 0 | Y147: 0 | Z147: 0 | AA147: 0 | AB147: 0 | AC147: 0 | AD147: 0 | AE147: 0 | AF147: 0
A148: =LOADS!A145 ->  | B148: =LOADS!B145 -> 0 | C148: =LOADS!X145 ->  | D148: =LOADS!AH145 -> 0 | E148: 0 | F148: 0 | G148: 0 | H148: 0 | I148: 0 | J148: 0 | K148: 0 | L148: 0 | M148: 0 | N148: 0 | O148: 0 | P148: 0 | Q148: 0 | R148: 0 | S148: 0 | T148: 0 | U148: 0 | V148: 0 | W148: 0 | X148: 0 | Y148: 0 | Z148: 0 | AA148: 0 | AB148: 0 | AC148: 0 | AD148: 0 | AE148: 0 | AF148: 0
A149: =LOADS!A146 ->  | B149: =LOADS!B146 -> 0 | C149: =LOADS!X146 ->  | D149: =LOADS!AH146 -> 0 | E149: 0 | F149: 0 | G149: 0 | H149: 0 | I149: 0 | J149: 0 | K149: 0 | L149: 0 | M149: 0 | N149: 0 | O149: 0 | P149: 0 | Q149: 0 | R149: 0 | S149: 0 | T149: 0 | U149: 0 | V149: 0 | W149: 0 | X149: 0 | Y149: 0 | Z149: 0 | AA149: 0 | AB149: 0 | AC149: 0 | AD149: 0 | AE149: 0 | AF149: 0
A150: =LOADS!A147 ->  | B150: =LOADS!B147 -> 0 | C150: =LOADS!X147 ->  | D150: =LOADS!AH147 -> 0 | E150: 0 | F150: 0 | G150: 0 | H150: 0 | I150: 0 | J150: 0 | K150: 0 | L150: 0 | M150: 0 | N150: 0 | O150: 0 | P150: 0 | Q150: 0 | R150: 0 | S150: 0 | T150: 0 | U150: 0 | V150: 0 | W150: 0 | X150: 0 | Y150: 0 | Z150: 0 | AA150: 0 | AB150: 0 | AC150: 0 | AD150: 0 | AE150: 0 | AF150: 0
A151: =LOADS!A148 ->  | B151: =LOADS!B148 -> 0 | C151: =LOADS!X148 ->  | D151: =LOADS!AH148 -> 0 | E151: 0 | F151: 0 | G151: 0 | H151: 0 | I151: 0 | J151: 0 | K151: 0 | L151: 0 | M151: 0 | N151: 0 | O151: 0 | P151: 0 | Q151: 0 | R151: 0 | S151: 0 | T151: 0 | U151: 0 | V151: 0 | W151: 0 | X151: 0 | Y151: 0 | Z151: 0 | AA151: 0 | AB151: 0 | AC151: 0 | AD151: 0 | AE151: 0 | AF151: 0
A152: =LOADS!A149 ->  | B152: =LOADS!B149 -> 0 | C152: =LOADS!X149 ->  | D152: =LOADS!AH149 -> 0 | E152: 0 | F152: 0 | G152: 0 | H152: 0 | I152: 0 | J152: 0 | K152: 0 | L152: 0 | M152: 0 | N152: 0 | O152: 0 | P152: 0 | Q152: 0 | R152: 0 | S152: 0 | T152: 0 | U152: 0 | V152: 0 | W152: 0 | X152: 0 | Y152: 0 | Z152: 0 | AA152: 0 | AB152: 0 | AC152: 0 | AD152: 0 | AE152: 0 | AF152: 0
A153: =LOADS!A150 ->  | B153: =LOADS!B150 -> 0 | C153: =LOADS!X150 ->  | D153: =LOADS!AH150 -> 0 | E153: 0 | F153: 0 | G153: 0 | H153: 0 | I153: 0 | J153: 0 | K153: 0 | L153: 0 | M153: 0 | N153: 0 | O153: 0 | P153: 0 | Q153: 0 | R153: 0 | S153: 0 | T153: 0 | U153: 0 | V153: 0 | W153: 0 | X153: 0 | Y153: 0 | Z153: 0 | AA153: 0 | AB153: 0 | AC153: 0 | AD153: 0 | AE153: 0 | AF153: 0
A154: =LOADS!A151 ->  | B154: =LOADS!B151 -> 0 | C154: =LOADS!X151 ->  | D154: =LOADS!AH151 -> 0 | E154: 0 | F154: 0 | G154: 0 | H154: 0 | I154: =IF(I$2=$D154,$C154,0) -> 0 | J154: 0 | K154: 0 | L154: 0 | M154: 0 | N154: 0 | O154: 0 | P154: 0 | Q154: 0 | R154: 0 | S154: =IF(S$2=$D154,$C154,0) -> 0 | T154: 0 | U154: 0 | V154: 0 | W154: 0 | X154: 0 | Y154: 0 | Z154: 0 | AA154: 0 | AB154: 0 | AC154: 0 | AD154: 0 | AE154: 0 | AF154: 0
A155: =LOADS!A152 ->  | B155: =LOADS!B152 -> 0 | C155: =LOADS!X152 ->  | D155: =LOADS!AH152 -> 0 | E155: 0 | F155: 0 | G155: 0 | H155: 0 | I155: 0 | J155: 0 | K155: 0 | L155: 0 | M155: 0 | N155: 0 | O155: 0 | P155: 0 | Q155: 0 | R155: 0 | S155: 0 | T155: 0 | U155: 0 | V155: 0 | W155: 0 | X155: 0 | Y155: 0 | Z155: 0 | AA155: 0 | AB155: 0 | AC155: 0 | AD155: 0 | AE155: 0 | AF155: 0
A156: =LOADS!A153 ->  | B156: =LOADS!B153 -> 0 | C156: =LOADS!X153 ->  | D156: =LOADS!AH153 -> 0 | E156: 0 | F156: 0 | G156: 0 | H156: 0 | I156: 0 | J156: 0 | K156: 0 | L156: 0 | M156: 0 | N156: 0 | O156: 0 | P156: 0 | Q156: 0 | R156: 0 | S156: 0 | T156: 0 | U156: 0 | V156: 0 | W156: 0 | X156: 0 | Y156: 0 | Z156: 0 | AA156: 0 | AB156: 0 | AC156: 0 | AD156: 0 | AE156: 0 | AF156: 0
A157: =LOADS!A154 ->  | B157: =LOADS!B154 -> 0 | C157: =LOADS!X154 ->  | D157: =LOADS!AH154 -> 0 | E157: 0 | F157: 0 | G157: 0 | H157: 0 | I157: 0 | J157: 0 | K157: 0 | L157: 0 | M157: 0 | N157: 0 | O157: 0 | P157: 0 | Q157: 0 | R157: 0 | S157: 0 | T157: 0 | U157: 0 | V157: 0 | W157: 0 | X157: 0 | Y157: 0 | Z157: 0 | AA157: 0 | AB157: 0 | AC157: 0 | AD157: 0 | AE157: 0 | AF157: 0
A158: =LOADS!A155 ->  | B158: =LOADS!B155 -> 0 | C158: =LOADS!X155 ->  | D158: =LOADS!AH155 -> 0 | E158: 0 | F158: 0 | G158: 0 | H158: 0 | I158: 0 | J158: 0 | K158: 0 | L158: 0 | M158: 0 | N158: 0 | O158: 0 | P158: 0 | Q158: 0 | R158: 0 | S158: 0 | T158: 0 | U158: 0 | V158: 0 | W158: 0 | X158: 0 | Y158: 0 | Z158: 0 | AA158: 0 | AB158: 0 | AC158: 0 | AD158: 0 | AE158: 0 | AF158: 0
A159: =LOADS!A156 ->  | B159: =LOADS!B156 -> 0 | C159: =LOADS!X156 ->  | D159: =LOADS!AH156 -> 0 | E159: 0 | F159: 0 | G159: 0 | H159: 0 | I159: 0 | J159: 0 | K159: 0 | L159: 0 | M159: 0 | N159: 0 | O159: 0 | P159: 0 | Q159: 0 | R159: 0 | S159: 0 | T159: 0 | U159: 0 | V159: 0 | W159: 0 | X159: 0 | Y159: 0 | Z159: 0 | AA159: =IF(AA$2=$D159,$C159,0) -> 0 | AB159: 0 | AC159: 0 | AD159: 0 | AE159: 0 | AF159: 0
A160: =LOADS!A157 ->  | B160: =LOADS!B157 -> 0 | C160: =LOADS!X157 ->  | D160: =LOADS!AH157 -> 0 | E160: 0 | F160: 0 | G160: 0 | H160: 0 | I160: 0 | J160: 0 | K160: 0 | L160: 0 | M160: 0 | N160: 0 | O160: 0 | P160: 0 | Q160: 0 | R160: 0 | S160: 0 | T160: 0 | U160: 0 | V160: 0 | W160: 0 | X160: 0 | Y160: 0 | Z160: 0 | AA160: 0 | AB160: 0 | AC160: 0 | AD160: 0 | AE160: 0 | AF160: 0
A161: =LOADS!A158 ->  | B161: =LOADS!B158 -> 0 | C161: =LOADS!X158 ->  | D161: =LOADS!AH158 -> 0 | E161: 0 | F161: 0 | G161: 0 | H161: 0 | I161: =IF(I$2=$D161,$C161,0) -> 0 | J161: 0 | K161: 0 | L161: 0 | M161: 0 | N161: 0 | O161: 0 | P161: 0 | Q161: =IF(Q$2=$D161,$C161,0) -> 0 | R161: 0 | S161: 0 | T161: 0 | U161: 0 | V161: 0 | W161: 0 | X161: 0 | Y161: 0 | Z161: 0 | AA161: 0 | AB161: 0 | AC161: 0 | AD161: 0 | AE161: 0 | AF161: 0
A162: =LOADS!A159 ->  | B162: =LOADS!B159 -> 0 | C162: =LOADS!X159 ->  | D162: =LOADS!AH159 -> 0 | E162: 0 | F162: 0 | G162: 0 | H162: 0 | I162: 0 | J162: 0 | K162: 0 | L162: 0 | M162: 0 | N162: 0 | O162: 0 | P162: 0 | Q162: 0 | R162: 0 | S162: 0 | T162: 0 | U162: 0 | V162: 0 | W162: 0 | X162: 0 | Y162: 0 | Z162: 0 | AA162: 0 | AB162: 0 | AC162: 0 | AD162: 0 | AE162: 0 | AF162: 0
A163: =LOADS!A160 ->  | B163: =LOADS!B160 -> 0 | C163: =LOADS!X160 ->  | D163: =LOADS!AH160 -> 0 | E163: 0 | F163: 0 | G163: 0 | H163: 0 | I163: 0 | J163: 0 | K163: 0 | L163: 0 | M163: 0 | N163: 0 | O163: 0 | P163: 0 | Q163: 0 | R163: 0 | S163: 0 | T163: 0 | U163: 0 | V163: 0 | W163: 0 | X163: 0 | Y163: 0 | Z163: 0 | AA163: 0 | AB163: 0 | AC163: 0 | AD163: 0 | AE163: 0 | AF163: 0
A164: =LOADS!A161 ->  | B164: =LOADS!B161 -> 0 | C164: =LOADS!X161 ->  | D164: =LOADS!AH161 -> 0 | E164: 0 | F164: 0 | G164: 0 | H164: 0 | I164: 0 | J164: 0 | K164: 0 | L164: 0 | M164: 0 | N164: 0 | O164: 0 | P164: 0 | Q164: 0 | R164: 0 | S164: 0 | T164: 0 | U164: 0 | V164: 0 | W164: 0 | X164: 0 | Y164: 0 | Z164: 0 | AA164: 0 | AB164: 0 | AC164: 0 | AD164: 0 | AE164: 0 | AF164: 0
A165: =LOADS!A162 ->  | B165: =LOADS!B162 -> 0 | C165: =LOADS!X162 ->  | D165: =LOADS!AH162 -> 0 | E165: 0 | F165: 0 | G165: 0 | H165: 0 | I165: 0 | J165: 0 | K165: 0 | L165: 0 | M165: 0 | N165: 0 | O165: 0 | P165: 0 | Q165: 0 | R165: 0 | S165: 0 | T165: 0 | U165: 0 | V165: 0 | W165: 0 | X165: 0 | Y165: 0 | Z165: 0 | AA165: 0 | AB165: 0 | AC165: 0 | AD165: 0 | AE165: 0 | AF165: 0
A166: =LOADS!A163 ->  | B166: =LOADS!B163 -> 0 | C166: =LOADS!X163 ->  | D166: =LOADS!AH163 -> 0 | E166: 0 | F166: 0 | G166: 0 | H166: 0 | I166: 0 | J166: 0 | K166: 0 | L166: 0 | M166: 0 | N166: 0 | O166: 0 | P166: 0 | Q166: 0 | R166: 0 | S166: 0 | T166: 0 | U166: 0 | V166: 0 | W166: 0 | X166: 0 | Y166: 0 | Z166: 0 | AA166: 0 | AB166: 0 | AC166: 0 | AD166: 0 | AE166: 0 | AF166: 0
A167: =LOADS!A164 ->  | B167: =LOADS!B164 -> 0 | C167: =LOADS!X164 ->  | D167: =LOADS!AH164 -> 0 | E167: 0 | F167: 0 | G167: 0 | H167: 0 | I167: 0 | J167: 0 | K167: 0 | L167: 0 | M167: 0 | N167: 0 | O167: 0 | P167: 0 | Q167: 0 | R167: 0 | S167: 0 | T167: 0 | U167: 0 | V167: 0 | W167: 0 | X167: 0 | Y167: 0 | Z167: 0 | AA167: 0 | AB167: 0 | AC167: 0 | AD167: 0 | AE167: 0 | AF167: 0
A168: =LOADS!A165 ->  | B168: =LOADS!B165 -> 0 | C168: =LOADS!X165 ->  | D168: =LOADS!AH165 -> 0 | E168: 0 | F168: 0 | G168: 0 | H168: 0 | I168: 0 | J168: 0 | K168: 0 | L168: 0 | M168: 0 | N168: 0 | O168: 0 | P168: 0 | Q168: 0 | R168: 0 | S168: 0 | T168: 0 | U168: 0 | V168: 0 | W168: 0 | X168: 0 | Y168: 0 | Z168: 0 | AA168: 0 | AB168: 0 | AC168: 0 | AD168: 0 | AE168: 0 | AF168: 0
A169: =LOADS!A166 ->  | B169: =LOADS!B166 -> 0 | C169: =LOADS!X166 ->  | D169: =LOADS!AH166 -> 0 | E169: 0 | F169: 0 | G169: 0 | H169: 0 | I169: 0 | J169: 0 | K169: 0 | L169: 0 | M169: 0 | N169: 0 | O169: 0 | P169: 0 | Q169: 0 | R169: 0 | S169: 0 | T169: 0 | U169: 0 | V169: 0 | W169: 0 | X169: 0 | Y169: 0 | Z169: 0 | AA169: 0 | AB169: 0 | AC169: 0 | AD169: 0 | AE169: 0 | AF169: 0
A170: =LOADS!A167 ->  | B170: =LOADS!B167 -> 0 | C170: =LOADS!X167 ->  | D170: =LOADS!AH167 -> 0 | E170: 0 | F170: 0 | G170: 0 | H170: 0 | I170: 0 | J170: 0 | K170: 0 | L170: 0 | M170: 0 | N170: 0 | O170: 0 | P170: 0 | Q170: 0 | R170: 0 | S170: 0 | T170: 0 | U170: 0 | V170: 0 | W170: 0 | X170: 0 | Y170: 0 | Z170: 0 | AA170: 0 | AB170: 0 | AC170: 0 | AD170: 0 | AE170: 0 | AF170: 0
A171: =LOADS!A168 ->  | B171: =LOADS!B168 -> 0 | C171: =LOADS!X168 ->  | D171: =LOADS!AH168 -> 0 | E171: 0 | F171: 0 | G171: 0 | H171: 0 | I171: 0 | J171: 0 | K171: 0 | L171: 0 | M171: 0 | N171: 0 | O171: 0 | P171: 0 | Q171: =IF(Q$2=$D171,$C171,0) -> 0 | R171: 0 | S171: 0 | T171: 0 | U171: 0 | V171: 0 | W171: 0 | X171: 0 | Y171: 0 | Z171: 0 | AA171: 0 | AB171: 0 | AC171: 0 | AD171: 0 | AE171: 0 | AF171: 0
A172: =LOADS!A169 ->  | B172: =LOADS!B169 -> 0 | C172: =LOADS!X169 ->  | D172: =LOADS!AH169 -> 0 | E172: 0 | F172: 0 | G172: 0 | H172: 0 | I172: 0 | J172: 0 | K172: 0 | L172: 0 | M172: 0 | N172: 0 | O172: 0 | P172: 0 | Q172: 0 | R172: 0 | S172: 0 | T172: 0 | U172: 0 | V172: 0 | W172: 0 | X172: 0 | Y172: 0 | Z172: 0 | AA172: 0 | AB172: 0 | AC172: 0 | AD172: 0 | AE172: 0 | AF172: 0
A173: =LOADS!A170 ->  | B173: =LOADS!B170 -> 0 | C173: =LOADS!X170 ->  | D173: =LOADS!AH170 -> 0 | E173: 0 | F173: 0 | G173: 0 | H173: 0 | I173: 0 | J173: 0 | K173: 0 | L173: 0 | M173: 0 | N173: 0 | O173: 0 | P173: 0 | Q173: 0 | R173: 0 | S173: 0 | T173: 0 | U173: 0 | V173: 0 | W173: 0 | X173: 0 | Y173: 0 | Z173: 0 | AA173: 0 | AB173: 0 | AC173: 0 | AD173: 0 | AE173: 0 | AF173: 0
A174: =LOADS!A171 ->  | B174: =LOADS!B171 -> 0 | C174: =LOADS!X171 ->  | D174: =LOADS!AH171 -> 0 | E174: 0 | F174: 0 | G174: 0 | H174: 0 | I174: 0 | J174: 0 | K174: 0 | L174: 0 | M174: 0 | N174: 0 | O174: 0 | P174: 0 | Q174: 0 | R174: 0 | S174: 0 | T174: 0 | U174: 0 | V174: 0 | W174: 0 | X174: 0 | Y174: 0 | Z174: 0 | AA174: 0 | AB174: 0 | AC174: 0 | AD174: 0 | AE174: 0 | AF174: 0
A175: =LOADS!A172 ->  | B175: =LOADS!B172 -> 0 | C175: =LOADS!X172 ->  | D175: =LOADS!AH172 -> 0 | E175: 0 | F175: 0 | G175: 0 | H175: 0 | I175: 0 | J175: 0 | K175: 0 | L175: 0 | M175: 0 | N175: 0 | O175: 0 | P175: 0 | Q175: 0 | R175: 0 | S175: 0 | T175: 0 | U175: 0 | V175: 0 | W175: 0 | X175: 0 | Y175: 0 | Z175: 0 | AA175: =IF(AA$2=$D175,$C175,0) -> 0 | AB175: 0 | AC175: 0 | AD175: 0 | AE175: 0 | AF175: 0
A176: =LOADS!A173 ->  | B176: =LOADS!B173 -> 0 | C176: =LOADS!X173 ->  | D176: =LOADS!AH173 -> 0 | E176: 0 | F176: 0 | G176: 0 | H176: 0 | I176: 0 | J176: 0 | K176: 0 | L176: 0 | M176: 0 | N176: 0 | O176: 0 | P176: 0 | Q176: 0 | R176: 0 | S176: 0 | T176: 0 | U176: 0 | V176: 0 | W176: 0 | X176: 0 | Y176: 0 | Z176: 0 | AA176: 0 | AB176: 0 | AC176: 0 | AD176: 0 | AE176: 0 | AF176: 0
A177: =LOADS!A174 ->  | B177: =LOADS!B174 -> 0 | C177: =LOADS!X174 ->  | D177: =LOADS!AH174 -> 0 | E177: 0 | F177: 0 | G177: 0 | H177: 0 | I177: 0 | J177: 0 | K177: 0 | L177: 0 | M177: 0 | N177: 0 | O177: 0 | P177: 0 | Q177: 0 | R177: 0 | S177: 0 | T177: 0 | U177: 0 | V177: 0 | W177: 0 | X177: 0 | Y177: 0 | Z177: 0 | AA177: 0 | AB177: 0 | AC177: 0 | AD177: 0 | AE177: 0 | AF177: 0
A178: =LOADS!A175 ->  | B178: =LOADS!B175 -> 0 | C178: =LOADS!X175 ->  | D178: =LOADS!AH175 -> 0 | E178: 0 | F178: 0 | G178: 0 | H178: 0 | I178: 0 | J178: 0 | K178: 0 | L178: 0 | M178: 0 | N178: 0 | O178: 0 | P178: 0 | Q178: 0 | R178: 0 | S178: 0 | T178: 0 | U178: 0 | V178: 0 | W178: 0 | X178: 0 | Y178: 0 | Z178: 0 | AA178: 0 | AB178: 0 | AC178: 0 | AD178: 0 | AE178: 0 | AF178: 0
A179: =LOADS!A176 ->  | B179: =LOADS!B176 -> 0 | C179: =LOADS!X176 ->  | D179: =LOADS!AH176 -> 0 | E179: 0 | F179: 0 | G179: 0 | H179: 0 | I179: 0 | J179: 0 | K179: 0 | L179: 0 | M179: 0 | N179: 0 | O179: 0 | P179: 0 | Q179: 0 | R179: 0 | S179: 0 | T179: 0 | U179: 0 | V179: 0 | W179: 0 | X179: 0 | Y179: 0 | Z179: 0 | AA179: 0 | AB179: 0 | AC179: 0 | AD179: 0 | AE179: 0 | AF179: 0
A180: =LOADS!A177 ->  | B180: =LOADS!B177 -> 0 | C180: =LOADS!X177 ->  | D180: =LOADS!AH177 -> 0 | E180: 0 | F180: 0 | G180: 0 | H180: 0 | I180: 0 | J180: 0 | K180: 0 | L180: 0 | M180: 0 | N180: 0 | O180: 0 | P180: 0 | Q180: 0 | R180: 0 | S180: 0 | T180: 0 | U180: 0 | V180: 0 | W180: 0 | X180: 0 | Y180: 0 | Z180: 0 | AA180: 0 | AB180: 0 | AC180: 0 | AD180: 0 | AE180: 0 | AF180: 0
A181: =LOADS!A178 ->  | B181: =LOADS!B178 -> 0 | C181: =LOADS!X178 ->  | D181: =LOADS!AH178 -> 0 | E181: 0 | F181: 0 | G181: 0 | H181: 0 | I181: 0 | J181: 0 | K181: 0 | L181: 0 | M181: 0 | N181: 0 | O181: 0 | P181: 0 | Q181: =IF(Q$2=$D181,$C181,0) -> 0 | R181: 0 | S181: 0 | T181: 0 | U181: 0 | V181: 0 | W181: 0 | X181: 0 | Y181: 0 | Z181: 0 | AA181: 0 | AB181: 0 | AC181: 0 | AD181: 0 | AE181: 0 | AF181: 0
A182: =LOADS!A179 ->  | B182: =LOADS!B179 -> 0 | C182: =LOADS!X179 ->  | D182: =LOADS!AH179 -> 0 | E182: 0 | F182: 0 | G182: 0 | H182: 0 | I182: 0 | J182: 0 | K182: 0 | L182: 0 | M182: 0 | N182: 0 | O182: 0 | P182: 0 | Q182: 0 | R182: 0 | S182: 0 | T182: 0 | U182: 0 | V182: 0 | W182: 0 | X182: 0 | Y182: 0 | Z182: 0 | AA182: 0 | AB182: 0 | AC182: 0 | AD182: 0 | AE182: 0 | AF182: 0
A183: =LOADS!A180 ->  | B183: =LOADS!B180 -> 0 | C183: =LOADS!X180 ->  | D183: =LOADS!AH180 -> 0 | E183: 0 | F183: 0 | G183: 0 | H183: 0 | I183: 0 | J183: 0 | K183: 0 | L183: 0 | M183: 0 | N183: 0 | O183: 0 | P183: 0 | Q183: 0 | R183: 0 | S183: 0 | T183: 0 | U183: 0 | V183: 0 | W183: 0 | X183: 0 | Y183: 0 | Z183: 0 | AA183: 0 | AB183: 0 | AC183: 0 | AD183: 0 | AE183: 0 | AF183: 0
A184: =LOADS!A181 ->  | B184: =LOADS!B181 -> 0 | C184: =LOADS!X181 ->  | D184: =LOADS!AH181 -> 0 | E184: 0 | F184: 0 | G184: 0 | H184: 0 | I184: 0 | J184: 0 | K184: 0 | L184: 0 | M184: 0 | N184: 0 | O184: 0 | P184: 0 | Q184: 0 | R184: 0 | S184: 0 | T184: 0 | U184: 0 | V184: 0 | W184: 0 | X184: 0 | Y184: 0 | Z184: 0 | AA184: 0 | AB184: 0 | AC184: 0 | AD184: 0 | AE184: 0 | AF184: 0
A185: =LOADS!A182 ->  | B185: =LOADS!B182 -> 0 | C185: =LOADS!X182 ->  | D185: =LOADS!AH182 -> 0 | E185: 0 | F185: 0 | G185: 0 | H185: 0 | I185: 0 | J185: 0 | K185: 0 | L185: 0 | M185: 0 | N185: 0 | O185: 0 | P185: 0 | Q185: 0 | R185: 0 | S185: 0 | T185: 0 | U185: 0 | V185: 0 | W185: 0 | X185: 0 | Y185: 0 | Z185: 0 | AA185: 0 | AB185: 0 | AC185: 0 | AD185: 0 | AE185: 0 | AF185: 0
A186: =LOADS!A183 ->  | B186: =LOADS!B183 -> 0 | C186: =LOADS!X183 ->  | D186: =LOADS!AH183 -> 0 | E186: 0 | F186: 0 | G186: 0 | H186: 0 | I186: 0 | J186: 0 | K186: 0 | L186: 0 | M186: =IF(M$2=$D186,$C186,0) -> 0 | N186: 0 | O186: 0 | P186: 0 | Q186: 0 | R186: 0 | S186: 0 | T186: 0 | U186: 0 | V186: 0 | W186: 0 | X186: 0 | Y186: 0 | Z186: 0 | AA186: 0 | AB186: 0 | AC186: 0 | AD186: 0 | AE186: 0 | AF186: 0
A187: =LOADS!A184 ->  | B187: =LOADS!B184 -> 0 | C187: =LOADS!X184 ->  | D187: =LOADS!AH184 -> 0 | E187: 0 | F187: 0 | G187: 0 | H187: 0 | I187: =IF(I$2=$D187,$C187,0) -> 0 | J187: 0 | K187: 0 | L187: 0 | M187: 0 | N187: 0 | O187: 0 | P187: 0 | Q187: 0 | R187: 0 | S187: 0 | T187: 0 | U187: 0 | V187: 0 | W187: 0 | X187: 0 | Y187: 0 | Z187: 0 | AA187: 0 | AB187: 0 | AC187: 0 | AD187: 0 | AE187: 0 | AF187: 0
A188: =LOADS!A185 ->  | B188: =LOADS!B185 -> 0 | C188: =LOADS!X185 ->  | D188: =LOADS!AH185 -> 0 | E188: =IF(E$2=$D188,$C188,0) -> 0 | F188: 0 | G188: 0 | H188: 0 | I188: 0 | J188: 0 | K188: 0 | L188: 0 | M188: 0 | N188: 0 | O188: 0 | P188: 0 | Q188: 0 | R188: 0 | S188: 0 | T188: 0 | U188: 0 | V188: 0 | W188: 0 | X188: 0 | Y188: 0 | Z188: 0 | AA188: 0 | AB188: 0 | AC188: 0 | AD188: 0 | AE188: 0 | AF188: 0
A189: =LOADS!A186 ->  | B189: =LOADS!B186 -> 0 | C189: =LOADS!X186 ->  | D189: =LOADS!AH186 -> 0 | E189: 0 | F189: 0 | G189: 0 | H189: 0 | I189: 0 | J189: 0 | K189: 0 | L189: 0 | M189: 0 | N189: 0 | O189: 0 | P189: 0 | Q189: 0 | R189: 0 | S189: 0 | T189: 0 | U189: 0 | V189: 0 | W189: 0 | X189: 0 | Y189: 0 | Z189: 0 | AA189: 0 | AB189: 0 | AC189: 0 | AD189: 0 | AE189: 0 | AF189: 0
A190: =LOADS!A187 ->  | B190: =LOADS!B187 -> 0 | C190: =LOADS!X187 ->  | D190: =LOADS!AH187 -> 0 | E190: 0 | F190: 0 | G190: 0 | H190: 0 | I190: 0 | J190: 0 | K190: 0 | L190: 0 | M190: 0 | N190: 0 | O190: 0 | P190: 0 | Q190: 0 | R190: 0 | S190: 0 | T190: 0 | U190: 0 | V190: 0 | W190: 0 | X190: 0 | Y190: 0 | Z190: 0 | AA190: 0 | AB190: 0 | AC190: 0 | AD190: 0 | AE190: 0 | AF190: 0
A191: =LOADS!A188 ->  | B191: =LOADS!B188 -> 0 | C191: =LOADS!X188 ->  | D191: =LOADS!AH188 -> 0 | E191: 0 | F191: 0 | G191: 0 | H191: 0 | I191: 0 | J191: 0 | K191: 0 | L191: 0 | M191: 0 | N191: 0 | O191: 0 | P191: 0 | Q191: 0 | R191: 0 | S191: 0 | T191: =IF(T$2=$D191,$C191,0) -> 0 | U191: 0 | V191: 0 | W191: 0 | X191: 0 | Y191: 0 | Z191: 0 | AA191: =IF(AA$2=$D191,$C191,0) -> 0 | AB191: 0 | AC191: 0 | AD191: 0 | AE191: 0 | AF191: 0
A192: =LOADS!A189 ->  | B192: =LOADS!B189 -> 0 | C192: =LOADS!X189 ->  | D192: =LOADS!AH189 -> 0 | E192: 0 | F192: 0 | G192: 0 | H192: 0 | I192: 0 | J192: 0 | K192: 0 | L192: 0 | M192: 0 | N192: 0 | O192: 0 | P192: 0 | Q192: 0 | R192: 0 | S192: 0 | T192: 0 | U192: 0 | V192: 0 | W192: 0 | X192: 0 | Y192: 0 | Z192: 0 | AA192: 0 | AB192: 0 | AC192: 0 | AD192: 0 | AE192: 0 | AF192: 0
A193: =LOADS!A190 ->  | B193: =LOADS!B190 -> 0 | C193: =LOADS!X190 ->  | D193: =LOADS!AH190 -> 0 | E193: 0 | F193: 0 | G193: 0 | H193: 0 | I193: 0 | J193: 0 | K193: 0 | L193: 0 | M193: 0 | N193: 0 | O193: 0 | P193: 0 | Q193: 0 | R193: 0 | S193: 0 | T193: 0 | U193: 0 | V193: 0 | W193: 0 | X193: 0 | Y193: 0 | Z193: 0 | AA193: 0 | AB193: 0 | AC193: 0 | AD193: 0 | AE193: 0 | AF193: 0
A194: =LOADS!A191 ->  | B194: =LOADS!B191 -> 0 | C194: =LOADS!X191 ->  | D194: =LOADS!AH191 -> 0 | E194: 0 | F194: 0 | G194: 0 | H194: 0 | I194: 0 | J194: 0 | K194: 0 | L194: 0 | M194: 0 | N194: 0 | O194: 0 | P194: 0 | Q194: 0 | R194: 0 | S194: 0 | T194: 0 | U194: 0 | V194: 0 | W194: 0 | X194: 0 | Y194: 0 | Z194: 0 | AA194: 0 | AB194: 0 | AC194: 0 | AD194: 0 | AE194: 0 | AF194: 0
A195: =LOADS!A192 ->  | B195: =LOADS!B192 -> 0 | C195: =LOADS!X192 ->  | D195: =LOADS!AH192 -> 0 | E195: 0 | F195: 0 | G195: 0 | H195: 0 | I195: 0 | J195: 0 | K195: 0 | L195: 0 | M195: 0 | N195: 0 | O195: 0 | P195: 0 | Q195: 0 | R195: 0 | S195: 0 | T195: 0 | U195: 0 | V195: 0 | W195: 0 | X195: 0 | Y195: 0 | Z195: 0 | AA195: 0 | AB195: 0 | AC195: 0 | AD195: 0 | AE195: 0 | AF195: 0
A196: =LOADS!A193 ->  | B196: =LOADS!B193 -> 0 | C196: =LOADS!X193 ->  | D196: =LOADS!AH193 -> 0 | E196: 0 | F196: 0 | G196: 0 | H196: 0 | I196: 0 | J196: 0 | K196: 0 | L196: 0 | M196: 0 | N196: 0 | O196: 0 | P196: 0 | Q196: 0 | R196: 0 | S196: 0 | T196: 0 | U196: 0 | V196: 0 | W196: 0 | X196: 0 | Y196: 0 | Z196: 0 | AA196: 0 | AB196: 0 | AC196: 0 | AD196: 0 | AE196: 0 | AF196: 0
A197: =LOADS!A194 ->  | B197: =LOADS!B194 -> 0 | C197: =LOADS!X194 ->  | D197: =LOADS!AH194 -> 0 | E197: 0 | F197: 0 | G197: 0 | H197: 0 | I197: =IF(I$2=$D197,$C197,0) -> 0 | J197: 0 | K197: 0 | L197: 0 | M197: 0 | N197: 0 | O197: 0 | P197: 0 | Q197: 0 | R197: 0 | S197: 0 | T197: 0 | U197: 0 | V197: 0 | W197: 0 | X197: 0 | Y197: 0 | Z197: 0 | AA197: 0 | AB197: 0 | AC197: 0 | AD197: 0 | AE197: 0 | AF197: 0
A198: =LOADS!A195 ->  | B198: =LOADS!B195 -> 0 | C198: =LOADS!X195 ->  | D198: =LOADS!AH195 -> 0 | E198: 0 | F198: 0 | G198: 0 | H198: 0 | I198: 0 | J198: 0 | K198: 0 | L198: 0 | M198: 0 | N198: 0 | O198: 0 | P198: 0 | Q198: 0 | R198: 0 | S198: 0 | T198: 0 | U198: 0 | V198: 0 | W198: 0 | X198: 0 | Y198: 0 | Z198: 0 | AA198: 0 | AB198: 0 | AC198: 0 | AD198: 0 | AE198: 0 | AF198: 0
A199: =LOADS!A196 ->  | B199: =LOADS!B196 -> 0 | C199: =LOADS!X196 ->  | D199: =LOADS!AH196 -> 0 | E199: 0 | F199: 0 | G199: 0 | H199: 0 | I199: 0 | J199: 0 | K199: 0 | L199: 0 | M199: 0 | N199: 0 | O199: 0 | P199: 0 | Q199: 0 | R199: 0 | S199: 0 | T199: 0 | U199: 0 | V199: 0 | W199: 0 | X199: 0 | Y199: 0 | Z199: 0 | AA199: 0 | AB199: 0 | AC199: 0 | AD199: 0 | AE199: 0 | AF199: 0
A200: =LOADS!A197 ->  | B200: =LOADS!B197 -> 0 | C200: =LOADS!X197 ->  | D200: =LOADS!AH197 -> 0 | E200: 0 | F200: 0 | G200: 0 | H200: 0 | I200: 0 | J200: 0 | K200: 0 | L200: 0 | M200: 0 | N200: 0 | O200: 0 | P200: 0 | Q200: 0 | R200: 0 | S200: 0 | T200: 0 | U200: 0 | V200: 0 | W200: 0 | X200: 0 | Y200: 0 | Z200: 0 | AA200: 0 | AB200: 0 | AC200: 0 | AD200: 0 | AE200: 0 | AF200: 0
... 713 more rows

Sheet BUSPLUG
A1: =IF(ISBLANK(LOADS!A1),"",LOADS!A1) -> PANEL | B1: =IF(ISBLANK(LOADS!B1),"",LOADS!B1) -> PANEL | C1: 30 | D1: 60 | E1: 100 | F1: 200 | G1: 400 | H1: 600 | I1: 800 | J1: TOTAL | K1: COMMENT
A2: =IF(ISBLANK(LOADS!A2),"",LOADS!A2) -> # | B2: =IF(ISBLANK(LOADS!B2),"",LOADS!B2) -> DESCRIPTION | C2: =SUM(C3:C904) -> 
A3: =IF(ISBLANK(LOADS!A3),"",LOADS!A3) -> 100 | B3: =IF(ISBLANK(LOADS!B3),"",LOADS!B3) ->  | C3: =IF(LOADS!$AC3="BUS",IF(LOADS!$AE3=C$1,1,0),0) -> 0 | D3: =IF(LOADS!$AC3="BUS",IF(LOADS!$AE3=D$1,1,0),0) -> 0 | E3: =IF(LOADS!$AC3="BUS",IF(LOADS!$AE3=E$1,1,0),0) -> 0 | F3: =IF(LOADS!$AC3="BUS",IF(LOADS!$AE3=F$1,1,0),0) -> 0 | G3: =IF(LOADS!$AC3="BUS",IF(LOADS!$AE3=G$1,1,0),0) -> 0 | H3: =IF(LOADS!$AC3="BUS",IF(LOADS!$AE3=H$1,1,0),0) -> 0 | I3: =IF(LOADS!$AC3="BUS",IF(LOADS!$AE3=I$1,1,0),0) -> 0 | J3: =SUM(C3:I3) -> 0 | K3: =LOADS!AM3 -> 0
A4: =IF(ISBLANK(LOADS!A4),"",LOADS!A4) -> 101 | B4: =IF(ISBLANK(LOADS!B4),"",LOADS!B4) -> Panel 1000 | C4: =IF(LOADS!$AC4="BUS",IF(LOADS!$AE4=C$1,1,0),0) -> 0 | D4: =IF(LOADS!$AC4="BUS",IF(LOADS!$AE4=D$1,1,0),0) -> 0 | E4: =IF(LOADS!$AC4="BUS",IF(LOADS!$AE4=E$1,1,0),0) -> 1 | F4: =IF(LOADS!$AC4="BUS",IF(LOADS!$AE4=F$1,1,0),0) -> 0 | G4: =IF(LOADS!$AC4="BUS",IF(LOADS!$AE4=G$1,1,0),0) -> 0 | H4: =IF(LOADS!$AC4="BUS",IF(LOADS!$AE4=H$1,1,0),0) -> 0 | I4: =IF(LOADS!$AC4="BUS",IF(LOADS!$AE4=I$1,1,0),0) -> 0 | J4: =SUM(C4:I4) -> 1 | K4: =LOADS!AM4 -> 0
A5: =IF(ISBLANK(LOADS!#REF!),"",LOADS!#REF!) ->  | B5: =IF(ISBLANK(LOADS!#REF!),"",LOADS!#REF!) ->  | C5: =IF(LOADS!#REF!="BUS",IF(LOADS!#REF!=C$1,1,0),0) ->  | D5: =IF(LOADS!#REF!="BUS",IF(LOADS!#REF!=D$1,1,0),0) ->  | E5: =IF(LOADS!#REF!="BUS",IF(LOADS!#REF!=E$1,1,0),0) ->  | F5: =IF(LOADS!#REF!="BUS",IF(LOADS!#REF!=F$1,1,0),0) ->  | G5: =IF(LOADS!#REF!="BUS",IF(LOADS!#REF!=G$1,1,0),0) ->  | H5: =IF(LOADS!#REF!="BUS",IF(LOADS!#REF!=H$1,1,0),0) ->  | I5: =IF(LOADS!#REF!="BUS",IF(LOADS!#REF!=I$1,1,0),0) ->  | J5: =SUM(C5:I5) ->  | K5: =LOADS!#REF! -> 
A6: =IF(ISBLANK(LOADS!A5),"",LOADS!A5) -> 102 | B6: =IF(ISBLANK(LOADS!B5),"",LOADS!B5) -> Panel 2000 | C6: =IF(LOADS!$AC5="BUS",IF(LOADS!$AE5=C$1,1,0),0) -> 0 | D6: =IF(LOADS!$AC5="BUS",IF(LOADS!$AE5=D$1,1,0),0) -> 0 | E6: =IF(LOADS!$AC5="BUS",IF(LOADS!$AE5=E$1,1,0),0) -> 0 | F6: =IF(LOADS!$AC5="BUS",IF(LOADS!$AE5=F$1,1,0),0) -> 0 | G6: =IF(LOADS!$AC5="BUS",IF(LOADS!$AE5=G$1,1,0),0) -> 0 | H6: =IF(LOADS!$AC5="BUS",IF(LOADS!$AE5=H$1,1,0),0) -> 0 | I6: =IF(LOADS!$AC5="BUS",IF(LOADS!$AE5=I$1,1,0),0) -> 0 | J6: 0 | K6: =LOADS!AM5 -> 0
A7: =IF(ISBLANK(LOADS!A6),"",LOADS!A6) -> 103 | B7: =IF(ISBLANK(LOADS!B6),"",LOADS!B6) -> Air Supply #1 VFD | C7: =IF(LOADS!$AC6="BUS",IF(LOADS!$AE6=C$1,1,0),0) -> 0 | D7: =IF(LOADS!$AC6="BUS",IF(LOADS!$AE6=D$1,1,0),0) -> 0 | E7: =IF(LOADS!$AC6="BUS",IF(LOADS!$AE6=E$1,1,0),0) -> 0 | F7: =IF(LOADS!$AC6="BUS",IF(LOADS!$AE6=F$1,1,0),0) -> 0 | G7: =IF(LOADS!$AC6="BUS",IF(LOADS!$AE6=G$1,1,0),0) -> 0 | H7: =IF(LOADS!$AC6="BUS",IF(LOADS!$AE6=H$1,1,0),0) -> 0 | I7: =IF(LOADS!$AC6="BUS",IF(LOADS!$AE6=I$1,1,0),0) -> 0 | J7: 0 | K7: =LOADS!AM6 -> 0
A8: =IF(ISBLANK(LOADS!A7),"",LOADS!A7) -> 104 | B8: =IF(ISBLANK(LOADS!B7),"",LOADS!B7) -> Air Supply #1 VFD | C8: =IF(LOADS!$AC7="BUS",IF(LOADS!$AE7=C$1,1,0),0) -> 0 | D8: =IF(LOADS!$AC7="BUS",IF(LOADS!$AE7=D$1,1,0),0) -> 0 | E8: =IF(LOADS!$AC7="BUS",IF(LOADS!$AE7=E$1,1,0),0) -> 0 | F8: =IF(LOADS!$AC7="BUS",IF(LOADS!$AE7=F$1,1,0),0) -> 0 | G8: =IF(LOADS!$AC7="BUS",IF(LOADS!$AE7=G$1,1,0),0) -> 0 | H8: =IF(LOADS!$AC7="BUS",IF(LOADS!$AE7=H$1,1,0),0) -> 0 | I8: =IF(LOADS!$AC7="BUS",IF(LOADS!$AE7=I$1,1,0),0) -> 0 | J8: 0 | K8: =LOADS!AM7 -> 0
A9: =IF(ISBLANK(LOADS!A8),"",LOADS!A8) -> 105 | B9: =IF(ISBLANK(LOADS!B8),"",LOADS!B8) -> Tack-off exhaust VFD | C9: =IF(LOADS!$AC8="BUS",IF(LOADS!$AE8=C$1,1,0),0) -> 0 | D9: =IF(LOADS!$AC8="BUS",IF(LOADS!$AE8=D$1,1,0),0) -> 0 | E9: =IF(LOADS!$AC8="BUS",IF(LOADS!$AE8=E$1,1,0),0) -> 0 | F9: =IF(LOADS!$AC8="BUS",IF(LOADS!$AE8=F$1,1,0),0) -> 0 | G9: =IF(LOADS!$AC8="BUS",IF(LOADS!$AE8=G$1,1,0),0) -> 0 | H9: =IF(LOADS!$AC8="BUS",IF(LOADS!$AE8=H$1,1,0),0) -> 0 | I9: =IF(LOADS!$AC8="BUS",IF(LOADS!$AE8=I$1,1,0),0) -> 0 | J9: 0 | K9: =LOADS!AM8 -> 0
A10: =IF(ISBLANK(LOADS!A9),"",LOADS!A9) -> 106 | B10: =IF(ISBLANK(LOADS!B9),"",LOADS!B9) -> Tack-off exhaust VFD | C10: =IF(LOADS!$AC9="BUS",IF(LOADS!$AE9=C$1,1,0),0) -> 0 | D10: =IF(LOADS!$AC9="BUS",IF(LOADS!$AE9=D$1,1,0),0) -> 0 | E10: =IF(LOADS!$AC9="BUS",IF(LOADS!$AE9=E$1,1,0),0) -> 0 | F10: =IF(LOADS!$AC9="BUS",IF(LOADS!$AE9=F$1,1,0),0) -> 0 | G10: =IF(LOADS!$AC9="BUS",IF(LOADS!$AE9=G$1,1,0),0) -> 0 | H10: =IF(LOADS!$AC9="BUS",IF(LOADS!$AE9=H$1,1,0),0) -> 0 | I10: =IF(LOADS!$AC9="BUS",IF(LOADS!$AE9=I$1,1,0),0) -> 0 | J10: 0 | K10: =LOADS!AM9 -> 0
A11: =IF(ISBLANK(LOADS!A10),"",LOADS!A10) -> 107 | B11: =IF(ISBLANK(LOADS!B11),"",LOADS!B11) -> B.C. Spray booth exhaust VFD | C11: =IF(LOADS!$AC10="BUS",IF(LOADS!$AE10=C$1,1,0),0) -> 0 | D11: =IF(LOADS!$AC10="BUS",IF(LOADS!$AE10=D$1,1,0),0) -> 0 | E11: =IF(LOADS!$AC10="BUS",IF(LOADS!$AE10=E$1,1,0),0) -> 0 | F11: =IF(LOADS!$AC10="BUS",IF(LOADS!$AE10=F$1,1,0),0) -> 0 | G11: =IF(LOADS!$AC10="BUS",IF(LOADS!$AE10=G$1,1,0),0) -> 0 | H11: =IF(LOADS!$AC10="BUS",IF(LOADS!$AE10=H$1,1,0),0) -> 0 | I11: =IF(LOADS!$AC10="BUS",IF(LOADS!$AE10=I$1,1,0),0) -> 0 | J11: 0 | K11: =LOADS!AM10 -> 0
A12: =IF(ISBLANK(LOADS!A11),"",LOADS!A11) -> 108 | B12: =IF(ISBLANK(LOADS!#REF!),"",LOADS!#REF!) ->  | C12: =IF(LOADS!$AC11="BUS",IF(LOADS!$AE11=C$1,1,0),0) -> 0 | D12: =IF(LOADS!$AC11="BUS",IF(LOADS!$AE11=D$1,1,0),0) -> 0 | E12: =IF(LOADS!$AC11="BUS",IF(LOADS!$AE11=E$1,1,0),0) -> 0 | F12: =IF(LOADS!$AC11="BUS",IF(LOADS!$AE11=F$1,1,0),0) -> 0 | G12: =IF(LOADS!$AC11="BUS",IF(LOADS!$AE11=G$1,1,0),0) -> 0 | H12: =IF(LOADS!$AC11="BUS",IF(LOADS!$AE11=H$1,1,0),0) -> 0 | I12: =IF(LOADS!$AC11="BUS",IF(LOADS!$AE11=I$1,1,0),0) -> 0 | J12: 0 | K12: =LOADS!AM11 -> 0
A13: =IF(ISBLANK(LOADS!A12),"",LOADS!A12) -> 109 | B13: =IF(ISBLANK(LOADS!B12),"",LOADS!B12) -> B.C. Spray booth exhaust VFD | C13: =IF(LOADS!$AC12="BUS",IF(LOADS!$AE12=C$1,1,0),0) -> 0 | D13: =IF(LOADS!$AC12="BUS",IF(LOADS!$AE12=D$1,1,0),0) -> 0 | E13: =IF(LOADS!$AC12="BUS",IF(LOADS!$AE12=E$1,1,0),0) -> 0 | F13: =IF(LOADS!$AC12="BUS",IF(LOADS!$AE12=F$1,1,0),0) -> 0 | G13: =IF(LOADS!$AC12="BUS",IF(LOADS!$AE12=G$1,1,0),0) -> 0 | H13: =IF(LOADS!$AC12="BUS",IF(LOADS!$AE12=H$1,1,0),0) -> 0 | I13: =IF(LOADS!$AC12="BUS",IF(LOADS!$AE12=I$1,1,0),0) -> 0 | J13: 0 | K13: =LOADS!AM12 -> 0
A14: =IF(ISBLANK(LOADS!A13),"",LOADS!A13) -> 110 | B14: =IF(ISBLANK(LOADS!B13),"",LOADS!B13) -> B.C. Spray booth exhaust VFD | C14: =IF(LOADS!$AC13="BUS",IF(LOADS!$AE13=C$1,1,0),0) -> 0 | D14: =IF(LOADS!$AC13="BUS",IF(LOADS!$AE13=D$1,1,0),0) -> 0 | E14: =IF(LOADS!$AC13="BUS",IF(LOADS!$AE13=E$1,1,0),0) -> 0 | F14: =IF(LOADS!$AC13="BUS",IF(LOADS!$AE13=F$1,1,0),0) -> 0 | G14: =IF(LOADS!$AC13="BUS",IF(LOADS!$AE13=G$1,1,0),0) -> 0 | H14: =IF(LOADS!$AC13="BUS",IF(LOADS!$AE13=H$1,1,0),0) -> 0 | I14: =IF(LOADS!$AC13="BUS",IF(LOADS!$AE13=I$1,1,0),0) -> 0 | J14: 0 | K14: =LOADS!AM13 -> 0
A15: =IF(ISBLANK(LOADS!A14),"",LOADS!A14) -> 111 | B15: =IF(ISBLANK(LOADS!B14),"",LOADS!B14) -> C.C. Spray booth exhaust VFD | C15: =IF(LOADS!$AC14="BUS",IF(LOADS!$AE14=C$1,1,0),0) -> 0 | D15: =IF(LOADS!$AC14="BUS",IF(LOADS!$AE14=D$1,1,0),0) -> 0 | E15: =IF(LOADS!$AC14="BUS",IF(LOADS!$AE14=E$1,1,0),0) -> 0 | F15: =IF(LOADS!$AC14="BUS",IF(LOADS!$AE14=F$1,1,0),0) -> 0 | G15: =IF(LOADS!$AC14="BUS",IF(LOADS!$AE14=G$1,1,0),0) -> 0 | H15: =IF(LOADS!$AC14="BUS",IF(LOADS!$AE14=H$1,1,0),0) -> 0 | I15: =IF(LOADS!$AC14="BUS",IF(LOADS!$AE14=I$1,1,0),0) -> 0 | J15: 0 | K15: =LOADS!AM14 -> 0
A16: =IF(ISBLANK(LOADS!A15),"",LOADS!A15) -> 112 | B16: =IF(ISBLANK(LOADS!B15),"",LOADS!B15) -> C,C. Spray Booth exhaust VFD | C16: =IF(LOADS!$AC15="BUS",IF(LOADS!$AE15=C$1,1,0),0) -> 0 | D16: =IF(LOADS!$AC15="BUS",IF(LOADS!$AE15=D$1,1,0),0) -> 0 | E16: =IF(LOADS!$AC15="BUS",IF(LOADS!$AE15=E$1,1,0),0) -> 0 | F16: =IF(LOADS!$AC15="BUS",IF(LOADS!$AE15=F$1,1,0),0) -> 0 | G16: =IF(LOADS!$AC15="BUS",IF(LOADS!$AE15=G$1,1,0),0) -> 0 | H16: =IF(LOADS!$AC15="BUS",IF(LOADS!$AE15=H$1,1,0),0) -> 0 | I16: =IF(LOADS!$AC15="BUS",IF(LOADS!$AE15=I$1,1,0),0) -> 0 | J16: 0 | K16: =LOADS!AM15 -> 0
A17: =IF(ISBLANK(LOADS!A16),"",LOADS!A16) -> 113 | B17: =IF(ISBLANK(LOADS!B16),"",LOADS!B16) -> C.C. Spray booth exhaust VFD | C17: =IF(LOADS!$AC16="BUS",IF(LOADS!$AE16=C$1,1,0),0) -> 0 | D17: =IF(LOADS!$AC16="BUS",IF(LOADS!$AE16=D$1,1,0),0) -> 0 | E17: =IF(LOADS!$AC16="BUS",IF(LOADS!$AE16=E$1,1,0),0) -> 0 | F17: =IF(LOADS!$AC16="BUS",IF(LOADS!$AE16=F$1,1,0),0) -> 0 | G17: =IF(LOADS!$AC16="BUS",IF(LOADS!$AE16=G$1,1,0),0) -> 0 | H17: =IF(LOADS!$AC16="BUS",IF(LOADS!$AE16=H$1,1,0),0) -> 0 | I17: =IF(LOADS!$AC16="BUS",IF(LOADS!$AE16=I$1,1,0),0) -> 0 | J17: 0 | K17: =LOADS!AM16 -> 0
A18: =IF(ISBLANK(LOADS!A17),"",LOADS!A17) -> 114 | B18: =IF(ISBLANK(LOADS!B17),"",LOADS!B17) -> C.C. Spray booth exhaust VFD | C18: =IF(LOADS!$AC17="BUS",IF(LOADS!$AE17=C$1,1,0),0) -> 0 | D18: =IF(LOADS!$AC17="BUS",IF(LOADS!$AE17=D$1,1,0),0) -> 0 | E18: =IF(LOADS!$AC17="BUS",IF(LOADS!$AE17=E$1,1,0),0) -> 0 | F18: =IF(LOADS!$AC17="BUS",IF(LOADS!$AE17=F$1,1,0),0) -> 0 | G18: =IF(LOADS!$AC17="BUS",IF(LOADS!$AE17=G$1,1,0),0) -> 0 | H18: =IF(LOADS!$AC17="BUS",IF(LOADS!$AE17=H$1,1,0),0) -> 0 | I18: =IF(LOADS!$AC17="BUS",IF(LOADS!$AE17=I$1,1,0),0) -> 0 | J18: 0 | K18: =LOADS!AM17 -> 0
A19: =IF(ISBLANK(LOADS!A18),"",LOADS!A18) -> 115 | B19: =IF(ISBLANK(LOADS!B18),"",LOADS!B18) -> Air Supply #2 VFD | C19: =IF(LOADS!$AC18="BUS",IF(LOADS!$AE18=C$1,1,0),0) -> 0 | D19: =IF(LOADS!$AC18="BUS",IF(LOADS!$AE18=D$1,1,0),0) -> 0 | E19: =IF(LOADS!$AC18="BUS",IF(LOADS!$AE18=E$1,1,0),0) -> 0 | F19: =IF(LOADS!$AC18="BUS",IF(LOADS!$AE18=F$1,1,0),0) -> 0 | G19: =IF(LOADS!$AC18="BUS",IF(LOADS!$AE18=G$1,1,0),0) -> 0 | H19: =IF(LOADS!$AC18="BUS",IF(LOADS!$AE18=H$1,1,0),0) -> 0 | I19: =IF(LOADS!$AC18="BUS",IF(LOADS!$AE18=I$1,1,0),0) -> 0 | J19: 0 | K19: =LOADS!AM18 -> 0
A20: =IF(ISBLANK(LOADS!A19),"",LOADS!A19) -> 116 | B20: =IF(ISBLANK(LOADS!B19),"",LOADS!B19) -> Air Supply #2 VFD | C20: =IF(LOADS!$AC19="BUS",IF(LOADS!$AE19=C$1,1,0),0) -> 0 | D20: =IF(LOADS!$AC19="BUS",IF(LOADS!$AE19=D$1,1,0),0) -> 0 | E20: =IF(LOADS!$AC19="BUS",IF(LOADS!$AE19=E$1,1,0),0) -> 0 | F20: =IF(LOADS!$AC19="BUS",IF(LOADS!$AE19=F$1,1,0),0) -> 0 | G20: =IF(LOADS!$AC19="BUS",IF(LOADS!$AE19=G$1,1,0),0) -> 0 | H20: =IF(LOADS!$AC19="BUS",IF(LOADS!$AE19=H$1,1,0),0) -> 0 | I20: =IF(LOADS!$AC19="BUS",IF(LOADS!$AE19=I$1,1,0),0) -> 0 | J20: 0 | K20: =LOADS!AM19 -> 0
A21: =IF(ISBLANK(LOADS!#REF!),"",LOADS!#REF!) ->  | B21: =IF(ISBLANK(LOADS!#REF!),"",LOADS!#REF!) ->  | C21: =IF(LOADS!#REF!="BUS",IF(LOADS!#REF!=C$1,1,0),0) ->  | D21: =IF(LOADS!#REF!="BUS",IF(LOADS!#REF!=D$1,1,0),0) ->  | E21: =IF(LOADS!#REF!="BUS",IF(LOADS!#REF!=E$1,1,0),0) ->  | F21: =IF(LOADS!#REF!="BUS",IF(LOADS!#REF!=F$1,1,0),0) ->  | G21: =IF(LOADS!#REF!="BUS",IF(LOADS!#REF!=G$1,1,0),0) ->  | H21: =IF(LOADS!#REF!="BUS",IF(LOADS!#REF!=H$1,1,0),0) ->  | I21: =IF(LOADS!#REF!="BUS",IF(LOADS!#REF!=I$1,1,0),0) ->  | K21: =LOADS!#REF! -> 
A22: =IF(ISBLANK(LOADS!#REF!),"",LOADS!#REF!) ->  | B22: =IF(ISBLANK(LOADS!#REF!),"",LOADS!#REF!) ->  | C22: =IF(LOADS!#REF!="BUS",IF(LOADS!#REF!=C$1,1,0),0) ->  | D22: =IF(LOADS!#REF!="BUS",IF(LOADS!#REF!=D$1,1,0),0) ->  | E22: =IF(LOADS!#REF!="BUS",IF(LOADS!#REF!=E$1,1,0),0) ->  | F22: =IF(LOADS!#REF!="BUS",IF(LOADS!#REF!=F$1,1,0),0) ->  | G22: =IF(LOADS!#REF!="BUS",IF(LOADS!#REF!=G$1,1,0),0) ->  | H22: =IF(LOADS!#REF!="BUS",IF(LOADS!#REF!=H$1,1,0),0) ->  | I22: =IF(LOADS!#REF!="BUS",IF(LOADS!#REF!=I$1,1,0),0) ->  | K22: =LOADS!#REF! -> 
A23: =IF(ISBLANK(LOADS!A20),"",LOADS!A20) ->  | B23: =IF(ISBLANK(LOADS!B20),"",LOADS!B20) ->  | C23: =IF(LOADS!$AC20="BUS",IF(LOADS!$AE20=C$1,1,0),0) -> 0 | D23: =IF(LOADS!$AC20="BUS",IF(LOADS!$AE20=D$1,1,0),0) -> 0 | E23: =IF(LOADS!$AC20="BUS",IF(LOADS!$AE20=E$1,1,0),0) -> 0 | F23: =IF(LOADS!$AC20="BUS",IF(LOADS!$AE20=F$1,1,0),0) -> 0 | G23: =IF(LOADS!$AC20="BUS",IF(LOADS!$AE20=G$1,1,0),0) -> 0 | H23: =IF(LOADS!$AC20="BUS",IF(LOADS!$AE20=H$1,1,0),0) -> 0 | I23: =IF(LOADS!$AC20="BUS",IF(LOADS!$AE20=I$1,1,0),0) -> 0 | J23: 0 | K23: =LOADS!AM20 -> 0
A24: =IF(ISBLANK(LOADS!A21),"",LOADS!A21) ->  | B24: =IF(ISBLANK(LOADS!B21),"",LOADS!B21) ->  | C24: =IF(LOADS!$AC21="BUS",IF(LOADS!$AE21=C$1,1,0),0) -> 0 | D24: =IF(LOADS!$AC21="BUS",IF(LOADS!$AE21=D$1,1,0),0) -> 0 | E24: =IF(LOADS!$AC21="BUS",IF(LOADS!$AE21=E$1,1,0),0) -> 0 | F24: =IF(LOADS!$AC21="BUS",IF(LOADS!$AE21=F$1,1,0),0) -> 0 | G24: =IF(LOADS!$AC21="BUS",IF(LOADS!$AE21=G$1,1,0),0) -> 0 | H24: =IF(LOADS!$AC21="BUS",IF(LOADS!$AE21=H$1,1,0),0) -> 0 | I24: =IF(LOADS!$AC21="BUS",IF(LOADS!$AE21=I$1,1,0),0) -> 0 | J24: 0 | K24: =LOADS!AM21 -> 0
A25: =IF(ISBLANK(LOADS!A22),"",LOADS!A22) ->  | B25: =IF(ISBLANK(LOADS!B22),"",LOADS!B22) ->  | C25: =IF(LOADS!$AC22="BUS",IF(LOADS!$AE22=C$1,1,0),0) -> 0 | D25: =IF(LOADS!$AC22="BUS",IF(LOADS!$AE22=D$1,1,0),0) -> 0 | E25: =IF(LOADS!$AC22="BUS",IF(LOADS!$AE22=E$1,1,0),0) -> 0 | F25: =IF(LOADS!$AC22="BUS",IF(LOADS!$AE22=F$1,1,0),0) -> 0 | G25: =IF(LOADS!$AC22="BUS",IF(LOADS!$AE22=G$1,1,0),0) -> 0 | H25: =IF(LOADS!$AC22="BUS",IF(LOADS!$AE22=H$1,1,0),0) -> 0 | I25: =IF(LOADS!$AC22="BUS",IF(LOADS!$AE22=I$1,1,0),0) -> 0 | J25: 0 | K25: =LOADS!AM22 -> 0
A26: =IF(ISBLANK(LOADS!A23),"",LOADS!A23) ->  | B26: =IF(ISBLANK(LOADS!B23),"",LOADS!B23) ->  | C26: =IF(LOADS!$AC23="BUS",IF(LOADS!$AE23=C$1,1,0),0) -> 0 | D26: =IF(LOADS!$AC23="BUS",IF(LOADS!$AE23=D$1,1,0),0) -> 0 | E26: =IF(LOADS!$AC23="BUS",IF(LOADS!$AE23=E$1,1,0),0) -> 0 | F26: =IF(LOADS!$AC23="BUS",IF(LOADS!$AE23=F$1,1,0),0) -> 0 | G26: =IF(LOADS!$AC23="BUS",IF(LOADS!$AE23=G$1,1,0),0) -> 0 | H26: =IF(LOADS!$AC23="BUS",IF(LOADS!$AE23=H$1,1,0),0) -> 0 | I26: =IF(LOADS!$AC23="BUS",IF(LOADS!$AE23=I$1,1,0),0) -> 0 | J26: 0 | K26: =LOADS!AM23 -> 0
A27: =IF(ISBLANK(LOADS!A24),"",LOADS!A24) ->  | B27: =IF(ISBLANK(LOADS!B24),"",LOADS!B24) ->  | C27: =IF(LOADS!$AC24="BUS",IF(LOADS!$AE24=C$1,1,0),0) -> 0 | D27: =IF(LOADS!$AC24="BUS",IF(LOADS!$AE24=D$1,1,0),0) -> 0 | E27: =IF(LOADS!$AC24="BUS",IF(LOADS!$AE24=E$1,1,0),0) -> 0 | F27: =IF(LOADS!$AC24="BUS",IF(LOADS!$AE24=F$1,1,0),0) -> 0 | G27: =IF(LOADS!$AC24="BUS",IF(LOADS!$AE24=G$1,1,0),0) -> 0 | H27: =IF(LOADS!$AC24="BUS",IF(LOADS!$AE24=H$1,1,0),0) -> 0 | I27: =IF(LOADS!$AC24="BUS",IF(LOADS!$AE24=I$1,1,0),0) -> 0 | J27: 0 | K27: =LOADS!AM24 -> 0
A28: =IF(ISBLANK(LOADS!A25),"",LOADS!A25) ->  | B28: =IF(ISBLANK(LOADS!B25),"",LOADS!B25) ->  | C28: =IF(LOADS!$AC25="BUS",IF(LOADS!$AE25=C$1,1,0),0) -> 0 | D28: =IF(LOADS!$AC25="BUS",IF(LOADS!$AE25=D$1,1,0),0) -> 0 | E28: =IF(LOADS!$AC25="BUS",IF(LOADS!$AE25=E$1,1,0),0) -> 0 | F28: =IF(LOADS!$AC25="BUS",IF(LOADS!$AE25=F$1,1,0),0) -> 0 | G28: =IF(LOADS!$AC25="BUS",IF(LOADS!$AE25=G$1,1,0),0) -> 0 | H28: =IF(LOADS!$AC25="BUS",IF(LOADS!$AE25=H$1,1,0),0) -> 0 | I28: =IF(LOADS!$AC25="BUS",IF(LOADS!$AE25=I$1,1,0),0) -> 0 | J28: 0 | K28: =LOADS!AM25 -> 0
A29: =IF(ISBLANK(LOADS!A26),"",LOADS!A26) ->  | B29: =IF(ISBLANK(LOADS!B26),"",LOADS!B26) ->  | C29: =IF(LOADS!$AC26="BUS",IF(LOADS!$AE26=C$1,1,0),0) -> 0 | D29: =IF(LOADS!$AC26="BUS",IF(LOADS!$AE26=D$1,1,0),0) -> 0 | E29: =IF(LOADS!$AC26="BUS",IF(LOADS!$AE26=E$1,1,0),0) -> 0 | F29: =IF(LOADS!$AC26="BUS",IF(LOADS!$AE26=F$1,1,0),0) -> 0 | G29: =IF(LOADS!$AC26="BUS",IF(LOADS!$AE26=G$1,1,0),0) -> 0 | H29: =IF(LOADS!$AC26="BUS",IF(LOADS!$AE26=H$1,1,0),0) -> 0 | I29: =IF(LOADS!$AC26="BUS",IF(LOADS!$AE26=I$1,1,0),0) -> 0 | J29: 0 | K29: =LOADS!AM26 -> 0
A30: =IF(ISBLANK(LOADS!A27),"",LOADS!A27) ->  | B30: =IF(ISBLANK(LOADS!B27),"",LOADS!B27) ->  | C30: =IF(LOADS!$AC27="BUS",IF(LOADS!$AE27=C$1,1,0),0) -> 0 | D30: =IF(LOADS!$AC27="BUS",IF(LOADS!$AE27=D$1,1,0),0) -> 0 | E30: =IF(LOADS!$AC27="BUS",IF(LOADS!$AE27=E$1,1,0),0) -> 0 | F30: =IF(LOADS!$AC27="BUS",IF(LOADS!$AE27=F$1,1,0),0) -> 0 | G30: =IF(LOADS!$AC27="BUS",IF(LOADS!$AE27=G$1,1,0),0) -> 0 | H30: =IF(LOADS!$AC27="BUS",IF(LOADS!$AE27=H$1,1,0),0) -> 0 | I30: =IF(LOADS!$AC27="BUS",IF(LOADS!$AE27=I$1,1,0),0) -> 0 | J30: 0 | K30: =LOADS!AM27 -> 0
A31: =IF(ISBLANK(LOADS!A28),"",LOADS!A28) ->  | B31: =IF(ISBLANK(LOADS!B28),"",LOADS!B28) ->  | C31: =IF(LOADS!$AC28="BUS",IF(LOADS!$AE28=C$1,1,0),0) -> 0 | D31: =IF(LOADS!$AC28="BUS",IF(LOADS!$AE28=D$1,1,0),0) -> 0 | E31: =IF(LOADS!$AC28="BUS",IF(LOADS!$AE28=E$1,1,0),0) -> 0 | F31: =IF(LOADS!$AC28="BUS",IF(LOADS!$AE28=F$1,1,0),0) -> 0 | G31: =IF(LOADS!$AC28="BUS",IF(LOADS!$AE28=G$1,1,0),0) -> 0 | H31: =IF(LOADS!$AC28="BUS",IF(LOADS!$AE28=H$1,1,0),0) -> 0 | I31: =IF(LOADS!$AC28="BUS",IF(LOADS!$AE28=I$1,1,0),0) -> 0 | J31: 0 | K31: =LOADS!AM28 -> 0
A32: =IF(ISBLANK(LOADS!A29),"",LOADS!A29) ->  | B32: =IF(ISBLANK(LOADS!B29),"",LOADS!B29) ->  | C32: =IF(LOADS!$AC29="BUS",IF(LOADS!$AE29=C$1,1,0),0) -> 0 | D32: =IF(LOADS!$AC29="BUS",IF(LOADS!$AE29=D$1,1,0),0) -> 0 | E32: =IF(LOADS!$AC29="BUS",IF(LOADS!$AE29=E$1,1,0),0) -> 0 | F32: =IF(LOADS!$AC29="BUS",IF(LOADS!$AE29=F$1,1,0),0) -> 0 | G32: =IF(LOADS!$AC29="BUS",IF(LOADS!$AE29=G$1,1,0),0) -> 0 | H32: =IF(LOADS!$AC29="BUS",IF(LOADS!$AE29=H$1,1,0),0) -> 0 | I32: =IF(LOADS!$AC29="BUS",IF(LOADS!$AE29=I$1,1,0),0) -> 0 | J32: 0 | K32: =LOADS!AM29 -> 0
A33: =IF(ISBLANK(LOADS!A30),"",LOADS!A30) ->  | B33: =IF(ISBLANK(LOADS!B30),"",LOADS!B30) ->  | C33: =IF(LOADS!$AC30="BUS",IF(LOADS!$AE30=C$1,1,0),0) -> 0 | D33: =IF(LOADS!$AC30="BUS",IF(LOADS!$AE30=D$1,1,0),0) -> 0 | E33: =IF(LOADS!$AC30="BUS",IF(LOADS!$AE30=E$1,1,0),0) -> 0 | F33: =IF(LOADS!$AC30="BUS",IF(LOADS!$AE30=F$1,1,0),0) -> 0 | G33: =IF(LOADS!$AC30="BUS",IF(LOADS!$AE30=G$1,1,0),0) -> 0 | H33: =IF(LOADS!$AC30="BUS",IF(LOADS!$AE30=H$1,1,0),0) -> 0 | I33: =IF(LOADS!$AC30="BUS",IF(LOADS!$AE30=I$1,1,0),0) -> 0 | J33: 0 | K33: =LOADS!AM30 -> 0
A34: =IF(ISBLANK(LOADS!A31),"",LOADS!A31) ->  | B34: =IF(ISBLANK(LOADS!B31),"",LOADS!B31) ->  | C34: =IF(LOADS!$AC31="BUS",IF(LOADS!$AE31=C$1,1,0),0) -> 0 | D34: =IF(LOADS!$AC31="BUS",IF(LOADS!$AE31=D$1,1,0),0) -> 0 | E34: =IF(LOADS!$AC31="BUS",IF(LOADS!$AE31=E$1,1,0),0) -> 0 | F34: =IF(LOADS!$AC31="BUS",IF(LOADS!$AE31=F$1,1,0),0) -> 0 | G34: =IF(LOADS!$AC31="BUS",IF(LOADS!$AE31=G$1,1,0),0) -> 0 | H34: =IF(LOADS!$AC31="BUS",IF(LOADS!$AE31=H$1,1,0),0) -> 0 | I34: =IF(LOADS!$AC31="BUS",IF(LOADS!$AE31=I$1,1,0),0) -> 0 | J34: 0 | K34: =LOADS!AM31 -> 0
A35: =IF(ISBLANK(LOADS!A32),"",LOADS!A32) ->  | B35: =IF(ISBLANK(LOADS!B32),"",LOADS!B32) ->  | C35: =IF(LOADS!$AC32="BUS",IF(LOADS!$AE32=C$1,1,0),0) -> 0 | D35: =IF(LOADS!$AC32="BUS",IF(LOADS!$AE32=D$1,1,0),0) -> 0 | E35: =IF(LOADS!$AC32="BUS",IF(LOADS!$AE32=E$1,1,0),0) -> 0 | F35: =IF(LOADS!$AC32="BUS",IF(LOADS!$AE32=F$1,1,0),0) -> 0 | G35: =IF(LOADS!$AC32="BUS",IF(LOADS!$AE32=G$1,1,0),0) -> 0 | H35: =IF(LOADS!$AC32="BUS",IF(LOADS!$AE32=H$1,1,0),0) -> 0 | I35: =IF(LOADS!$AC32="BUS",IF(LOADS!$AE32=I$1,1,0),0) -> 0 | J35: 0 | K35: =LOADS!AM32 -> 0
A36: =IF(ISBLANK(LOADS!A33),"",LOADS!A33) ->  | B36: =IF(ISBLANK(LOADS!B33),"",LOADS!B33) ->  | C36: =IF(LOADS!$AC33="BUS",IF(LOADS!$AE33=C$1,1,0),0) -> 0 | D36: =IF(LOADS!$AC33="BUS",IF(LOADS!$AE33=D$1,1,0),0) -> 0 | E36: =IF(LOADS!$AC33="BUS",IF(LOADS!$AE33=E$1,1,0),0) -> 0 | F36: =IF(LOADS!$AC33="BUS",IF(LOADS!$AE33=F$1,1,0),0) -> 0 | G36: =IF(LOADS!$AC33="BUS",IF(LOADS!$AE33=G$1,1,0),0) -> 0 | H36: =IF(LOADS!$AC33="BUS",IF(LOADS!$AE33=H$1,1,0),0) -> 0 | I36: =IF(LOADS!$AC33="BUS",IF(LOADS!$AE33=I$1,1,0),0) -> 0 | J36: 0 | K36: =LOADS!AM33 -> 0
A37: =IF(ISBLANK(LOADS!A34),"",LOADS!A34) ->  | B37: =IF(ISBLANK(LOADS!B34),"",LOADS!B34) ->  | C37: =IF(LOADS!$AC34="BUS",IF(LOADS!$AE34=C$1,1,0),0) -> 0 | D37: =IF(LOADS!$AC34="BUS",IF(LOADS!$AE34=D$1,1,0),0) -> 0 | E37: =IF(LOADS!$AC34="BUS",IF(LOADS!$AE34=E$1,1,0),0) -> 0 | F37: =IF(LOADS!$AC34="BUS",IF(LOADS!$AE34=F$1,1,0),0) -> 0 | G37: =IF(LOADS!$AC34="BUS",IF(LOADS!$AE34=G$1,1,0),0) -> 0 | H37: =IF(LOADS!$AC34="BUS",IF(LOADS!$AE34=H$1,1,0),0) -> 0 | I37: =IF(LOADS!$AC34="BUS",IF(LOADS!$AE34=I$1,1,0),0) -> 0 | J37: 0 | K37: =LOADS!AM34 -> 0
A38: =IF(ISBLANK(LOADS!A35),"",LOADS!A35) ->  | B38: =IF(ISBLANK(LOADS!B35),"",LOADS!B35) ->  | C38: =IF(LOADS!$AC35="BUS",IF(LOADS!$AE35=C$1,1,0),0) -> 0 | D38: =IF(LOADS!$AC35="BUS",IF(LOADS!$AE35=D$1,1,0),0) -> 0 | E38: =IF(LOADS!$AC35="BUS",IF(LOADS!$AE35=E$1,1,0),0) -> 0 | F38: =IF(LOADS!$AC35="BUS",IF(LOADS!$AE35=F$1,1,0),0) -> 0 | G38: =IF(LOADS!$AC35="BUS",IF(LOADS!$AE35=G$1,1,0),0) -> 0 | H38: =IF(LOADS!$AC35="BUS",IF(LOADS!$AE35=H$1,1,0),0) -> 0 | I38: =IF(LOADS!$AC35="BUS",IF(LOADS!$AE35=I$1,1,0),0) -> 0 | J38: 0 | K38: =LOADS!AM35 -> 0
A39: =IF(ISBLANK(LOADS!A36),"",LOADS!A36) ->  | B39: =IF(ISBLANK(LOADS!B36),"",LOADS!B36) ->  | C39: =IF(LOADS!$AC36="BUS",IF(LOADS!$AE36=C$1,1,0),0) -> 0 | D39: =IF(LOADS!$AC36="BUS",IF(LOADS!$AE36=D$1,1,0),0) -> 0 | E39: =IF(LOADS!$AC36="BUS",IF(LOADS!$AE36=E$1,1,0),0) -> 0 | F39: =IF(LOADS!$AC36="BUS",IF(LOADS!$AE36=F$1,1,0),0) -> 0 | G39: =IF(LOADS!$AC36="BUS",IF(LOADS!$AE36=G$1,1,0),0) -> 0 | H39: =IF(LOADS!$AC36="BUS",IF(LOADS!$AE36=H$1,1,0),0) -> 0 | I39: =IF(LOADS!$AC36="BUS",IF(LOADS!$AE36=I$1,1,0),0) -> 0 | J39: 0 | K39: =LOADS!AM36 -> 0
A40: =IF(ISBLANK(LOADS!A37),"",LOADS!A37) ->  | B40: =IF(ISBLANK(LOADS!B37),"",LOADS!B37) ->  | C40: =IF(LOADS!$AC37="BUS",IF(LOADS!$AE37=C$1,1,0),0) -> 0 | D40: =IF(LOADS!$AC37="BUS",IF(LOADS!$AE37=D$1,1,0),0) -> 0 | E40: =IF(LOADS!$AC37="BUS",IF(LOADS!$AE37=E$1,1,0),0) -> 0 | F40: =IF(LOADS!$AC37="BUS",IF(LOADS!$AE37=F$1,1,0),0) -> 0 | G40: =IF(LOADS!$AC37="BUS",IF(LOADS!$AE37=G$1,1,0),0) -> 0 | H40: =IF(LOADS!$AC37="BUS",IF(LOADS!$AE37=H$1,1,0),0) -> 0 | I40: =IF(LOADS!$AC37="BUS",IF(LOADS!$AE37=I$1,1,0),0) -> 0 | J40: 0 | K40: =LOADS!AM37 -> 0
A41: =IF(ISBLANK(LOADS!A38),"",LOADS!A38) ->  | B41: =IF(ISBLANK(LOADS!B38),"",LOADS!B38) ->  | C41: =IF(LOADS!$AC38="BUS",IF(LOADS!$AE38=C$1,1,0),0) -> 0 | D41: =IF(LOADS!$AC38="BUS",IF(LOADS!$AE38=D$1,1,0),0) -> 0 | E41: =IF(LOADS!$AC38="BUS",IF(LOADS!$AE38=E$1,1,0),0) -> 0 | F41: =IF(LOADS!$AC38="BUS",IF(LOADS!$AE38=F$1,1,0),0) -> 0 | G41: =IF(LOADS!$AC38="BUS",IF(LOADS!$AE38=G$1,1,0),0) -> 0 | H41: =IF(LOADS!$AC38="BUS",IF(LOADS!$AE38=H$1,1,0),0) -> 0 | I41: =IF(LOADS!$AC38="BUS",IF(LOADS!$AE38=I$1,1,0),0) -> 0 | J41: 0 | K41: =LOADS!AM38 -> 0
A42: =IF(ISBLANK(LOADS!A39),"",LOADS!A39) ->  | B42: =IF(ISBLANK(LOADS!B39),"",LOADS!B39) ->  | C42: =IF(LOADS!$AC39="BUS",IF(LOADS!$AE39=C$1,1,0),0) -> 0 | D42: =IF(LOADS!$AC39="BUS",IF(LOADS!$AE39=D$1,1,0),0) -> 0 | E42: =IF(LOADS!$AC39="BUS",IF(LOADS!$AE39=E$1,1,0),0) -> 0 | F42: =IF(LOADS!$AC39="BUS",IF(LOADS!$AE39=F$1,1,0),0) -> 0 | G42: =IF(LOADS!$AC39="BUS",IF(LOADS!$AE39=G$1,1,0),0) -> 0 | H42: =IF(LOADS!$AC39="BUS",IF(LOADS!$AE39=H$1,1,0),0) -> 0 | I42: =IF(LOADS!$AC39="BUS",IF(LOADS!$AE39=I$1,1,0),0) -> 0 | J42: 0 | K42: =LOADS!AM39 -> 0
A43: =IF(ISBLANK(LOADS!A40),"",LOADS!A40) ->  | B43: =IF(ISBLANK(LOADS!B40),"",LOADS!B40) ->  | C43: =IF(LOADS!$AC40="BUS",IF(LOADS!$AE40=C$1,1,0),0) -> 0 | D43: =IF(LOADS!$AC40="BUS",IF(LOADS!$AE40=D$1,1,0),0) -> 0 | E43: =IF(LOADS!$AC40="BUS",IF(LOADS!$AE40=E$1,1,0),0) -> 0 | F43: =IF(LOADS!$AC40="BUS",IF(LOADS!$AE40=F$1,1,0),0) -> 0 | G43: =IF(LOADS!$AC40="BUS",IF(LOADS!$AE40=G$1,1,0),0) -> 0 | H43: =IF(LOADS!$AC40="BUS",IF(LOADS!$AE40=H$1,1,0),0) -> 0 | I43: =IF(LOADS!$AC40="BUS",IF(LOADS!$AE40=I$1,1,0),0) -> 0 | J43: 0 | K43: =LOADS!AM40 -> 0
A44: =IF(ISBLANK(LOADS!A41),"",LOADS!A41) ->  | B44: =IF(ISBLANK(LOADS!B41),"",LOADS!B41) ->  | C44: =IF(LOADS!$AC41="BUS",IF(LOADS!$AE41=C$1,1,0),0) -> 0 | D44: =IF(LOADS!$AC41="BUS",IF(LOADS!$AE41=D$1,1,0),0) -> 0 | E44: =IF(LOADS!$AC41="BUS",IF(LOADS!$AE41=E$1,1,0),0) -> 0 | F44: =IF(LOADS!$AC41="BUS",IF(LOADS!$AE41=F$1,1,0),0) -> 0 | G44: =IF(LOADS!$AC41="BUS",IF(LOADS!$AE41=G$1,1,0),0) -> 0 | H44: =IF(LOADS!$AC41="BUS",IF(LOADS!$AE41=H$1,1,0),0) -> 0 | I44: =IF(LOADS!$AC41="BUS",IF(LOADS!$AE41=I$1,1,0),0) -> 0 | J44: 0 | K44: =LOADS!AM41 -> 0
A45: =IF(ISBLANK(LOADS!A42),"",LOADS!A42) ->  | B45: =IF(ISBLANK(LOADS!B42),"",LOADS!B42) ->  | C45: =IF(LOADS!$AC42="BUS",IF(LOADS!$AE42=C$1,1,0),0) -> 0 | D45: =IF(LOADS!$AC42="BUS",IF(LOADS!$AE42=D$1,1,0),0) -> 0 | E45: =IF(LOADS!$AC42="BUS",IF(LOADS!$AE42=E$1,1,0),0) -> 0 | F45: =IF(LOADS!$AC42="BUS",IF(LOADS!$AE42=F$1,1,0),0) -> 0 | G45: =IF(LOADS!$AC42="BUS",IF(LOADS!$AE42=G$1,1,0),0) -> 0 | H45: =IF(LOADS!$AC42="BUS",IF(LOADS!$AE42=H$1,1,0),0) -> 0 | I45: =IF(LOADS!$AC42="BUS",IF(LOADS!$AE42=I$1,1,0),0) -> 0 | J45: 0 | K45: =LOADS!AM42 -> 0
A46: =IF(ISBLANK(LOADS!A43),"",LOADS!A43) ->  | B46: =IF(ISBLANK(LOADS!B43),"",LOADS!B43) ->  | C46: =IF(LOADS!$AC43="BUS",IF(LOADS!$AE43=C$1,1,0),0) -> 0 | D46: =IF(LOADS!$AC43="BUS",IF(LOADS!$AE43=D$1,1,0),0) -> 0 | E46: =IF(LOADS!$AC43="BUS",IF(LOADS!$AE43=E$1,1,0),0) -> 0 | F46: =IF(LOADS!$AC43="BUS",IF(LOADS!$AE43=F$1,1,0),0) -> 0 | G46: =IF(LOADS!$AC43="BUS",IF(LOADS!$AE43=G$1,1,0),0) -> 0 | H46: =IF(LOADS!$AC43="BUS",IF(LOADS!$AE43=H$1,1,0),0) -> 0 | I46: =IF(LOADS!$AC43="BUS",IF(LOADS!$AE43=I$1,1,0),0) -> 0 | J46: 0 | K46: =LOADS!AM43 -> 0
A47: =IF(ISBLANK(LOADS!A44),"",LOADS!A44) ->  | B47: =IF(ISBLANK(LOADS!B44),"",LOADS!B44) ->  | C47: =IF(LOADS!$AC44="BUS",IF(LOADS!$AE44=C$1,1,0),0) -> 0 | D47: =IF(LOADS!$AC44="BUS",IF(LOADS!$AE44=D$1,1,0),0) -> 0 | E47: =IF(LOADS!$AC44="BUS",IF(LOADS!$AE44=E$1,1,0),0) -> 0 | F47: =IF(LOADS!$AC44="BUS",IF(LOADS!$AE44=F$1,1,0),0) -> 0 | G47: =IF(LOADS!$AC44="BUS",IF(LOADS!$AE44=G$1,1,0),0) -> 0 | H47: =IF(LOADS!$AC44="BUS",IF(LOADS!$AE44=H$1,1,0),0) -> 0 | I47: =IF(LOADS!$AC44="BUS",IF(LOADS!$AE44=I$1,1,0),0) -> 0 | J47: 0 | K47: =LOADS!AM44 -> 0
A48: =IF(ISBLANK(LOADS!A45),"",LOADS!A45) ->  | B48: =IF(ISBLANK(LOADS!B45),"",LOADS!B45) ->  | C48: =IF(LOADS!$AC45="BUS",IF(LOADS!$AE45=C$1,1,0),0) -> 0 | D48: =IF(LOADS!$AC45="BUS",IF(LOADS!$AE45=D$1,1,0),0) -> 0 | E48: =IF(LOADS!$AC45="BUS",IF(LOADS!$AE45=E$1,1,0),0) -> 0 | F48: =IF(LOADS!$AC45="BUS",IF(LOADS!$AE45=F$1,1,0),0) -> 0 | G48: =IF(LOADS!$AC45="BUS",IF(LOADS!$AE45=G$1,1,0),0) -> 0 | H48: =IF(LOADS!$AC45="BUS",IF(LOADS!$AE45=H$1,1,0),0) -> 0 | I48: =IF(LOADS!$AC45="BUS",IF(LOADS!$AE45=I$1,1,0),0) -> 0 | J48: 0 | K48: =LOADS!AM45 -> 0
A49: =IF(ISBLANK(LOADS!A46),"",LOADS!A46) ->  | B49: =IF(ISBLANK(LOADS!B46),"",LOADS!B46) ->  | C49: =IF(LOADS!$AC46="BUS",IF(LOADS!$AE46=C$1,1,0),0) -> 0 | D49: =IF(LOADS!$AC46="BUS",IF(LOADS!$AE46=D$1,1,0),0) -> 0 | E49: =IF(LOADS!$AC46="BUS",IF(LOADS!$AE46=E$1,1,0),0) -> 0 | F49: =IF(LOADS!$AC46="BUS",IF(LOADS!$AE46=F$1,1,0),0) -> 0 | G49: =IF(LOADS!$AC46="BUS",IF(LOADS!$AE46=G$1,1,0),0) -> 0 | H49: =IF(LOADS!$AC46="BUS",IF(LOADS!$AE46=H$1,1,0),0) -> 0 | I49: =IF(LOADS!$AC46="BUS",IF(LOADS!$AE46=I$1,1,0),0) -> 0 | J49: 0 | K49: =LOADS!AM46 -> 0
A50: =IF(ISBLANK(LOADS!A47),"",LOADS!A47) ->  | B50: =IF(ISBLANK(LOADS!B47),"",LOADS!B47) ->  | C50: =IF(LOADS!$AC47="BUS",IF(LOADS!$AE47=C$1,1,0),0) -> 0 | D50: =IF(LOADS!$AC47="BUS",IF(LOADS!$AE47=D$1,1,0),0) -> 0 | E50: =IF(LOADS!$AC47="BUS",IF(LOADS!$AE47=E$1,1,0),0) -> 0 | F50: =IF(LOADS!$AC47="BUS",IF(LOADS!$AE47=F$1,1,0),0) -> 0 | G50: =IF(LOADS!$AC47="BUS",IF(LOADS!$AE47=G$1,1,0),0) -> 0 | H50: =IF(LOADS!$AC47="BUS",IF(LOADS!$AE47=H$1,1,0),0) -> 0 | I50: =IF(LOADS!$AC47="BUS",IF(LOADS!$AE47=I$1,1,0),0) -> 0 | J50: 0 | K50: =LOADS!AM47 -> 0
A51: =IF(ISBLANK(LOADS!A48),"",LOADS!A48) ->  | B51: =IF(ISBLANK(LOADS!B48),"",LOADS!B48) ->  | C51: =IF(LOADS!$AC48="BUS",IF(LOADS!$AE48=C$1,1,0),0) -> 0 | D51: =IF(LOADS!$AC48="BUS",IF(LOADS!$AE48=D$1,1,0),0) -> 0 | E51: =IF(LOADS!$AC48="BUS",IF(LOADS!$AE48=E$1,1,0),0) -> 0 | F51: =IF(LOADS!$AC48="BUS",IF(LOADS!$AE48=F$1,1,0),0) -> 0 | G51: =IF(LOADS!$AC48="BUS",IF(LOADS!$AE48=G$1,1,0),0) -> 0 | H51: =IF(LOADS!$AC48="BUS",IF(LOADS!$AE48=H$1,1,0),0) -> 0 | I51: =IF(LOADS!$AC48="BUS",IF(LOADS!$AE48=I$1,1,0),0) -> 0 | J51: 0 | K51: =LOADS!AM48 -> 0
A52: =IF(ISBLANK(LOADS!A49),"",LOADS!A49) ->  | B52: =IF(ISBLANK(LOADS!B49),"",LOADS!B49) ->  | C52: =IF(LOADS!$AC49="BUS",IF(LOADS!$AE49=C$1,1,0),0) -> 0 | D52: =IF(LOADS!$AC49="BUS",IF(LOADS!$AE49=D$1,1,0),0) -> 0 | E52: =IF(LOADS!$AC49="BUS",IF(LOADS!$AE49=E$1,1,0),0) -> 0 | F52: =IF(LOADS!$AC49="BUS",IF(LOADS!$AE49=F$1,1,0),0) -> 0 | G52: =IF(LOADS!$AC49="BUS",IF(LOADS!$AE49=G$1,1,0),0) -> 0 | H52: =IF(LOADS!$AC49="BUS",IF(LOADS!$AE49=H$1,1,0),0) -> 0 | I52: =IF(LOADS!$AC49="BUS",IF(LOADS!$AE49=I$1,1,0),0) -> 0 | J52: 0 | K52: =LOADS!AM49 -> 0
A53: =IF(ISBLANK(LOADS!A50),"",LOADS!A50) ->  | B53: =IF(ISBLANK(LOADS!B50),"",LOADS!B50) ->  | C53: =IF(LOADS!$AC50="BUS",IF(LOADS!$AE50=C$1,1,0),0) -> 0 | D53: =IF(LOADS!$AC50="BUS",IF(LOADS!$AE50=D$1,1,0),0) -> 0 | E53: =IF(LOADS!$AC50="BUS",IF(LOADS!$AE50=E$1,1,0),0) -> 0 | F53: =IF(LOADS!$AC50="BUS",IF(LOADS!$AE50=F$1,1,0),0) -> 0 | G53: =IF(LOADS!$AC50="BUS",IF(LOADS!$AE50=G$1,1,0),0) -> 0 | H53: =IF(LOADS!$AC50="BUS",IF(LOADS!$AE50=H$1,1,0),0) -> 0 | I53: =IF(LOADS!$AC50="BUS",IF(LOADS!$AE50=I$1,1,0),0) -> 0 | J53: 0 | K53: =LOADS!AM50 -> 0
A54: =IF(ISBLANK(LOADS!A51),"",LOADS!A51) ->  | B54: =IF(ISBLANK(LOADS!B51),"",LOADS!B51) ->  | C54: =IF(LOADS!$AC51="BUS",IF(LOADS!$AE51=C$1,1,0),0) -> 0 | D54: =IF(LOADS!$AC51="BUS",IF(LOADS!$AE51=D$1,1,0),0) -> 0 | E54: =IF(LOADS!$AC51="BUS",IF(LOADS!$AE51=E$1,1,0),0) -> 0 | F54: =IF(LOADS!$AC51="BUS",IF(LOADS!$AE51=F$1,1,0),0) -> 0 | G54: =IF(LOADS!$AC51="BUS",IF(LOADS!$AE51=G$1,1,0),0) -> 0 | H54: =IF(LOADS!$AC51="BUS",IF(LOADS!$AE51=H$1,1,0),0) -> 0 | I54: =IF(LOADS!$AC51="BUS",IF(LOADS!$AE51=I$1,1,0),0) -> 0 | J54: 0 | K54: =LOADS!AM51 -> 0
A55: =IF(ISBLANK(LOADS!A52),"",LOADS!A52) ->  | B55: =IF(ISBLANK(LOADS!B52),"",LOADS!B52) ->  | C55: =IF(LOADS!$AC52="BUS",IF(LOADS!$AE52=C$1,1,0),0) -> 0 | D55: =IF(LOADS!$AC52="BUS",IF(LOADS!$AE52=D$1,1,0),0) -> 0 | E55: =IF(LOADS!$AC52="BUS",IF(LOADS!$AE52=E$1,1,0),0) -> 0 | F55: =IF(LOADS!$AC52="BUS",IF(LOADS!$AE52=F$1,1,0),0) -> 0 | G55: =IF(LOADS!$AC52="BUS",IF(LOADS!$AE52=G$1,1,0),0) -> 0 | H55: =IF(LOADS!$AC52="BUS",IF(LOADS!$AE52=H$1,1,0),0) -> 0 | I55: =IF(LOADS!$AC52="BUS",IF(LOADS!$AE52=I$1,1,0),0) -> 0 | J55: 0 | K55: =LOADS!AM52 -> 0
A56: =IF(ISBLANK(LOADS!A53),"",LOADS!A53) ->  | B56: =IF(ISBLANK(LOADS!B53),"",LOADS!B53) ->  | C56: =IF(LOADS!$AC53="BUS",IF(LOADS!$AE53=C$1,1,0),0) -> 0 | D56: =IF(LOADS!$AC53="BUS",IF(LOADS!$AE53=D$1,1,0),0) -> 0 | E56: =IF(LOADS!$AC53="BUS",IF(LOADS!$AE53=E$1,1,0),0) -> 0 | F56: =IF(LOADS!$AC53="BUS",IF(LOADS!$AE53=F$1,1,0),0) -> 0 | G56: =IF(LOADS!$AC53="BUS",IF(LOADS!$AE53=G$1,1,0),0) -> 0 | H56: =IF(LOADS!$AC53="BUS",IF(LOADS!$AE53=H$1,1,0),0) -> 0 | I56: =IF(LOADS!$AC53="BUS",IF(LOADS!$AE53=I$1,1,0),0) -> 0 | J56: 0 | K56: =LOADS!AM53 -> 0
A57: =IF(ISBLANK(LOADS!A54),"",LOADS!A54) ->  | B57: =IF(ISBLANK(LOADS!B54),"",LOADS!B54) ->  | C57: =IF(LOADS!$AC54="BUS",IF(LOADS!$AE54=C$1,1,0),0) -> 0 | D57: =IF(LOADS!$AC54="BUS",IF(LOADS!$AE54=D$1,1,0),0) -> 0 | E57: =IF(LOADS!$AC54="BUS",IF(LOADS!$AE54=E$1,1,0),0) -> 0 | F57: =IF(LOADS!$AC54="BUS",IF(LOADS!$AE54=F$1,1,0),0) -> 0 | G57: =IF(LOADS!$AC54="BUS",IF(LOADS!$AE54=G$1,1,0),0) -> 0 | H57: =IF(LOADS!$AC54="BUS",IF(LOADS!$AE54=H$1,1,0),0) -> 0 | I57: =IF(LOADS!$AC54="BUS",IF(LOADS!$AE54=I$1,1,0),0) -> 0 | J57: 0 | K57: =LOADS!AM54 -> 0
A58: =IF(ISBLANK(LOADS!A55),"",LOADS!A55) ->  | B58: =IF(ISBLANK(LOADS!B55),"",LOADS!B55) ->  | C58: =IF(LOADS!$AC55="BUS",IF(LOADS!$AE55=C$1,1,0),0) -> 0 | D58: =IF(LOADS!$AC55="BUS",IF(LOADS!$AE55=D$1,1,0),0) -> 0 | E58: =IF(LOADS!$AC55="BUS",IF(LOADS!$AE55=E$1,1,0),0) -> 0 | F58: =IF(LOADS!$AC55="BUS",IF(LOADS!$AE55=F$1,1,0),0) -> 0 | G58: =IF(LOADS!$AC55="BUS",IF(LOADS!$AE55=G$1,1,0),0) -> 0 | H58: =IF(LOADS!$AC55="BUS",IF(LOADS!$AE55=H$1,1,0),0) -> 0 | I58: =IF(LOADS!$AC55="BUS",IF(LOADS!$AE55=I$1,1,0),0) -> 0 | J58: 0 | K58: =LOADS!AM55 -> 0
A59: =IF(ISBLANK(LOADS!A56),"",LOADS!A56) ->  | B59: =IF(ISBLANK(LOADS!B56),"",LOADS!B56) ->  | C59: =IF(LOADS!$AC56="BUS",IF(LOADS!$AE56=C$1,1,0),0) -> 0 | D59: =IF(LOADS!$AC56="BUS",IF(LOADS!$AE56=D$1,1,0),0) -> 0 | E59: =IF(LOADS!$AC56="BUS",IF(LOADS!$AE56=E$1,1,0),0) -> 0 | F59: =IF(LOADS!$AC56="BUS",IF(LOADS!$AE56=F$1,1,0),0) -> 0 | G59: =IF(LOADS!$AC56="BUS",IF(LOADS!$AE56=G$1,1,0),0) -> 0 | H59: =IF(LOADS!$AC56="BUS",IF(LOADS!$AE56=H$1,1,0),0) -> 0 | I59: =IF(LOADS!$AC56="BUS",IF(LOADS!$AE56=I$1,1,0),0) -> 0 | J59: 0 | K59: =LOADS!AM56 -> 0
A60: =IF(ISBLANK(LOADS!A57),"",LOADS!A57) ->  | B60: =IF(ISBLANK(LOADS!B57),"",LOADS!B57) ->  | C60: =IF(LOADS!$AC57="BUS",IF(LOADS!$AE57=C$1,1,0),0) -> 0 | D60: =IF(LOADS!$AC57="BUS",IF(LOADS!$AE57=D$1,1,0),0) -> 0 | E60: =IF(LOADS!$AC57="BUS",IF(LOADS!$AE57=E$1,1,0),0) -> 0 | F60: =IF(LOADS!$AC57="BUS",IF(LOADS!$AE57=F$1,1,0),0) -> 0 | G60: =IF(LOADS!$AC57="BUS",IF(LOADS!$AE57=G$1,1,0),0) -> 0 | H60: =IF(LOADS!$AC57="BUS",IF(LOADS!$AE57=H$1,1,0),0) -> 0 | I60: =IF(LOADS!$AC57="BUS",IF(LOADS!$AE57=I$1,1,0),0) -> 0 | J60: 0 | K60: =LOADS!AM57 -> 0
A61: =IF(ISBLANK(LOADS!A58),"",LOADS!A58) ->  | B61: =IF(ISBLANK(LOADS!B58),"",LOADS!B58) ->  | C61: =IF(LOADS!$AC58="BUS",IF(LOADS!$AE58=C$1,1,0),0) -> 0 | D61: =IF(LOADS!$AC58="BUS",IF(LOADS!$AE58=D$1,1,0),0) -> 0 | E61: =IF(LOADS!$AC58="BUS",IF(LOADS!$AE58=E$1,1,0),0) -> 0 | F61: =IF(LOADS!$AC58="BUS",IF(LOADS!$AE58=F$1,1,0),0) -> 0 | G61: =IF(LOADS!$AC58="BUS",IF(LOADS!$AE58=G$1,1,0),0) -> 0 | H61: =IF(LOADS!$AC58="BUS",IF(LOADS!$AE58=H$1,1,0),0) -> 0 | I61: =IF(LOADS!$AC58="BUS",IF(LOADS!$AE58=I$1,1,0),0) -> 0 | J61: 0 | K61: =LOADS!AM58 -> 0
A62: =IF(ISBLANK(LOADS!A59),"",LOADS!A59) ->  | B62: =IF(ISBLANK(LOADS!B59),"",LOADS!B59) ->  | C62: =IF(LOADS!$AC59="BUS",IF(LOADS!$AE59=C$1,1,0),0) -> 0 | D62: =IF(LOADS!$AC59="BUS",IF(LOADS!$AE59=D$1,1,0),0) -> 0 | E62: =IF(LOADS!$AC59="BUS",IF(LOADS!$AE59=E$1,1,0),0) -> 0 | F62: =IF(LOADS!$AC59="BUS",IF(LOADS!$AE59=F$1,1,0),0) -> 0 | G62: =IF(LOADS!$AC59="BUS",IF(LOADS!$AE59=G$1,1,0),0) -> 0 | H62: =IF(LOADS!$AC59="BUS",IF(LOADS!$AE59=H$1,1,0),0) -> 0 | I62: =IF(LOADS!$AC59="BUS",IF(LOADS!$AE59=I$1,1,0),0) -> 0 | J62: 0 | K62: =LOADS!AM59 -> 0
A63: =IF(ISBLANK(LOADS!A60),"",LOADS!A60) ->  | B63: =IF(ISBLANK(LOADS!B60),"",LOADS!B60) ->  | C63: =IF(LOADS!$AC60="BUS",IF(LOADS!$AE60=C$1,1,0),0) -> 0 | D63: =IF(LOADS!$AC60="BUS",IF(LOADS!$AE60=D$1,1,0),0) -> 0 | E63: =IF(LOADS!$AC60="BUS",IF(LOADS!$AE60=E$1,1,0),0) -> 0 | F63: =IF(LOADS!$AC60="BUS",IF(LOADS!$AE60=F$1,1,0),0) -> 0 | G63: =IF(LOADS!$AC60="BUS",IF(LOADS!$AE60=G$1,1,0),0) -> 0 | H63: =IF(LOADS!$AC60="BUS",IF(LOADS!$AE60=H$1,1,0),0) -> 0 | I63: =IF(LOADS!$AC60="BUS",IF(LOADS!$AE60=I$1,1,0),0) -> 0 | J63: 0 | K63: =LOADS!AM60 -> 0
A64: =IF(ISBLANK(LOADS!A61),"",LOADS!A61) ->  | B64: =IF(ISBLANK(LOADS!B61),"",LOADS!B61) ->  | C64: =IF(LOADS!$AC61="BUS",IF(LOADS!$AE61=C$1,1,0),0) -> 0 | D64: =IF(LOADS!$AC61="BUS",IF(LOADS!$AE61=D$1,1,0),0) -> 0 | E64: =IF(LOADS!$AC61="BUS",IF(LOADS!$AE61=E$1,1,0),0) -> 0 | F64: =IF(LOADS!$AC61="BUS",IF(LOADS!$AE61=F$1,1,0),0) -> 0 | G64: =IF(LOADS!$AC61="BUS",IF(LOADS!$AE61=G$1,1,0),0) -> 0 | H64: =IF(LOADS!$AC61="BUS",IF(LOADS!$AE61=H$1,1,0),0) -> 0 | I64: =IF(LOADS!$AC61="BUS",IF(LOADS!$AE61=I$1,1,0),0) -> 0 | J64: 0 | K64: =LOADS!AM61 -> 0
A65: =IF(ISBLANK(LOADS!A62),"",LOADS!A62) ->  | B65: =IF(ISBLANK(LOADS!B62),"",LOADS!B62) ->  | C65: =IF(LOADS!$AC62="BUS",IF(LOADS!$AE62=C$1,1,0),0) -> 0 | D65: =IF(LOADS!$AC62="BUS",IF(LOADS!$AE62=D$1,1,0),0) -> 0 | E65: =IF(LOADS!$AC62="BUS",IF(LOADS!$AE62=E$1,1,0),0) -> 0 | F65: =IF(LOADS!$AC62="BUS",IF(LOADS!$AE62=F$1,1,0),0) -> 0 | G65: =IF(LOADS!$AC62="BUS",IF(LOADS!$AE62=G$1,1,0),0) -> 0 | H65: =IF(LOADS!$AC62="BUS",IF(LOADS!$AE62=H$1,1,0),0) -> 0 | I65: =IF(LOADS!$AC62="BUS",IF(LOADS!$AE62=I$1,1,0),0) -> 0 | J65: 0 | K65: =LOADS!AM62 -> 0
A66: =IF(ISBLANK(LOADS!A63),"",LOADS!A63) ->  | B66: =IF(ISBLANK(LOADS!B63),"",LOADS!B63) ->  | C66: =IF(LOADS!$AC63="BUS",IF(LOADS!$AE63=C$1,1,0),0) -> 0 | D66: =IF(LOADS!$AC63="BUS",IF(LOADS!$AE63=D$1,1,0),0) -> 0 | E66: =IF(LOADS!$AC63="BUS",IF(LOADS!$AE63=E$1,1,0),0) -> 0 | F66: =IF(LOADS!$AC63="BUS",IF(LOADS!$AE63=F$1,1,0),0) -> 0 | G66: =IF(LOADS!$AC63="BUS",IF(LOADS!$AE63=G$1,1,0),0) -> 0 | H66: =IF(LOADS!$AC63="BUS",IF(LOADS!$AE63=H$1,1,0),0) -> 0 | I66: =IF(LOADS!$AC63="BUS",IF(LOADS!$AE63=I$1,1,0),0) -> 0 | J66: 0 | K66: =LOADS!AM63 -> 0
A67: =IF(ISBLANK(LOADS!A64),"",LOADS!A64) ->  | B67: =IF(ISBLANK(LOADS!B64),"",LOADS!B64) ->  | C67: =IF(LOADS!$AC64="BUS",IF(LOADS!$AE64=C$1,1,0),0) -> 0 | D67: =IF(LOADS!$AC64="BUS",IF(LOADS!$AE64=D$1,1,0),0) -> 0 | E67: =IF(LOADS!$AC64="BUS",IF(LOADS!$AE64=E$1,1,0),0) -> 0 | F67: =IF(LOADS!$AC64="BUS",IF(LOADS!$AE64=F$1,1,0),0) -> 0 | G67: =IF(LOADS!$AC64="BUS",IF(LOADS!$AE64=G$1,1,0),0) -> 0 | H67: =IF(LOADS!$AC64="BUS",IF(LOADS!$AE64=H$1,1,0),0) -> 0 | I67: =IF(LOADS!$AC64="BUS",IF(LOADS!$AE64=I$1,1,0),0) -> 0 | J67: 0 | K67: =LOADS!AM64 -> 0
A68: =IF(ISBLANK(LOADS!A65),"",LOADS!A65) ->  | B68: =IF(ISBLANK(LOADS!B65),"",LOADS!B65) ->  | C68: =IF(LOADS!$AC65="BUS",IF(LOADS!$AE65=C$1,1,0),0) -> 0 | D68: =IF(LOADS!$AC65="BUS",IF(LOADS!$AE65=D$1,1,0),0) -> 0 | E68: =IF(LOADS!$AC65="BUS",IF(LOADS!$AE65=E$1,1,0),0) -> 0 | F68: =IF(LOADS!$AC65="BUS",IF(LOADS!$AE65=F$1,1,0),0) -> 0 | G68: =IF(LOADS!$AC65="BUS",IF(LOADS!$AE65=G$1,1,0),0) -> 0 | H68: =IF(LOADS!$AC65="BUS",IF(LOADS!$AE65=H$1,1,0),0) -> 0 | I68: =IF(LOADS!$AC65="BUS",IF(LOADS!$AE65=I$1,1,0),0) -> 0 | J68: 0 | K68: =LOADS!AM65 -> 0
A69: =IF(ISBLANK(LOADS!A66),"",LOADS!A66) ->  | B69: =IF(ISBLANK(LOADS!B66),"",LOADS!B66) ->  | C69: =IF(LOADS!$AC66="BUS",IF(LOADS!$AE66=C$1,1,0),0) -> 0 | D69: =IF(LOADS!$AC66="BUS",IF(LOADS!$AE66=D$1,1,0),0) -> 0 | E69: =IF(LOADS!$AC66="BUS",IF(LOADS!$AE66=E$1,1,0),0) -> 0 | F69: =IF(LOADS!$AC66="BUS",IF(LOADS!$AE66=F$1,1,0),0) -> 0 | G69: =IF(LOADS!$AC66="BUS",IF(LOADS!$AE66=G$1,1,0),0) -> 0 | H69: =IF(LOADS!$AC66="BUS",IF(LOADS!$AE66=H$1,1,0),0) -> 0 | I69: =IF(LOADS!$AC66="BUS",IF(LOADS!$AE66=I$1,1,0),0) -> 0 | J69: =SUM(C69:I69) -> 0 | K69: =LOADS!AM66 -> 0
A70: =IF(ISBLANK(LOADS!A67),"",LOADS!A67) ->  | B70: =IF(ISBLANK(LOADS!B67),"",LOADS!B67) ->  | C70: =IF(LOADS!$AC67="BUS",IF(LOADS!$AE67=C$1,1,0),0) -> 0 | D70: =IF(LOADS!$AC67="BUS",IF(LOADS!$AE67=D$1,1,0),0) -> 0 | E70: =IF(LOADS!$AC67="BUS",IF(LOADS!$AE67=E$1,1,0),0) -> 0 | F70: =IF(LOADS!$AC67="BUS",IF(LOADS!$AE67=F$1,1,0),0) -> 0 | G70: =IF(LOADS!$AC67="BUS",IF(LOADS!$AE67=G$1,1,0),0) -> 0 | H70: =IF(LOADS!$AC67="BUS",IF(LOADS!$AE67=H$1,1,0),0) -> 0 | I70: =IF(LOADS!$AC67="BUS",IF(LOADS!$AE67=I$1,1,0),0) -> 0 | J70: 0 | K70: =LOADS!AM67 -> 0
A71: =IF(ISBLANK(LOADS!A68),"",LOADS!A68) ->  | B71: =IF(ISBLANK(LOADS!B68),"",LOADS!B68) ->  | C71: =IF(LOADS!$AC68="BUS",IF(LOADS!$AE68=C$1,1,0),0) -> 0 | D71: =IF(LOADS!$AC68="BUS",IF(LOADS!$AE68=D$1,1,0),0) -> 0 | E71: =IF(LOADS!$AC68="BUS",IF(LOADS!$AE68=E$1,1,0),0) -> 0 | F71: =IF(LOADS!$AC68="BUS",IF(LOADS!$AE68=F$1,1,0),0) -> 0 | G71: =IF(LOADS!$AC68="BUS",IF(LOADS!$AE68=G$1,1,0),0) -> 0 | H71: =IF(LOADS!$AC68="BUS",IF(LOADS!$AE68=H$1,1,0),0) -> 0 | I71: =IF(LOADS!$AC68="BUS",IF(LOADS!$AE68=I$1,1,0),0) -> 0 | J71: 0 | K71: =LOADS!AM68 -> 0
A72: =IF(ISBLANK(LOADS!A69),"",LOADS!A69) ->  | B72: =IF(ISBLANK(LOADS!B69),"",LOADS!B69) ->  | C72: =IF(LOADS!$AC69="BUS",IF(LOADS!$AE69=C$1,1,0),0) -> 0 | D72: =IF(LOADS!$AC69="BUS",IF(LOADS!$AE69=D$1,1,0),0) -> 0 | E72: =IF(LOADS!$AC69="BUS",IF(LOADS!$AE69=E$1,1,0),0) -> 0 | F72: =IF(LOADS!$AC69="BUS",IF(LOADS!$AE69=F$1,1,0),0) -> 0 | G72: =IF(LOADS!$AC69="BUS",IF(LOADS!$AE69=G$1,1,0),0) -> 0 | H72: =IF(LOADS!$AC69="BUS",IF(LOADS!$AE69=H$1,1,0),0) -> 0 | I72: =IF(LOADS!$AC69="BUS",IF(LOADS!$AE69=I$1,1,0),0) -> 0 | J72: 0 | K72: =LOADS!AM69 -> 0
A73: =IF(ISBLANK(LOADS!A70),"",LOADS!A70) ->  | B73: =IF(ISBLANK(LOADS!B70),"",LOADS!B70) ->  | C73: =IF(LOADS!$AC70="BUS",IF(LOADS!$AE70=C$1,1,0),0) -> 0 | D73: =IF(LOADS!$AC70="BUS",IF(LOADS!$AE70=D$1,1,0),0) -> 0 | E73: =IF(LOADS!$AC70="BUS",IF(LOADS!$AE70=E$1,1,0),0) -> 0 | F73: =IF(LOADS!$AC70="BUS",IF(LOADS!$AE70=F$1,1,0),0) -> 0 | G73: =IF(LOADS!$AC70="BUS",IF(LOADS!$AE70=G$1,1,0),0) -> 0 | H73: =IF(LOADS!$AC70="BUS",IF(LOADS!$AE70=H$1,1,0),0) -> 0 | I73: =IF(LOADS!$AC70="BUS",IF(LOADS!$AE70=I$1,1,0),0) -> 0 | J73: 0 | K73: =LOADS!AM70 -> 0
A74: =IF(ISBLANK(LOADS!A71),"",LOADS!A71) ->  | B74: =IF(ISBLANK(LOADS!B71),"",LOADS!B71) ->  | C74: =IF(LOADS!$AC71="BUS",IF(LOADS!$AE71=C$1,1,0),0) -> 0 | D74: =IF(LOADS!$AC71="BUS",IF(LOADS!$AE71=D$1,1,0),0) -> 0 | E74: =IF(LOADS!$AC71="BUS",IF(LOADS!$AE71=E$1,1,0),0) -> 0 | F74: =IF(LOADS!$AC71="BUS",IF(LOADS!$AE71=F$1,1,0),0) -> 0 | G74: =IF(LOADS!$AC71="BUS",IF(LOADS!$AE71=G$1,1,0),0) -> 0 | H74: =IF(LOADS!$AC71="BUS",IF(LOADS!$AE71=H$1,1,0),0) -> 0 | I74: =IF(LOADS!$AC71="BUS",IF(LOADS!$AE71=I$1,1,0),0) -> 0 | J74: 0 | K74: =LOADS!AM71 -> 0
A75: =IF(ISBLANK(LOADS!A72),"",LOADS!A72) ->  | B75: =IF(ISBLANK(LOADS!B72),"",LOADS!B72) ->  | C75: =IF(LOADS!$AC72="BUS",IF(LOADS!$AE72=C$1,1,0),0) -> 0 | D75: =IF(LOADS!$AC72="BUS",IF(LOADS!$AE72=D$1,1,0),0) -> 0 | E75: =IF(LOADS!$AC72="BUS",IF(LOADS!$AE72=E$1,1,0),0) -> 0 | F75: =IF(LOADS!$AC72="BUS",IF(LOADS!$AE72=F$1,1,0),0) -> 0 | G75: =IF(LOADS!$AC72="BUS",IF(LOADS!$AE72=G$1,1,0),0) -> 0 | H75: =IF(LOADS!$AC72="BUS",IF(LOADS!$AE72=H$1,1,0),0) -> 0 | I75: =IF(LOADS!$AC72="BUS",IF(LOADS!$AE72=I$1,1,0),0) -> 0 | J75: 0 | K75: =LOADS!AM72 -> 0
A76: =IF(ISBLANK(LOADS!A73),"",LOADS!A73) ->  | B76: =IF(ISBLANK(LOADS!B73),"",LOADS!B73) ->  | C76: =IF(LOADS!$AC73="BUS",IF(LOADS!$AE73=C$1,1,0),0) -> 0 | D76: =IF(LOADS!$AC73="BUS",IF(LOADS!$AE73=D$1,1,0),0) -> 0 | E76: =IF(LOADS!$AC73="BUS",IF(LOADS!$AE73=E$1,1,0),0) -> 0 | F76: =IF(LOADS!$AC73="BUS",IF(LOADS!$AE73=F$1,1,0),0) -> 0 | G76: =IF(LOADS!$AC73="BUS",IF(LOADS!$AE73=G$1,1,0),0) -> 0 | H76: =IF(LOADS!$AC73="BUS",IF(LOADS!$AE73=H$1,1,0),0) -> 0 | I76: =IF(LOADS!$AC73="BUS",IF(LOADS!$AE73=I$1,1,0),0) -> 0 | J76: 0 | K76: =LOADS!AM73 -> 0
A77: =IF(ISBLANK(LOADS!A74),"",LOADS!A74) ->  | B77: =IF(ISBLANK(LOADS!B74),"",LOADS!B74) ->  | C77: =IF(LOADS!$AC74="BUS",IF(LOADS!$AE74=C$1,1,0),0) -> 0 | D77: =IF(LOADS!$AC74="BUS",IF(LOADS!$AE74=D$1,1,0),0) -> 0 | E77: =IF(LOADS!$AC74="BUS",IF(LOADS!$AE74=E$1,1,0),0) -> 0 | F77: =IF(LOADS!$AC74="BUS",IF(LOADS!$AE74=F$1,1,0),0) -> 0 | G77: =IF(LOADS!$AC74="BUS",IF(LOADS!$AE74=G$1,1,0),0) -> 0 | H77: =IF(LOADS!$AC74="BUS",IF(LOADS!$AE74=H$1,1,0),0) -> 0 | I77: =IF(LOADS!$AC74="BUS",IF(LOADS!$AE74=I$1,1,0),0) -> 0 | J77: 0 | K77: =LOADS!AM74 -> 0
A78: =IF(ISBLANK(LOADS!A75),"",LOADS!A75) ->  | B78: =IF(ISBLANK(LOADS!B75),"",LOADS!B75) ->  | C78: =IF(LOADS!$AC75="BUS",IF(LOADS!$AE75=C$1,1,0),0) -> 0 | D78: =IF(LOADS!$AC75="BUS",IF(LOADS!$AE75=D$1,1,0),0) -> 0 | E78: =IF(LOADS!$AC75="BUS",IF(LOADS!$AE75=E$1,1,0),0) -> 0 | F78: =IF(LOADS!$AC75="BUS",IF(LOADS!$AE75=F$1,1,0),0) -> 0 | G78: =IF(LOADS!$AC75="BUS",IF(LOADS!$AE75=G$1,1,0),0) -> 0 | H78: =IF(LOADS!$AC75="BUS",IF(LOADS!$AE75=H$1,1,0),0) -> 0 | I78: =IF(LOADS!$AC75="BUS",IF(LOADS!$AE75=I$1,1,0),0) -> 0 | J78: 0 | K78: =LOADS!AM75 -> 0
A79: =IF(ISBLANK(LOADS!A76),"",LOADS!A76) ->  | B79: =IF(ISBLANK(LOADS!B76),"",LOADS!B76) ->  | C79: =IF(LOADS!$AC76="BUS",IF(LOADS!$AE76=C$1,1,0),0) -> 0 | D79: =IF(LOADS!$AC76="BUS",IF(LOADS!$AE76=D$1,1,0),0) -> 0 | E79: =IF(LOADS!$AC76="BUS",IF(LOADS!$AE76=E$1,1,0),0) -> 0 | F79: =IF(LOADS!$AC76="BUS",IF(LOADS!$AE76=F$1,1,0),0) -> 0 | G79: =IF(LOADS!$AC76="BUS",IF(LOADS!$AE76=G$1,1,0),0) -> 0 | H79: =IF(LOADS!$AC76="BUS",IF(LOADS!$AE76=H$1,1,0),0) -> 0 | I79: =IF(LOADS!$AC76="BUS",IF(LOADS!$AE76=I$1,1,0),0) -> 0 | J79: 0 | K79: =LOADS!AM76 -> 0
A80: =IF(ISBLANK(LOADS!A77),"",LOADS!A77) ->  | B80: =IF(ISBLANK(LOADS!B77),"",LOADS!B77) ->  | C80: =IF(LOADS!$AC77="BUS",IF(LOADS!$AE77=C$1,1,0),0) -> 0 | D80: =IF(LOADS!$AC77="BUS",IF(LOADS!$AE77=D$1,1,0),0) -> 0 | E80: =IF(LOADS!$AC77="BUS",IF(LOADS!$AE77=E$1,1,0),0) -> 0 | F80: =IF(LOADS!$AC77="BUS",IF(LOADS!$AE77=F$1,1,0),0) -> 0 | G80: =IF(LOADS!$AC77="BUS",IF(LOADS!$AE77=G$1,1,0),0) -> 0 | H80: =IF(LOADS!$AC77="BUS",IF(LOADS!$AE77=H$1,1,0),0) -> 0 | I80: =IF(LOADS!$AC77="BUS",IF(LOADS!$AE77=I$1,1,0),0) -> 0 | J80: 0 | K80: =LOADS!AM77 -> 0
A81: =IF(ISBLANK(LOADS!A78),"",LOADS!A78) ->  | B81: =IF(ISBLANK(LOADS!B78),"",LOADS!B78) ->  | C81: =IF(LOADS!$AC78="BUS",IF(LOADS!$AE78=C$1,1,0),0) -> 0 | D81: =IF(LOADS!$AC78="BUS",IF(LOADS!$AE78=D$1,1,0),0) -> 0 | E81: =IF(LOADS!$AC78="BUS",IF(LOADS!$AE78=E$1,1,0),0) -> 0 | F81: =IF(LOADS!$AC78="BUS",IF(LOADS!$AE78=F$1,1,0),0) -> 0 | G81: =IF(LOADS!$AC78="BUS",IF(LOADS!$AE78=G$1,1,0),0) -> 0 | H81: =IF(LOADS!$AC78="BUS",IF(LOADS!$AE78=H$1,1,0),0) -> 0 | I81: =IF(LOADS!$AC78="BUS",IF(LOADS!$AE78=I$1,1,0),0) -> 0 | J81: 0 | K81: =LOADS!AM78 -> 0
A82: =IF(ISBLANK(LOADS!A79),"",LOADS!A79) ->  | B82: =IF(ISBLANK(LOADS!B79),"",LOADS!B79) ->  | C82: =IF(LOADS!$AC79="BUS",IF(LOADS!$AE79=C$1,1,0),0) -> 0 | D82: =IF(LOADS!$AC79="BUS",IF(LOADS!$AE79=D$1,1,0),0) -> 0 | E82: =IF(LOADS!$AC79="BUS",IF(LOADS!$AE79=E$1,1,0),0) -> 0 | F82: =IF(LOADS!$AC79="BUS",IF(LOADS!$AE79=F$1,1,0),0) -> 0 | G82: =IF(LOADS!$AC79="BUS",IF(LOADS!$AE79=G$1,1,0),0) -> 0 | H82: =IF(LOADS!$AC79="BUS",IF(LOADS!$AE79=H$1,1,0),0) -> 0 | I82: =IF(LOADS!$AC79="BUS",IF(LOADS!$AE79=I$1,1,0),0) -> 0 | J82: 0 | K82: =LOADS!AM79 -> 0
A83: =IF(ISBLANK(LOADS!A80),"",LOADS!A80) ->  | B83: =IF(ISBLANK(LOADS!B80),"",LOADS!B80) ->  | C83: =IF(LOADS!$AC80="BUS",IF(LOADS!$AE80=C$1,1,0),0) -> 0 | D83: =IF(LOADS!$AC80="BUS",IF(LOADS!$AE80=D$1,1,0),0) -> 0 | E83: =IF(LOADS!$AC80="BUS",IF(LOADS!$AE80=E$1,1,0),0) -> 0 | F83: =IF(LOADS!$AC80="BUS",IF(LOADS!$AE80=F$1,1,0),0) -> 0 | G83: =IF(LOADS!$AC80="BUS",IF(LOADS!$AE80=G$1,1,0),0) -> 0 | H83: =IF(LOADS!$AC80="BUS",IF(LOADS!$AE80=H$1,1,0),0) -> 0 | I83: =IF(LOADS!$AC80="BUS",IF(LOADS!$AE80=I$1,1,0),0) -> 0 | J83: 0 | K83: =LOADS!AM80 -> 0
A84: =IF(ISBLANK(LOADS!A81),"",LOADS!A81) ->  | B84: =IF(ISBLANK(LOADS!B81),"",LOADS!B81) ->  | C84: =IF(LOADS!$AC81="BUS",IF(LOADS!$AE81=C$1,1,0),0) -> 0 | D84: =IF(LOADS!$AC81="BUS",IF(LOADS!$AE81=D$1,1,0),0) -> 0 | E84: =IF(LOADS!$AC81="BUS",IF(LOADS!$AE81=E$1,1,0),0) -> 0 | F84: =IF(LOADS!$AC81="BUS",IF(LOADS!$AE81=F$1,1,0),0) -> 0 | G84: =IF(LOADS!$AC81="BUS",IF(LOADS!$AE81=G$1,1,0),0) -> 0 | H84: =IF(LOADS!$AC81="BUS",IF(LOADS!$AE81=H$1,1,0),0) -> 0 | I84: =IF(LOADS!$AC81="BUS",IF(LOADS!$AE81=I$1,1,0),0) -> 0 | J84: 0 | K84: =LOADS!AM81 -> 0
A85: =IF(ISBLANK(LOADS!A82),"",LOADS!A82) ->  | B85: =IF(ISBLANK(LOADS!B82),"",LOADS!B82) ->  | C85: =IF(LOADS!$AC82="BUS",IF(LOADS!$AE82=C$1,1,0),0) -> 0 | D85: =IF(LOADS!$AC82="BUS",IF(LOADS!$AE82=D$1,1,0),0) -> 0 | E85: =IF(LOADS!$AC82="BUS",IF(LOADS!$AE82=E$1,1,0),0) -> 0 | F85: =IF(LOADS!$AC82="BUS",IF(LOADS!$AE82=F$1,1,0),0) -> 0 | G85: =IF(LOADS!$AC82="BUS",IF(LOADS!$AE82=G$1,1,0),0) -> 0 | H85: =IF(LOADS!$AC82="BUS",IF(LOADS!$AE82=H$1,1,0),0) -> 0 | I85: =IF(LOADS!$AC82="BUS",IF(LOADS!$AE82=I$1,1,0),0) -> 0 | J85: 0 | K85: =LOADS!AM82 -> 0
A86: =IF(ISBLANK(LOADS!A83),"",LOADS!A83) ->  | B86: =IF(ISBLANK(LOADS!B83),"",LOADS!B83) ->  | C86: =IF(LOADS!$AC83="BUS",IF(LOADS!$AE83=C$1,1,0),0) -> 0 | D86: =IF(LOADS!$AC83="BUS",IF(LOADS!$AE83=D$1,1,0),0) -> 0 | E86: =IF(LOADS!$AC83="BUS",IF(LOADS!$AE83=E$1,1,0),0) -> 0 | F86: =IF(LOADS!$AC83="BUS",IF(LOADS!$AE83=F$1,1,0),0) -> 0 | G86: =IF(LOADS!$AC83="BUS",IF(LOADS!$AE83=G$1,1,0),0) -> 0 | H86: =IF(LOADS!$AC83="BUS",IF(LOADS!$AE83=H$1,1,0),0) -> 0 | I86: =IF(LOADS!$AC83="BUS",IF(LOADS!$AE83=I$1,1,0),0) -> 0 | J86: 0 | K86: =LOADS!AM83 -> 0
A87: =IF(ISBLANK(LOADS!A84),"",LOADS!A84) ->  | B87: =IF(ISBLANK(LOADS!B84),"",LOADS!B84) ->  | C87: =IF(LOADS!$AC84="BUS",IF(LOADS!$AE84=C$1,1,0),0) -> 0 | D87: =IF(LOADS!$AC84="BUS",IF(LOADS!$AE84=D$1,1,0),0) -> 0 | E87: =IF(LOADS!$AC84="BUS",IF(LOADS!$AE84=E$1,1,0),0) -> 0 | F87: =IF(LOADS!$AC84="BUS",IF(LOADS!$AE84=F$1,1,0),0) -> 0 | G87: =IF(LOADS!$AC84="BUS",IF(LOADS!$AE84=G$1,1,0),0) -> 0 | H87: =IF(LOADS!$AC84="BUS",IF(LOADS!$AE84=H$1,1,0),0) -> 0 | I87: =IF(LOADS!$AC84="BUS",IF(LOADS!$AE84=I$1,1,0),0) -> 0 | J87: 0 | K87: =LOADS!AM84 -> 0
A88: =IF(ISBLANK(LOADS!A85),"",LOADS!A85) ->  | B88: =IF(ISBLANK(LOADS!B85),"",LOADS!B85) ->  | C88: =IF(LOADS!$AC85="BUS",IF(LOADS!$AE85=C$1,1,0),0) -> 0 | D88: =IF(LOADS!$AC85="BUS",IF(LOADS!$AE85=D$1,1,0),0) -> 0 | E88: =IF(LOADS!$AC85="BUS",IF(LOADS!$AE85=E$1,1,0),0) -> 0 | F88: =IF(LOADS!$AC85="BUS",IF(LOADS!$AE85=F$1,1,0),0) -> 0 | G88: =IF(LOADS!$AC85="BUS",IF(LOADS!$AE85=G$1,1,0),0) -> 0 | H88: =IF(LOADS!$AC85="BUS",IF(LOADS!$AE85=H$1,1,0),0) -> 0 | I88: =IF(LOADS!$AC85="BUS",IF(LOADS!$AE85=I$1,1,0),0) -> 0 | J88: 0 | K88: =LOADS!AM85 -> 0
A89: =IF(ISBLANK(LOADS!A86),"",LOADS!A86) ->  | B89: =IF(ISBLANK(LOADS!B86),"",LOADS!B86) ->  | C89: =IF(LOADS!$AC86="BUS",IF(LOADS!$AE86=C$1,1,0),0) -> 0 | D89: =IF(LOADS!$AC86="BUS",IF(LOADS!$AE86=D$1,1,0),0) -> 0 | E89: =IF(LOADS!$AC86="BUS",IF(LOADS!$AE86=E$1,1,0),0) -> 0 | F89: =IF(LOADS!$AC86="BUS",IF(LOADS!$AE86=F$1,1,0),0) -> 0 | G89: =IF(LOADS!$AC86="BUS",IF(LOADS!$AE86=G$1,1,0),0) -> 0 | H89: =IF(LOADS!$AC86="BUS",IF(LOADS!$AE86=H$1,1,0),0) -> 0 | I89: =IF(LOADS!$AC86="BUS",IF(LOADS!$AE86=I$1,1,0),0) -> 0 | J89: 0 | K89: =LOADS!AM86 -> 0
A90: =IF(ISBLANK(LOADS!A87),"",LOADS!A87) ->  | B90: =IF(ISBLANK(LOADS!B87),"",LOADS!B87) ->  | C90: =IF(LOADS!$AC87="BUS",IF(LOADS!$AE87=C$1,1,0),0) -> 0 | D90: =IF(LOADS!$AC87="BUS",IF(LOADS!$AE87=D$1,1,0),0) -> 0 | E90: =IF(LOADS!$AC87="BUS",IF(LOADS!$AE87=E$1,1,0),0) -> 0 | F90: =IF(LOADS!$AC87="BUS",IF(LOADS!$AE87=F$1,1,0),0) -> 0 | G90: =IF(LOADS!$AC87="BUS",IF(LOADS!$AE87=G$1,1,0),0) -> 0 | H90: =IF(LOADS!$AC87="BUS",IF(LOADS!$AE87=H$1,1,0),0) -> 0 | I90: =IF(LOADS!$AC87="BUS",IF(LOADS!$AE87=I$1,1,0),0) -> 0 | J90: 0 | K90: =LOADS!AM87 -> 0
A91: =IF(ISBLANK(LOADS!A88),"",LOADS!A88) ->  | B91: =IF(ISBLANK(LOADS!B88),"",LOADS!B88) ->  | C91: =IF(LOADS!$AC88="BUS",IF(LOADS!$AE88=C$1,1,0),0) -> 0 | D91: =IF(LOADS!$AC88="BUS",IF(LOADS!$AE88=D$1,1,0),0) -> 0 | E91: =IF(LOADS!$AC88="BUS",IF(LOADS!$AE88=E$1,1,0),0) -> 0 | F91: =IF(LOADS!$AC88="BUS",IF(LOADS!$AE88=F$1,1,0),0) -> 0 | G91: =IF(LOADS!$AC88="BUS",IF(LOADS!$AE88=G$1,1,0),0) -> 0 | H91: =IF(LOADS!$AC88="BUS",IF(LOADS!$AE88=H$1,1,0),0) -> 0 | I91: =IF(LOADS!$AC88="BUS",IF(LOADS!$AE88=I$1,1,0),0) -> 0 | J91: 0 | K91: =LOADS!AM88 -> 0
A92: =IF(ISBLANK(LOADS!A89),"",LOADS!A89) ->  | B92: =IF(ISBLANK(LOADS!B89),"",LOADS!B89) ->  | C92: =IF(LOADS!$AC89="BUS",IF(LOADS!$AE89=C$1,1,0),0) -> 0 | D92: =IF(LOADS!$AC89="BUS",IF(LOADS!$AE89=D$1,1,0),0) -> 0 | E92: =IF(LOADS!$AC89="BUS",IF(LOADS!$AE89=E$1,1,0),0) -> 0 | F92: =IF(LOADS!$AC89="BUS",IF(LOADS!$AE89=F$1,1,0),0) -> 0 | G92: =IF(LOADS!$AC89="BUS",IF(LOADS!$AE89=G$1,1,0),0) -> 0 | H92: =IF(LOADS!$AC89="BUS",IF(LOADS!$AE89=H$1,1,0),0) -> 0 | I92: =IF(LOADS!$AC89="BUS",IF(LOADS!$AE89=I$1,1,0),0) -> 0 | J92: 0 | K92: =LOADS!AM89 -> 0
A93: =IF(ISBLANK(LOADS!A90),"",LOADS!A90) ->  | B93: =IF(ISBLANK(LOADS!B90),"",LOADS!B90) ->  | C93: =IF(LOADS!$AC90="BUS",IF(LOADS!$AE90=C$1,1,0),0) -> 0 | D93: =IF(LOADS!$AC90="BUS",IF(LOADS!$AE90=D$1,1,0),0) -> 0 | E93: =IF(LOADS!$AC90="BUS",IF(LOADS!$AE90=E$1,1,0),0) -> 0 | F93: =IF(LOADS!$AC90="BUS",IF(LOADS!$AE90=F$1,1,0),0) -> 0 | G93: =IF(LOADS!$AC90="BUS",IF(LOADS!$AE90=G$1,1,0),0) -> 0 | H93: =IF(LOADS!$AC90="BUS",IF(LOADS!$AE90=H$1,1,0),0) -> 0 | I93: =IF(LOADS!$AC90="BUS",IF(LOADS!$AE90=I$1,1,0),0) -> 0 | J93: 0 | K93: =LOADS!AM90 -> 0
A94: =IF(ISBLANK(LOADS!A91),"",LOADS!A91) ->  | B94: =IF(ISBLANK(LOADS!B91),"",LOADS!B91) ->  | C94: =IF(LOADS!$AC91="BUS",IF(LOADS!$AE91=C$1,1,0),0) -> 0 | D94: =IF(LOADS!$AC91="BUS",IF(LOADS!$AE91=D$1,1,0),0) -> 0 | E94: =IF(LOADS!$AC91="BUS",IF(LOADS!$AE91=E$1,1,0),0) -> 0 | F94: =IF(LOADS!$AC91="BUS",IF(LOADS!$AE91=F$1,1,0),0) -> 0 | G94: =IF(LOADS!$AC91="BUS",IF(LOADS!$AE91=G$1,1,0),0) -> 0 | H94: =IF(LOADS!$AC91="BUS",IF(LOADS!$AE91=H$1,1,0),0) -> 0 | I94: =IF(LOADS!$AC91="BUS",IF(LOADS!$AE91=I$1,1,0),0) -> 0 | J94: 0 | K94: =LOADS!AM91 -> 0
A95: =IF(ISBLANK(LOADS!A92),"",LOADS!A92) ->  | B95: =IF(ISBLANK(LOADS!B92),"",LOADS!B92) ->  | C95: =IF(LOADS!$AC92="BUS",IF(LOADS!$AE92=C$1,1,0),0) -> 0 | D95: =IF(LOADS!$AC92="BUS",IF(LOADS!$AE92=D$1,1,0),0) -> 0 | E95: =IF(LOADS!$AC92="BUS",IF(LOADS!$AE92=E$1,1,0),0) -> 0 | F95: =IF(LOADS!$AC92="BUS",IF(LOADS!$AE92=F$1,1,0),0) -> 0 | G95: =IF(LOADS!$AC92="BUS",IF(LOADS!$AE92=G$1,1,0),0) -> 0 | H95: =IF(LOADS!$AC92="BUS",IF(LOADS!$AE92=H$1,1,0),0) -> 0 | I95: =IF(LOADS!$AC92="BUS",IF(LOADS!$AE92=I$1,1,0),0) -> 0 | J95: 0 | K95: =LOADS!AM92 -> 0
A96: =IF(ISBLANK(LOADS!A93),"",LOADS!A93) ->  | B96: =IF(ISBLANK(LOADS!B93),"",LOADS!B93) ->  | C96: =IF(LOADS!$AC93="BUS",IF(LOADS!$AE93=C$1,1,0),0) -> 0 | D96: =IF(LOADS!$AC93="BUS",IF(LOADS!$AE93=D$1,1,0),0) -> 0 | E96: =IF(LOADS!$AC93="BUS",IF(LOADS!$AE93=E$1,1,0),0) -> 0 | F96: =IF(LOADS!$AC93="BUS",IF(LOADS!$AE93=F$1,1,0),0) -> 0 | G96: =IF(LOADS!$AC93="BUS",IF(LOADS!$AE93=G$1,1,0),0) -> 0 | H96: =IF(LOADS!$AC93="BUS",IF(LOADS!$AE93=H$1,1,0),0) -> 0 | I96: =IF(LOADS!$AC93="BUS",IF(LOADS!$AE93=I$1,1,0),0) -> 0 | J96: 0 | K96: =LOADS!AM93 -> 0
A97: =IF(ISBLANK(LOADS!A94),"",LOADS!A94) ->  | B97: =IF(ISBLANK(LOADS!B94),"",LOADS!B94) ->  | C97: =IF(LOADS!$AC94="BUS",IF(LOADS!$AE94=C$1,1,0),0) -> 0 | D97: =IF(LOADS!$AC94="BUS",IF(LOADS!$AE94=D$1,1,0),0) -> 0 | E97: =IF(LOADS!$AC94="BUS",IF(LOADS!$AE94=E$1,1,0),0) -> 0 | F97: =IF(LOADS!$AC94="BUS",IF(LOADS!$AE94=F$1,1,0),0) -> 0 | G97: =IF(LOADS!$AC94="BUS",IF(LOADS!$AE94=G$1,1,0),0) -> 0 | H97: =IF(LOADS!$AC94="BUS",IF(LOADS!$AE94=H$1,1,0),0) -> 0 | I97: =IF(LOADS!$AC94="BUS",IF(LOADS!$AE94=I$1,1,0),0) -> 0 | J97: 0 | K97: =LOADS!AM94 -> 0
A98: =IF(ISBLANK(LOADS!A95),"",LOADS!A95) ->  | B98: =IF(ISBLANK(LOADS!B95),"",LOADS!B95) ->  | C98: =IF(LOADS!$AC95="BUS",IF(LOADS!$AE95=C$1,1,0),0) -> 0 | D98: =IF(LOADS!$AC95="BUS",IF(LOADS!$AE95=D$1,1,0),0) -> 0 | E98: =IF(LOADS!$AC95="BUS",IF(LOADS!$AE95=E$1,1,0),0) -> 0 | F98: =IF(LOADS!$AC95="BUS",IF(LOADS!$AE95=F$1,1,0),0) -> 0 | G98: =IF(LOADS!$AC95="BUS",IF(LOADS!$AE95=G$1,1,0),0) -> 0 | H98: =IF(LOADS!$AC95="BUS",IF(LOADS!$AE95=H$1,1,0),0) -> 0 | I98: =IF(LOADS!$AC95="BUS",IF(LOADS!$AE95=I$1,1,0),0) -> 0 | J98: 0 | K98: =LOADS!AM95 -> 0
A99: =IF(ISBLANK(LOADS!A96),"",LOADS!A96) ->  | B99: =IF(ISBLANK(LOADS!B96),"",LOADS!B96) ->  | C99: =IF(LOADS!$AC96="BUS",IF(LOADS!$AE96=C$1,1,0),0) -> 0 | D99: =IF(LOADS!$AC96="BUS",IF(LOADS!$AE96=D$1,1,0),0) -> 0 | E99: =IF(LOADS!$AC96="BUS",IF(LOADS!$AE96=E$1,1,0),0) -> 0 | F99: =IF(LOADS!$AC96="BUS",IF(LOADS!$AE96=F$1,1,0),0) -> 0 | G99: =IF(LOADS!$AC96="BUS",IF(LOADS!$AE96=G$1,1,0),0) -> 0 | H99: =IF(LOADS!$AC96="BUS",IF(LOADS!$AE96=H$1,1,0),0) -> 0 | I99: =IF(LOADS!$AC96="BUS",IF(LOADS!$AE96=I$1,1,0),0) -> 0 | J99: 0 | K99: =LOADS!AM96 -> 0
A100: =IF(ISBLANK(LOADS!A97),"",LOADS!A97) ->  | B100: =IF(ISBLANK(LOADS!B97),"",LOADS!B97) ->  | C100: =IF(LOADS!$AC97="BUS",IF(LOADS!$AE97=C$1,1,0),0) -> 0 | D100: =IF(LOADS!$AC97="BUS",IF(LOADS!$AE97=D$1,1,0),0) -> 0 | E100: =IF(LOADS!$AC97="BUS",IF(LOADS!$AE97=E$1,1,0),0) -> 0 | F100: =IF(LOADS!$AC97="BUS",IF(LOADS!$AE97=F$1,1,0),0) -> 0 | G100: =IF(LOADS!$AC97="BUS",IF(LOADS!$AE97=G$1,1,0),0) -> 0 | H100: =IF(LOADS!$AC97="BUS",IF(LOADS!$AE97=H$1,1,0),0) -> 0 | I100: =IF(LOADS!$AC97="BUS",IF(LOADS!$AE97=I$1,1,0),0) -> 0 | J100: 0 | K100: =LOADS!AM97 -> 0
A101: =IF(ISBLANK(LOADS!A98),"",LOADS!A98) ->  | B101: =IF(ISBLANK(LOADS!B98),"",LOADS!B98) ->  | C101: =IF(LOADS!$AC98="BUS",IF(LOADS!$AE98=C$1,1,0),0) -> 0 | D101: =IF(LOADS!$AC98="BUS",IF(LOADS!$AE98=D$1,1,0),0) -> 0 | E101: =IF(LOADS!$AC98="BUS",IF(LOADS!$AE98=E$1,1,0),0) -> 0 | F101: =IF(LOADS!$AC98="BUS",IF(LOADS!$AE98=F$1,1,0),0) -> 0 | G101: =IF(LOADS!$AC98="BUS",IF(LOADS!$AE98=G$1,1,0),0) -> 0 | H101: =IF(LOADS!$AC98="BUS",IF(LOADS!$AE98=H$1,1,0),0) -> 0 | I101: =IF(LOADS!$AC98="BUS",IF(LOADS!$AE98=I$1,1,0),0) -> 0 | J101: 0 | K101: =LOADS!AM98 -> 0
A102: =IF(ISBLANK(LOADS!A99),"",LOADS!A99) ->  | B102: =IF(ISBLANK(LOADS!B99),"",LOADS!B99) ->  | C102: =IF(LOADS!$AC99="BUS",IF(LOADS!$AE99=C$1,1,0),0) -> 0 | D102: =IF(LOADS!$AC99="BUS",IF(LOADS!$AE99=D$1,1,0),0) -> 0 | E102: =IF(LOADS!$AC99="BUS",IF(LOADS!$AE99=E$1,1,0),0) -> 0 | F102: =IF(LOADS!$AC99="BUS",IF(LOADS!$AE99=F$1,1,0),0) -> 0 | G102: =IF(LOADS!$AC99="BUS",IF(LOADS!$AE99=G$1,1,0),0) -> 0 | H102: =IF(LOADS!$AC99="BUS",IF(LOADS!$AE99=H$1,1,0),0) -> 0 | I102: =IF(LOADS!$AC99="BUS",IF(LOADS!$AE99=I$1,1,0),0) -> 0 | J102: 0 | K102: =LOADS!AM99 -> 0
A103: =IF(ISBLANK(LOADS!A100),"",LOADS!A100) ->  | B103: =IF(ISBLANK(LOADS!B100),"",LOADS!B100) ->  | C103: =IF(LOADS!$AC100="BUS",IF(LOADS!$AE100=C$1,1,0),0) -> 0 | D103: =IF(LOADS!$AC100="BUS",IF(LOADS!$AE100=D$1,1,0),0) -> 0 | E103: =IF(LOADS!$AC100="BUS",IF(LOADS!$AE100=E$1,1,0),0) -> 0 | F103: =IF(LOADS!$AC100="BUS",IF(LOADS!$AE100=F$1,1,0),0) -> 0 | G103: =IF(LOADS!$AC100="BUS",IF(LOADS!$AE100=G$1,1,0),0) -> 0 | H103: =IF(LOADS!$AC100="BUS",IF(LOADS!$AE100=H$1,1,0),0) -> 0 | I103: =IF(LOADS!$AC100="BUS",IF(LOADS!$AE100=I$1,1,0),0) -> 0 | J103: 0 | K103: =LOADS!AM100 -> 0
A104: =IF(ISBLANK(LOADS!A101),"",LOADS!A101) ->  | B104: =IF(ISBLANK(LOADS!B101),"",LOADS!B101) ->  | C104: =IF(LOADS!$AC101="BUS",IF(LOADS!$AE101=C$1,1,0),0) -> 0 | D104: =IF(LOADS!$AC101="BUS",IF(LOADS!$AE101=D$1,1,0),0) -> 0 | E104: =IF(LOADS!$AC101="BUS",IF(LOADS!$AE101=E$1,1,0),0) -> 0 | F104: =IF(LOADS!$AC101="BUS",IF(LOADS!$AE101=F$1,1,0),0) -> 0 | G104: =IF(LOADS!$AC101="BUS",IF(LOADS!$AE101=G$1,1,0),0) -> 0 | H104: =IF(LOADS!$AC101="BUS",IF(LOADS!$AE101=H$1,1,0),0) -> 0 | I104: =IF(LOADS!$AC101="BUS",IF(LOADS!$AE101=I$1,1,0),0) -> 0 | J104: 0 | K104: =LOADS!AM101 -> 0
A105: =IF(ISBLANK(LOADS!A102),"",LOADS!A102) ->  | B105: =IF(ISBLANK(LOADS!B102),"",LOADS!B102) ->  | C105: =IF(LOADS!$AC102="BUS",IF(LOADS!$AE102=C$1,1,0),0) -> 0 | D105: =IF(LOADS!$AC102="BUS",IF(LOADS!$AE102=D$1,1,0),0) -> 0 | E105: =IF(LOADS!$AC102="BUS",IF(LOADS!$AE102=E$1,1,0),0) -> 0 | F105: =IF(LOADS!$AC102="BUS",IF(LOADS!$AE102=F$1,1,0),0) -> 0 | G105: =IF(LOADS!$AC102="BUS",IF(LOADS!$AE102=G$1,1,0),0) -> 0 | H105: =IF(LOADS!$AC102="BUS",IF(LOADS!$AE102=H$1,1,0),0) -> 0 | I105: =IF(LOADS!$AC102="BUS",IF(LOADS!$AE102=I$1,1,0),0) -> 0 | J105: 0 | K105: =LOADS!AM102 -> 0
A106: =IF(ISBLANK(LOADS!A103),"",LOADS!A103) ->  | B106: =IF(ISBLANK(LOADS!B103),"",LOADS!B103) ->  | C106: =IF(LOADS!$AC103="BUS",IF(LOADS!$AE103=C$1,1,0),0) -> 0 | D106: =IF(LOADS!$AC103="BUS",IF(LOADS!$AE103=D$1,1,0),0) -> 0 | E106: =IF(LOADS!$AC103="BUS",IF(LOADS!$AE103=E$1,1,0),0) -> 0 | F106: =IF(LOADS!$AC103="BUS",IF(LOADS!$AE103=F$1,1,0),0) -> 0 | G106: =IF(LOADS!$AC103="BUS",IF(LOADS!$AE103=G$1,1,0),0) -> 0 | H106: =IF(LOADS!$AC103="BUS",IF(LOADS!$AE103=H$1,1,0),0) -> 0 | I106: =IF(LOADS!$AC103="BUS",IF(LOADS!$AE103=I$1,1,0),0) -> 0 | J106: 0 | K106: =LOADS!AM103 -> 0
A107: =IF(ISBLANK(LOADS!A104),"",LOADS!A104) ->  | B107: =IF(ISBLANK(LOADS!B104),"",LOADS!B104) ->  | C107: =IF(LOADS!$AC104="BUS",IF(LOADS!$AE104=C$1,1,0),0) -> 0 | D107: =IF(LOADS!$AC104="BUS",IF(LOADS!$AE104=D$1,1,0),0) -> 0 | E107: =IF(LOADS!$AC104="BUS",IF(LOADS!$AE104=E$1,1,0),0) -> 0 | F107: =IF(LOADS!$AC104="BUS",IF(LOADS!$AE104=F$1,1,0),0) -> 0 | G107: =IF(LOADS!$AC104="BUS",IF(LOADS!$AE104=G$1,1,0),0) -> 0 | H107: =IF(LOADS!$AC104="BUS",IF(LOADS!$AE104=H$1,1,0),0) -> 0 | I107: =IF(LOADS!$AC104="BUS",IF(LOADS!$AE104=I$1,1,0),0) -> 0 | J107: 0 | K107: =LOADS!AM104 -> 0
A108: =IF(ISBLANK(LOADS!A105),"",LOADS!A105) ->  | B108: =IF(ISBLANK(LOADS!B105),"",LOADS!B105) ->  | C108: =IF(LOADS!$AC105="BUS",IF(LOADS!$AE105=C$1,1,0),0) -> 0 | D108: =IF(LOADS!$AC105="BUS",IF(LOADS!$AE105=D$1,1,0),0) -> 0 | E108: =IF(LOADS!$AC105="BUS",IF(LOADS!$AE105=E$1,1,0),0) -> 0 | F108: =IF(LOADS!$AC105="BUS",IF(LOADS!$AE105=F$1,1,0),0) -> 0 | G108: =IF(LOADS!$AC105="BUS",IF(LOADS!$AE105=G$1,1,0),0) -> 0 | H108: =IF(LOADS!$AC105="BUS",IF(LOADS!$AE105=H$1,1,0),0) -> 0 | I108: =IF(LOADS!$AC105="BUS",IF(LOADS!$AE105=I$1,1,0),0) -> 0 | J108: 0 | K108: =LOADS!AM105 -> 0
A109: =IF(ISBLANK(LOADS!A106),"",LOADS!A106) ->  | B109: =IF(ISBLANK(LOADS!B106),"",LOADS!B106) ->  | C109: =IF(LOADS!$AC106="BUS",IF(LOADS!$AE106=C$1,1,0),0) -> 0 | D109: =IF(LOADS!$AC106="BUS",IF(LOADS!$AE106=D$1,1,0),0) -> 0 | E109: =IF(LOADS!$AC106="BUS",IF(LOADS!$AE106=E$1,1,0),0) -> 0 | F109: =IF(LOADS!$AC106="BUS",IF(LOADS!$AE106=F$1,1,0),0) -> 0 | G109: =IF(LOADS!$AC106="BUS",IF(LOADS!$AE106=G$1,1,0),0) -> 0 | H109: =IF(LOADS!$AC106="BUS",IF(LOADS!$AE106=H$1,1,0),0) -> 0 | I109: =IF(LOADS!$AC106="BUS",IF(LOADS!$AE106=I$1,1,0),0) -> 0 | J109: 0 | K109: =LOADS!AM106 -> 0
A110: =IF(ISBLANK(LOADS!A107),"",LOADS!A107) ->  | B110: =IF(ISBLANK(LOADS!B107),"",LOADS!B107) ->  | C110: =IF(LOADS!$AC107="BUS",IF(LOADS!$AE107=C$1,1,0),0) -> 0 | D110: =IF(LOADS!$AC107="BUS",IF(LOADS!$AE107=D$1,1,0),0) -> 0 | E110: =IF(LOADS!$AC107="BUS",IF(LOADS!$AE107=E$1,1,0),0) -> 0 | F110: =IF(LOADS!$AC107="BUS",IF(LOADS!$AE107=F$1,1,0),0) -> 0 | G110: =IF(LOADS!$AC107="BUS",IF(LOADS!$AE107=G$1,1,0),0) -> 0 | H110: =IF(LOADS!$AC107="BUS",IF(LOADS!$AE107=H$1,1,0),0) -> 0 | I110: =IF(LOADS!$AC107="BUS",IF(LOADS!$AE107=I$1,1,0),0) -> 0 | J110: 0 | K110: =LOADS!AM107 -> 0
A111: =IF(ISBLANK(LOADS!A108),"",LOADS!A108) ->  | B111: =IF(ISBLANK(LOADS!B108),"",LOADS!B108) ->  | C111: =IF(LOADS!$AC108="BUS",IF(LOADS!$AE108=C$1,1,0),0) -> 0 | D111: =IF(LOADS!$AC108="BUS",IF(LOADS!$AE108=D$1,1,0),0) -> 0 | E111: =IF(LOADS!$AC108="BUS",IF(LOADS!$AE108=E$1,1,0),0) -> 0 | F111: =IF(LOADS!$AC108="BUS",IF(LOADS!$AE108=F$1,1,0),0) -> 0 | G111: =IF(LOADS!$AC108="BUS",IF(LOADS!$AE108=G$1,1,0),0) -> 0 | H111: =IF(LOADS!$AC108="BUS",IF(LOADS!$AE108=H$1,1,0),0) -> 0 | I111: =IF(LOADS!$AC108="BUS",IF(LOADS!$AE108=I$1,1,0),0) -> 0 | J111: 0 | K111: =LOADS!AM108 -> 0
A112: =IF(ISBLANK(LOADS!A109),"",LOADS!A109) ->  | B112: =IF(ISBLANK(LOADS!B109),"",LOADS!B109) ->  | C112: =IF(LOADS!$AC109="BUS",IF(LOADS!$AE109=C$1,1,0),0) -> 0 | D112: =IF(LOADS!$AC109="BUS",IF(LOADS!$AE109=D$1,1,0),0) -> 0 | E112: =IF(LOADS!$AC109="BUS",IF(LOADS!$AE109=E$1,1,0),0) -> 0 | F112: =IF(LOADS!$AC109="BUS",IF(LOADS!$AE109=F$1,1,0),0) -> 0 | G112: =IF(LOADS!$AC109="BUS",IF(LOADS!$AE109=G$1,1,0),0) -> 0 | H112: =IF(LOADS!$AC109="BUS",IF(LOADS!$AE109=H$1,1,0),0) -> 0 | I112: =IF(LOADS!$AC109="BUS",IF(LOADS!$AE109=I$1,1,0),0) -> 0 | J112: 0 | K112: =LOADS!AM109 -> 0
A113: =IF(ISBLANK(LOADS!A110),"",LOADS!A110) ->  | B113: =IF(ISBLANK(LOADS!B110),"",LOADS!B110) ->  | C113: =IF(LOADS!$AC110="BUS",IF(LOADS!$AE110=C$1,1,0),0) -> 0 | D113: =IF(LOADS!$AC110="BUS",IF(LOADS!$AE110=D$1,1,0),0) -> 0 | E113: =IF(LOADS!$AC110="BUS",IF(LOADS!$AE110=E$1,1,0),0) -> 0 | F113: =IF(LOADS!$AC110="BUS",IF(LOADS!$AE110=F$1,1,0),0) -> 0 | G113: =IF(LOADS!$AC110="BUS",IF(LOADS!$AE110=G$1,1,0),0) -> 0 | H113: =IF(LOADS!$AC110="BUS",IF(LOADS!$AE110=H$1,1,0),0) -> 0 | I113: =IF(LOADS!$AC110="BUS",IF(LOADS!$AE110=I$1,1,0),0) -> 0 | J113: 0 | K113: =LOADS!AM110 -> 0
A114: =IF(ISBLANK(LOADS!A111),"",LOADS!A111) ->  | B114: =IF(ISBLANK(LOADS!B111),"",LOADS!B111) ->  | C114: =IF(LOADS!$AC111="BUS",IF(LOADS!$AE111=C$1,1,0),0) -> 0 | D114: =IF(LOADS!$AC111="BUS",IF(LOADS!$AE111=D$1,1,0),0) -> 0 | E114: =IF(LOADS!$AC111="BUS",IF(LOADS!$AE111=E$1,1,0),0) -> 0 | F114: =IF(LOADS!$AC111="BUS",IF(LOADS!$AE111=F$1,1,0),0) -> 0 | G114: =IF(LOADS!$AC111="BUS",IF(LOADS!$AE111=G$1,1,0),0) -> 0 | H114: =IF(LOADS!$AC111="BUS",IF(LOADS!$AE111=H$1,1,0),0) -> 0 | I114: =IF(LOADS!$AC111="BUS",IF(LOADS!$AE111=I$1,1,0),0) -> 0 | J114: 0 | K114: =LOADS!AM111 -> 0
A115: =IF(ISBLANK(LOADS!A112),"",LOADS!A112) ->  | B115: =IF(ISBLANK(LOADS!B112),"",LOADS!B112) ->  | C115: =IF(LOADS!$AC112="BUS",IF(LOADS!$AE112=C$1,1,0),0) -> 0 | D115: =IF(LOADS!$AC112="BUS",IF(LOADS!$AE112=D$1,1,0),0) -> 0 | E115: =IF(LOADS!$AC112="BUS",IF(LOADS!$AE112=E$1,1,0),0) -> 0 | F115: =IF(LOADS!$AC112="BUS",IF(LOADS!$AE112=F$1,1,0),0) -> 0 | G115: =IF(LOADS!$AC112="BUS",IF(LOADS!$AE112=G$1,1,0),0) -> 0 | H115: =IF(LOADS!$AC112="BUS",IF(LOADS!$AE112=H$1,1,0),0) -> 0 | I115: =IF(LOADS!$AC112="BUS",IF(LOADS!$AE112=I$1,1,0),0) -> 0 | J115: 0 | K115: =LOADS!AM112 -> 0
A116: =IF(ISBLANK(LOADS!A113),"",LOADS!A113) ->  | B116: =IF(ISBLANK(LOADS!B113),"",LOADS!B113) ->  | C116: =IF(LOADS!$AC113="BUS",IF(LOADS!$AE113=C$1,1,0),0) -> 0 | D116: =IF(LOADS!$AC113="BUS",IF(LOADS!$AE113=D$1,1,0),0) -> 0 | E116: =IF(LOADS!$AC113="BUS",IF(LOADS!$AE113=E$1,1,0),0) -> 0 | F116: =IF(LOADS!$AC113="BUS",IF(LOADS!$AE113=F$1,1,0),0) -> 0 | G116: =IF(LOADS!$AC113="BUS",IF(LOADS!$AE113=G$1,1,0),0) -> 0 | H116: =IF(LOADS!$AC113="BUS",IF(LOADS!$AE113=H$1,1,0),0) -> 0 | I116: =IF(LOADS!$AC113="BUS",IF(LOADS!$AE113=I$1,1,0),0) -> 0 | J116: 0 | K116: =LOADS!AM113 -> 0
A117: =IF(ISBLANK(LOADS!A114),"",LOADS!A114) ->  | B117: =IF(ISBLANK(LOADS!B114),"",LOADS!B114) ->  | C117: =IF(LOADS!$AC114="BUS",IF(LOADS!$AE114=C$1,1,0),0) -> 0 | D117: =IF(LOADS!$AC114="BUS",IF(LOADS!$AE114=D$1,1,0),0) -> 0 | E117: =IF(LOADS!$AC114="BUS",IF(LOADS!$AE114=E$1,1,0),0) -> 0 | F117: =IF(LOADS!$AC114="BUS",IF(LOADS!$AE114=F$1,1,0),0) -> 0 | G117: =IF(LOADS!$AC114="BUS",IF(LOADS!$AE114=G$1,1,0),0) -> 0 | H117: =IF(LOADS!$AC114="BUS",IF(LOADS!$AE114=H$1,1,0),0) -> 0 | I117: =IF(LOADS!$AC114="BUS",IF(LOADS!$AE114=I$1,1,0),0) -> 0 | J117: 0 | K117: =LOADS!AM114 -> 0
A118: =IF(ISBLANK(LOADS!A115),"",LOADS!A115) ->  | B118: =IF(ISBLANK(LOADS!B115),"",LOADS!B115) ->  | C118: =IF(LOADS!$AC115="BUS",IF(LOADS!$AE115=C$1,1,0),0) -> 0 | D118: =IF(LOADS!$AC115="BUS",IF(LOADS!$AE115=D$1,1,0),0) -> 0 | E118: =IF(LOADS!$AC115="BUS",IF(LOADS!$AE115=E$1,1,0),0) -> 0 | F118: =IF(LOADS!$AC115="BUS",IF(LOADS!$AE115=F$1,1,0),0) -> 0 | G118: =IF(LOADS!$AC115="BUS",IF(LOADS!$AE115=G$1,1,0),0) -> 0 | H118: =IF(LOADS!$AC115="BUS",IF(LOADS!$AE115=H$1,1,0),0) -> 0 | I118: =IF(LOADS!$AC115="BUS",IF(LOADS!$AE115=I$1,1,0),0) -> 0 | J118: 0 | K118: =LOADS!AM115 -> 0
A119: =IF(ISBLANK(LOADS!A116),"",LOADS!A116) ->  | B119: =IF(ISBLANK(LOADS!B116),"",LOADS!B116) ->  | C119: =IF(LOADS!$AC116="BUS",IF(LOADS!$AE116=C$1,1,0),0) -> 0 | D119: =IF(LOADS!$AC116="BUS",IF(LOADS!$AE116=D$1,1,0),0) -> 0 | E119: =IF(LOADS!$AC116="BUS",IF(LOADS!$AE116=E$1,1,0),0) -> 0 | F119: =IF(LOADS!$AC116="BUS",IF(LOADS!$AE116=F$1,1,0),0) -> 0 | G119: =IF(LOADS!$AC116="BUS",IF(LOADS!$AE116=G$1,1,0),0) -> 0 | H119: =IF(LOADS!$AC116="BUS",IF(LOADS!$AE116=H$1,1,0),0) -> 0 | I119: =IF(LOADS!$AC116="BUS",IF(LOADS!$AE116=I$1,1,0),0) -> 0 | J119: 0 | K119: =LOADS!AM116 -> 0
A120: =IF(ISBLANK(LOADS!A117),"",LOADS!A117) ->  | B120: =IF(ISBLANK(LOADS!B117),"",LOADS!B117) ->  | C120: =IF(LOADS!$AC117="BUS",IF(LOADS!$AE117=C$1,1,0),0) -> 0 | D120: =IF(LOADS!$AC117="BUS",IF(LOADS!$AE117=D$1,1,0),0) -> 0 | E120: =IF(LOADS!$AC117="BUS",IF(LOADS!$AE117=E$1,1,0),0) -> 0 | F120: =IF(LOADS!$AC117="BUS",IF(LOADS!$AE117=F$1,1,0),0) -> 0 | G120: =IF(LOADS!$AC117="BUS",IF(LOADS!$AE117=G$1,1,0),0) -> 0 | H120: =IF(LOADS!$AC117="BUS",IF(LOADS!$AE117=H$1,1,0),0) -> 0 | I120: =IF(LOADS!$AC117="BUS",IF(LOADS!$AE117=I$1,1,0),0) -> 0 | J120: 0 | K120: =LOADS!AM117 -> 0
A121: =IF(ISBLANK(LOADS!A118),"",LOADS!A118) ->  | B121: =IF(ISBLANK(LOADS!B118),"",LOADS!B118) ->  | C121: =IF(LOADS!$AC118="BUS",IF(LOADS!$AE118=C$1,1,0),0) -> 0 | D121: =IF(LOADS!$AC118="BUS",IF(LOADS!$AE118=D$1,1,0),0) -> 0 | E121: =IF(LOADS!$AC118="BUS",IF(LOADS!$AE118=E$1,1,0),0) -> 0 | F121: =IF(LOADS!$AC118="BUS",IF(LOADS!$AE118=F$1,1,0),0) -> 0 | G121: =IF(LOADS!$AC118="BUS",IF(LOADS!$AE118=G$1,1,0),0) -> 0 | H121: =IF(LOADS!$AC118="BUS",IF(LOADS!$AE118=H$1,1,0),0) -> 0 | I121: =IF(LOADS!$AC118="BUS",IF(LOADS!$AE118=I$1,1,0),0) -> 0 | J121: 0 | K121: =LOADS!AM118 -> 0
A122: =IF(ISBLANK(LOADS!A119),"",LOADS!A119) ->  | B122: =IF(ISBLANK(LOADS!B119),"",LOADS!B119) ->  | C122: =IF(LOADS!$AC119="BUS",IF(LOADS!$AE119=C$1,1,0),0) -> 0 | D122: =IF(LOADS!$AC119="BUS",IF(LOADS!$AE119=D$1,1,0),0) -> 0 | E122: =IF(LOADS!$AC119="BUS",IF(LOADS!$AE119=E$1,1,0),0) -> 0 | F122: =IF(LOADS!$AC119="BUS",IF(LOADS!$AE119=F$1,1,0),0) -> 0 | G122: =IF(LOADS!$AC119="BUS",IF(LOADS!$AE119=G$1,1,0),0) -> 0 | H122: =IF(LOADS!$AC119="BUS",IF(LOADS!$AE119=H$1,1,0),0) -> 0 | I122: =IF(LOADS!$AC119="BUS",IF(LOADS!$AE119=I$1,1,0),0) -> 0 | J122: 0 | K122: =LOADS!AM119 -> 0
A123: =IF(ISBLANK(LOADS!A120),"",LOADS!A120) ->  | B123: =IF(ISBLANK(LOADS!B120),"",LOADS!B120) ->  | C123: =IF(LOADS!$AC120="BUS",IF(LOADS!$AE120=C$1,1,0),0) -> 0 | D123: =IF(LOADS!$AC120="BUS",IF(LOADS!$AE120=D$1,1,0),0) -> 0 | E123: =IF(LOADS!$AC120="BUS",IF(LOADS!$AE120=E$1,1,0),0) -> 0 | F123: =IF(LOADS!$AC120="BUS",IF(LOADS!$AE120=F$1,1,0),0) -> 0 | G123: =IF(LOADS!$AC120="BUS",IF(LOADS!$AE120=G$1,1,0),0) -> 0 | H123: =IF(LOADS!$AC120="BUS",IF(LOADS!$AE120=H$1,1,0),0) -> 0 | I123: =IF(LOADS!$AC120="BUS",IF(LOADS!$AE120=I$1,1,0),0) -> 0 | J123: 0 | K123: =LOADS!AM120 -> 0
A124: =IF(ISBLANK(LOADS!A121),"",LOADS!A121) ->  | B124: =IF(ISBLANK(LOADS!B121),"",LOADS!B121) ->  | C124: =IF(LOADS!$AC121="BUS",IF(LOADS!$AE121=C$1,1,0),0) -> 0 | D124: =IF(LOADS!$AC121="BUS",IF(LOADS!$AE121=D$1,1,0),0) -> 0 | E124: =IF(LOADS!$AC121="BUS",IF(LOADS!$AE121=E$1,1,0),0) -> 0 | F124: =IF(LOADS!$AC121="BUS",IF(LOADS!$AE121=F$1,1,0),0) -> 0 | G124: =IF(LOADS!$AC121="BUS",IF(LOADS!$AE121=G$1,1,0),0) -> 0 | H124: =IF(LOADS!$AC121="BUS",IF(LOADS!$AE121=H$1,1,0),0) -> 0 | I124: =IF(LOADS!$AC121="BUS",IF(LOADS!$AE121=I$1,1,0),0) -> 0 | J124: 0 | K124: =LOADS!AM121 -> 0
A125: =IF(ISBLANK(LOADS!A122),"",LOADS!A122) ->  | B125: =IF(ISBLANK(LOADS!B122),"",LOADS!B122) ->  | C125: =IF(LOADS!$AC122="BUS",IF(LOADS!$AE122=C$1,1,0),0) -> 0 | D125: =IF(LOADS!$AC122="BUS",IF(LOADS!$AE122=D$1,1,0),0) -> 0 | E125: =IF(LOADS!$AC122="BUS",IF(LOADS!$AE122=E$1,1,0),0) -> 0 | F125: =IF(LOADS!$AC122="BUS",IF(LOADS!$AE122=F$1,1,0),0) -> 0 | G125: =IF(LOADS!$AC122="BUS",IF(LOADS!$AE122=G$1,1,0),0) -> 0 | H125: =IF(LOADS!$AC122="BUS",IF(LOADS!$AE122=H$1,1,0),0) -> 0 | I125: =IF(LOADS!$AC122="BUS",IF(LOADS!$AE122=I$1,1,0),0) -> 0 | J125: 0 | K125: =LOADS!AM122 -> 0
A126: =IF(ISBLANK(LOADS!A123),"",LOADS!A123) ->  | B126: =IF(ISBLANK(LOADS!B123),"",LOADS!B123) ->  | C126: =IF(LOADS!$AC123="BUS",IF(LOADS!$AE123=C$1,1,0),0) -> 0 | D126: =IF(LOADS!$AC123="BUS",IF(LOADS!$AE123=D$1,1,0),0) -> 0 | E126: =IF(LOADS!$AC123="BUS",IF(LOADS!$AE123=E$1,1,0),0) -> 0 | F126: =IF(LOADS!$AC123="BUS",IF(LOADS!$AE123=F$1,1,0),0) -> 0 | G126: =IF(LOADS!$AC123="BUS",IF(LOADS!$AE123=G$1,1,0),0) -> 0 | H126: =IF(LOADS!$AC123="BUS",IF(LOADS!$AE123=H$1,1,0),0) -> 0 | I126: =IF(LOADS!$AC123="BUS",IF(LOADS!$AE123=I$1,1,0),0) -> 0 | J126: 0 | K126: =LOADS!AM123 -> 0
A127: =IF(ISBLANK(LOADS!A124),"",LOADS!A124) ->  | B127: =IF(ISBLANK(LOADS!B124),"",LOADS!B124) ->  | C127: =IF(LOADS!$AC124="BUS",IF(LOADS!$AE124=C$1,1,0),0) -> 0 | D127: =IF(LOADS!$AC124="BUS",IF(LOADS!$AE124=D$1,1,0),0) -> 0 | E127: =IF(LOADS!$AC124="BUS",IF(LOADS!$AE124=E$1,1,0),0) -> 0 | F127: =IF(LOADS!$AC124="BUS",IF(LOADS!$AE124=F$1,1,0),0) -> 0 | G127: =IF(LOADS!$AC124="BUS",IF(LOADS!$AE124=G$1,1,0),0) -> 0 | H127: =IF(LOADS!$AC124="BUS",IF(LOADS!$AE124=H$1,1,0),0) -> 0 | I127: =IF(LOADS!$AC124="BUS",IF(LOADS!$AE124=I$1,1,0),0) -> 0 | J127: 0 | K127: =LOADS!AM124 -> 0
A128: =IF(ISBLANK(LOADS!A125),"",LOADS!A125) ->  | B128: =IF(ISBLANK(LOADS!B125),"",LOADS!B125) ->  | C128: =IF(LOADS!$AC125="BUS",IF(LOADS!$AE125=C$1,1,0),0) -> 0 | D128: =IF(LOADS!$AC125="BUS",IF(LOADS!$AE125=D$1,1,0),0) -> 0 | E128: =IF(LOADS!$AC125="BUS",IF(LOADS!$AE125=E$1,1,0),0) -> 0 | F128: =IF(LOADS!$AC125="BUS",IF(LOADS!$AE125=F$1,1,0),0) -> 0 | G128: =IF(LOADS!$AC125="BUS",IF(LOADS!$AE125=G$1,1,0),0) -> 0 | H128: =IF(LOADS!$AC125="BUS",IF(LOADS!$AE125=H$1,1,0),0) -> 0 | I128: =IF(LOADS!$AC125="BUS",IF(LOADS!$AE125=I$1,1,0),0) -> 0 | J128: 0 | K128: =LOADS!AM125 -> 0
A129: =IF(ISBLANK(LOADS!A126),"",LOADS!A126) ->  | B129: =IF(ISBLANK(LOADS!B126),"",LOADS!B126) ->  | C129: =IF(LOADS!$AC126="BUS",IF(LOADS!$AE126=C$1,1,0),0) -> 0 | D129: =IF(LOADS!$AC126="BUS",IF(LOADS!$AE126=D$1,1,0),0) -> 0 | E129: =IF(LOADS!$AC126="BUS",IF(LOADS!$AE126=E$1,1,0),0) -> 0 | F129: =IF(LOADS!$AC126="BUS",IF(LOADS!$AE126=F$1,1,0),0) -> 0 | G129: =IF(LOADS!$AC126="BUS",IF(LOADS!$AE126=G$1,1,0),0) -> 0 | H129: =IF(LOADS!$AC126="BUS",IF(LOADS!$AE126=H$1,1,0),0) -> 0 | I129: =IF(LOADS!$AC126="BUS",IF(LOADS!$AE126=I$1,1,0),0) -> 0 | J129: 0 | K129: =LOADS!AM126 -> 0
A130: =IF(ISBLANK(LOADS!A127),"",LOADS!A127) ->  | B130: =IF(ISBLANK(LOADS!B127),"",LOADS!B127) ->  | C130: =IF(LOADS!$AC127="BUS",IF(LOADS!$AE127=C$1,1,0),0) -> 0 | D130: =IF(LOADS!$AC127="BUS",IF(LOADS!$AE127=D$1,1,0),0) -> 0 | E130: =IF(LOADS!$AC127="BUS",IF(LOADS!$AE127=E$1,1,0),0) -> 0 | F130: =IF(LOADS!$AC127="BUS",IF(LOADS!$AE127=F$1,1,0),0) -> 0 | G130: =IF(LOADS!$AC127="BUS",IF(LOADS!$AE127=G$1,1,0),0) -> 0 | H130: =IF(LOADS!$AC127="BUS",IF(LOADS!$AE127=H$1,1,0),0) -> 0 | I130: =IF(LOADS!$AC127="BUS",IF(LOADS!$AE127=I$1,1,0),0) -> 0 | J130: 0 | K130: =LOADS!AM127 -> 0
A131: =IF(ISBLANK(LOADS!A128),"",LOADS!A128) ->  | B131: =IF(ISBLANK(LOADS!B128),"",LOADS!B128) ->  | C131: =IF(LOADS!$AC128="BUS",IF(LOADS!$AE128=C$1,1,0),0) -> 0 | D131: =IF(LOADS!$AC128="BUS",IF(LOADS!$AE128=D$1,1,0),0) -> 0 | E131: =IF(LOADS!$AC128="BUS",IF(LOADS!$AE128=E$1,1,0),0) -> 0 | F131: =IF(LOADS!$AC128="BUS",IF(LOADS!$AE128=F$1,1,0),0) -> 0 | G131: =IF(LOADS!$AC128="BUS",IF(LOADS!$AE128=G$1,1,0),0) -> 0 | H131: =IF(LOADS!$AC128="BUS",IF(LOADS!$AE128=H$1,1,0),0) -> 0 | I131: =IF(LOADS!$AC128="BUS",IF(LOADS!$AE128=I$1,1,0),0) -> 0 | J131: 0 | K131: =LOADS!AM128 -> 0
A132: =IF(ISBLANK(LOADS!A129),"",LOADS!A129) ->  | B132: =IF(ISBLANK(LOADS!B129),"",LOADS!B129) ->  | C132: =IF(LOADS!$AC129="BUS",IF(LOADS!$AE129=C$1,1,0),0) -> 0 | D132: =IF(LOADS!$AC129="BUS",IF(LOADS!$AE129=D$1,1,0),0) -> 0 | E132: =IF(LOADS!$AC129="BUS",IF(LOADS!$AE129=E$1,1,0),0) -> 0 | F132: =IF(LOADS!$AC129="BUS",IF(LOADS!$AE129=F$1,1,0),0) -> 0 | G132: =IF(LOADS!$AC129="BUS",IF(LOADS!$AE129=G$1,1,0),0) -> 0 | H132: =IF(LOADS!$AC129="BUS",IF(LOADS!$AE129=H$1,1,0),0) -> 0 | I132: =IF(LOADS!$AC129="BUS",IF(LOADS!$AE129=I$1,1,0),0) -> 0 | J132: 0 | K132: =LOADS!AM129 -> 0
A133: =IF(ISBLANK(LOADS!A130),"",LOADS!A130) ->  | B133: =IF(ISBLANK(LOADS!B130),"",LOADS!B130) ->  | C133: =IF(LOADS!$AC130="BUS",IF(LOADS!$AE130=C$1,1,0),0) -> 0 | D133: =IF(LOADS!$AC130="BUS",IF(LOADS!$AE130=D$1,1,0),0) -> 0 | E133: =IF(LOADS!$AC130="BUS",IF(LOADS!$AE130=E$1,1,0),0) -> 0 | F133: =IF(LOADS!$AC130="BUS",IF(LOADS!$AE130=F$1,1,0),0) -> 0 | G133: =IF(LOADS!$AC130="BUS",IF(LOADS!$AE130=G$1,1,0),0) -> 0 | H133: =IF(LOADS!$AC130="BUS",IF(LOADS!$AE130=H$1,1,0),0) -> 0 | I133: =IF(LOADS!$AC130="BUS",IF(LOADS!$AE130=I$1,1,0),0) -> 0 | J133: =SUM(C133:I133) -> 0 | K133: =LOADS!AM130 -> 0
A134: =IF(ISBLANK(LOADS!A131),"",LOADS!A131) ->  | B134: =IF(ISBLANK(LOADS!B131),"",LOADS!B131) ->  | C134: =IF(LOADS!$AC131="BUS",IF(LOADS!$AE131=C$1,1,0),0) -> 0 | D134: =IF(LOADS!$AC131="BUS",IF(LOADS!$AE131=D$1,1,0),0) -> 0 | E134: =IF(LOADS!$AC131="BUS",IF(LOADS!$AE131=E$1,1,0),0) -> 0 | F134: =IF(LOADS!$AC131="BUS",IF(LOADS!$AE131=F$1,1,0),0) -> 0 | G134: =IF(LOADS!$AC131="BUS",IF(LOADS!$AE131=G$1,1,0),0) -> 0 | H134: =IF(LOADS!$AC131="BUS",IF(LOADS!$AE131=H$1,1,0),0) -> 0 | I134: =IF(LOADS!$AC131="BUS",IF(LOADS!$AE131=I$1,1,0),0) -> 0 | J134: 0 | K134: =LOADS!AM131 -> 0
A135: =IF(ISBLANK(LOADS!A132),"",LOADS!A132) ->  | B135: =IF(ISBLANK(LOADS!B132),"",LOADS!B132) ->  | C135: =IF(LOADS!$AC132="BUS",IF(LOADS!$AE132=C$1,1,0),0) -> 0 | D135: =IF(LOADS!$AC132="BUS",IF(LOADS!$AE132=D$1,1,0),0) -> 0 | E135: =IF(LOADS!$AC132="BUS",IF(LOADS!$AE132=E$1,1,0),0) -> 0 | F135: =IF(LOADS!$AC132="BUS",IF(LOADS!$AE132=F$1,1,0),0) -> 0 | G135: =IF(LOADS!$AC132="BUS",IF(LOADS!$AE132=G$1,1,0),0) -> 0 | H135: =IF(LOADS!$AC132="BUS",IF(LOADS!$AE132=H$1,1,0),0) -> 0 | I135: =IF(LOADS!$AC132="BUS",IF(LOADS!$AE132=I$1,1,0),0) -> 0 | J135: 0 | K135: =LOADS!AM132 -> 0
A136: =IF(ISBLANK(LOADS!A133),"",LOADS!A133) ->  | B136: =IF(ISBLANK(LOADS!B133),"",LOADS!B133) ->  | C136: =IF(LOADS!$AC133="BUS",IF(LOADS!$AE133=C$1,1,0),0) -> 0 | D136: =IF(LOADS!$AC133="BUS",IF(LOADS!$AE133=D$1,1,0),0) -> 0 | E136: =IF(LOADS!$AC133="BUS",IF(LOADS!$AE133=E$1,1,0),0) -> 0 | F136: =IF(LOADS!$AC133="BUS",IF(LOADS!$AE133=F$1,1,0),0) -> 0 | G136: =IF(LOADS!$AC133="BUS",IF(LOADS!$AE133=G$1,1,0),0) -> 0 | H136: =IF(LOADS!$AC133="BUS",IF(LOADS!$AE133=H$1,1,0),0) -> 0 | I136: =IF(LOADS!$AC133="BUS",IF(LOADS!$AE133=I$1,1,0),0) -> 0 | J136: 0 | K136: =LOADS!AM133 -> 0
A137: =IF(ISBLANK(LOADS!A134),"",LOADS!A134) ->  | B137: =IF(ISBLANK(LOADS!B134),"",LOADS!B134) ->  | C137: =IF(LOADS!$AC134="BUS",IF(LOADS!$AE134=C$1,1,0),0) -> 0 | D137: =IF(LOADS!$AC134="BUS",IF(LOADS!$AE134=D$1,1,0),0) -> 0 | E137: =IF(LOADS!$AC134="BUS",IF(LOADS!$AE134=E$1,1,0),0) -> 0 | F137: =IF(LOADS!$AC134="BUS",IF(LOADS!$AE134=F$1,1,0),0) -> 0 | G137: =IF(LOADS!$AC134="BUS",IF(LOADS!$AE134=G$1,1,0),0) -> 0 | H137: =IF(LOADS!$AC134="BUS",IF(LOADS!$AE134=H$1,1,0),0) -> 0 | I137: =IF(LOADS!$AC134="BUS",IF(LOADS!$AE134=I$1,1,0),0) -> 0 | J137: 0 | K137: =LOADS!AM134 -> 0
A138: =IF(ISBLANK(LOADS!A135),"",LOADS!A135) ->  | B138: =IF(ISBLANK(LOADS!B135),"",LOADS!B135) ->  | C138: =IF(LOADS!$AC135="BUS",IF(LOADS!$AE135=C$1,1,0),0) -> 0 | D138: =IF(LOADS!$AC135="BUS",IF(LOADS!$AE135=D$1,1,0),0) -> 0 | E138: =IF(LOADS!$AC135="BUS",IF(LOADS!$AE135=E$1,1,0),0) -> 0 | F138: =IF(LOADS!$AC135="BUS",IF(LOADS!$AE135=F$1,1,0),0) -> 0 | G138: =IF(LOADS!$AC135="BUS",IF(LOADS!$AE135=G$1,1,0),0) -> 0 | H138: =IF(LOADS!$AC135="BUS",IF(LOADS!$AE135=H$1,1,0),0) -> 0 | I138: =IF(LOADS!$AC135="BUS",IF(LOADS!$AE135=I$1,1,0),0) -> 0 | J138: 0 | K138: =LOADS!AM135 -> 0
A139: =IF(ISBLANK(LOADS!A136),"",LOADS!A136) ->  | B139: =IF(ISBLANK(LOADS!B136),"",LOADS!B136) ->  | C139: =IF(LOADS!$AC136="BUS",IF(LOADS!$AE136=C$1,1,0),0) -> 0 | D139: =IF(LOADS!$AC136="BUS",IF(LOADS!$AE136=D$1,1,0),0) -> 0 | E139: =IF(LOADS!$AC136="BUS",IF(LOADS!$AE136=E$1,1,0),0) -> 0 | F139: =IF(LOADS!$AC136="BUS",IF(LOADS!$AE136=F$1,1,0),0) -> 0 | G139: =IF(LOADS!$AC136="BUS",IF(LOADS!$AE136=G$1,1,0),0) -> 0 | H139: =IF(LOADS!$AC136="BUS",IF(LOADS!$AE136=H$1,1,0),0) -> 0 | I139: =IF(LOADS!$AC136="BUS",IF(LOADS!$AE136=I$1,1,0),0) -> 0 | J139: 0 | K139: =LOADS!AM136 -> 0
A140: =IF(ISBLANK(LOADS!A137),"",LOADS!A137) ->  | B140: =IF(ISBLANK(LOADS!B137),"",LOADS!B137) ->  | C140: =IF(LOADS!$AC137="BUS",IF(LOADS!$AE137=C$1,1,0),0) -> 0 | D140: =IF(LOADS!$AC137="BUS",IF(LOADS!$AE137=D$1,1,0),0) -> 0 | E140: =IF(LOADS!$AC137="BUS",IF(LOADS!$AE137=E$1,1,0),0) -> 0 | F140: =IF(LOADS!$AC137="BUS",IF(LOADS!$AE137=F$1,1,0),0) -> 0 | G140: =IF(LOADS!$AC137="BUS",IF(LOADS!$AE137=G$1,1,0),0) -> 0 | H140: =IF(LOADS!$AC137="BUS",IF(LOADS!$AE137=H$1,1,0),0) -> 0 | I140: =IF(LOADS!$AC137="BUS",IF(LOADS!$AE137=I$1,1,0),0) -> 0 | J140: 0 | K140: =LOADS!AM137 -> 0
A141: =IF(ISBLANK(LOADS!A138),"",LOADS!A138) ->  | B141: =IF(ISBLANK(LOADS!B138),"",LOADS!B138) ->  | C141: =IF(LOADS!$AC138="BUS",IF(LOADS!$AE138=C$1,1,0),0) -> 0 | D141: =IF(LOADS!$AC138="BUS",IF(LOADS!$AE138=D$1,1,0),0) -> 0 | E141: =IF(LOADS!$AC138="BUS",IF(LOADS!$AE138=E$1,1,0),0) -> 0 | F141: =IF(LOADS!$AC138="BUS",IF(LOADS!$AE138=F$1,1,0),0) -> 0 | G141: =IF(LOADS!$AC138="BUS",IF(LOADS!$AE138=G$1,1,0),0) -> 0 | H141: =IF(LOADS!$AC138="BUS",IF(LOADS!$AE138=H$1,1,0),0) -> 0 | I141: =IF(LOADS!$AC138="BUS",IF(LOADS!$AE138=I$1,1,0),0) -> 0 | J141: 0 | K141: =LOADS!AM138 -> 0
A142: =IF(ISBLANK(LOADS!A139),"",LOADS!A139) ->  | B142: =IF(ISBLANK(LOADS!B139),"",LOADS!B139) ->  | C142: =IF(LOADS!$AC139="BUS",IF(LOADS!$AE139=C$1,1,0),0) -> 0 | D142: =IF(LOADS!$AC139="BUS",IF(LOADS!$AE139=D$1,1,0),0) -> 0 | E142: =IF(LOADS!$AC139="BUS",IF(LOADS!$AE139=E$1,1,0),0) -> 0 | F142: =IF(LOADS!$AC139="BUS",IF(LOADS!$AE139=F$1,1,0),0) -> 0 | G142: =IF(LOADS!$AC139="BUS",IF(LOADS!$AE139=G$1,1,0),0) -> 0 | H142: =IF(LOADS!$AC139="BUS",IF(LOADS!$AE139=H$1,1,0),0) -> 0 | I142: =IF(LOADS!$AC139="BUS",IF(LOADS!$AE139=I$1,1,0),0) -> 0 | J142: 0 | K142: =LOADS!AM139 -> 0
A143: =IF(ISBLANK(LOADS!A140),"",LOADS!A140) ->  | B143: =IF(ISBLANK(LOADS!B140),"",LOADS!B140) ->  | C143: =IF(LOADS!$AC140="BUS",IF(LOADS!$AE140=C$1,1,0),0) -> 0 | D143: =IF(LOADS!$AC140="BUS",IF(LOADS!$AE140=D$1,1,0),0) -> 0 | E143: =IF(LOADS!$AC140="BUS",IF(LOADS!$AE140=E$1,1,0),0) -> 0 | F143: =IF(LOADS!$AC140="BUS",IF(LOADS!$AE140=F$1,1,0),0) -> 0 | G143: =IF(LOADS!$AC140="BUS",IF(LOADS!$AE140=G$1,1,0),0) -> 0 | H143: =IF(LOADS!$AC140="BUS",IF(LOADS!$AE140=H$1,1,0),0) -> 0 | I143: =IF(LOADS!$AC140="BUS",IF(LOADS!$AE140=I$1,1,0),0) -> 0 | J143: 0 | K143: =LOADS!AM140 -> 0
A144: =IF(ISBLANK(LOADS!A141),"",LOADS!A141) ->  | B144: =IF(ISBLANK(LOADS!B141),"",LOADS!B141) ->  | C144: =IF(LOADS!$AC141="BUS",IF(LOADS!$AE141=C$1,1,0),0) -> 0 | D144: =IF(LOADS!$AC141="BUS",IF(LOADS!$AE141=D$1,1,0),0) -> 0 | E144: =IF(LOADS!$AC141="BUS",IF(LOADS!$AE141=E$1,1,0),0) -> 0 | F144: =IF(LOADS!$AC141="BUS",IF(LOADS!$AE141=F$1,1,0),0) -> 0 | G144: =IF(LOADS!$AC141="BUS",IF(LOADS!$AE141=G$1,1,0),0) -> 0 | H144: =IF(LOADS!$AC141="BUS",IF(LOADS!$AE141=H$1,1,0),0) -> 0 | I144: =IF(LOADS!$AC141="BUS",IF(LOADS!$AE141=I$1,1,0),0) -> 0 | J144: 0 | K144: =LOADS!AM141 -> 0
A145: =IF(ISBLANK(LOADS!A142),"",LOADS!A142) ->  | B145: =IF(ISBLANK(LOADS!B142),"",LOADS!B142) ->  | C145: =IF(LOADS!$AC142="BUS",IF(LOADS!$AE142=C$1,1,0),0) -> 0 | D145: =IF(LOADS!$AC142="BUS",IF(LOADS!$AE142=D$1,1,0),0) -> 0 | E145: =IF(LOADS!$AC142="BUS",IF(LOADS!$AE142=E$1,1,0),0) -> 0 | F145: =IF(LOADS!$AC142="BUS",IF(LOADS!$AE142=F$1,1,0),0) -> 0 | G145: =IF(LOADS!$AC142="BUS",IF(LOADS!$AE142=G$1,1,0),0) -> 0 | H145: =IF(LOADS!$AC142="BUS",IF(LOADS!$AE142=H$1,1,0),0) -> 0 | I145: =IF(LOADS!$AC142="BUS",IF(LOADS!$AE142=I$1,1,0),0) -> 0 | J145: 0 | K145: =LOADS!AM142 -> 0
A146: =IF(ISBLANK(LOADS!A143),"",LOADS!A143) ->  | B146: =IF(ISBLANK(LOADS!B143),"",LOADS!B143) ->  | C146: =IF(LOADS!$AC143="BUS",IF(LOADS!$AE143=C$1,1,0),0) -> 0 | D146: =IF(LOADS!$AC143="BUS",IF(LOADS!$AE143=D$1,1,0),0) -> 0 | E146: =IF(LOADS!$AC143="BUS",IF(LOADS!$AE143=E$1,1,0),0) -> 0 | F146: =IF(LOADS!$AC143="BUS",IF(LOADS!$AE143=F$1,1,0),0) -> 0 | G146: =IF(LOADS!$AC143="BUS",IF(LOADS!$AE143=G$1,1,0),0) -> 0 | H146: =IF(LOADS!$AC143="BUS",IF(LOADS!$AE143=H$1,1,0),0) -> 0 | I146: =IF(LOADS!$AC143="BUS",IF(LOADS!$AE143=I$1,1,0),0) -> 0 | J146: 0 | K146: =LOADS!AM143 -> 0
A147: =IF(ISBLANK(LOADS!A144),"",LOADS!A144) ->  | B147: =IF(ISBLANK(LOADS!B144),"",LOADS!B144) ->  | C147: =IF(LOADS!$AC144="BUS",IF(LOADS!$AE144=C$1,1,0),0) -> 0 | D147: =IF(LOADS!$AC144="BUS",IF(LOADS!$AE144=D$1,1,0),0) -> 0 | E147: =IF(LOADS!$AC144="BUS",IF(LOADS!$AE144=E$1,1,0),0) -> 0 | F147: =IF(LOADS!$AC144="BUS",IF(LOADS!$AE144=F$1,1,0),0) -> 0 | G147: =IF(LOADS!$AC144="BUS",IF(LOADS!$AE144=G$1,1,0),0) -> 0 | H147: =IF(LOADS!$AC144="BUS",IF(LOADS!$AE144=H$1,1,0),0) -> 0 | I147: =IF(LOADS!$AC144="BUS",IF(LOADS!$AE144=I$1,1,0),0) -> 0 | J147: 0 | K147: =LOADS!AM144 -> 0
A148: =IF(ISBLANK(LOADS!A145),"",LOADS!A145) ->  | B148: =IF(ISBLANK(LOADS!B145),"",LOADS!B145) ->  | C148: =IF(LOADS!$AC145="BUS",IF(LOADS!$AE145=C$1,1,0),0) -> 0 | D148: =IF(LOADS!$AC145="BUS",IF(LOADS!$AE145=D$1,1,0),0) -> 0 | E148: =IF(LOADS!$AC145="BUS",IF(LOADS!$AE145=E$1,1,0),0) -> 0 | F148: =IF(LOADS!$AC145="BUS",IF(LOADS!$AE145=F$1,1,0),0) -> 0 | G148: =IF(LOADS!$AC145="BUS",IF(LOADS!$AE145=G$1,1,0),0) -> 0 | H148: =IF(LOADS!$AC145="BUS",IF(LOADS!$AE145=H$1,1,0),0) -> 0 | I148: =IF(LOADS!$AC145="BUS",IF(LOADS!$AE145=I$1,1,0),0) -> 0 | J148: 0 | K148: =LOADS!AM145 -> 0
A149: =IF(ISBLANK(LOADS!A146),"",LOADS!A146) ->  | B149: =IF(ISBLANK(LOADS!B146),"",LOADS!B146) ->  | C149: =IF(LOADS!$AC146="BUS",IF(LOADS!$AE146=C$1,1,0),0) -> 0 | D149: =IF(LOADS!$AC146="BUS",IF(LOADS!$AE146=D$1,1,0),0) -> 0 | E149: =IF(LOADS!$AC146="BUS",IF(LOADS!$AE146=E$1,1,0),0) -> 0 | F149: =IF(LOADS!$AC146="BUS",IF(LOADS!$AE146=F$1,1,0),0) -> 0 | G149: =IF(LOADS!$AC146="BUS",IF(LOADS!$AE146=G$1,1,0),0) -> 0 | H149: =IF(LOADS!$AC146="BUS",IF(LOADS!$AE146=H$1,1,0),0) -> 0 | I149: =IF(LOADS!$AC146="BUS",IF(LOADS!$AE146=I$1,1,0),0) -> 0 | J149: 0 | K149: =LOADS!AM146 -> 0
A150: =IF(ISBLANK(LOADS!A147),"",LOADS!A147) ->  | B150: =IF(ISBLANK(LOADS!B147),"",LOADS!B147) ->  | C150: =IF(LOADS!$AC147="BUS",IF(LOADS!$AE147=C$1,1,0),0) -> 0 | D150: =IF(LOADS!$AC147="BUS",IF(LOADS!$AE147=D$1,1,0),0) -> 0 | E150: =IF(LOADS!$AC147="BUS",IF(LOADS!$AE147=E$1,1,0),0) -> 0 | F150: =IF(LOADS!$AC147="BUS",IF(LOADS!$AE147=F$1,1,0),0) -> 0 | G150: =IF(LOADS!$AC147="BUS",IF(LOADS!$AE147=G$1,1,0),0) -> 0 | H150: =IF(LOADS!$AC147="BUS",IF(LOADS!$AE147=H$1,1,0),0) -> 0 | I150: =IF(LOADS!$AC147="BUS",IF(LOADS!$AE147=I$1,1,0),0) -> 0 | J150: 0 | K150: =LOADS!AM147 -> 0
A151: =IF(ISBLANK(LOADS!A148),"",LOADS!A148) ->  | B151: =IF(ISBLANK(LOADS!B148),"",LOADS!B148) ->  | C151: =IF(LOADS!$AC148="BUS",IF(LOADS!$AE148=C$1,1,0),0) -> 0 | D151: =IF(LOADS!$AC148="BUS",IF(LOADS!$AE148=D$1,1,0),0) -> 0 | E151: =IF(LOADS!$AC148="BUS",IF(LOADS!$AE148=E$1,1,0),0) -> 0 | F151: =IF(LOADS!$AC148="BUS",IF(LOADS!$AE148=F$1,1,0),0) -> 0 | G151: =IF(LOADS!$AC148="BUS",IF(LOADS!$AE148=G$1,1,0),0) -> 0 | H151: =IF(LOADS!$AC148="BUS",IF(LOADS!$AE148=H$1,1,0),0) -> 0 | I151: =IF(LOADS!$AC148="BUS",IF(LOADS!$AE148=I$1,1,0),0) -> 0 | J151: 0 | K151: =LOADS!AM148 -> 0
A152: =IF(ISBLANK(LOADS!A149),"",LOADS!A149) ->  | B152: =IF(ISBLANK(LOADS!B149),"",LOADS!B149) ->  | C152: =IF(LOADS!$AC149="BUS",IF(LOADS!$AE149=C$1,1,0),0) -> 0 | D152: =IF(LOADS!$AC149="BUS",IF(LOADS!$AE149=D$1,1,0),0) -> 0 | E152: =IF(LOADS!$AC149="BUS",IF(LOADS!$AE149=E$1,1,0),0) -> 0 | F152: =IF(LOADS!$AC149="BUS",IF(LOADS!$AE149=F$1,1,0),0) -> 0 | G152: =IF(LOADS!$AC149="BUS",IF(LOADS!$AE149=G$1,1,0),0) -> 0 | H152: =IF(LOADS!$AC149="BUS",IF(LOADS!$AE149=H$1,1,0),0) -> 0 | I152: =IF(LOADS!$AC149="BUS",IF(LOADS!$AE149=I$1,1,0),0) -> 0 | J152: 0 | K152: =LOADS!AM149 -> 0
A153: =IF(ISBLANK(LOADS!A150),"",LOADS!A150) ->  | B153: =IF(ISBLANK(LOADS!B150),"",LOADS!B150) ->  | C153: =IF(LOADS!$AC150="BUS",IF(LOADS!$AE150=C$1,1,0),0) -> 0 | D153: =IF(LOADS!$AC150="BUS",IF(LOADS!$AE150=D$1,1,0),0) -> 0 | E153: =IF(LOADS!$AC150="BUS",IF(LOADS!$AE150=E$1,1,0),0) -> 0 | F153: =IF(LOADS!$AC150="BUS",IF(LOADS!$AE150=F$1,1,0),0) -> 0 | G153: =IF(LOADS!$AC150="BUS",IF(LOADS!$AE150=G$1,1,0),0) -> 0 | H153: =IF(LOADS!$AC150="BUS",IF(LOADS!$AE150=H$1,1,0),0) -> 0 | I153: =IF(LOADS!$AC150="BUS",IF(LOADS!$AE150=I$1,1,0),0) -> 0 | J153: 0 | K153: =LOADS!AM150 -> 0
A154: =IF(ISBLANK(LOADS!A151),"",LOADS!A151) ->  | B154: =IF(ISBLANK(LOADS!B151),"",LOADS!B151) ->  | C154: =IF(LOADS!$AC151="BUS",IF(LOADS!$AE151=C$1,1,0),0) -> 0 | D154: =IF(LOADS!$AC151="BUS",IF(LOADS!$AE151=D$1,1,0),0) -> 0 | E154: =IF(LOADS!$AC151="BUS",IF(LOADS!$AE151=E$1,1,0),0) -> 0 | F154: =IF(LOADS!$AC151="BUS",IF(LOADS!$AE151=F$1,1,0),0) -> 0 | G154: =IF(LOADS!$AC151="BUS",IF(LOADS!$AE151=G$1,1,0),0) -> 0 | H154: =IF(LOADS!$AC151="BUS",IF(LOADS!$AE151=H$1,1,0),0) -> 0 | I154: =IF(LOADS!$AC151="BUS",IF(LOADS!$AE151=I$1,1,0),0) -> 0 | J154: 0 | K154: =LOADS!AM151 -> 0
A155: =IF(ISBLANK(LOADS!A152),"",LOADS!A152) ->  | B155: =IF(ISBLANK(LOADS!B152),"",LOADS!B152) ->  | C155: =IF(LOADS!$AC152="BUS",IF(LOADS!$AE152=C$1,1,0),0) -> 0 | D155: =IF(LOADS!$AC152="BUS",IF(LOADS!$AE152=D$1,1,0),0) -> 0 | E155: =IF(LOADS!$AC152="BUS",IF(LOADS!$AE152=E$1,1,0),0) -> 0 | F155: =IF(LOADS!$AC152="BUS",IF(LOADS!$AE152=F$1,1,0),0) -> 0 | G155: =IF(LOADS!$AC152="BUS",IF(LOADS!$AE152=G$1,1,0),0) -> 0 | H155: =IF(LOADS!$AC152="BUS",IF(LOADS!$AE152=H$1,1,0),0) -> 0 | I155: =IF(LOADS!$AC152="BUS",IF(LOADS!$AE152=I$1,1,0),0) -> 0 | J155: 0 | K155: =LOADS!AM152 -> 0
A156: =IF(ISBLANK(LOADS!A153),"",LOADS!A153) ->  | B156: =IF(ISBLANK(LOADS!B153),"",LOADS!B153) ->  | C156: =IF(LOADS!$AC153="BUS",IF(LOADS!$AE153=C$1,1,0),0) -> 0 | D156: =IF(LOADS!$AC153="BUS",IF(LOADS!$AE153=D$1,1,0),0) -> 0 | E156: =IF(LOADS!$AC153="BUS",IF(LOADS!$AE153=E$1,1,0),0) -> 0 | F156: =IF(LOADS!$AC153="BUS",IF(LOADS!$AE153=F$1,1,0),0) -> 0 | G156: =IF(LOADS!$AC153="BUS",IF(LOADS!$AE153=G$1,1,0),0) -> 0 | H156: =IF(LOADS!$AC153="BUS",IF(LOADS!$AE153=H$1,1,0),0) -> 0 | I156: =IF(LOADS!$AC153="BUS",IF(LOADS!$AE153=I$1,1,0),0) -> 0 | J156: 0 | K156: =LOADS!AM153 -> 0
A157: =IF(ISBLANK(LOADS!A154),"",LOADS!A154) ->  | B157: =IF(ISBLANK(LOADS!B154),"",LOADS!B154) ->  | C157: =IF(LOADS!$AC154="BUS",IF(LOADS!$AE154=C$1,1,0),0) -> 0 | D157: =IF(LOADS!$AC154="BUS",IF(LOADS!$AE154=D$1,1,0),0) -> 0 | E157: =IF(LOADS!$AC154="BUS",IF(LOADS!$AE154=E$1,1,0),0) -> 0 | F157: =IF(LOADS!$AC154="BUS",IF(LOADS!$AE154=F$1,1,0),0) -> 0 | G157: =IF(LOADS!$AC154="BUS",IF(LOADS!$AE154=G$1,1,0),0) -> 0 | H157: =IF(LOADS!$AC154="BUS",IF(LOADS!$AE154=H$1,1,0),0) -> 0 | I157: =IF(LOADS!$AC154="BUS",IF(LOADS!$AE154=I$1,1,0),0) -> 0 | J157: 0 | K157: =LOADS!AM154 -> 0
A158: =IF(ISBLANK(LOADS!A155),"",LOADS!A155) ->  | B158: =IF(ISBLANK(LOADS!B155),"",LOADS!B155) ->  | C158: =IF(LOADS!$AC155="BUS",IF(LOADS!$AE155=C$1,1,0),0) -> 0 | D158: =IF(LOADS!$AC155="BUS",IF(LOADS!$AE155=D$1,1,0),0) -> 0 | E158: =IF(LOADS!$AC155="BUS",IF(LOADS!$AE155=E$1,1,0),0) -> 0 | F158: =IF(LOADS!$AC155="BUS",IF(LOADS!$AE155=F$1,1,0),0) -> 0 | G158: =IF(LOADS!$AC155="BUS",IF(LOADS!$AE155=G$1,1,0),0) -> 0 | H158: =IF(LOADS!$AC155="BUS",IF(LOADS!$AE155=H$1,1,0),0) -> 0 | I158: =IF(LOADS!$AC155="BUS",IF(LOADS!$AE155=I$1,1,0),0) -> 0 | J158: 0 | K158: =LOADS!AM155 -> 0
A159: =IF(ISBLANK(LOADS!A156),"",LOADS!A156) ->  | B159: =IF(ISBLANK(LOADS!B156),"",LOADS!B156) ->  | C159: =IF(LOADS!$AC156="BUS",IF(LOADS!$AE156=C$1,1,0),0) -> 0 | D159: =IF(LOADS!$AC156="BUS",IF(LOADS!$AE156=D$1,1,0),0) -> 0 | E159: =IF(LOADS!$AC156="BUS",IF(LOADS!$AE156=E$1,1,0),0) -> 0 | F159: =IF(LOADS!$AC156="BUS",IF(LOADS!$AE156=F$1,1,0),0) -> 0 | G159: =IF(LOADS!$AC156="BUS",IF(LOADS!$AE156=G$1,1,0),0) -> 0 | H159: =IF(LOADS!$AC156="BUS",IF(LOADS!$AE156=H$1,1,0),0) -> 0 | I159: =IF(LOADS!$AC156="BUS",IF(LOADS!$AE156=I$1,1,0),0) -> 0 | J159: 0 | K159: =LOADS!AM156 -> 0
A160: =IF(ISBLANK(LOADS!A157),"",LOADS!A157) ->  | B160: =IF(ISBLANK(LOADS!B157),"",LOADS!B157) ->  | C160: =IF(LOADS!$AC157="BUS",IF(LOADS!$AE157=C$1,1,0),0) -> 0 | D160: =IF(LOADS!$AC157="BUS",IF(LOADS!$AE157=D$1,1,0),0) -> 0 | E160: =IF(LOADS!$AC157="BUS",IF(LOADS!$AE157=E$1,1,0),0) -> 0 | F160: =IF(LOADS!$AC157="BUS",IF(LOADS!$AE157=F$1,1,0),0) -> 0 | G160: =IF(LOADS!$AC157="BUS",IF(LOADS!$AE157=G$1,1,0),0) -> 0 | H160: =IF(LOADS!$AC157="BUS",IF(LOADS!$AE157=H$1,1,0),0) -> 0 | I160: =IF(LOADS!$AC157="BUS",IF(LOADS!$AE157=I$1,1,0),0) -> 0 | J160: 0 | K160: =LOADS!AM157 -> 0
A161: =IF(ISBLANK(LOADS!A158),"",LOADS!A158) ->  | B161: =IF(ISBLANK(LOADS!B158),"",LOADS!B158) ->  | C161: =IF(LOADS!$AC158="BUS",IF(LOADS!$AE158=C$1,1,0),0) -> 0 | D161: =IF(LOADS!$AC158="BUS",IF(LOADS!$AE158=D$1,1,0),0) -> 0 | E161: =IF(LOADS!$AC158="BUS",IF(LOADS!$AE158=E$1,1,0),0) -> 0 | F161: =IF(LOADS!$AC158="BUS",IF(LOADS!$AE158=F$1,1,0),0) -> 0 | G161: =IF(LOADS!$AC158="BUS",IF(LOADS!$AE158=G$1,1,0),0) -> 0 | H161: =IF(LOADS!$AC158="BUS",IF(LOADS!$AE158=H$1,1,0),0) -> 0 | I161: =IF(LOADS!$AC158="BUS",IF(LOADS!$AE158=I$1,1,0),0) -> 0 | J161: 0 | K161: =LOADS!AM158 -> 0
A162: =IF(ISBLANK(LOADS!A159),"",LOADS!A159) ->  | B162: =IF(ISBLANK(LOADS!B159),"",LOADS!B159) ->  | C162: =IF(LOADS!$AC159="BUS",IF(LOADS!$AE159=C$1,1,0),0) -> 0 | D162: =IF(LOADS!$AC159="BUS",IF(LOADS!$AE159=D$1,1,0),0) -> 0 | E162: =IF(LOADS!$AC159="BUS",IF(LOADS!$AE159=E$1,1,0),0) -> 0 | F162: =IF(LOADS!$AC159="BUS",IF(LOADS!$AE159=F$1,1,0),0) -> 0 | G162: =IF(LOADS!$AC159="BUS",IF(LOADS!$AE159=G$1,1,0),0) -> 0 | H162: =IF(LOADS!$AC159="BUS",IF(LOADS!$AE159=H$1,1,0),0) -> 0 | I162: =IF(LOADS!$AC159="BUS",IF(LOADS!$AE159=I$1,1,0),0) -> 0 | J162: 0 | K162: =LOADS!AM159 -> 0
A163: =IF(ISBLANK(LOADS!A160),"",LOADS!A160) ->  | B163: =IF(ISBLANK(LOADS!B160),"",LOADS!B160) ->  | C163: =IF(LOADS!$AC160="BUS",IF(LOADS!$AE160=C$1,1,0),0) -> 0 | D163: =IF(LOADS!$AC160="BUS",IF(LOADS!$AE160=D$1,1,0),0) -> 0 | E163: =IF(LOADS!$AC160="BUS",IF(LOADS!$AE160=E$1,1,0),0) -> 0 | F163: =IF(LOADS!$AC160="BUS",IF(LOADS!$AE160=F$1,1,0),0) -> 0 | G163: =IF(LOADS!$AC160="BUS",IF(LOADS!$AE160=G$1,1,0),0) -> 0 | H163: =IF(LOADS!$AC160="BUS",IF(LOADS!$AE160=H$1,1,0),0) -> 0 | I163: =IF(LOADS!$AC160="BUS",IF(LOADS!$AE160=I$1,1,0),0) -> 0 | J163: 0 | K163: =LOADS!AM160 -> 0
A164: =IF(ISBLANK(LOADS!A161),"",LOADS!A161) ->  | B164: =IF(ISBLANK(LOADS!B161),"",LOADS!B161) ->  | C164: =IF(LOADS!$AC161="BUS",IF(LOADS!$AE161=C$1,1,0),0) -> 0 | D164: =IF(LOADS!$AC161="BUS",IF(LOADS!$AE161=D$1,1,0),0) -> 0 | E164: =IF(LOADS!$AC161="BUS",IF(LOADS!$AE161=E$1,1,0),0) -> 0 | F164: =IF(LOADS!$AC161="BUS",IF(LOADS!$AE161=F$1,1,0),0) -> 0 | G164: =IF(LOADS!$AC161="BUS",IF(LOADS!$AE161=G$1,1,0),0) -> 0 | H164: =IF(LOADS!$AC161="BUS",IF(LOADS!$AE161=H$1,1,0),0) -> 0 | I164: =IF(LOADS!$AC161="BUS",IF(LOADS!$AE161=I$1,1,0),0) -> 0 | J164: 0 | K164: =LOADS!AM161 -> 0
A165: =IF(ISBLANK(LOADS!A162),"",LOADS!A162) ->  | B165: =IF(ISBLANK(LOADS!B162),"",LOADS!B162) ->  | C165: =IF(LOADS!$AC162="BUS",IF(LOADS!$AE162=C$1,1,0),0) -> 0 | D165: =IF(LOADS!$AC162="BUS",IF(LOADS!$AE162=D$1,1,0),0) -> 0 | E165: =IF(LOADS!$AC162="BUS",IF(LOADS!$AE162=E$1,1,0),0) -> 0 | F165: =IF(LOADS!$AC162="BUS",IF(LOADS!$AE162=F$1,1,0),0) -> 0 | G165: =IF(LOADS!$AC162="BUS",IF(LOADS!$AE162=G$1,1,0),0) -> 0 | H165: =IF(LOADS!$AC162="BUS",IF(LOADS!$AE162=H$1,1,0),0) -> 0 | I165: =IF(LOADS!$AC162="BUS",IF(LOADS!$AE162=I$1,1,0),0) -> 0 | J165: 0 | K165: =LOADS!AM162 -> 0
A166: =IF(ISBLANK(LOADS!A163),"",LOADS!A163) ->  | B166: =IF(ISBLANK(LOADS!B163),"",LOADS!B163) ->  | C166: =IF(LOADS!$AC163="BUS",IF(LOADS!$AE163=C$1,1,0),0) -> 0 | D166: =IF(LOADS!$AC163="BUS",IF(LOADS!$AE163=D$1,1,0),0) -> 0 | E166: =IF(LOADS!$AC163="BUS",IF(LOADS!$AE163=E$1,1,0),0) -> 0 | F166: =IF(LOADS!$AC163="BUS",IF(LOADS!$AE163=F$1,1,0),0) -> 0 | G166: =IF(LOADS!$AC163="BUS",IF(LOADS!$AE163=G$1,1,0),0) -> 0 | H166: =IF(LOADS!$AC163="BUS",IF(LOADS!$AE163=H$1,1,0),0) -> 0 | I166: =IF(LOADS!$AC163="BUS",IF(LOADS!$AE163=I$1,1,0),0) -> 0 | J166: 0 | K166: =LOADS!AM163 -> 0
A167: =IF(ISBLANK(LOADS!A164),"",LOADS!A164) ->  | B167: =IF(ISBLANK(LOADS!B164),"",LOADS!B164) ->  | C167: =IF(LOADS!$AC164="BUS",IF(LOADS!$AE164=C$1,1,0),0) -> 0 | D167: =IF(LOADS!$AC164="BUS",IF(LOADS!$AE164=D$1,1,0),0) -> 0 | E167: =IF(LOADS!$AC164="BUS",IF(LOADS!$AE164=E$1,1,0),0) -> 0 | F167: =IF(LOADS!$AC164="BUS",IF(LOADS!$AE164=F$1,1,0),0) -> 0 | G167: =IF(LOADS!$AC164="BUS",IF(LOADS!$AE164=G$1,1,0),0) -> 0 | H167: =IF(LOADS!$AC164="BUS",IF(LOADS!$AE164=H$1,1,0),0) -> 0 | I167: =IF(LOADS!$AC164="BUS",IF(LOADS!$AE164=I$1,1,0),0) -> 0 | J167: 0 | K167: =LOADS!AM164 -> 0
A168: =IF(ISBLANK(LOADS!A165),"",LOADS!A165) ->  | B168: =IF(ISBLANK(LOADS!B165),"",LOADS!B165) ->  | C168: =IF(LOADS!$AC165="BUS",IF(LOADS!$AE165=C$1,1,0),0) -> 0 | D168: =IF(LOADS!$AC165="BUS",IF(LOADS!$AE165=D$1,1,0),0) -> 0 | E168: =IF(LOADS!$AC165="BUS",IF(LOADS!$AE165=E$1,1,0),0) -> 0 | F168: =IF(LOADS!$AC165="BUS",IF(LOADS!$AE165=F$1,1,0),0) -> 0 | G168: =IF(LOADS!$AC165="BUS",IF(LOADS!$AE165=G$1,1,0),0) -> 0 | H168: =IF(LOADS!$AC165="BUS",IF(LOADS!$AE165=H$1,1,0),0) -> 0 | I168: =IF(LOADS!$AC165="BUS",IF(LOADS!$AE165=I$1,1,0),0) -> 0 | J168: 0 | K168: =LOADS!AM165 -> 0
A169: =IF(ISBLANK(LOADS!A166),"",LOADS!A166) ->  | B169: =IF(ISBLANK(LOADS!B166),"",LOADS!B166) ->  | C169: =IF(LOADS!$AC166="BUS",IF(LOADS!$AE166=C$1,1,0),0) -> 0 | D169: =IF(LOADS!$AC166="BUS",IF(LOADS!$AE166=D$1,1,0),0) -> 0 | E169: =IF(LOADS!$AC166="BUS",IF(LOADS!$AE166=E$1,1,0),0) -> 0 | F169: =IF(LOADS!$AC166="BUS",IF(LOADS!$AE166=F$1,1,0),0) -> 0 | G169: =IF(LOADS!$AC166="BUS",IF(LOADS!$AE166=G$1,1,0),0) -> 0 | H169: =IF(LOADS!$AC166="BUS",IF(LOADS!$AE166=H$1,1,0),0) -> 0 | I169: =IF(LOADS!$AC166="BUS",IF(LOADS!$AE166=I$1,1,0),0) -> 0 | J169: 0 | K169: =LOADS!AM166 -> 0
A170: =IF(ISBLANK(LOADS!A167),"",LOADS!A167) ->  | B170: =IF(ISBLANK(LOADS!B167),"",LOADS!B167) ->  | C170: =IF(LOADS!$AC167="BUS",IF(LOADS!$AE167=C$1,1,0),0) -> 0 | D170: =IF(LOADS!$AC167="BUS",IF(LOADS!$AE167=D$1,1,0),0) -> 0 | E170: =IF(LOADS!$AC167="BUS",IF(LOADS!$AE167=E$1,1,0),0) -> 0 | F170: =IF(LOADS!$AC167="BUS",IF(LOADS!$AE167=F$1,1,0),0) -> 0 | G170: =IF(LOADS!$AC167="BUS",IF(LOADS!$AE167=G$1,1,0),0) -> 0 | H170: =IF(LOADS!$AC167="BUS",IF(LOADS!$AE167=H$1,1,0),0) -> 0 | I170: =IF(LOADS!$AC167="BUS",IF(LOADS!$AE167=I$1,1,0),0) -> 0 | J170: 0 | K170: =LOADS!AM167 -> 0
A171: =IF(ISBLANK(LOADS!A168),"",LOADS!A168) ->  | B171: =IF(ISBLANK(LOADS!B168),"",LOADS!B168) ->  | C171: =IF(LOADS!$AC168="BUS",IF(LOADS!$AE168=C$1,1,0),0) -> 0 | D171: =IF(LOADS!$AC168="BUS",IF(LOADS!$AE168=D$1,1,0),0) -> 0 | E171: =IF(LOADS!$AC168="BUS",IF(LOADS!$AE168=E$1,1,0),0) -> 0 | F171: =IF(LOADS!$AC168="BUS",IF(LOADS!$AE168=F$1,1,0),0) -> 0 | G171: =IF(LOADS!$AC168="BUS",IF(LOADS!$AE168=G$1,1,0),0) -> 0 | H171: =IF(LOADS!$AC168="BUS",IF(LOADS!$AE168=H$1,1,0),0) -> 0 | I171: =IF(LOADS!$AC168="BUS",IF(LOADS!$AE168=I$1,1,0),0) -> 0 | J171: 0 | K171: =LOADS!AM168 -> 0
A172: =IF(ISBLANK(LOADS!A169),"",LOADS!A169) ->  | B172: =IF(ISBLANK(LOADS!B169),"",LOADS!B169) ->  | C172: =IF(LOADS!$AC169="BUS",IF(LOADS!$AE169=C$1,1,0),0) -> 0 | D172: =IF(LOADS!$AC169="BUS",IF(LOADS!$AE169=D$1,1,0),0) -> 0 | E172: =IF(LOADS!$AC169="BUS",IF(LOADS!$AE169=E$1,1,0),0) -> 0 | F172: =IF(LOADS!$AC169="BUS",IF(LOADS!$AE169=F$1,1,0),0) -> 0 | G172: =IF(LOADS!$AC169="BUS",IF(LOADS!$AE169=G$1,1,0),0) -> 0 | H172: =IF(LOADS!$AC169="BUS",IF(LOADS!$AE169=H$1,1,0),0) -> 0 | I172: =IF(LOADS!$AC169="BUS",IF(LOADS!$AE169=I$1,1,0),0) -> 0 | J172: 0 | K172: =LOADS!AM169 -> 0
A173: =IF(ISBLANK(LOADS!A170),"",LOADS!A170) ->  | B173: =IF(ISBLANK(LOADS!B170),"",LOADS!B170) ->  | C173: =IF(LOADS!$AC170="BUS",IF(LOADS!$AE170=C$1,1,0),0) -> 0 | D173: =IF(LOADS!$AC170="BUS",IF(LOADS!$AE170=D$1,1,0),0) -> 0 | E173: =IF(LOADS!$AC170="BUS",IF(LOADS!$AE170=E$1,1,0),0) -> 0 | F173: =IF(LOADS!$AC170="BUS",IF(LOADS!$AE170=F$1,1,0),0) -> 0 | G173: =IF(LOADS!$AC170="BUS",IF(LOADS!$AE170=G$1,1,0),0) -> 0 | H173: =IF(LOADS!$AC170="BUS",IF(LOADS!$AE170=H$1,1,0),0) -> 0 | I173: =IF(LOADS!$AC170="BUS",IF(LOADS!$AE170=I$1,1,0),0) -> 0 | J173: 0 | K173: =LOADS!AM170 -> 0
A174: =IF(ISBLANK(LOADS!A171),"",LOADS!A171) ->  | B174: =IF(ISBLANK(LOADS!B171),"",LOADS!B171) ->  | C174: =IF(LOADS!$AC171="BUS",IF(LOADS!$AE171=C$1,1,0),0) -> 0 | D174: =IF(LOADS!$AC171="BUS",IF(LOADS!$AE171=D$1,1,0),0) -> 0 | E174: =IF(LOADS!$AC171="BUS",IF(LOADS!$AE171=E$1,1,0),0) -> 0 | F174: =IF(LOADS!$AC171="BUS",IF(LOADS!$AE171=F$1,1,0),0) -> 0 | G174: =IF(LOADS!$AC171="BUS",IF(LOADS!$AE171=G$1,1,0),0) -> 0 | H174: =IF(LOADS!$AC171="BUS",IF(LOADS!$AE171=H$1,1,0),0) -> 0 | I174: =IF(LOADS!$AC171="BUS",IF(LOADS!$AE171=I$1,1,0),0) -> 0 | J174: 0 | K174: =LOADS!AM171 -> 0
A175: =IF(ISBLANK(LOADS!A172),"",LOADS!A172) ->  | B175: =IF(ISBLANK(LOADS!B172),"",LOADS!B172) ->  | C175: =IF(LOADS!$AC172="BUS",IF(LOADS!$AE172=C$1,1,0),0) -> 0 | D175: =IF(LOADS!$AC172="BUS",IF(LOADS!$AE172=D$1,1,0),0) -> 0 | E175: =IF(LOADS!$AC172="BUS",IF(LOADS!$AE172=E$1,1,0),0) -> 0 | F175: =IF(LOADS!$AC172="BUS",IF(LOADS!$AE172=F$1,1,0),0) -> 0 | G175: =IF(LOADS!$AC172="BUS",IF(LOADS!$AE172=G$1,1,0),0) -> 0 | H175: =IF(LOADS!$AC172="BUS",IF(LOADS!$AE172=H$1,1,0),0) -> 0 | I175: =IF(LOADS!$AC172="BUS",IF(LOADS!$AE172=I$1,1,0),0) -> 0 | J175: 0 | K175: =LOADS!AM172 -> 0
A176: =IF(ISBLANK(LOADS!A173),"",LOADS!A173) ->  | B176: =IF(ISBLANK(LOADS!B173),"",LOADS!B173) ->  | C176: =IF(LOADS!$AC173="BUS",IF(LOADS!$AE173=C$1,1,0),0) -> 0 | D176: =IF(LOADS!$AC173="BUS",IF(LOADS!$AE173=D$1,1,0),0) -> 0 | E176: =IF(LOADS!$AC173="BUS",IF(LOADS!$AE173=E$1,1,0),0) -> 0 | F176: =IF(LOADS!$AC173="BUS",IF(LOADS!$AE173=F$1,1,0),0) -> 0 | G176: =IF(LOADS!$AC173="BUS",IF(LOADS!$AE173=G$1,1,0),0) -> 0 | H176: =IF(LOADS!$AC173="BUS",IF(LOADS!$AE173=H$1,1,0),0) -> 0 | I176: =IF(LOADS!$AC173="BUS",IF(LOADS!$AE173=I$1,1,0),0) -> 0 | J176: 0 | K176: =LOADS!AM173 -> 0
A177: =IF(ISBLANK(LOADS!A174),"",LOADS!A174) ->  | B177: =IF(ISBLANK(LOADS!B174),"",LOADS!B174) ->  | C177: =IF(LOADS!$AC174="BUS",IF(LOADS!$AE174=C$1,1,0),0) -> 0 | D177: =IF(LOADS!$AC174="BUS",IF(LOADS!$AE174=D$1,1,0),0) -> 0 | E177: =IF(LOADS!$AC174="BUS",IF(LOADS!$AE174=E$1,1,0),0) -> 0 | F177: =IF(LOADS!$AC174="BUS",IF(LOADS!$AE174=F$1,1,0),0) -> 0 | G177: =IF(LOADS!$AC174="BUS",IF(LOADS!$AE174=G$1,1,0),0) -> 0 | H177: =IF(LOADS!$AC174="BUS",IF(LOADS!$AE174=H$1,1,0),0) -> 0 | I177: =IF(LOADS!$AC174="BUS",IF(LOADS!$AE174=I$1,1,0),0) -> 0 | J177: 0 | K177: =LOADS!AM174 -> 0
A178: =IF(ISBLANK(LOADS!A175),"",LOADS!A175) ->  | B178: =IF(ISBLANK(LOADS!B175),"",LOADS!B175) ->  | C178: =IF(LOADS!$AC175="BUS",IF(LOADS!$AE175=C$1,1,0),0) -> 0 | D178: =IF(LOADS!$AC175="BUS",IF(LOADS!$AE175=D$1,1,0),0) -> 0 | E178: =IF(LOADS!$AC175="BUS",IF(LOADS!$AE175=E$1,1,0),0) -> 0 | F178: =IF(LOADS!$AC175="BUS",IF(LOADS!$AE175=F$1,1,0),0) -> 0 | G178: =IF(LOADS!$AC175="BUS",IF(LOADS!$AE175=G$1,1,0),0) -> 0 | H178: =IF(LOADS!$AC175="BUS",IF(LOADS!$AE175=H$1,1,0),0) -> 0 | I178: =IF(LOADS!$AC175="BUS",IF(LOADS!$AE175=I$1,1,0),0) -> 0 | J178: 0 | K178: =LOADS!AM175 -> 0
A179: =IF(ISBLANK(LOADS!A176),"",LOADS!A176) ->  | B179: =IF(ISBLANK(LOADS!B176),"",LOADS!B176) ->  | C179: =IF(LOADS!$AC176="BUS",IF(LOADS!$AE176=C$1,1,0),0) -> 0 | D179: =IF(LOADS!$AC176="BUS",IF(LOADS!$AE176=D$1,1,0),0) -> 0 | E179: =IF(LOADS!$AC176="BUS",IF(LOADS!$AE176=E$1,1,0),0) -> 0 | F179: =IF(LOADS!$AC176="BUS",IF(LOADS!$AE176=F$1,1,0),0) -> 0 | G179: =IF(LOADS!$AC176="BUS",IF(LOADS!$AE176=G$1,1,0),0) -> 0 | H179: =IF(LOADS!$AC176="BUS",IF(LOADS!$AE176=H$1,1,0),0) -> 0 | I179: =IF(LOADS!$AC176="BUS",IF(LOADS!$AE176=I$1,1,0),0) -> 0 | J179: 0 | K179: =LOADS!AM176 -> 0
A180: =IF(ISBLANK(LOADS!A177),"",LOADS!A177) ->  | B180: =IF(ISBLANK(LOADS!B177),"",LOADS!B177) ->  | C180: =IF(LOADS!$AC177="BUS",IF(LOADS!$AE177=C$1,1,0),0) -> 0 | D180: =IF(LOADS!$AC177="BUS",IF(LOADS!$AE177=D$1,1,0),0) -> 0 | E180: =IF(LOADS!$AC177="BUS",IF(LOADS!$AE177=E$1,1,0),0) -> 0 | F180: =IF(LOADS!$AC177="BUS",IF(LOADS!$AE177=F$1,1,0),0) -> 0 | G180: =IF(LOADS!$AC177="BUS",IF(LOADS!$AE177=G$1,1,0),0) -> 0 | H180: =IF(LOADS!$AC177="BUS",IF(LOADS!$AE177=H$1,1,0),0) -> 0 | I180: =IF(LOADS!$AC177="BUS",IF(LOADS!$AE177=I$1,1,0),0) -> 0 | J180: 0 | K180: =LOADS!AM177 -> 0
A181: =IF(ISBLANK(LOADS!A178),"",LOADS!A178) ->  | B181: =IF(ISBLANK(LOADS!B178),"",LOADS!B178) ->  | C181: =IF(LOADS!$AC178="BUS",IF(LOADS!$AE178=C$1,1,0),0) -> 0 | D181: =IF(LOADS!$AC178="BUS",IF(LOADS!$AE178=D$1,1,0),0) -> 0 | E181: =IF(LOADS!$AC178="BUS",IF(LOADS!$AE178=E$1,1,0),0) -> 0 | F181: =IF(LOADS!$AC178="BUS",IF(LOADS!$AE178=F$1,1,0),0) -> 0 | G181: =IF(LOADS!$AC178="BUS",IF(LOADS!$AE178=G$1,1,0),0) -> 0 | H181: =IF(LOADS!$AC178="BUS",IF(LOADS!$AE178=H$1,1,0),0) -> 0 | I181: =IF(LOADS!$AC178="BUS",IF(LOADS!$AE178=I$1,1,0),0) -> 0 | J181: 0 | K181: =LOADS!AM178 -> 0
A182: =IF(ISBLANK(LOADS!A179),"",LOADS!A179) ->  | B182: =IF(ISBLANK(LOADS!B179),"",LOADS!B179) ->  | C182: =IF(LOADS!$AC179="BUS",IF(LOADS!$AE179=C$1,1,0),0) -> 0 | D182: =IF(LOADS!$AC179="BUS",IF(LOADS!$AE179=D$1,1,0),0) -> 0 | E182: =IF(LOADS!$AC179="BUS",IF(LOADS!$AE179=E$1,1,0),0) -> 0 | F182: =IF(LOADS!$AC179="BUS",IF(LOADS!$AE179=F$1,1,0),0) -> 0 | G182: =IF(LOADS!$AC179="BUS",IF(LOADS!$AE179=G$1,1,0),0) -> 0 | H182: =IF(LOADS!$AC179="BUS",IF(LOADS!$AE179=H$1,1,0),0) -> 0 | I182: =IF(LOADS!$AC179="BUS",IF(LOADS!$AE179=I$1,1,0),0) -> 0 | J182: 0 | K182: =LOADS!AM179 -> 0
A183: =IF(ISBLANK(LOADS!A180),"",LOADS!A180) ->  | B183: =IF(ISBLANK(LOADS!B180),"",LOADS!B180) ->  | C183: =IF(LOADS!$AC180="BUS",IF(LOADS!$AE180=C$1,1,0),0) -> 0 | D183: =IF(LOADS!$AC180="BUS",IF(LOADS!$AE180=D$1,1,0),0) -> 0 | E183: =IF(LOADS!$AC180="BUS",IF(LOADS!$AE180=E$1,1,0),0) -> 0 | F183: =IF(LOADS!$AC180="BUS",IF(LOADS!$AE180=F$1,1,0),0) -> 0 | G183: =IF(LOADS!$AC180="BUS",IF(LOADS!$AE180=G$1,1,0),0) -> 0 | H183: =IF(LOADS!$AC180="BUS",IF(LOADS!$AE180=H$1,1,0),0) -> 0 | I183: =IF(LOADS!$AC180="BUS",IF(LOADS!$AE180=I$1,1,0),0) -> 0 | J183: 0 | K183: =LOADS!AM180 -> 0
A184: =IF(ISBLANK(LOADS!A181),"",LOADS!A181) ->  | B184: =IF(ISBLANK(LOADS!B181),"",LOADS!B181) ->  | C184: =IF(LOADS!$AC181="BUS",IF(LOADS!$AE181=C$1,1,0),0) -> 0 | D184: =IF(LOADS!$AC181="BUS",IF(LOADS!$AE181=D$1,1,0),0) -> 0 | E184: =IF(LOADS!$AC181="BUS",IF(LOADS!$AE181=E$1,1,0),0) -> 0 | F184: =IF(LOADS!$AC181="BUS",IF(LOADS!$AE181=F$1,1,0),0) -> 0 | G184: =IF(LOADS!$AC181="BUS",IF(LOADS!$AE181=G$1,1,0),0) -> 0 | H184: =IF(LOADS!$AC181="BUS",IF(LOADS!$AE181=H$1,1,0),0) -> 0 | I184: =IF(LOADS!$AC181="BUS",IF(LOADS!$AE181=I$1,1,0),0) -> 0 | J184: 0 | K184: =LOADS!AM181 -> 0
A185: =IF(ISBLANK(LOADS!A182),"",LOADS!A182) ->  | B185: =IF(ISBLANK(LOADS!B182),"",LOADS!B182) ->  | C185: =IF(LOADS!$AC182="BUS",IF(LOADS!$AE182=C$1,1,0),0) -> 0 | D185: =IF(LOADS!$AC182="BUS",IF(LOADS!$AE182=D$1,1,0),0) -> 0 | E185: =IF(LOADS!$AC182="BUS",IF(LOADS!$AE182=E$1,1,0),0) -> 0 | F185: =IF(LOADS!$AC182="BUS",IF(LOADS!$AE182=F$1,1,0),0) -> 0 | G185: =IF(LOADS!$AC182="BUS",IF(LOADS!$AE182=G$1,1,0),0) -> 0 | H185: =IF(LOADS!$AC182="BUS",IF(LOADS!$AE182=H$1,1,0),0) -> 0 | I185: =IF(LOADS!$AC182="BUS",IF(LOADS!$AE182=I$1,1,0),0) -> 0 | J185: 0 | K185: =LOADS!AM182 -> 0
A186: =IF(ISBLANK(LOADS!A183),"",LOADS!A183) ->  | B186: =IF(ISBLANK(LOADS!B183),"",LOADS!B183) ->  | C186: =IF(LOADS!$AC183="BUS",IF(LOADS!$AE183=C$1,1,0),0) -> 0 | D186: =IF(LOADS!$AC183="BUS",IF(LOADS!$AE183=D$1,1,0),0) -> 0 | E186: =IF(LOADS!$AC183="BUS",IF(LOADS!$AE183=E$1,1,0),0) -> 0 | F186: =IF(LOADS!$AC183="BUS",IF(LOADS!$AE183=F$1,1,0),0) -> 0 | G186: =IF(LOADS!$AC183="BUS",IF(LOADS!$AE183=G$1,1,0),0) -> 0 | H186: =IF(LOADS!$AC183="BUS",IF(LOADS!$AE183=H$1,1,0),0) -> 0 | I186: =IF(LOADS!$AC183="BUS",IF(LOADS!$AE183=I$1,1,0),0) -> 0 | J186: 0 | K186: =LOADS!AM183 -> 0
A187: =IF(ISBLANK(LOADS!A184),"",LOADS!A184) ->  | B187: =IF(ISBLANK(LOADS!B184),"",LOADS!B184) ->  | C187: =IF(LOADS!$AC184="BUS",IF(LOADS!$AE184=C$1,1,0),0) -> 0 | D187: =IF(LOADS!$AC184="BUS",IF(LOADS!$AE184=D$1,1,0),0) -> 0 | E187: =IF(LOADS!$AC184="BUS",IF(LOADS!$AE184=E$1,1,0),0) -> 0 | F187: =IF(LOADS!$AC184="BUS",IF(LOADS!$AE184=F$1,1,0),0) -> 0 | G187: =IF(LOADS!$AC184="BUS",IF(LOADS!$AE184=G$1,1,0),0) -> 0 | H187: =IF(LOADS!$AC184="BUS",IF(LOADS!$AE184=H$1,1,0),0) -> 0 | I187: =IF(LOADS!$AC184="BUS",IF(LOADS!$AE184=I$1,1,0),0) -> 0 | J187: 0 | K187: =LOADS!AM184 -> 0
A188: =IF(ISBLANK(LOADS!A185),"",LOADS!A185) ->  | B188: =IF(ISBLANK(LOADS!B185),"",LOADS!B185) ->  | C188: =IF(LOADS!$AC185="BUS",IF(LOADS!$AE185=C$1,1,0),0) -> 0 | D188: =IF(LOADS!$AC185="BUS",IF(LOADS!$AE185=D$1,1,0),0) -> 0 | E188: =IF(LOADS!$AC185="BUS",IF(LOADS!$AE185=E$1,1,0),0) -> 0 | F188: =IF(LOADS!$AC185="BUS",IF(LOADS!$AE185=F$1,1,0),0) -> 0 | G188: =IF(LOADS!$AC185="BUS",IF(LOADS!$AE185=G$1,1,0),0) -> 0 | H188: =IF(LOADS!$AC185="BUS",IF(LOADS!$AE185=H$1,1,0),0) -> 0 | I188: =IF(LOADS!$AC185="BUS",IF(LOADS!$AE185=I$1,1,0),0) -> 0 | J188: 0 | K188: =LOADS!AM185 -> 0
A189: =IF(ISBLANK(LOADS!A186),"",LOADS!A186) ->  | B189: =IF(ISBLANK(LOADS!B186),"",LOADS!B186) ->  | C189: =IF(LOADS!$AC186="BUS",IF(LOADS!$AE186=C$1,1,0),0) -> 0 | D189: =IF(LOADS!$AC186="BUS",IF(LOADS!$AE186=D$1,1,0),0) -> 0 | E189: =IF(LOADS!$AC186="BUS",IF(LOADS!$AE186=E$1,1,0),0) -> 0 | F189: =IF(LOADS!$AC186="BUS",IF(LOADS!$AE186=F$1,1,0),0) -> 0 | G189: =IF(LOADS!$AC186="BUS",IF(LOADS!$AE186=G$1,1,0),0) -> 0 | H189: =IF(LOADS!$AC186="BUS",IF(LOADS!$AE186=H$1,1,0),0) -> 0 | I189: =IF(LOADS!$AC186="BUS",IF(LOADS!$AE186=I$1,1,0),0) -> 0 | J189: 0 | K189: =LOADS!AM186 -> 0
A190: =IF(ISBLANK(LOADS!A187),"",LOADS!A187) ->  | B190: =IF(ISBLANK(LOADS!B187),"",LOADS!B187) ->  | C190: =IF(LOADS!$AC187="BUS",IF(LOADS!$AE187=C$1,1,0),0) -> 0 | D190: =IF(LOADS!$AC187="BUS",IF(LOADS!$AE187=D$1,1,0),0) -> 0 | E190: =IF(LOADS!$AC187="BUS",IF(LOADS!$AE187=E$1,1,0),0) -> 0 | F190: =IF(LOADS!$AC187="BUS",IF(LOADS!$AE187=F$1,1,0),0) -> 0 | G190: =IF(LOADS!$AC187="BUS",IF(LOADS!$AE187=G$1,1,0),0) -> 0 | H190: =IF(LOADS!$AC187="BUS",IF(LOADS!$AE187=H$1,1,0),0) -> 0 | I190: =IF(LOADS!$AC187="BUS",IF(LOADS!$AE187=I$1,1,0),0) -> 0 | J190: 0 | K190: =LOADS!AM187 -> 0
A191: =IF(ISBLANK(LOADS!A188),"",LOADS!A188) ->  | B191: =IF(ISBLANK(LOADS!B188),"",LOADS!B188) ->  | C191: =IF(LOADS!$AC188="BUS",IF(LOADS!$AE188=C$1,1,0),0) -> 0 | D191: =IF(LOADS!$AC188="BUS",IF(LOADS!$AE188=D$1,1,0),0) -> 0 | E191: =IF(LOADS!$AC188="BUS",IF(LOADS!$AE188=E$1,1,0),0) -> 0 | F191: =IF(LOADS!$AC188="BUS",IF(LOADS!$AE188=F$1,1,0),0) -> 0 | G191: =IF(LOADS!$AC188="BUS",IF(LOADS!$AE188=G$1,1,0),0) -> 0 | H191: =IF(LOADS!$AC188="BUS",IF(LOADS!$AE188=H$1,1,0),0) -> 0 | I191: =IF(LOADS!$AC188="BUS",IF(LOADS!$AE188=I$1,1,0),0) -> 0 | J191: 0 | K191: =LOADS!AM188 -> 0
A192: =IF(ISBLANK(LOADS!A189),"",LOADS!A189) ->  | B192: =IF(ISBLANK(LOADS!B189),"",LOADS!B189) ->  | C192: =IF(LOADS!$AC189="BUS",IF(LOADS!$AE189=C$1,1,0),0) -> 0 | D192: =IF(LOADS!$AC189="BUS",IF(LOADS!$AE189=D$1,1,0),0) -> 0 | E192: =IF(LOADS!$AC189="BUS",IF(LOADS!$AE189=E$1,1,0),0) -> 0 | F192: =IF(LOADS!$AC189="BUS",IF(LOADS!$AE189=F$1,1,0),0) -> 0 | G192: =IF(LOADS!$AC189="BUS",IF(LOADS!$AE189=G$1,1,0),0) -> 0 | H192: =IF(LOADS!$AC189="BUS",IF(LOADS!$AE189=H$1,1,0),0) -> 0 | I192: =IF(LOADS!$AC189="BUS",IF(LOADS!$AE189=I$1,1,0),0) -> 0 | J192: 0 | K192: =LOADS!AM189 -> 0
A193: =IF(ISBLANK(LOADS!A190),"",LOADS!A190) ->  | B193: =IF(ISBLANK(LOADS!B190),"",LOADS!B190) ->  | C193: =IF(LOADS!$AC190="BUS",IF(LOADS!$AE190=C$1,1,0),0) -> 0 | D193: =IF(LOADS!$AC190="BUS",IF(LOADS!$AE190=D$1,1,0),0) -> 0 | E193: =IF(LOADS!$AC190="BUS",IF(LOADS!$AE190=E$1,1,0),0) -> 0 | F193: =IF(LOADS!$AC190="BUS",IF(LOADS!$AE190=F$1,1,0),0) -> 0 | G193: =IF(LOADS!$AC190="BUS",IF(LOADS!$AE190=G$1,1,0),0) -> 0 | H193: =IF(LOADS!$AC190="BUS",IF(LOADS!$AE190=H$1,1,0),0) -> 0 | I193: =IF(LOADS!$AC190="BUS",IF(LOADS!$AE190=I$1,1,0),0) -> 0 | J193: 0 | K193: =LOADS!AM190 -> 0
A194: =IF(ISBLANK(LOADS!A191),"",LOADS!A191) ->  | B194: =IF(ISBLANK(LOADS!B191),"",LOADS!B191) ->  | C194: =IF(LOADS!$AC191="BUS",IF(LOADS!$AE191=C$1,1,0),0) -> 0 | D194: =IF(LOADS!$AC191="BUS",IF(LOADS!$AE191=D$1,1,0),0) -> 0 | E194: =IF(LOADS!$AC191="BUS",IF(LOADS!$AE191=E$1,1,0),0) -> 0 | F194: =IF(LOADS!$AC191="BUS",IF(LOADS!$AE191=F$1,1,0),0) -> 0 | G194: =IF(LOADS!$AC191="BUS",IF(LOADS!$AE191=G$1,1,0),0) -> 0 | H194: =IF(LOADS!$AC191="BUS",IF(LOADS!$AE191=H$1,1,0),0) -> 0 | I194: =IF(LOADS!$AC191="BUS",IF(LOADS!$AE191=I$1,1,0),0) -> 0 | J194: 0 | K194: =LOADS!AM191 -> 0
A195: =IF(ISBLANK(LOADS!A192),"",LOADS!A192) ->  | B195: =IF(ISBLANK(LOADS!B192),"",LOADS!B192) ->  | C195: =IF(LOADS!$AC192="BUS",IF(LOADS!$AE192=C$1,1,0),0) -> 0 | D195: =IF(LOADS!$AC192="BUS",IF(LOADS!$AE192=D$1,1,0),0) -> 0 | E195: =IF(LOADS!$AC192="BUS",IF(LOADS!$AE192=E$1,1,0),0) -> 0 | F195: =IF(LOADS!$AC192="BUS",IF(LOADS!$AE192=F$1,1,0),0) -> 0 | G195: =IF(LOADS!$AC192="BUS",IF(LOADS!$AE192=G$1,1,0),0) -> 0 | H195: =IF(LOADS!$AC192="BUS",IF(LOADS!$AE192=H$1,1,0),0) -> 0 | I195: =IF(LOADS!$AC192="BUS",IF(LOADS!$AE192=I$1,1,0),0) -> 0 | J195: 0 | K195: =LOADS!AM192 -> 0
A196: =IF(ISBLANK(LOADS!A193),"",LOADS!A193) ->  | B196: =IF(ISBLANK(LOADS!B193),"",LOADS!B193) ->  | C196: =IF(LOADS!$AC193="BUS",IF(LOADS!$AE193=C$1,1,0),0) -> 0 | D196: =IF(LOADS!$AC193="BUS",IF(LOADS!$AE193=D$1,1,0),0) -> 0 | E196: =IF(LOADS!$AC193="BUS",IF(LOADS!$AE193=E$1,1,0),0) -> 0 | F196: =IF(LOADS!$AC193="BUS",IF(LOADS!$AE193=F$1,1,0),0) -> 0 | G196: =IF(LOADS!$AC193="BUS",IF(LOADS!$AE193=G$1,1,0),0) -> 0 | H196: =IF(LOADS!$AC193="BUS",IF(LOADS!$AE193=H$1,1,0),0) -> 0 | I196: =IF(LOADS!$AC193="BUS",IF(LOADS!$AE193=I$1,1,0),0) -> 0 | J196: 0 | K196: =LOADS!AM193 -> 0
A197: =IF(ISBLANK(LOADS!A194),"",LOADS!A194) ->  | B197: =IF(ISBLANK(LOADS!B194),"",LOADS!B194) ->  | C197: =IF(LOADS!$AC194="BUS",IF(LOADS!$AE194=C$1,1,0),0) -> 0 | D197: =IF(LOADS!$AC194="BUS",IF(LOADS!$AE194=D$1,1,0),0) -> 0 | E197: =IF(LOADS!$AC194="BUS",IF(LOADS!$AE194=E$1,1,0),0) -> 0 | F197: =IF(LOADS!$AC194="BUS",IF(LOADS!$AE194=F$1,1,0),0) -> 0 | G197: =IF(LOADS!$AC194="BUS",IF(LOADS!$AE194=G$1,1,0),0) -> 0 | H197: =IF(LOADS!$AC194="BUS",IF(LOADS!$AE194=H$1,1,0),0) -> 0 | I197: =IF(LOADS!$AC194="BUS",IF(LOADS!$AE194=I$1,1,0),0) -> 0 | J197: =SUM(C197:I197) -> 0 | K197: =LOADS!AM194 -> 0
A198: =IF(ISBLANK(LOADS!A195),"",LOADS!A195) ->  | B198: =IF(ISBLANK(LOADS!B195),"",LOADS!B195) ->  | C198: =IF(LOADS!$AC195="BUS",IF(LOADS!$AE195=C$1,1,0),0) -> 0 | D198: =IF(LOADS!$AC195="BUS",IF(LOADS!$AE195=D$1,1,0),0) -> 0 | E198: =IF(LOADS!$AC195="BUS",IF(LOADS!$AE195=E$1,1,0),0) -> 0 | F198: =IF(LOADS!$AC195="BUS",IF(LOADS!$AE195=F$1,1,0),0) -> 0 | G198: =IF(LOADS!$AC195="BUS",IF(LOADS!$AE195=G$1,1,0),0) -> 0 | H198: =IF(LOADS!$AC195="BUS",IF(LOADS!$AE195=H$1,1,0),0) -> 0 | I198: =IF(LOADS!$AC195="BUS",IF(LOADS!$AE195=I$1,1,0),0) -> 0 | J198: 0 | K198: =LOADS!AM195 -> 0
A199: =IF(ISBLANK(LOADS!A196),"",LOADS!A196) ->  | B199: =IF(ISBLANK(LOADS!B196),"",LOADS!B196) ->  | C199: =IF(LOADS!$AC196="BUS",IF(LOADS!$AE196=C$1,1,0),0) -> 0 | D199: =IF(LOADS!$AC196="BUS",IF(LOADS!$AE196=D$1,1,0),0) -> 0 | E199: =IF(LOADS!$AC196="BUS",IF(LOADS!$AE196=E$1,1,0),0) -> 0 | F199: =IF(LOADS!$AC196="BUS",IF(LOADS!$AE196=F$1,1,0),0) -> 0 | G199: =IF(LOADS!$AC196="BUS",IF(LOADS!$AE196=G$1,1,0),0) -> 0 | H199: =IF(LOADS!$AC196="BUS",IF(LOADS!$AE196=H$1,1,0),0) -> 0 | I199: =IF(LOADS!$AC196="BUS",IF(LOADS!$AE196=I$1,1,0),0) -> 0 | J199: 0 | K199: =LOADS!AM196 -> 0
A200: =IF(ISBLANK(LOADS!A197),"",LOADS!A197) ->  | B200: =IF(ISBLANK(LOADS!B197),"",LOADS!B197) ->  | C200: =IF(LOADS!$AC197="BUS",IF(LOADS!$AE197=C$1,1,0),0) -> 0 | D200: =IF(LOADS!$AC197="BUS",IF(LOADS!$AE197=D$1,1,0),0) -> 0 | E200: =IF(LOADS!$AC197="BUS",IF(LOADS!$AE197=E$1,1,0),0) -> 0 | F200: =IF(LOADS!$AC197="BUS",IF(LOADS!$AE197=F$1,1,0),0) -> 0 | G200: =IF(LOADS!$AC197="BUS",IF(LOADS!$AE197=G$1,1,0),0) -> 0 | H200: =IF(LOADS!$AC197="BUS",IF(LOADS!$AE197=H$1,1,0),0) -> 0 | I200: =IF(LOADS!$AC197="BUS",IF(LOADS!$AE197=I$1,1,0),0) -> 0 | J200: 0 | K200: =LOADS!AM197 -> 0
... 703 more rows

Sheet Sheet1
